Workbook

Sheet Login (hidden)

Sheet Members (hidden)
A3: N° | B3: User | C3: Password | D3: role | E3: Série | AA3: AC
A4: 1 | B4: OMAR | C4: Rahim | D4: Admin | E4: AC | AA4: STI
A5: 2 | B5: DESTI | C5: GestSTI | D5: User | E5: STT | AA5: STT
A6: 3 | B6: DESTT | C6: GestSTT | D6: User | E6: STI
A7: 4 | B7: CDDCBH | C7: CBH03 | D7: User | E7: STI
A8: 5 | B8: CDDCGO | C8: CGO04 | D8: User | E8: STT
A9: 6 | B9: CDDCRCI | C9: CRCI05 | D9: User | E9: STI
A10: 7 | B10: CDDELEC | C10: ELEC06 | D10: User | E10: STI

Sheet MENU PRINCIPAL
AA1: ☺
O3: Bonjour Admin OMAR

Sheet Ressources STI
N3: FILIERES | S3: 1 | T3: Génie_Bois | Y3: SECTION STI | AM3: CBH | AP3: BTP | AS3: ELEC | AV3: IG | AY3: MAVA | BH3: CBH_1 | BK3: CBH_2 | BN3: BTP_1 | BQ3: BTP_2 | BT3: ELEC_1 | BW3: ELEC_2 | BZ3: IG_1 | CC3: XXX | CF3: MAVA_1 | CI3: MAVA_2 | CN3: DIRB
B4: N° | C4: Notes | H4: N° | I4: ANNEE | M4: N° | N4: Symbole | O4: Filières | S4: N° | T4: Symbole | U4: Sections | Y4: N° | Z4: CLASSE | AA4: Colonne1 | AB4: Intitulés | AE4: N° | AF4: CLASSE | AM4: N° | AN4: Classes | AP4: N° | AQ4: Classes | AS4: N° | AT4: Classes | AV4: N° | AW4: Classes | AY4: N° | AZ4: Classes | BH4: N° | BI4: U.E. | BK4: N° | BL4: U.E. | BN4: N° | BO4: U.E. | BQ4: N° | BR4: U.E. | BT4: N° | BU4: U.E. | BW4: N° | BX4: U.E. | BZ4: N° | CA4: U.E. | CC4: N° | CD4: U.E. | CF4: N° | CG4: U.E. | CI4: N° | CJ4: U.E. | CN4: N° | CO4: FILIERE | CS4: N° | CT4: Classe | CU4: SEMESTRE | CY4: N° | CZ4: SERIE | DA4: CIGLE | DF4: Notes | DG4: Mentions
B5: 0 | C5: 0 | E5: GB | F5: ABC | H5: 1 | I5: 2018_2019 | M5: 1 | N5: GB | O5: Génie_Bois | S5: 1 | T5: CBH | U5: Constructif Bois et Habitat | Y5: 1 | Z5: BTP_1 | AA5: BTP1 | AB5: 1ère Année Bâtiment Travaux Publics | AE5: 1 | AF5: BTP1 | AM5: 1 | AN5: CBH_1 | AP5: 1 | AQ5: BTP_1 | AS5: 1 | AT5: ELEC_1 | AV5: 1 | AW5: IG_1 | AY5: 1 | AZ5: MAVA_1 | BH5: 1 | BI5: Liste CBH1_1 | BK5: 1 | BL5: Liste CBH2_3 | BN5: 1 | BO5: Liste BTP1_1 | BQ5: 1 | BR5: Liste BTP2_3 | BT5: 1 | BU5: Liste ELEC1_1 | BW5: 1 | BX5: Liste ELEC2_3 | BZ5: 1 | CA5: Liste IG1_1 | CC5: 1 | CD5: Liste CBH1_1 | CF5: 1 | CG5: Liste MAVA1_1 | CI5: 1 | CJ5: Liste MAVA2_3 | CN5: 1 | CO5: CBH | CS5: 1 | CT5: BTS 1 | CU5: S1 | CY5: 1 | CZ5: Sciences et Techniques Industrielles | DA5: STI | DF5: 0 | DG5: Nul
B6: 1 | C6: 0.5 | E6: GBT | F6: GAP | H6: 2 | I6: 2019_2020 | M6: 2 | N6: GC | O6: Génie_Civil | S6: 2 | T6: MDA | U6: Menuiserie Design et Ameublement | Y6: 2 | Z6: BTP_2 | AA6: BTP2 | AB6: 2ème Année Bâtiment Travaux Publics | AE6: 2 | AF6: BTP2 | AM6: 2 | AN6: CBH_2 | AP6: 2 | AQ6: BTP_2 | AS6: 2 | AT6: ELEC_2 | AV6: 2 | AW6: IG_2_ARLE | AY6: 2 | AZ6: MAVA_2 | BH6: 2 | BI6: Relevé Notes CBH1_1 | BK6: 2 | BL6: Relevé Notes CBH2_3 | BN6: 2 | BO6: Relevé Notes BTP1_1 | BQ6: 2 | BR6: Relevé Notes BTP2_3 | BT6: 2 | BU6: Relevé Notes ELEC1_1 | BW6: 2 | BX6: Relevé Notes ELEC2_3 | BZ6: 2 | CA6: Relevé Notes IG1_1 | CC6: 2 | CD6: Relevé Notes CBH1_1 | CF6: 2 | CG6: Relevé Notes MAVA1_1 | CI6: 2 | CJ6: Relevé Notes MAVA2_3 | CN6: 2 | CO6: MDA | CS6: 2 | CT6: BTS 1 | CU6: S2 | CY6: 2 | CZ6: Sciences et Techniques du tertiaire | DA6: STT | DF6: 1 | DG6: Nul
B7: 2 | C7: 1 | E7: GE | F7: MUC | H7: 3 | I7: 2020_2021 | M7: 3 | N7: GE | O7: Génie_Electrique | S7: 3 | T7: IPT_SD | U7: Industrie de Premire Transformation _ Scierie_Déroulage | Y7: 3 | Z7: CRCI_1 | AA7: CRCI1 | AB7: 1ère Année Conception et Réalisation en Chaudronnerie Industrielle | AE7: 3 | AF7: CRCI1 | AV7: 3 | AW7: IG_2_DA | BH7: 3 | BI7: Moyennes CBH1_1 | BK7: 3 | BL7: Moyennes CBH2_3 | BN7: 3 | BO7: Moyennes BTP1_1 | BQ7: 3 | BR7: Moyennes BTP2_3 | BT7: 3 | BU7: Moyennes ELEC1_1 | BW7: 3 | BX7: Moyennes ELEC2_3 | BZ7: 3 | CA7: Moyennes IG1_1 | CC7: 3 | CD7: Moyennes CBH1_1 | CF7: 3 | CG7: Moyennes MAVA1_1 | CI7: 3 | CJ7: Moyennes MAVA2_3 | CN7: 3 | CO7: SD | CS7: 3 | CT7: BTS 2 | CU7: S3 | DF7: 2 | DG7: Nul
B8: 3 | C8: 1.5 | E8: GI | F8: TEP | H8: 4 | I8: 2021_2022 | M8: 4 | N8: GI | O8: Génie_Informatique | Y8: 4 | Z8: CRCI_2 | AA8: CRCI2 | AB8: 2ème Année Conception et Réalisation en Chaudronnerie Industrielle | AE8: 4 | AF8: CRCI2 | BH8: 4 | BI8: TABBORD CBH1_1 | BK8: 4 | BL8: TABBORD CBH2_3 | BN8: 4 | BO8: TABBORD BTP1_1 | BQ8: 4 | BR8: TABBORD BTP2_3 | BT8: 4 | BU8: TABBORD ELEC1_1 | BW8: 4 | BX8: TABBORD ELEC2_3 | BZ8: 4 | CA8: TABBORD IG1_1 | CC8: 4 | CD8: TABBORD CBH1_1 | CF8: 4 | CG8: TABBORD MAVA1_1 | CI8: 4 | CJ8: TABBORD MAVA2_3 | CS8: 4 | CT8: BTS 2 | CU8: S4 | DF8: 3 | DG8: Médiocre
B9: 4 | C9: 2 | E9: GM | H9: 5 | I9: 2022_2023 | M9: 5 | N9: GM | O9: Génie_Mécanique | Y9: 5 | Z9: CBH_1 | AA9: CBH1 | AB9: 1ère Année Constructif Bois et Habitat | AE9: 5 | AF9: CBH1 | BH9: 5 | BI9: Bulletins CBH1_1 | BK9: 5 | BL9: Bulletins CBH2_3 | BN9: 5 | BO9: Bulletins BTP1_1 | BQ9: 5 | BR9: Bulletins BTP2_3 | BT9: 5 | BU9: Bulletins ELEC1_1 | BW9: 5 | BX9: Bulletins ELEC2_3 | BZ9: 5 | CA9: Bulletins IG1_1 | CC9: 5 | CD9: Bulletins CBH1_1 | CF9: 5 | CG9: Bulletins MAVA1_1 | CI9: 5 | CJ9: Bulletins MAVA2_3 | DF9: 4 | DG9: Médiocre
B10: 5 | C10: 2.5 | H10: 6 | I10: 2023_2024 | Y10: 6 | Z10: CBH_2 | AA10: CBH2 | AB10: 2ème Année Constructif Bois et Habitat | AE10: 6 | AF10: CBH2 | BH10: 6 | BI10: Récape CBH1_1 | BK10: 6 | BL10: Récape CBH2_3 | BN10: 6 | BO10: Récape BTP1_1 | BQ10: 6 | BR10: Récape BTP2_3 | BT10: 6 | BU10: Récape ELEC1_1 | BW10: 6 | BX10: Récape ELEC2_3 | BZ10: 6 | CA10: Récape IG1_1 | CC10: 6 | CD10: Récape CBH1_1 | CF10: 6 | CG10: Récape MAVA1_1 | CI10: 6 | CJ10: Récape MAVA2_3 | DF10: 5 | DG10: Médiocre
B11: 6 | C11: 3 | H11: 7 | I11: 2024_2025 | Y11: 7 | Z11: MDA_1 | AA11: MDA1 | AB11: 1ère Année Menuiserie Design et Ameublement | AE11: 7 | AF11: MDA1 | BH11: 7 | BI11: Retraits CBH1_1 | BK11: 7 | BL11: Retraits CBH2_3 | BN11: 7 | BO11: Retraits BTP1_1 | BQ11: 7 | BR11: Retraits BTP2_3 | BT11: 7 | BU11: Retraits ELEC1_1 | BW11: 7 | BX11: Retraits ELEC2_3 | BZ11: 7 | CA11: Retraits IG1_1 | CC11: 7 | CD11: Retraits CBH1_1 | CF11: 7 | CG11: Retraits MAVA1_1 | CI11: 7 | CJ11: Retraits MAVA2_3 | DF11: 6 | DG11: Très insuffisant
B12: 7 | C12: 3.5 | H12: 8 | I12: 2025_2026 | N12: N° | O12: U.E. | S12: 2 | T12: Génie_Civil | Y12: 8 | Z12: MDA_2 | AA12: MDA2 | AB12: 2ème Année Menuiserie Design et Ameublement | AE12: 8 | AF12: MDA2 | BH12: 8 | BI12: Liste CBH1_2 | BK12: 8 | BL12: Liste CBH2_4 | BN12: 8 | BO12: Liste BTP1_2 | BQ12: 8 | BR12: Liste BTP2_4 | BT12: 8 | BU12: Liste ELEC1_2 | BW12: 8 | BX12: Liste ELEC2_4 | BZ12: 8 | CA12: Liste IG1_2 | CC12: 8 | CD12: Liste CBH1_2 | CF12: 8 | CG12: Liste MAVA1_2 | CI12: 8 | CJ12: Liste MAVA2_4 | DF12: 7 | DG12: Très insuffisant
B13: 8 | C13: 4 | H13: 9 | I13: 2026_2027 | N13: 1 | O13: Langues | S13: N° | T13: Symbole | U13: Sections | Y13: 9 | Z13: IPT_SD_1 | AA13: IPT_SD1 | AB13: 1ère Année Industrie de Première Transformation _ Scierie_Déroulage | AE13: 9 | AF13: IPT_SD1 | BH13: 9 | BI13: Relevé Notes CBH1_2 | BK13: 9 | BL13: Relevé Notes CBH2_4 | BN13: 9 | BO13: Relevé Notes BTP1_2 | BQ13: 9 | BR13: Relevé Notes BTP2_4 | BT13: 9 | BU13: Relevé Notes ELEC1_2 | BW13: 9 | BX13: Relevé Notes ELEC2_4 | BZ13: 9 | CA13: Relevé Notes IG1_2 | CC13: 9 | CD13: Relevé Notes CBH1_2 | CF13: 9 | CG13: Relevé Notes MAVA1_2 | CI13: 9 | CJ13: Relevé Notes MAVA2_4 | DF13: 8 | DG13: Insuffisant
B14: 9 | C14: 4.5 | H14: 10 | I14: 2027_2028 | N14: 2 | O14: Sciences | S14: 1 | T14: BTP | U14: Bâtiment Travaux Publics | Y14: 10 | Z14: IPT_SD_2 | AA14: IPT_SD2 | AB14: 2ème Année Industrie de Première Transformation _ Scierie_Déroulage | AE14: 10 | AF14: IPT_SD2 | AM14: MDA | AP14: CRCI | AS14: MEB | AV14: IG_DA | AY14: MI | BH14: 10 | BI14: Moyennes CBH1_2 | BK14: 10 | BL14: Moyennes CBH2_4 | BN14: 10 | BO14: Moyennes BTP1_2 | BQ14: 10 | BR14: Moyennes BTP2_4 | BT14: 10 | BU14: Moyennes ELEC1_2 | BW14: 10 | BX14: Moyennes ELEC2_4 | BZ14: 10 | CA14: Moyennes IG1_2 | CC14: 10 | CD14: Moyennes CBH1_2 | CF14: 10 | CG14: Moyennes MAVA1_2 | CI14: 10 | CJ14: Moyennes MAVA2_4 | DF14: 9 | DG14: Insuffisant
B15: 10 | C15: 5 | H15: 11 | I15: 2028_2029 | N15: 3 | O15: Eco. et Con. /Ense | S15: 2 | T15: CRCI | U15: Conception et Réalisation en Chaudronnerie Industrielle | Y15: 11 | Z15: ELEC_1 | AA15: ELEC1 | AB15: 1ère Année Electrotechnique | AE15: 11 | AF15: ELEC1 | AM15: N° | AN15: Classes | AP15: N° | AQ15: Classes | AS15: N° | AT15: Classes | AV15: N° | AW15: Classes | AY15: N° | AZ15: Classes | BH15: 11 | BI15: TABBORD CBH1_2 | BK15: 11 | BL15: TABBORD CBH2_4 | BN15: 11 | BO15: TABBORD BTP1_2 | BQ15: 11 | BR15: TABBORD BTP2_4 | BT15: 11 | BU15: TABBORD ELEC1_2 | BW15: 11 | BX15: TABBORD ELEC2_4 | BZ15: 11 | CA15: TABBORD IG1_2 | CC15: 11 | CD15: TABBORD CBH1_2 | CF15: 11 | CG15: TABBORD MAVA1_2 | CI15: 11 | CJ15: TABBORD MAVA2_4 | DF15: 10 | DG15: Passable
B16: 11 | C16: 5.5 | H16: 12 | I16: 2029_2030 | N16: 4 | O16: Technologique | Y16: 12 | Z16: ELEC_2 | AA16: ELEC2 | AB16: 2ème Année Electrotechnique | AE16: 12 | AF16: ELEC2 | AM16: 1 | AN16: MDA_1 | AP16: 1 | AQ16: CRCI_1 | AS16: 1 | AT16: MEB_1 | AY16: 1 | AZ16: MI_1 | BH16: 12 | BI16: Bulletins CBH1_2 | BK16: 12 | BL16: Bulletins CBH2_4 | BN16: 12 | BO16: Bulletins BTP1_2 | BQ16: 12 | BR16: Bulletins BTP2_4 | BT16: 12 | BU16: Bulletins ELEC1_2 | BW16: 12 | BX16: Bulletins ELEC2_4 | BZ16: 12 | CA16: Bulletins IG1_2 | CC16: 12 | CD16: Bulletins CBH1_2 | CF16: 12 | CG16: Bulletins MAVA1_2 | CI16: 12 | CJ16: Bulletins MAVA2_4 | DF16: 11 | DG16: Passable
B17: 12 | C17: 6 | H17: 13 | I17: 2030_2031 | N17: 5 | O17: Professionnel | Y17: 13 | Z17: MEB_1 | AA17: MEB1 | AB17: 1ère Année Maintenance des Equipements Biomédicaux | AE17: 13 | AF17: MEB1 | AM17: 2 | AN17: MDA_2 | AP17: 2 | AQ17: CRCI_2 | AS17: 2 | AT17: MEB_2 | AY17: 2 | AZ17: MI_2 | BH17: 13 | BI17: Récape CBH1_2 | BK17: 13 | BL17: Récape CBH2_4 | BN17: 13 | BO17: Récape BTP1_2 | BQ17: 13 | BR17: Récape BTP2_4 | BT17: 13 | BU17: Récape ELEC1_2 | BW17: 13 | BX17: Récape ELEC2_4 | BZ17: 13 | CA17: Récape IG1_2 | CC17: 13 | CD17: Récape CBH1_2 | CF17: 13 | CG17: Récape MAVA1_2 | CI17: 13 | CJ17: Récape MAVA2_4 | DF17: 12 | DG17: Assez_bien
B18: 13 | C18: 6.5 | H18: 14 | I18: 2030_2032 | N18: 6 | O18: Insertion Prof. | Y18: 14 | Z18: MEB_2 | AA18: MEB2 | AB18: 2ème Année Maintenance des Equipements Biomédicaux | AE18: 14 | AF18: MEB2 | BH18: 14 | BI18: Retraits CBH1_2 | BK18: 14 | BL18: Retraits CBH2_4 | BN18: 14 | BO18: Retraits BTP1_2 | BQ18: 14 | BR18: Retraits BTP2_4 | BT18: 14 | BU18: Retraits ELEC1_2 | BW18: 14 | BX18: Retraits ELEC2_4 | BZ18: 14 | CA18: Retraits IG1_2 | CC18: 14 | CD18: Retraits CBH1_2 | CF18: 14 | CG18: Retraits MAVA1_2 | CI18: 14 | CJ18: Retraits MAVA2_4 | DF18: 13 | DG18: Assez_bien
B19: 14 | C19: 7 | H19: 15 | I19: 2032_2033 | N19: 7 | O19: Récréation | S19: 3 | T19: Génie_Electrique | Y19: 15 | Z19: IG_1 | AA19: IG1 | AB19: 1ère Année Informatique de Gestion | AE19: 15 | AF19: IG1 | BH19: 15 | BK19: 15 | BN19: 15 | BQ19: 15 | BT19: 15 | BW19: 15 | BZ19: 15 | CC19: 15 | CF19: 15 | CI19: 15 | DF19: 14 | DG19: Bien
B20: 15 | C20: 7.5 | H20: 16 | I20: 2033_2034 | S20: N° | T20: Symbole | U20: Sections | Y20: 16 | Z20: IG_2_ARLE | AA20: IG2_ARLE | AB20: 2ème Année Informatique de Gestion (Administration des Réseaux Locaux d'Entreprise) | AE20: 16 | AF20: IG2_ARLE | DF20: 15 | DG20: Bien
B21: 16 | C21: 8 | H21: 17 | I21: 2034_2035 | S21: 1 | T21: ELEC | U21: Electrotechnique | Y21: 17 | Z21: IG_2_DA | AA21: IG2_DA | AB21: 2ème Année Informatique de Gestion (Développeur d''Application) | AE21: 17 | AF21: IG2_DA | AM21: IPT_SD | AV21: IRIS | DF21: 16 | DG21: Très Bien
B22: 17 | C22: 8.5 | H22: 18 | I22: 2035_2036 | S22: 2 | T22: MEB | U22: Maintenance des Equipement Biomédicaux | Y22: 18 | Z22: IRIS_1 | AA22: IRIS1 | AB22: 1ère Année Informatique et Réseaux pour L'industrie et les services | AE22: 18 | AF22: IRIS1 | AM22: N° | AN22: Classes | AV22: N° | AW22: Classes | DF22: 17 | DG22: Très Bien
B23: 18 | C23: 9 | H23: 19 | I23: 2036_2037 | Y23: 19 | Z23: IRIS_2 | AA23: IRIS2 | AB23: 2ème Année Informatique et Réseaux pour L'industrie et les services | AE23: 19 | AF23: IRIS2 | AM23: 1 | AN23: IPT_SD_1 | AV23: 1 | AW23: IRIS_1 | DF23: 18 | DG23: Exellent
B24: 19 | C24: 9.5 | H24: 20 | I24: 2037_2038 | Y24: 20 | Z24: MAVA_1 | AA24: MAVA1 | AB24: 1ère Année Maintenance Après_vente Automobile | AE24: 20 | AF24: MAVA1 | AM24: 2 | AN24: IPT_SD_2 | AV24: 2 | AW24: IRIS_2 | DF24: 19 | DG24: Exellent
B25: 20 | C25: 10 | H25: 21 | I25: 2038_2039 | Y25: 21 | Z25: MAVA_2 | AA25: MAVA2 | AB25: 2ème Année Maintenance Après_vente Automobile | AE25: 21 | AF25: MAVA2 | BH25: MDA_1 | BK25: MDA_2 | BN25: CRCI_1 | BQ25: CRCI_2 | BT25: MEB_1 | BW25: MEB_2 | BZ25: IG_2_ARLE | CC25: IG_2_DA | CF25: MI_1 | CI25: MI_2 | DF25: 20 | DG25: Parfait
B26: 21 | C26: 10.5 | H26: 22 | I26: 2039_2040 | S26: 4 | T26: Génie_Informatique | Y26: 22 | Z26: MI_1 | AA26: MI1 | AB26: 1ère Année Maintenance Industrielle | AE26: 22 | AF26: MI1 | BH26: N° | BI26: U.E. | BK26: N° | BL26: U.E. | BN26: N° | BO26: U.E. | BQ26: N° | BR26: U.E. | BT26: N° | BU26: U.E. | BW26: N° | BX26: U.E. | BZ26: N° | CA26: U.E. | CC26: N° | CD26: U.E. | CF26: N° | CG26: U.E. | CI26: N° | CJ26: U.E.
B27: 22 | C27: 11 | H27: 23 | I27: 2040_2041 | S27: N° | T27: Symbole | U27: Sections | Y27: 23 | Z27: MI_2 | AA27: MI2 | AB27: 2ème Année Maintenance Industrielle | AE27: 23 | AF27: MI2 | BH27: 1 | BI27: Liste MDA1_1 | BK27: 1 | BL27: Liste MDA2_3 | BN27: 1 | BO27: Liste CRCI1_1 | BQ27: 1 | BR27: Liste CRCI2_3 | BT27: 1 | BU27: Liste MEB1_1 | BW27: 1 | BX27: Liste MEB2_3 | BZ27: 1 | CA27: Liste IG_ARLE2_3 | CC27: 1 | CD27: Liste IG_DA2_3 | CF27: 1 | CG27: Liste MI1_1 | CI27: 1 | CJ27: Liste MI3
B28: 23 | C28: 11.5 | H28: 24 | I28: 2041_2042 | S28: 1 | T28: IG | U28: Informatique de Gestion | Y28: 24 | AE28: 24 | BH28: 2 | BI28: Relevé Notes MDA1_1 | BK28: 2 | BL28: Relevé Notes MDA2_3 | BN28: 2 | BO28: Relevé Notes CRCI1_1 | BQ28: 2 | BR28: Relevé Notes CRCI2_3 | BT28: 2 | BU28: Relevé Notes MEB1_1 | BW28: 2 | BX28: Relevé Notes MEB2_3 | BZ28: 2 | CA28: Relevé Notes IG_ARLE2_33 | CC28: 2 | CD28: Relevé Notes IG_DA2_3 | CF28: 2 | CG28: Relevé Notes MI1_1 | CI28: 2 | CJ28: Relevé Notes MI2_3
B29: 24 | C29: 12 | H29: 25 | I29: 2042_2043 | S29: 2 | T29: IRIS | U29: Informatique et Réseaux pour Lindustrie et les services | Y29: 25 | AE29: 25 | BH29: 3 | BI29: Moyennes MDA1_1 | BK29: 3 | BL29: Moyennes MDA2_3 | BN29: 3 | BO29: Moyennes CRCI1_1 | BQ29: 3 | BR29: Moyennes CRCI2_3 | BT29: 3 | BU29: Moyennes MEB1_1 | BW29: 3 | BX29: Moyennes MEB2_3 | BZ29: 3 | CA29: Moyennes IG_ARLE2_3 | CC29: 3 | CD29: Moyennes IG_DA2_3 | CF29: 3 | CG29: Moyennes MI1_1 | CI29: 3 | CJ29: Moyennes MI2_3
B30: 25 | C30: 12.5 | H30: 26 | I30: 2043_2044 | BH30: 4 | BI30: TABBORD MDA1_1 | BK30: 4 | BL30: TABBORD MDA2_3 | BN30: 4 | BO30: TABBORD CRCI1_1 | BQ30: 4 | BR30: TABBORD CRCI2_3 | BT30: 4 | BU30: TABBORD MEB1_1 | BW30: 4 | BX30: TABBORD MEB2_3 | BZ30: 4 | CA30: TABBORD IG_ARLE2_3 | CC30: 4 | CD30: TABBORD IG_DA2_3 | CF30: 4 | CG30: TABBORD MI1_1 | CI30: 4 | CJ30: TABBORD MI2_3
B31: 26 | C31: 13 | H31: 27 | I31: 2044_2045 | BH31: 5 | BI31: Bulletins MDA1_1 | BK31: 5 | BL31: Bulletins MDA2_3 | BN31: 5 | BO31: Bulletins CRCI1_1 | BQ31: 5 | BR31: Bulletins CRCI2_3 | BT31: 5 | BU31: Bulletins MEB1_1 | BW31: 5 | BX31: Bulletins MEB2_3 | BZ31: 5 | CA31: Bulletins IG_ARLE2_3 | CC31: 5 | CD31: Bulletins IG_DA2_3 | CF31: 5 | CG31: Bulletins MI1_1 | CI31: 5 | CJ31: Bulletins MI2_3
B32: 27 | C32: 13.5 | H32: 28 | I32: 2045_2046 | BH32: 6 | BI32: Récape MDA1_1 | BK32: 6 | BL32: Récape MDA2_3 | BN32: 6 | BO32: Récape CRCI1_1 | BQ32: 6 | BR32: Récape CRCI2_3 | BT32: 6 | BU32: Récape MEB1_1 | BW32: 6 | BX32: Récape MEB2_3 | BZ32: 6 | CA32: Récape IG_ARLE2_3 | CC32: 6 | CD32: Récape IG_DA2_3 | CF32: 6 | CG32: Récape MI1_1 | CI32: 6 | CJ32: Récape MI2_3
B33: 28 | C33: 14 | H33: 29 | I33: 2046_2047 | BH33: 7 | BI33: Retraits MDA1_1 | BK33: 7 | BL33: Retraits MDA2_3 | BN33: 7 | BO33: Retraits CRCI1_1 | BQ33: 7 | BR33: Retraits CRCI2_3 | BT33: 7 | BU33: Retraits MEB1_1 | BW33: 7 | BX33: Retraits MEB2_3 | BZ33: 7 | CA33: Retraits IG_ARLE2_3 | CC33: 7 | CD33: Retraits IG_DA2_3 | CF33: 7 | CG33: Retraits MI1_1 | CI33: 7 | CJ33: Retraits MI2_3
B34: 29 | C34: 14.5 | H34: 30 | I34: 2047_2048 | BH34: 8 | BI34: Liste MDA1_2 | BK34: 8 | BL34: Liste MDA2_4 | BN34: 8 | BO34: Liste CRCI1_2 | BQ34: 8 | BR34: Liste CRCI2_4 | BT34: 8 | BU34: Liste MEB1_2 | BW34: 8 | BX34: Liste MEB2_4 | BZ34: 8 | CA34: Liste IG_ARLE2_4 | CC34: 8 | CD34: Liste IG_DA2_4 | CF34: 8 | CG34: Liste MI1_2 | CI34: 8 | CJ34: Liste MI2_4
B35: 30 | C35: 15 | H35: 31 | I35: 2048_2049 | BH35: 9 | BI35: Relevé Notes MDA1_2 | BK35: 9 | BL35: Relevé Notes MDA2_4 | BN35: 9 | BO35: Relevé Notes CRCI1_2 | BQ35: 9 | BR35: Relevé Notes CRCI2_4 | BT35: 9 | BU35: Relevé Notes MEB1_2 | BW35: 9 | BX35: Relevé Notes MEB2_4 | BZ35: 9 | CA35: Relevé Notes IG_ARLE2_4 | CC35: 9 | CD35: Relevé Notes IG_DA2_4 | CF35: 9 | CG35: Relevé Notes MI1_2 | CI35: 9 | CJ35: Relevé Notes MI2_4
B36: 31 | C36: 15.5 | H36: 32 | I36: 2049_2050 | BH36: 10 | BI36: Moyennes MDA1_2 | BK36: 10 | BL36: Moyennes MDA2_4 | BN36: 10 | BO36: Moyennes CRCI1_2 | BQ36: 10 | BR36: Moyennes CRCI2_4 | BT36: 10 | BU36: Moyennes MEB1_2 | BW36: 10 | BX36: Moyennes MEB2_4 | BZ36: 10 | CA36: Moyennes IG_ARLE2_4 | CC36: 10 | CD36: Moyennes IG_DA2_4 | CF36: 10 | CG36: Moyennes MI1_2 | CI36: 10 | CJ36: Moyennes MI2_4
B37: 32 | C37: 16 | S37: 5 | T37: Génie_Mécanique | BH37: 11 | BI37: TABBORD MDA1_2 | BK37: 11 | BL37: TABBORD MDA2_4 | BN37: 11 | BO37: TABBORD CRCI1_2 | BQ37: 11 | BR37: TABBORD CRCI2_4 | BT37: 11 | BU37: TABBORD MEB1_2 | BW37: 11 | BX37: TABBORD MEB2_4 | BZ37: 11 | CA37: TABBORD IG_ARLE2_4 | CC37: 11 | CD37: TABBORD IG_DA2_4 | CF37: 11 | CG37: TABBORD MI1_2 | CI37: 11 | CJ37: TABBORD MI2_4
B38: 33 | C38: 16.5 | S38: N° | T38: Symbole | U38: Sections | BH38: 12 | BI38: Bulletins MDA1_2 | BK38: 12 | BL38: Bulletins MDA2_4 | BN38: 12 | BO38: Bulletins CRCI1_2 | BQ38: 12 | BR38: Bulletins CRCI2_4 | BT38: 12 | BU38: Bulletins MEB1_2 | BW38: 12 | BX38: Bulletins MEB2_4 | BZ38: 12 | CA38: Bulletins IG_ARLE2_4 | CC38: 12 | CD38: Bulletins IG_DA2_4 | CF38: 12 | CG38: Bulletins MI1_2 | CI38: 12 | CJ38: Bulletins MI2_4
B39: 34 | C39: 17 | S39: 1 | T39: MAVA | U39: Maintenance Après_vente Automobile | BH39: 13 | BI39: Récape MDA1_2 | BK39: 13 | BL39: Récape MDA2_4 | BN39: 13 | BO39: Récape CRCI1_2 | BQ39: 13 | BR39: Récape CRCI2_4 | BT39: 13 | BU39: Récape MEB1_2 | BW39: 13 | BX39: Récape MEB2_4 | BZ39: 13 | CA39: Récape IG_ARLE2_4 | CC39: 13 | CD39: Récape IG_DA2_4 | CF39: 13 | CG39: Récape MI1_2 | CI39: 13 | CJ39: Récape MI2_4
B40: 35 | C40: 17.5 | S40: 2 | T40: MI | U40: Maintenance Industrielle | BH40: 14 | BI40: Retraits MDA1_2 | BK40: 14 | BL40: Retraits MDA2_4 | BN40: 14 | BO40: Retraits CRCI1_2 | BQ40: 14 | BR40: Retraits CRCI2_4 | BT40: 14 | BU40: Retraits MEB1_2 | BW40: 14 | BX40: Retraits MEB2_4 | BZ40: 14 | CA40: Retraits IG_ARLE2_4 | CC40: 14 | CD40: Retraits IG_DA2_4 | CF40: 14 | CG40: Retraits MI1_2 | CI40: 14 | CJ40: Retraits MI2_4
B41: 36 | C41: 18 | BH41: 15 | BK41: 15 | BN41: 15 | BQ41: 15 | BT41: 15 | BW41: 15 | BZ41: 15 | CC41: 15 | CF41: 15 | CI41: 15
B42: 37 | C42: 18.5 | BH42: 16
B43: 38 | C43: 19
B44: 39 | C44: 19.5
B45: 40 | C45: 20
BH46: IPT_SD_1 | BK46: IPT_SD_2 | BZ46: IRIS_1 | CC46: IRIS_2
BH47: N° | BI47: U.E. | BK47: N° | BL47: U.E. | BZ47: N° | CA47: U.E. | CC47: N° | CD47: U.E.
BH48: 1 | BI48: Liste SD1_1 | BK48: 1 | BL48: Liste SD2_3 | BZ48: 1 | CA48: Liste IRIS1_1 | CC48: 1 | CD48: Liste IRIS2_3
BH49: 2 | BI49: Relevé Notes SD1_1 | BK49: 2 | BL49: Relevé Notes SD2_3 | BZ49: 2 | CA49: Relevé Notes IRIS1_1 | CC49: 2 | CD49: Relevé Notes IRIS2_3
BH50: 3 | BI50: Moyennes SD1_1 | BK50: 3 | BL50: Moyennes SD2_3 | BZ50: 3 | CA50: Moyennes IRIS1_1 | CC50: 3 | CD50: Moyennes IRIS2_3
BH51: 4 | BI51: TABBORD_SD1_1 | BK51: 4 | BL51: TABBORD_SD2_3 | BZ51: 4 | CA51: TABBORD IRIS1_1 | CC51: 4 | CD51: TABBORD IRIS2_3
BH52: 5 | BI52: Bulletins SD1_1 | BK52: 5 | BL52: Bulletins SD2_3 | BZ52: 5 | CA52: Bulletins IRIS1_1 | CC52: 5 | CD52: Bulletins IRIS2_3
BH53: 6 | BI53: Récape SD1_1 | BK53: 6 | BL53: Récape SD2_3 | BZ53: 6 | CA53: Récape IRIS1_1 | CC53: 6 | CD53: Récape IRIS2_3
BH54: 7 | BI54: Retraits SD1_1 | BK54: 7 | BL54: Retraits SD2_3 | BZ54: 7 | CA54: Retraits IRIS1_1 | CC54: 7 | CD54: Retraits IRIS2_3
BH55: 8 | BI55: Liste SD1_2 | BK55: 8 | BL55: Liste SD2_4 | BZ55: 8 | CA55: Liste IRIS1_2 | CC55: 8 | CD55: Liste IRIS2_4
BH56: 9 | BI56: Relevé Notes SD1_2 | BK56: 9 | BL56: Relevé Notes SD2_4 | BZ56: 9 | CA56: Relevé Notes IRIS1_2 | CC56: 9 | CD56: Relevé Notes IRIS2_4
BH57: 10 | BI57: Moyennes SD1_2 | BK57: 10 | BL57: Moyennes SD2_4 | BZ57: 10 | CA57: Moyennes IRIS1_2 | CC57: 10 | CD57: Moyennes IRIS2_4
BH58: 11 | BI58: TABBORD_SD1_2 | BK58: 11 | BL58: TABBORD_SD2_4 | BZ58: 11 | CA58: TABBORD IRIS1_2 | CC58: 11 | CD58: TABBORD IRIS2_4
BH59: 12 | BI59: Bulletins SD1_2 | BK59: 12 | BL59: Bulletins SD2_4 | BZ59: 12 | CA59: Bulletins IRIS1_2 | CC59: 12 | CD59: Bulletins IRIS2_4
BH60: 13 | BI60: Récape SD1_2 | BK60: 13 | BL60: Récape SD2_4 | BZ60: 13 | CA60: Récape IRIS1_2 | CC60: 13 | CD60: Récape IRIS2_4
BH61: 14 | BI61: Retraits SD1_2 | BK61: 14 | BL61: Retraits SD2_4 | BZ61: 14 | CA61: Retraits IRIS1_2 | CC61: 14 | CD61: Retraits IRIS2_4
BH62: 15 | BK62: 15 | BZ62: 15 | CC62: 15

Sheet U.E-STI
E6: ANNÉE ACADÉMIQUE : | G6: 2019-2020
E8: UNITES D'ENSEIGNEMENT : | G8: STI
E10: MISE A JOUR : | G10: 02.05.2020
E12: CONCEPTION | G12: ARCHEC-Concept
B14: Filière | C14: Section | D14: Classe | E14: U.E.S1/S3 | F14: CODE S1/S3 | G14: Modules S1/S3 | H14: Coef. S1/S3 | I14: V.H-P1 | J14: Colonne1 | K14: U.E.S2/S4 | L14: CODE S2/S4 | M14: Modules S2/S4 | N14: Coef. S2/S4 | O14: V.H-P2
B15: Génie_Bois | C15: CBH | D15: CBH1 | E15: UE 1 | F15: CBH1.1_LG1 | G15: Anglais | H15: 2 | I15: 30 | K15: UE 1 | L15: CBH1.2_LG1 | M15: Anglais | N15: 2 | O15: 30 | Y15: N° | Z15: CODE | AA15: UNITES D'ENSEIGNEMENT | AB15: Crédits / UE
B16: Génie_Bois | C16: CBH | D16: CBH1 | E16: UE 1 | F16: CBH1.1_LG2 | G16: Culture Générale et Expression | H16: 3 | I16: 30 | K16: UE 1 | L16: CBH1.2_LG2 | M16: Culture Générale et Expression | N16: 3 | O16: 30 | Y16: 1 | Z16: LG | AA16: LANGUE
B17: Génie_Bois | C17: CBH | D17: CBH1 | E17: UE 1 | F17: CBH1.1_LG3 | G17: A1 | H17: 0 | I17: 0 | K17: UE 1 | L17: CBH1.2_LG3 | M17: A1 | N17: 0 | O17: 0 | Y17: 2 | Z17: SC | AA17: SCIENCES
B18: Génie_Bois | C18: CBH | D18: CBH1 | E18: UE 1 | F18: CBH1.1_LG4 | G18: A2 | H18: 0 | I18: 0 | K18: UE 1 | L18: CBH1.2_LG4 | M18: A2 | N18: 0 | O18: 0 | Y18: 3 | Z18: TECHNO | AA18: TECHNOLOGIQUE
B19: Génie_Bois | C19: CBH | D19: CBH1 | E19: UE 1 | F19: CBH1.1_LG5 | G19: A3 | H19: 0 | I19: 0 | K19: UE 1 | L19: CBH1.2_LG5 | M19: A3 | N19: 0 | O19: 0 | Y19: 4 | Z19: PROF | AA19: PROFESSIONNEL
B20: Génie_Bois | C20: CBH | D20: CBH1 | E20: UE 2 | F20: CBH1.1_SC1 | G20: Mathématiques | H20: 2 | I20: 60 | K20: UE 2 | L20: CBH1.2_SC1 | M20: Mathématiques | N20: 2 | O20: 60 | Y20: 5 | Z20: ECO | AA20: ENVIRONNEMENT ECONOMIQUE ET CONNAISSANCE DE L'ENTREPRISE
B21: Génie_Bois | C21: CBH | D21: CBH1 | E21: UE 2 | F21: CBH1.1_SC2 | G21: Sciences physiques | H21: 1 | I21: 30 | K21: UE 2 | L21: CBH1.2_SC2 | M21: Sciences physiques | N21: 1 | O21: 30
B22: Génie_Bois | C22: CBH | D22: CBH1 | E22: UE 2 | F22: CBH1.1_SC3 | G22: Physique du bâtiment | H22: 1 | I22: 30 | K22: UE 2 | L22: CBH1.2_SC3 | M22: Physique du bâtiment | N22: 1 | O22: 30
B23: Génie_Bois | C23: CBH | D23: CBH1 | E23: UE 2 | F23: CBH1.1_SC4 | G23: B1 | H23: 0 | I23: 0 | K23: UE 2 | L23: CBH1.2_SC4 | M23: B1 | N23: 0 | O23: 0
B24: Génie_Bois | C24: CBH | D24: CBH1 | E24: UE 2 | F24: CBH1.1_SC5 | G24: B2 | H24: 0 | I24: 0 | K24: UE 2 | L24: CBH1.2_SC5 | M24: B2 | N24: 0 | O24: 0
B25: Génie_Bois | C25: CBH | D25: CBH1 | E25: UE 3 | F25: CBH1.1_TECHNO1 | G25: Dessin et DAO/CAO | H25: 3 | I25: 45 | K25: UE 3 | L25: CBH1.2_TECHNO1 | M25: Dessin et DAO/CAO | N25: 3 | O25: 45
B26: Génie_Bois | C26: CBH | D26: CBH1 | E26: UE 3 | F26: CBH1.1_TECHNO2 | G26: Calculs de structures | H26: 3 | I26: 45 | K26: UE 3 | L26: CBH1.2_TECHNO2 | M26: Calculs de structures | N26: 3 | O26: 45
B27: Génie_Bois | C27: CBH | D27: CBH1 | E27: UE 3 | F27: CBH1.1_TECHNO3 | G27: Etudes des systèmes constructifs bois | H27: 3 | I27: 45 | K27: UE 3 | L27: CBH1.2_TECHNO3 | M27: Etudes des systèmes constructifs bois | N27: 3 | O27: 45
B28: Génie_Bois | C28: CBH | D28: CBH1 | E28: UE 3 | F28: CBH1.1_TECHNO4 | G28: Sciences des matériaux | H28: 1 | I28: 15 | K28: UE 3 | L28: CBH1.2_TECHNO4 | M28: Sciences des matériaux | N28: 1 | O28: 15
B29: Génie_Bois | C29: CBH | D29: CBH1 | E29: UE 3 | F29: CBH1.1_TECHNO5 | G29: C1 | H29: 0 | I29: 0 | K29: UE 3 | L29: CBH1.2_TECHNO5 | M29: C1 | N29: 0 | O29: 0
B30: Génie_Bois | C30: CBH | D30: CBH1 | E30: UE 3 | F30: CBH1.1_TECHNO6 | G30: C2 | H30: 0 | I30: 0 | K30: UE 3 | L30: CBH1.2_TECHNO6 | M30: C2 | N30: 0 | O30: 0
B31: Génie_Bois | C31: CBH | D31: CBH1 | E31: UE 3 | F31: CBH1.1_TECHNO7 | G31: C3 | H31: 0 | I31: 0 | K31: UE 3 | L31: CBH1.2_TECHNO7 | M31: C3 | N31: 0 | O31: 0
B32: Génie_Bois | C32: CBH | D32: CBH1 | E32: UE 3 | F32: CBH1.1_TECHNO8 | G32: C4 | H32: 0 | I32: 0 | K32: UE 3 | L32: CBH1.2_TECHNO8 | M32: C4 | N32: 0 | O32: 0
B33: Génie_Bois | C33: CBH | D33: CBH1 | E33: UE 4 | F33: CBH1.1_PROF1 | G33: Processus de fabrication et logistiques de Production /organisation et gestion travaux | H33: 3 | I33: 45 | K33: UE 4 | L33: CBH1.2_PROF1 | M33: Processus de fabrication et logistiques de Production /organisation et gestion travaux | N33: 3 | O33: 45
B34: Génie_Bois | C34: CBH | D34: CBH1 | E34: UE 4 | F34: CBH1.1_PROF2 | G34: Travaux Pratiques de réalisation | H34: 3 | I34: 75 | K34: UE 4 | L34: CBH1.2_PROF2 | M34: Travaux Pratiques de réalisation | N34: 3 | O34: 75
B35: Génie_Bois | C35: CBH | D35: CBH1 | E35: UE 4 | F35: CBH1.1_PROF3 | G35: Sécurité au travail et Moyens de production généraux | H35: 2 | I35: 30 | K35: UE 4 | L35: CBH1.2_PROF3 | M35: Sécurité au travail et Moyens de production généraux | N35: 2 | O35: 30
B36: Génie_Bois | C36: CBH | D36: CBH1 | E36: UE 4 | F36: CBH1.1_PROF4 | G36: Automatisation des techniques de production | H36: 1 | I36: 15 | K36: UE 4 | L36: CBH1.2_PROF4 | M36: Automatisation des techniques de production | N36: 1 | O36: 15
B37: Génie_Bois | C37: CBH | D37: CBH1 | E37: UE 4 | F37: CBH1.1_PROF5 | G37: D1 | H37: 0 | I37: 0 | K37: UE 4 | L37: CBH1.2_PROF5 | M37: D1 | N37: 0 | O37: 0
B38: Génie_Bois | C38: CBH | D38: CBH1 | E38: UE 4 | F38: CBH1.1_PROF6 | G38: D2 | H38: 0 | I38: 0 | K38: UE 4 | L38: CBH1.2_PROF6 | M38: D2 | N38: 0 | O38: 0
B39: Génie_Bois | C39: CBH | D39: CBH1 | E39: UE 4 | F39: CBH1.1_PROF7 | G39: D3 | H39: 0 | I39: 0 | K39: UE 4 | L39: CBH1.2_PROF7 | M39: D3 | N39: 0 | O39: 0
B40: Génie_Bois | C40: CBH | D40: CBH1 | E40: UE 4 | F40: CBH1.1_PROF8 | G40: D4 | H40: 0 | I40: 0 | K40: UE 4 | L40: CBH1.2_PROF8 | M40: D4 | N40: 0 | O40: 0
B41: Génie_Bois | C41: CBH | D41: CBH1 | E41: UE 5 | F41: CBH1.1_ECO1 | G41: Economie /Droit | H41: 1 | I41: 15 | K41: UE 5 | L41: CBH1.2_ECO1 | M41: Economie /Droit | N41: 1 | O41: 15
B42: Génie_Bois | C42: CBH | D42: CBH1 | E42: UE 5 | F42: CBH1.1_ECO2 | G42: Gestion financière et comptabilité | H42: 1 | I42: 30 | K42: UE 5 | L42: CBH1.2_ECO2 | M42: Gestion financière et comptabilité | N42: 1 | O42: 30
B43: Génie_Bois | C43: CBH | D43: CBH1 | E43: UE 5 | F43: CBH1.1_ECO3 | G43: Gestion et développement personnel | H43: 1 | I43: 30 | K43: UE 5 | L43: CBH1.2_ECO3 | M43: Gestion et développement personnel | N43: 1 | O43: 30
B44: Génie_Bois | C44: CBH | D44: CBH1 | E44: UE 5 | F44: CBH1.1_ECO4 | G44: Gestion de projet Organisation des entreprises / Innovation et initiation en RD | H44: 1 | I44: 30 | K44: UE 5 | L44: CBH1.2_ECO4 | M44: Gestion de projet Organisation des entreprises / Innovation et initiation en RD | N44: 0 | O44: 0
B45: Génie_Bois | C45: CBH | D45: CBH1 | E45: UE 5 | F45: CBH1.1_ECO5 | G45: E1 | H45: 0 | I45: 0 | K45: UE 5 | L45: CBH1.2_ECO5 | M45: E1 | N45: 0 | O45: 0
B46: Génie_Bois | C46: CBH | D46: CBH1 | E46: UE 5 | F46: CBH1.1_ECO6 | G46: E2 | H46: 0 | I46: 0 | K46: UE 5 | L46: CBH1.2_ECO6 | M46: E2 | N46: 0 | O46: 0
B47: Génie_Bois | C47: CBH | D47: CBH1 | E47: UE 5 | F47: CBH1.1_ECO7 | G47: E3 | H47: 0 | I47: 0 | K47: UE 5 | L47: CBH1.2_ECO7 | M47: E3 | N47: 0 | O47: 0
B48: Génie_Bois | C48: CBH | D48: CBH1 | E48: UE 5 | F48: CBH1.1_ECO8 | G48: E4 | H48: 0 | I48: 0 | K48: UE 5 | L48: CBH1.2_ECO8 | M48: E4 | N48: 0 | O48: 0
B49: Génie_Bois | C49: CBH | D49: CBH2 | E49: UE 1 | F49: CBH2.1_LG1 | G49: Anglais | H49: 2 | I49: 30 | K49: UE 1 | L49: CBH2.2_LG1 | M49: Anglais | N49: 2 | O49: 30
B50: Génie_Bois | C50: CBH | D50: CBH2 | E50: UE 1 | F50: CBH2.1_LG2 | G50: Culture Générale et Expression | H50: 3 | I50: 30 | K50: UE 1 | L50: CBH2.2_LG2 | M50: Culture Générale et Expression | N50: 3 | O50: 30
B51: Génie_Bois | C51: CBH | D51: CBH2 | E51: UE 1 | F51: CBH2.1_LG3 | G51: A1 | H51: 0 | I51: 0 | K51: UE 1 | L51: CBH2.2_LG3 | M51: A1 | N51: 0 | O51: 0
B52: Génie_Bois | C52: CBH | D52: CBH2 | E52: UE 1 | F52: CBH2.1_LG4 | G52: A2 | H52: 0 | I52: 0 | K52: UE 1 | L52: CBH2.2_LG4 | M52: A2 | N52: 0 | O52: 0
B53: Génie_Bois | C53: CBH | D53: CBH2 | E53: UE 1 | F53: CBH2.1_LG5 | G53: A3 | H53: 0 | I53: 0 | K53: UE 1 | L53: CBH2.2_LG5 | M53: A3 | N53: 0 | O53: 0
B54: Génie_Bois | C54: CBH | D54: CBH2 | E54: UE 2 | F54: CBH2.1_SC1 | G54: Mathématiques | H54: 2 | I54: 60 | K54: UE 2 | L54: CBH2.2_SC1 | M54: Mathématiques | N54: 2 | O54: 60
B55: Génie_Bois | C55: CBH | D55: CBH2 | E55: UE 2 | F55: CBH2.1_SC2 | G55: Sciences physiques | H55: 1 | I55: 30 | K55: UE 2 | L55: CBH2.2_SC2 | M55: Sciences physiques | N55: 1 | O55: 30
B56: Génie_Bois | C56: CBH | D56: CBH2 | E56: UE 2 | F56: CBH2.1_SC3 | G56: Physique du bâtiment | H56: 1 | I56: 30 | K56: UE 2 | L56: CBH2.2_SC3 | M56: Physique du bâtiment | N56: 1 | O56: 30
B57: Génie_Bois | C57: CBH | D57: CBH2 | E57: UE 2 | F57: CBH2.1_SC4 | G57: B1 | H57: 0 | I57: 0 | K57: UE 2 | L57: CBH2.2_SC4 | M57: B1 | N57: 0 | O57: 0
B58: Génie_Bois | C58: CBH | D58: CBH2 | E58: UE 2 | F58: CBH2.1_SC5 | G58: B2 | H58: 0 | I58: 0 | K58: UE 2 | L58: CBH2.2_SC5 | M58: B2 | N58: 0 | O58: 0
B59: Génie_Bois | C59: CBH | D59: CBH2 | E59: UE 3 | F59: CBH2.1_TECHNO1 | G59: Dessin et DAO/CAO | H59: 3 | I59: 45 | K59: UE 3 | L59: CBH2.2_TECHNO1 | M59: Dessin et DAO/CAO | N59: 3 | O59: 45
B60: Génie_Bois | C60: CBH | D60: CBH2 | E60: UE 3 | F60: CBH2.1_TECHNO2 | G60: Calculs de structures | H60: 3 | I60: 45 | K60: UE 3 | L60: CBH2.2_TECHNO2 | M60: Calculs de structures | N60: 3 | O60: 45
B61: Génie_Bois | C61: CBH | D61: CBH2 | E61: UE 3 | F61: CBH2.1_TECHNO3 | G61: Etudes des systèmes constructifs bois | H61: 3 | I61: 45 | K61: UE 3 | L61: CBH2.2_TECHNO3 | M61: Etudes des systèmes constructifs bois | N61: 3 | O61: 45
B62: Génie_Bois | C62: CBH | D62: CBH2 | E62: UE 3 | F62: CBH2.1_TECHNO4 | G62: Sciences des matériaux | H62: 1 | I62: 15 | K62: UE 3 | L62: CBH2.2_TECHNO4 | M62: Sciences des matériaux | N62: 1 | O62: 15
B63: Génie_Bois | C63: CBH | D63: CBH2 | E63: UE 3 | F63: CBH2.1_TECHNO5 | G63: C1 | H63: 0 | I63: 0 | K63: UE 3 | L63: CBH2.2_TECHNO5 | M63: C1 | N63: 0 | O63: 0
B64: Génie_Bois | C64: CBH | D64: CBH2 | E64: UE 3 | F64: CBH2.1_TECHNO6 | G64: C2 | H64: 0 | I64: 0 | K64: UE 3 | L64: CBH2.2_TECHNO6 | M64: C2 | N64: 0 | O64: 0
B65: Génie_Bois | C65: CBH | D65: CBH2 | E65: UE 3 | F65: CBH2.1_TECHNO7 | G65: C3 | H65: 0 | I65: 0 | K65: UE 3 | L65: CBH2.2_TECHNO7 | M65: C3 | N65: 0 | O65: 0
B66: Génie_Bois | C66: CBH | D66: CBH2 | E66: UE 3 | F66: CBH2.1_TECHNO8 | G66: C4 | H66: 0 | I66: 0 | K66: UE 3 | L66: CBH2.2_TECHNO8 | M66: C4 | N66: 0 | O66: 0
B67: Génie_Bois | C67: CBH | D67: CBH2 | E67: UE 4 | F67: CBH2.1_PROF1 | G67: Processus de fabrication et logistiques de Production /organisation et gestion travaux | H67: 3 | I67: 45 | K67: UE 4 | L67: CBH2.2_PROF1 | M67: Processus de fabrication et logistiques de Production /organisation et gestion travaux | N67: 3 | O67: 45
B68: Génie_Bois | C68: CBH | D68: CBH2 | E68: UE 4 | F68: CBH2.1_PROF2 | G68: Travaux Pratiques de réalisation | H68: 3 | I68: 75 | K68: UE 4 | L68: CBH2.2_PROF2 | M68: Travaux Pratiques de réalisation | N68: 3 | O68: 75
B69: Génie_Bois | C69: CBH | D69: CBH2 | E69: UE 4 | F69: CBH2.1_PROF3 | G69: Sécurité au travail et Moyens de production généraux | H69: 2 | I69: 30 | K69: UE 4 | L69: CBH2.2_PROF3 | M69: Sécurité au travail et Moyens de production généraux | N69: 2 | O69: 30
B70: Génie_Bois | C70: CBH | D70: CBH2 | E70: UE 4 | F70: CBH2.1_PROF4 | G70: Automatisation des techniques de production | H70: 1 | I70: 15 | K70: UE 4 | L70: CBH2.2_PROF4 | M70: Automatisation des techniques de production | N70: 1 | O70: 15
B71: Génie_Bois | C71: CBH | D71: CBH2 | E71: UE 4 | F71: CBH2.1_PROF5 | G71: D1 | H71: 0 | I71: 0 | K71: UE 4 | L71: CBH2.2_PROF5 | M71: D1 | N71: 0 | O71: 0
B72: Génie_Bois | C72: CBH | D72: CBH2 | E72: UE 4 | F72: CBH2.1_PROF6 | G72: D2 | H72: 0 | I72: 0 | K72: UE 4 | L72: CBH2.2_PROF6 | M72: D2 | N72: 0 | O72: 0
B73: Génie_Bois | C73: CBH | D73: CBH2 | E73: UE 4 | F73: CBH2.1_PROF7 | G73: D3 | H73: 0 | I73: 0 | K73: UE 4 | L73: CBH2.2_PROF7 | M73: D3 | N73: 0 | O73: 0
B74: Génie_Bois | C74: CBH | D74: CBH2 | E74: UE 4 | F74: CBH2.1_PROF8 | G74: D4 | H74: 0 | I74: 0 | K74: UE 4 | L74: CBH2.2_PROF8 | M74: D4 | N74: 0 | O74: 0
B75: Génie_Bois | C75: CBH | D75: CBH2 | E75: UE 5 | F75: CBH2.1_ECO1 | G75: Economie /Droit | H75: 1 | I75: 15 | K75: UE 5 | L75: CBH2.2_ECO1 | M75: Economie /Droit | N75: 1 | O75: 15
B76: Génie_Bois | C76: CBH | D76: CBH2 | E76: UE 5 | F76: CBH2.1_ECO2 | G76: Gestion financière et comptabilité | H76: 1 | I76: 30 | K76: UE 5 | L76: CBH2.2_ECO2 | M76: Gestion financière et comptabilité | N76: 1 | O76: 30
B77: Génie_Bois | C77: CBH | D77: CBH2 | E77: UE 5 | F77: CBH2.1_ECO3 | G77: Gestion de projet Organisation des entreprises / Innovation et initiation en RD | H77: 1 | I77: 30 | K77: UE 5 | L77: CBH2.2_ECO3 | M77: Gestion de projet Organisation des entreprises / Innovation et initiation en RD | N77: 1 | O77: 30
B78: Génie_Bois | C78: CBH | D78: CBH2 | E78: UE 5 | F78: CBH2.1_ECO4 | G78: E1 | H78: 0 | I78: 0 | K78: UE 5 | L78: CBH2.2_ECO4 | M78: E1 | N78: 0 | O78: 0
B79: Génie_Bois | C79: CBH | D79: CBH2 | E79: UE 5 | F79: CBH2.1_ECO5 | G79: E2 | H79: 0 | I79: 0 | K79: UE 5 | L79: CBH2.2_ECO5 | M79: E2 | N79: 0 | O79: 0
B80: Génie_Bois | C80: CBH | D80: CBH2 | E80: UE 5 | F80: CBH2.1_ECO6 | G80: E3 | H80: 0 | I80: 0 | K80: UE 5 | L80: CBH2.2_ECO6 | M80: E3 | N80: 0 | O80: 0
B81: Génie_Bois | C81: CBH | D81: CBH2 | E81: UE 5 | F81: CBH2.1_ECO7 | G81: E4 | H81: 0 | I81: 0 | K81: UE 5 | L81: CBH2.2_ECO7 | M81: E4 | N81: 0 | O81: 0
B82: Génie_Bois | C82: CBH | D82: CBH2 | E82: UE 5 | F82: CBH2.1_ECO8 | G82: E5 | H82: 0 | I82: 0 | K82: UE 5 | L82: CBH2.2_ECO8 | M82: E5 | N82: 0 | O82: 0
B83: Génie_Bois | C83: MDA | D83: MDA1 | E83: UE 1 | F83: MDA1_LG1 | G83: Anglais | H83: 2 | I83: 30 | K83: UE 1 | L83: MDA1_LG1 | M83: Anglais | N83: 2 | O83: 30
B84: Génie_Bois | C84: MDA | D84: MDA1 | E84: UE 1 | F84: MDA1_LG2 | G84: Culture Générale et Expression | H84: 3 | I84: 30 | K84: UE 1 | L84: MDA1_LG2 | M84: Culture Générale et Expression | N84: 3 | O84: 30
B85: Génie_Bois | C85: MDA | D85: MDA1 | E85: UE 1 | F85: MDA1_LG3 | G85: A1 | H85: 0 | I85: 0 | K85: UE 1 | L85: MDA1_LG3 | M85: A1 | N85: 0 | O85: 0
B86: Génie_Bois | C86: MDA | D86: MDA1 | E86: UE 1 | F86: MDA1_LG4 | G86: A2 | H86: 0 | I86: 0 | K86: UE 1 | L86: MDA1_LG4 | M86: A2 | N86: 0 | O86: 0
B87: Génie_Bois | C87: MDA | D87: MDA1 | E87: UE 1 | F87: MDA1_LG5 | G87: A3 | H87: 0 | I87: 0 | K87: UE 1 | L87: MDA1_LG5 | M87: A3 | N87: 0 | O87: 0
B88: Génie_Bois | C88: MDA | D88: MDA1 | E88: UE 2 | F88: MDA1_SC1 | G88: Mathématiques | H88: 2 | I88: 60 | K88: UE 2 | L88: MDA1_SC1 | M88: Mathématiques | N88: 2 | O88: 60
B89: Génie_Bois | C89: MDA | D89: MDA1 | E89: UE 2 | F89: MDA1_SC2 | G89: Sciences physiques | H89: 1 | I89: 30 | K89: UE 2 | L89: MDA1_SC2 | M89: Sciences physiques | N89: 1 | O89: 30
B90: Génie_Bois | C90: MDA | D90: MDA1 | E90: UE 2 | F90: MDA1_SC3 | G90: Physique du bâtiment | H90: 1 | I90: 30 | K90: UE 2 | L90: MDA1_SC3 | M90: Physique du bâtiment | N90: 1 | O90: 30
B91: Génie_Bois | C91: MDA | D91: MDA1 | E91: UE 2 | F91: MDA1_SC4 | G91: B1 | H91: 0 | I91: 0 | K91: UE 2 | L91: MDA1_SC4 | M91: B1 | N91: 0 | O91: 0
B92: Génie_Bois | C92: MDA | D92: MDA1 | E92: UE 2 | F92: MDA1_SC5 | G92: B2 | H92: 0 | I92: 0 | K92: UE 2 | L92: MDA1_SC5 | M92: B2 | N92: 0 | O92: 0
B93: Génie_Bois | C93: MDA | D93: MDA1 | E93: UE 3 | F93: MDA1_TECHNO1 | G93: Dessin et DAO/CAO | H93: 3 | I93: 45 | K93: UE 3 | L93: MDA1_TECHNO1 | M93: Dessin et DAO/CAO | N93: 3 | O93: 45
B94: Génie_Bois | C94: MDA | D94: MDA1 | E94: UE 3 | F94: MDA1_TECHNO2 | G94: Calculs industriels et dimensionnement des ouvrages | H94: 2 | I94: 45 | K94: UE 3 | L94: MDA1_TECHNO2 | M94: Calculs industriels et dimensionnement des ouvrages | N94: 2 | O94: 45
B95: Génie_Bois | C95: MDA | D95: MDA1 | E95: UE 3 | F95: MDA1_TECHNO3 | G95: Etudes Design et développement de produit | H95: 2 | I95: 45 | K95: UE 3 | L95: MDA1_TECHNO3 | M95: Etudes Design et développement de produit | N95: 2 | O95: 45
B96: Génie_Bois | C96: MDA | D96: MDA1 | E96: UE 3 | F96: MDA1_TECHNO4 | G96: Sciences des matériaux | H96: 1 | I96: 15 | K96: UE 3 | L96: MDA1_TECHNO4 | M96: Sciences des matériaux | N96: 1 | O96: 15
B97: Génie_Bois | C97: MDA | D97: MDA1 | E97: UE 3 | F97: MDA1_TECHNO5 | G97: C1 | H97: 0 | I97: 0 | K97: UE 3 | L97: MDA1_TECHNO5 | M97: C1 | N97: 0 | O97: 0
B98: Génie_Bois | C98: MDA | D98: MDA1 | E98: UE 3 | F98: MDA1_TECHNO6 | G98: C2 | H98: 0 | I98: 0 | K98: UE 3 | L98: MDA1_TECHNO6 | M98: C2 | N98: 0 | O98: 0
B99: Génie_Bois | C99: MDA | D99: MDA1 | E99: UE 3 | F99: MDA1_TECHNO7 | G99: C3 | H99: 0 | I99: 0 | K99: UE 3 | L99: MDA1_TECHNO7 | M99: C3 | N99: 0 | O99: 0
B100: Génie_Bois | C100: MDA | D100: MDA1 | E100: UE 3 | F100: MDA1_TECHNO8 | G100: C4 | H100: 0 | I100: 0 | K100: UE 3 | L100: MDA1_TECHNO8 | M100: C4 | N100: 0 | O100: 0
B101: Génie_Bois | C101: MDA | D101: MDA1 | E101: UE 4 | F101: MDA1_PROF1 | G101: Processus de fabrication et logistiques de Production /organisation et gestion travaux | H101: 3 | I101: 45 | K101: UE 4 | L101: MDA1_PROF1 | M101: Processus de fabrication et logistiques de Production /organisation et gestion travaux | N101: 3 | O101: 45
B102: Génie_Bois | C102: MDA | D102: MDA1 | E102: UE 4 | F102: MDA1_PROF2 | G102: Travaux Pratiques de réalisation | H102: 3 | I102: 75 | K102: UE 4 | L102: MDA1_PROF2 | M102: Travaux Pratiques de réalisation | N102: 3 | O102: 75
B103: Génie_Bois | C103: MDA | D103: MDA1 | E103: UE 4 | F103: MDA1_PROF3 | G103: Sécurité au travail et Moyens de production généraux | H103: 2 | I103: 30 | K103: UE 4 | L103: MDA1_PROF3 | M103: Sécurité au travail et Moyens de production généraux | N103: 2 | O103: 30
B104: Génie_Bois | C104: MDA | D104: MDA1 | E104: UE 4 | F104: MDA1_PROF4 | G104: Automatisation des techniques de production | H104: 1 | I104: 15 | K104: UE 4 | L104: MDA1_PROF4 | M104: Automatisation des techniques de production | N104: 1 | O104: 15
B105: Génie_Bois | C105: MDA | D105: MDA1 | E105: UE 4 | F105: MDA1_PROF5 | G105: D1 | H105: 0 | I105: 0 | K105: UE 4 | L105: MDA1_PROF5 | M105: D1 | N105: 0 | O105: 0
B106: Génie_Bois | C106: MDA | D106: MDA1 | E106: UE 4 | F106: MDA1_PROF6 | G106: D2 | H106: 0 | I106: 0 | K106: UE 4 | L106: MDA1_PROF6 | M106: D2 | N106: 0 | O106: 0
B107: Génie_Bois | C107: MDA | D107: MDA1 | E107: UE 4 | F107: MDA1_PROF7 | G107: D3 | H107: 0 | I107: 0 | K107: UE 4 | L107: MDA1_PROF7 | M107: D3 | N107: 0 | O107: 0
B108: Génie_Bois | C108: MDA | D108: MDA1 | E108: UE 4 | F108: MDA1_PROF8 | G108: D4 | H108: 0 | I108: 0 | K108: UE 4 | L108: MDA1_PROF8 | M108: D4 | N108: 0 | O108: 0
B109: Génie_Bois | C109: MDA | D109: MDA1 | E109: UE 5 | F109: MDA1_ECO1 | G109: Economie /Droit | H109: 1 | I109: 15 | K109: UE 5 | L109: MDA1_ECO1 | M109: Economie /Droit | N109: 1 | O109: 15
B110: Génie_Bois | C110: MDA | D110: MDA1 | E110: UE 5 | F110: MDA1_ECO2 | G110: Gestion financière et comptabilité | H110: 2 | I110: 30 | K110: UE 5 | L110: MDA1_ECO2 | M110: Gestion financière et comptabilité | N110: 2 | O110: 30
B111: Génie_Bois | C111: MDA | D111: MDA1 | E111: UE 5 | F111: MDA1_ECO3 | G111: Gestion de projet Organisation des entreprises / Innovation et initiation en RD | H111: 1 | I111: 30 | K111: UE 5 | L111: MDA1_ECO3 | M111: Gestion de projet Organisation des entreprises / Innovation et initiation en RD | N111: 1 | O111: 30
B112: Génie_Bois | C112: MDA | D112: MDA1 | E112: UE 5 | F112: MDA1_ECO4 | G112: Gestion et développement personnel | H112: 1 | I112: 15 | K112: UE 5 | L112: MDA1_ECO4 | M112: Gestion et développement personnel | N112: 1 | O112: 15
B113: Génie_Bois | C113: MDA | D113: MDA1 | E113: UE 5 | F113: MDA1_ECO5 | G113: E1 | H113: 0 | I113: 0 | K113: UE 5 | L113: MDA1_ECO5 | M113: E1 | N113: 0 | O113: 0
B114: Génie_Bois | C114: MDA | D114: MDA1 | E114: UE 5 | F114: MDA1_ECO6 | G114: E2 | H114: 0 | I114: 0 | K114: UE 5 | L114: MDA1_ECO6 | M114: E2 | N114: 0 | O114: 0
B115: Génie_Bois | C115: MDA | D115: MDA1 | E115: UE 5 | F115: MDA1_ECO7 | G115: E3 | H115: 0 | I115: 0 | K115: UE 5 | L115: MDA1_ECO7 | M115: E3 | N115: 0 | O115: 0
B116: Génie_Bois | C116: MDA | D116: MDA1 | E116: UE 5 | F116: MDA1_ECO8 | G116: E4 | H116: 0 | I116: 0 | K116: UE 5 | L116: MDA1_ECO8 | M116: E4 | N116: 0 | O116: 0
B117: Génie_Bois | C117: MDA | D117: MDA2 | E117: UE 1 | F117: MDA2_LG1 | G117: Anglais | H117: 2 | I117: 30 | K117: UE 1 | L117: MDA2_LG1 | M117: Anglais | N117: 2 | O117: 30
B118: Génie_Bois | C118: MDA | D118: MDA2 | E118: UE 1 | F118: MDA2_LG2 | G118: Culture Générale et Expression | H118: 3 | I118: 30 | K118: UE 1 | L118: MDA2_LG2 | M118: Culture Générale et Expression | N118: 3 | O118: 30
B119: Génie_Bois | C119: MDA | D119: MDA2 | E119: UE 1 | F119: MDA2_LG3 | G119: A1 | H119: 0 | I119: 0 | K119: UE 1 | L119: MDA2_LG3 | M119: A1 | N119: 0 | O119: 0
B120: Génie_Bois | C120: MDA | D120: MDA2 | E120: UE 1 | F120: MDA2_LG4 | G120: A2 | H120: 0 | I120: 0 | K120: UE 1 | L120: MDA2_LG4 | M120: A2 | N120: 0 | O120: 0
B121: Génie_Bois | C121: MDA | D121: MDA2 | E121: UE 1 | F121: MDA2_LG5 | G121: A3 | H121: 0 | I121: 0 | K121: UE 1 | L121: MDA2_LG5 | M121: A3 | N121: 0 | O121: 0
B122: Génie_Bois | C122: MDA | D122: MDA2 | E122: UE 2 | F122: MDA2_SC1 | G122: Mathématiques | H122: 2 | I122: 60 | K122: UE 2 | L122: MDA2_SC1 | M122: Mathématiques | N122: 2 | O122: 60
B123: Génie_Bois | C123: MDA | D123: MDA2 | E123: UE 2 | F123: MDA2_SC2 | G123: Sciences physiques | H123: 1 | I123: 30 | K123: UE 2 | L123: MDA2_SC2 | M123: Sciences physiques | N123: 1 | O123: 30
B124: Génie_Bois | C124: MDA | D124: MDA2 | E124: UE 2 | F124: MDA2_SC3 | G124: Physique du bâtiment | H124: 1 | I124: 30 | K124: UE 2 | L124: MDA2_SC3 | M124: Physique du bâtiment | N124: 1 | O124: 30
B125: Génie_Bois | C125: MDA | D125: MDA2 | E125: UE 2 | F125: MDA2_SC4 | G125: B1 | H125: 0 | I125: 0 | K125: UE 2 | L125: MDA2_SC4 | M125: B1 | N125: 0 | O125: 0
B126: Génie_Bois | C126: MDA | D126: MDA2 | E126: UE 2 | F126: MDA2_SC5 | G126: B2 | H126: 0 | I126: 0 | K126: UE 2 | L126: MDA2_SC5 | M126: B2 | N126: 0 | O126: 0
B127: Génie_Bois | C127: MDA | D127: MDA2 | E127: UE 3 | F127: MDA2_TECHNO1 | G127: Dessin et DAO/CAO | H127: 3 | I127: 45 | K127: UE 3 | L127: MDA2_TECHNO1 | M127: Dessin et DAO/CAO | N127: 3 | O127: 45
B128: Génie_Bois | C128: MDA | D128: MDA2 | E128: UE 3 | F128: MDA2_TECHNO2 | G128: Calculs industriels et dimensionnement des ouvrages | H128: 2 | I128: 45 | K128: UE 3 | L128: MDA2_TECHNO2 | M128: Calculs industriels et dimensionnement des ouvrages | N128: 2 | O128: 45
B129: Génie_Bois | C129: MDA | D129: MDA2 | E129: UE 3 | F129: MDA2_TECHNO3 | G129: Etudes Design et développement de produit | H129: 2 | I129: 45 | K129: UE 3 | L129: MDA2_TECHNO3 | M129: Etudes Design et développement de produit | N129: 2 | O129: 45
B130: Génie_Bois | C130: MDA | D130: MDA2 | E130: UE 3 | F130: MDA2_TECHNO4 | G130: Sciences des matériaux | H130: 1 | I130: 15 | K130: UE 3 | L130: MDA2_TECHNO4 | M130: Sciences des matériaux | N130: 1 | O130: 15
B131: Génie_Bois | C131: MDA | D131: MDA2 | E131: UE 3 | F131: MDA2_TECHNO5 | G131: C1 | H131: 0 | I131: 0 | K131: UE 3 | L131: MDA2_TECHNO5 | M131: C1 | N131: 0 | O131: 0
B132: Génie_Bois | C132: MDA | D132: MDA2 | E132: UE 3 | F132: MDA2_TECHNO6 | G132: C2 | H132: 0 | I132: 0 | K132: UE 3 | L132: MDA2_TECHNO6 | M132: C2 | N132: 0 | O132: 0
B133: Génie_Bois | C133: MDA | D133: MDA2 | E133: UE 3 | F133: MDA2_TECHNO7 | G133: C3 | H133: 0 | I133: 0 | K133: UE 3 | L133: MDA2_TECHNO7 | M133: C3 | N133: 0 | O133: 0
B134: Génie_Bois | C134: MDA | D134: MDA2 | E134: UE 3 | F134: MDA2_TECHNO8 | G134: C4 | H134: 0 | I134: 0 | K134: UE 3 | L134: MDA2_TECHNO8 | M134: C4 | N134: 0 | O134: 0
B135: Génie_Bois | C135: MDA | D135: MDA2 | E135: UE 4 | F135: MDA2_PROF1 | G135: Processus de fabrication et logistiques de Production /organisation et gestion travaux | H135: 3 | I135: 45 | K135: UE 4 | L135: MDA2_PROF1 | M135: Processus de fabrication et logistiques de Production /organisation et gestion travaux | N135: 3 | O135: 45
B136: Génie_Bois | C136: MDA | D136: MDA2 | E136: UE 4 | F136: MDA2_PROF2 | G136: Travaux Pratiques de réalisation | H136: 3 | I136: 75 | K136: UE 4 | L136: MDA2_PROF2 | M136: Travaux Pratiques de réalisation | N136: 3 | O136: 75
B137: Génie_Bois | C137: MDA | D137: MDA2 | E137: UE 4 | F137: MDA2_PROF3 | G137: Sécurité au travail et Moyens de production généraux | H137: 2 | I137: 30 | K137: UE 4 | L137: MDA2_PROF3 | M137: Sécurité au travail et Moyens de production généraux | N137: 2 | O137: 30
B138: Génie_Bois | C138: MDA | D138: MDA2 | E138: UE 4 | F138: MDA2_PROF4 | G138: Automatisation des techniques de production | H138: 1 | I138: 15 | K138: UE 4 | L138: MDA2_PROF4 | M138: Automatisation des techniques de production | N138: 1 | O138: 15
B139: Génie_Bois | C139: MDA | D139: MDA2 | E139: UE 4 | F139: MDA2_PROF5 | G139: D1 | H139: 0 | I139: 0 | K139: UE 4 | L139: MDA2_PROF5 | M139: D1 | N139: 0 | O139: 0
B140: Génie_Bois | C140: MDA | D140: MDA2 | E140: UE 4 | F140: MDA2_PROF6 | G140: D2 | H140: 0 | I140: 0 | K140: UE 4 | L140: MDA2_PROF6 | M140: D2 | N140: 0 | O140: 0
B141: Génie_Bois | C141: MDA | D141: MDA2 | E141: UE 4 | F141: MDA2_PROF7 | G141: D3 | H141: 0 | I141: 0 | K141: UE 4 | L141: MDA2_PROF7 | M141: D3 | N141: 0 | O141: 0
B142: Génie_Bois | C142: MDA | D142: MDA2 | E142: UE 4 | F142: MDA2_PROF8 | G142: D4 | H142: 0 | I142: 0 | K142: UE 4 | L142: MDA2_PROF8 | M142: D4 | N142: 0 | O142: 0
B143: Génie_Bois | C143: MDA | D143: MDA2 | E143: UE 5 | F143: MDA2_ECO1 | G143: Economie /Droit | H143: 1 | I143: 15 | K143: UE 5 | L143: MDA2_ECO1 | M143: Economie /Droit | N143: 1 | O143: 15
B144: Génie_Bois | C144: MDA | D144: MDA2 | E144: UE 5 | F144: MDA2_ECO2 | G144: Gestion financière et comptabilité | H144: 2 | I144: 30 | K144: UE 5 | L144: MDA2_ECO2 | M144: Gestion financière et comptabilité | N144: 2 | O144: 30
B145: Génie_Bois | C145: MDA | D145: MDA2 | E145: UE 5 | F145: MDA2_ECO3 | G145: Gestion de projet Organisation des entreprises / Innovation et initiation en RD | H145: 1 | I145: 30 | K145: UE 5 | L145: MDA2_ECO3 | M145: Gestion de projet Organisation des entreprises / Innovation et initiation en RD | N145: 1 | O145: 30
B146: Génie_Bois | C146: MDA | D146: MDA2 | E146: UE 5 | F146: MDA2_ECO4 | G146: Gestion et développement personnel | H146: 1 | I146: 15 | K146: UE 5 | L146: MDA2_ECO4 | M146: Gestion et développement personnel | N146: 1 | O146: 15
B147: Génie_Bois | C147: MDA | D147: MDA2 | E147: UE 5 | F147: MDA2_ECO5 | G147: E1 | H147: 0 | I147: 0 | K147: UE 5 | L147: MDA2_ECO5 | M147: E1 | N147: 0 | O147: 0
B148: Génie_Bois | C148: MDA | D148: MDA2 | E148: UE 5 | F148: MDA2_ECO6 | G148: E2 | H148: 0 | I148: 0 | K148: UE 5 | L148: MDA2_ECO6 | M148: E2 | N148: 0 | O148: 0
B149: Génie_Bois | C149: MDA | D149: MDA2 | E149: UE 5 | F149: MDA2_ECO7 | G149: E3 | H149: 0 | I149: 0 | K149: UE 5 | L149: MDA2_ECO7 | M149: E3 | N149: 0 | O149: 0
B150: Génie_Bois | C150: MDA | D150: MDA2 | E150: UE 5 | F150: MDA2_ECO8 | G150: E4 | H150: 0 | I150: 0 | K150: UE 5 | L150: MDA2_ECO8 | M150: E4 | N150: 0 | O150: 0
B151: Génie_Bois | C151: ITP_SD | D151: IPT_SD1 | E151: UE 1 | F151: SD1_LG1 | G151: Anglais | H151: 2 | I151: 30 | K151: UE 1 | L151: SD1_LG1 | M151: Anglais | N151: 2 | O151: 30
B152: Génie_Bois | C152: ITP_SD | D152: IPT_SD1 | E152: UE 1 | F152: SD1_LG2 | G152: Culture Générale et Expression | H152: 3 | I152: 30 | K152: UE 1 | L152: SD1_LG2 | M152: Culture Générale et Expression | N152: 3 | O152: 30
B153: Génie_Bois | C153: ITP_SD | D153: IPT_SD1 | E153: UE 1 | F153: SD1_LG3 | G153: A1 | H153: 0 | I153: 0 | K153: UE 1 | L153: SD1_LG3 | M153: A1 | N153: 0 | O153: 0
B154: Génie_Bois | C154: ITP_SD | D154: IPT_SD1 | E154: UE 1 | F154: SD1_LG4 | G154: A2 | H154: 0 | I154: 0 | K154: UE 1 | L154: SD1_LG4 | M154: A2 | N154: 0 | O154: 0
B155: Génie_Bois | C155: ITP_SD | D155: IPT_SD1 | E155: UE 1 | F155: SD1_LG5 | G155: A3 | H155: 0 | I155: 0 | K155: UE 1 | L155: SD1_LG5 | M155: A3 | N155: 0 | O155: 0
B156: Génie_Bois | C156: ITP_SD | D156: IPT_SD1 | E156: UE 2 | F156: SD1_SC1 | G156: Mathématiques | H156: 2 | I156: 60 | K156: UE 2 | L156: SD1_SC1 | M156: Mathématiques | N156: 2 | O156: 60
B157: Génie_Bois | C157: ITP_SD | D157: IPT_SD1 | E157: UE 2 | F157: SD1_SC2 | G157: Sciences physiques | H157: 1 | I157: 30 | K157: UE 2 | L157: SD1_SC2 | M157: Sciences physiques | N157: 1 | O157: 30
B158: Génie_Bois | C158: ITP_SD | D158: IPT_SD1 | E158: UE 2 | F158: SD1_SC3 | G158: B1 | H158: 0 | I158: 0 | K158: UE 2 | L158: SD1_SC3 | M158: B1 | N158: 0 | O158: 0
B159: Génie_Bois | C159: ITP_SD | D159: IPT_SD1 | E159: UE 2 | F159: SD1_SC4 | G159: B2 | H159: 0 | I159: 0 | K159: UE 2 | L159: SD1_SC4 | M159: B2 | N159: 0 | O159: 0
B160: Génie_Bois | C160: ITP_SD | D160: IPT_SD1 | E160: UE 2 | F160: SD1_SC5 | G160: B3 | H160: 0 | I160: 0 | K160: UE 2 | L160: SD1_SC5 | M160: B3 | N160: 0 | O160: 0
B161: Génie_Bois | C161: ITP_SD | D161: IPT_SD1 | E161: UE 3 | F161: SD1_TECHNO1 | G161: Gestion et Logistique de la Production | H161: 2 | I161: 30 | K161: UE 3 | L161: SD1_TECHNO1 | M161: Gestion et Logistique de la Production | N161: 2 | O161: 30
B162: Génie_Bois | C162: ITP_SD | D162: IPT_SD1 | E162: UE 3 | F162: SD1_TECHNO2 | G162: Sciences des matériaux | H162: 2 | I162: 30 | K162: UE 3 | L162: SD1_TECHNO2 | M162: Sciences des matériaux | N162: 2 | O162: 30
B163: Génie_Bois | C163: ITP_SD | D163: IPT_SD1 | E163: UE 3 | F163: SD1_TECHNO3 | G163: Géométrie de coupe et techniques d'affûtage | H163: 2 | I163: 30 | K163: UE 3 | L163: SD1_TECHNO3 | M163: Géométrie de coupe et techniques d'affûtage | N163: 2 | O163: 30
B164: Génie_Bois | C164: ITP_SD | D164: IPT_SD1 | E164: UE 3 | F164: SD1_TECHNO4 | G164: Marketing_vente / Commerce international du bois | H164: 1 | I164: 15 | K164: UE 3 | L164: SD1_TECHNO4 | M164: Marketing_vente / Commerce international du bois | N164: 1 | O164: 15
B165: Génie_Bois | C165: ITP_SD | D165: IPT_SD1 | E165: UE 3 | F165: SD1_TECHNO5 | G165: Ecologie et développement durable | H165: 1 | I165: 15 | K165: UE 3 | L165: SD1_TECHNO5 | M165: Ecologie et développement durable | N165: 1 | O165: 15
B166: Génie_Bois | C166: ITP_SD | D166: IPT_SD1 | E166: UE 3 | F166: SD1_TECHNO6 | G166: C1 | H166: 0 | I166: 0 | K166: UE 3 | L166: SD1_TECHNO6 | M166: C1 | N166: 0 | O166: 0
B167: Génie_Bois | C167: ITP_SD | D167: IPT_SD1 | E167: UE 3 | F167: SD1_TECHNO7 | G167: C2 | H167: 0 | I167: 0 | K167: UE 3 | L167: SD1_TECHNO7 | M167: C2 | N167: 0 | O167: 0
B168: Génie_Bois | C168: ITP_SD | D168: IPT_SD1 | E168: UE 3 | F168: SD1_TECHNO8 | G168: C3 | H168: 0 | I168: 0 | K168: UE 3 | L168: SD1_TECHNO8 | M168: C3 | N168: 0 | O168: 0
B169: Génie_Bois | C169: ITP_SD | D169: IPT_SD1 | E169: UE 4 | F169: SD1_PROF1 | G169: Réalisation des produits | H169: 3 | I169: 45 | K169: UE 4 | L169: SD1_PROF1 | M169: Réalisation des produits | N169: 3 | O169: 45
B170: Génie_Bois | C170: ITP_SD | D170: IPT_SD1 | E170: UE 4 | F170: SD1_PROF2 | G170: Optimisation des moyens de production et de manutention | H170: 2 | I170: 30 | K170: UE 4 | L170: SD1_PROF2 | M170: Optimisation des moyens de production et de manutention | N170: 2 | O170: 30
B171: Génie_Bois | C171: ITP_SD | D171: IPT_SD1 | E171: UE 4 | F171: SD1_PROF3 | G171: Informatique et automatique industrielle | H171: 2 | I171: 30 | K171: UE 4 | L171: SD1_PROF3 | M171: Informatique et automatique industrielle | N171: 2 | O171: 30
B172: Génie_Bois | C172: ITP_SD | D172: IPT_SD1 | E172: UE 4 | F172: SD1_PROF4 | G172: Protection du bois, traitement de surfaces et valorisation du bois | H172: 1 | I172: 30 | K172: UE 4 | L172: SD1_PROF4 | M172: Protection du bois, traitement de surfaces et valorisation du bois | N172: 1 | O172: 30
B173: Génie_Bois | C173: ITP_SD | D173: IPT_SD1 | E173: UE 4 | F173: SD1_PROF5 | G173: Hygiène et Sécurité au travail | H173: 1 | I173: 15 | K173: UE 4 | L173: SD1_PROF5 | M173: Hygiène et Sécurité au travail | N173: 1 | O173: 15
B174: Génie_Bois | C174: ITP_SD | D174: IPT_SD1 | E174: UE 4 | F174: SD1_PROF6 | G174: D1 | H174: 0 | I174: 0 | K174: UE 4 | L174: SD1_PROF6 | M174: D1 | N174: 0 | O174: 0
B175: Génie_Bois | C175: ITP_SD | D175: IPT_SD1 | E175: UE 4 | F175: SD1_PROF7 | G175: D2 | H175: 0 | I175: 0 | K175: UE 4 | L175: SD1_PROF7 | M175: D2 | N175: 0 | O175: 0
B176: Génie_Bois | C176: ITP_SD | D176: IPT_SD1 | E176: UE 4 | F176: SD1_PROF8 | G176: D3 | H176: 0 | I176: 0 | K176: UE 4 | L176: SD1_PROF8 | M176: D3 | N176: 0 | O176: 0
B177: Génie_Bois | C177: ITP_SD | D177: IPT_SD1 | E177: UE 5 | F177: SD1_ECO1 | G177: Gestion financière et comptabilité | H177: 2 | I177: 30 | K177: UE 5 | L177: SD1_ECO1 | M177: Gestion financière et comptabilité | N177: 2 | O177: 30
B178: Génie_Bois | C178: ITP_SD | D178: IPT_SD1 | E178: UE 5 | F178: SD1_ECO2 | G178: Economie /Droit | H178: 1 | I178: 15 | K178: UE 5 | L178: SD1_ECO2 | M178: Economie /Droit | N178: 1 | O178: 15
B179: Génie_Bois | C179: ITP_SD | D179: IPT_SD1 | E179: UE 5 | F179: SD1_ECO3 | G179: Gestion de projet Organisation des entreprises / Innovation et initiation en RD | H179: 1 | I179: 30 | K179: UE 5 | L179: SD1_ECO3 | M179: Gestion de projet Organisation des entreprises / Innovation et initiation en RD | N179: 1 | O179: 30
B180: Génie_Bois | C180: ITP_SD | D180: IPT_SD1 | E180: UE 5 | F180: SD1_ECO4 | G180: Gestion et développement personnel | H180: 1 | I180: 15 | K180: UE 5 | L180: SD1_ECO4 | M180: Gestion et développement personnel | N180: 1 | O180: 15
B181: Génie_Bois | C181: ITP_SD | D181: IPT_SD1 | E181: UE 5 | F181: SD1_ECO5 | G181: E1 | H181: 0 | I181: 0 | K181: UE 5 | L181: SD1_ECO5 | M181: E1 | N181: 0 | O181: 0
B182: Génie_Bois | C182: ITP_SD | D182: IPT_SD1 | E182: UE 5 | F182: SD1_ECO6 | G182: E2 | H182: 0 | I182: 0 | K182: UE 5 | L182: SD1_ECO6 | M182: E2 | N182: 0 | O182: 0
B183: Génie_Bois | C183: ITP_SD | D183: IPT_SD1 | E183: UE 5 | F183: SD1_ECO7 | G183: E3 | H183: 0 | I183: 0 | K183: UE 5 | L183: SD1_ECO7 | M183: E3 | N183: 0 | O183: 0
B184: Génie_Bois | C184: ITP_SD | D184: IPT_SD1 | E184: UE 5 | F184: SD1_ECO8 | G184: E4 | H184: 0 | I184: 0 | K184: UE 5 | L184: SD1_ECO8 | M184: E4 | N184: 0 | O184: 0
B185: Génie_Bois | C185: ITP_SD | D185: IPT_SD2 | E185: UE 1 | F185: SD2_LG1 | G185: Anglais | H185: 2 | I185: 30 | K185: UE 1 | L185: SD2_LG1 | M185: Anglais | N185: 2 | O185: 30
B186: Génie_Bois | C186: ITP_SD | D186: IPT_SD2 | E186: UE 1 | F186: SD2_LG2 | G186: Culture Générale et Expression | H186: 3 | I186: 30 | K186: UE 1 | L186: SD2_LG2 | M186: Culture Générale et Expression | N186: 3 | O186: 30
B187: Génie_Bois | C187: ITP_SD | D187: IPT_SD2 | E187: UE 1 | F187: SD2_LG3 | G187: A1 | H187: 0 | I187: 0 | K187: UE 1 | L187: SD2_LG3 | M187: A1 | N187: 0 | O187: 0
B188: Génie_Bois | C188: ITP_SD | D188: IPT_SD2 | E188: UE 1 | F188: SD2_LG4 | G188: A2 | H188: 0 | I188: 0 | K188: UE 1 | L188: SD2_LG4 | M188: A2 | N188: 0 | O188: 0
B189: Génie_Bois | C189: ITP_SD | D189: IPT_SD2 | E189: UE 1 | F189: SD2_LG5 | G189: A3 | H189: 0 | I189: 0 | K189: UE 1 | L189: SD2_LG5 | M189: A3 | N189: 0 | O189: 0
B190: Génie_Bois | C190: ITP_SD | D190: IPT_SD2 | E190: UE 2 | F190: SD2_SC1 | G190: Mathématiques | H190: 2 | I190: 60 | K190: UE 2 | L190: SD2_SC1 | M190: Mathématiques | N190: 2 | O190: 60
B191: Génie_Bois | C191: ITP_SD | D191: IPT_SD2 | E191: UE 2 | F191: SD2_SC2 | G191: Sciences physiques | H191: 1 | I191: 30 | K191: UE 2 | L191: SD2_SC2 | M191: Sciences physiques | N191: 1 | O191: 30
B192: Génie_Bois | C192: ITP_SD | D192: IPT_SD2 | E192: UE 2 | F192: SD2_SC3 | G192: B1 | H192: 0 | I192: 0 | K192: UE 2 | L192: SD2_SC3 | M192: B1 | N192: 0 | O192: 0
B193: Génie_Bois | C193: ITP_SD | D193: IPT_SD2 | E193: UE 2 | F193: SD2_SC4 | G193: B2 | H193: 0 | I193: 0 | K193: UE 2 | L193: SD2_SC4 | M193: B2 | N193: 0 | O193: 0
B194: Génie_Bois | C194: ITP_SD | D194: IPT_SD2 | E194: UE 2 | F194: SD2_SC5 | G194: B3 | H194: 0 | I194: 0 | K194: UE 2 | L194: SD2_SC5 | M194: B3 | N194: 0 | O194: 0
B195: Génie_Bois | C195: ITP_SD | D195: IPT_SD2 | E195: UE 3 | F195: SD2_TECHNO1 | G195: Gestion et Logistique de la Production | H195: 2 | I195: 30 | K195: UE 3 | L195: SD2_TECHNO1 | M195: Gestion et Logistique de la Production | N195: 2 | O195: 30
B196: Génie_Bois | C196: ITP_SD | D196: IPT_SD2 | E196: UE 3 | F196: SD2_TECHNO2 | G196: Sciences des matériaux | H196: 2 | I196: 30 | K196: UE 3 | L196: SD2_TECHNO2 | M196: Sciences des matériaux | N196: 2 | O196: 30
B197: Génie_Bois | C197: ITP_SD | D197: IPT_SD2 | E197: UE 3 | F197: SD2_TECHNO3 | G197: Géométrie de coupe et techniques d'affûtage | H197: 2 | I197: 30 | K197: UE 3 | L197: SD2_TECHNO3 | M197: Géométrie de coupe et techniques d'affûtage | N197: 2 | O197: 30
B198: Génie_Bois | C198: ITP_SD | D198: IPT_SD2 | E198: UE 3 | F198: SD2_TECHNO4 | G198: Marketing_vente / Commerce international du bois | H198: 1 | I198: 15 | K198: UE 3 | L198: SD2_TECHNO4 | M198: Marketing_vente / Commerce international du bois | N198: 1 | O198: 15
B199: Génie_Bois | C199: ITP_SD | D199: IPT_SD2 | E199: UE 3 | F199: SD2_TECHNO5 | G199: Ecologie et développement durable | H199: 1 | I199: 15 | K199: UE 3 | L199: SD2_TECHNO5 | M199: Ecologie et développement durable | N199: 1 | O199: 15
B200: Génie_Bois | C200: ITP_SD | D200: IPT_SD2 | E200: UE 3 | F200: SD2_TECHNO6 | G200: C1 | H200: 0 | I200: 0 | K200: UE 3 | L200: SD2_TECHNO6 | M200: C1 | N200: 0 | O200: 0
B201: Génie_Bois | C201: ITP_SD | D201: IPT_SD2 | E201: UE 3 | F201: SD2_TECHNO7 | G201: C2 | H201: 0 | I201: 0 | K201: UE 3 | L201: SD2_TECHNO7 | M201: C2 | N201: 0 | O201: 0
B202: Génie_Bois | C202: ITP_SD | D202: IPT_SD2 | E202: UE 3 | F202: SD2_TECHNO8 | G202: C3 | H202: 0 | I202: 0 | K202: UE 3 | L202: SD2_TECHNO8 | M202: C3 | N202: 0 | O202: 0
B203: Génie_Bois | C203: ITP_SD | D203: IPT_SD2 | E203: UE 4 | F203: SD2_PROF1 | G203: Réalisation des produits | H203: 3 | I203: 45 | K203: UE 4 | L203: SD2_PROF1 | M203: Réalisation des produits | N203: 3 | O203: 45
B204: Génie_Bois | C204: ITP_SD | D204: IPT_SD2 | E204: UE 4 | F204: SD2_PROF2 | G204: Optimisation des moyens de production et de manutention | H204: 2 | I204: 30 | K204: UE 4 | L204: SD2_PROF2 | M204: Optimisation des moyens de production et de manutention | N204: 2 | O204: 30
B205: Génie_Bois | C205: ITP_SD | D205: IPT_SD2 | E205: UE 4 | F205: SD2_PROF3 | G205: Informatique et automatique industrielle | H205: 2 | I205: 30 | K205: UE 4 | L205: SD2_PROF3 | M205: Informatique et automatique industrielle | N205: 2 | O205: 30
B206: Génie_Bois | C206: ITP_SD | D206: IPT_SD2 | E206: UE 4 | F206: SD2_PROF4 | G206: Protection du bois, traitement de surfaces et valorisation du bois | H206: 1 | I206: 30 | K206: UE 4 | L206: SD2_PROF4 | M206: Protection du bois, traitement de surfaces et valorisation du bois | N206: 1 | O206: 30
B207: Génie_Bois | C207: ITP_SD | D207: IPT_SD2 | E207: UE 4 | F207: SD2_PROF5 | G207: Hygiène et Sécurité au travail | H207: 1 | I207: 15 | K207: UE 4 | L207: SD2_PROF5 | M207: Hygiène et Sécurité au travail | N207: 1 | O207: 15
B208: Génie_Bois | C208: ITP_SD | D208: IPT_SD2 | E208: UE 4 | F208: SD2_PROF6 | G208: D1 | H208: 0 | I208: 0 | K208: UE 4 | L208: SD2_PROF6 | M208: D1 | N208: 0 | O208: 0
B209: Génie_Bois | C209: ITP_SD | D209: IPT_SD2 | E209: UE 4 | F209: SD2_PROF7 | G209: D2 | H209: 0 | I209: 0 | K209: UE 4 | L209: SD2_PROF7 | M209: D2 | N209: 0 | O209: 0
... 618 more rows

Sheet Menu STI
I3: Bonjour Admin OMAR
E6: ANNÉE ACADÉMIQUE : | F6: 2019-2020
E8: DEPARTEMENT : | F8: Génie_Bois
E10: SECTION : | F10: CBH
E12: CLASSE : | F12: CBH_1
E14: UNITÉ : | F14: Liste CBH1_1

Sheet CBH_1
E6: ANNÉE ACADÉMIQUE : | F6: 2019-2020
E8: DEPARTEMENT : | F8: Génie_Bois
E10: SECTION : | F10: CBH
E12: CLASSE : | F12: CBH_1
E14: UNITÉ : | F14: Relevé Notes CBH1_1

Sheet Liste CBH1_1
C2: INSTITUT DE TECHNOLOGIES D'OWENDO
C4: ANNÉE ACADÉMIQUE : | D4: 2019-2020 | G4: SEMESTRE : | H4: S1
C6: FILIÈRE : | D6: STI | G6: SECTION : | H6: CBH
C8: DÉPARTEMENT : | D8: Génie_Bois | G8: CLASSE : | H8: CBH_1
C10: =VLOOKUP(H8,ListeCLASSES_STI,3,FALSE) -> 1ère Année Constructif Bois et Habitat
B13: Matricule | C13: Noms et Prénoms | D13: Sexe | E13: Status | F13: Date de Nais. | G13: Lieu de Nais. | H13: Nationalité
B14: CBH1.S1.19/20.001 | C14: BIKORO AVIE Kyllix Hyanez | D14: F | E14: R1 | F14: 32518 | G14: Fougamou | H14: Gabonaise
B15: CBH1.S1.19/20.002 | C15: BOUCKA Horly Maclean's | D15: M | F15: 32942 | G15: Oyem | H15: Gabonaise
B16: CBH1.S1.19/20.003 | C16: CHANGAUT Dann Phanel Ezechiel | D16: F | F16: 35930 | G16: Bakoumba | H16: Gabonaise
B17: CBH1.S1.19/20.004 | C17: EBANG ELLA Guy Arsène | D17: F | E17: R1 | F17: 33768 | G17: Fougamou | H17: Gabonaise
B18: CBH1.S1.19/20.005 | C18: ENGONGHA MBA Jean Damas | D18: M | F18: 34231 | G18: Bakoumba | H18: Gabonaise
B19: CBH1.S1.19/20.006 | C19: ESSO BIVEGHE Hermenegilde | D19: M | F19: 35266 | G19: Port-Gentil | H19: Gabonaise
B20: CBH1.S1.19/20.007 | C20: EYONE MBA Luduine Claude | D20: M | F20: 34811 | G20: Fougamou | H20: Gabonaise
B21: CBH1.S1.19/20.008 | C21: IBOUANGA IBOUANGA Christ Jermy | D21: M | F21: 35552 | G21: Moanda | H21: Gabonaise
B22: CBH1.S1.19/20.009 | C22: KOUMBA KOUMBA Guy Elvice | D22: M | F22: 35767 | G22: Fougamou | H22: Gabonaise
B23: CBH1.S1.19/20.010 | C23: MAMBOUNDOU MOUNGUENGUI Steven | D23: M | F23: 34537 | G23: Libreville | H23: Gabonaise
B24: CBH1.S1.19/20.011 | C24: MAYOMBO-KONGO Fredy-Cherie | D24: M | F24: 34655 | G24: Nvoum | H24: Gabonaise
B25: CBH1.S1.19/20.012 | C25: MBOUNDOU Juste Méthode | D25: M | F25: 35051 | G25: Mbigou | H25: Gabonaise
B26: CBH1.S1.19/20.013 | C26: MBOUTSOU BOUGUEROU | D26: M | F26: 36646 | G26: Port-Gentil | H26: Gabonaise
B27: CBH1.S1.19/20.014 | C27: MINTSA ONDO Loic | D27: M | F27: 34504 | G27: Ndougou | H27: Gabonaise
B28: CBH1.S1.19/20.015 | C28: NDJOKOUNDA Rhaude Darrel | D28: M | F28: 35566 | G28: Franceville | H28: Gabonaise
B29: CBH1.S1.19/20.016 | C29: NDJOUMBA NGUELE Warrel | D29: M | E29: R1 | F29: 35567 | G29: Franceville | H29: Gabonaise
B30: CBH1.S1.19/20.017 | C30: NZENGUI DIMBOUMBA Djerry Odhe | D30: M | F30: 35568 | G30: Franceville | H30: Gabonaise
B31: CBH1.S1.19/20.018 | C31: ONDIMBA LEKOUTA Anouchka Infrid | D31: M | F31: 35569 | G31: Franceville | H31: Gabonaise
B32: CBH1.S1.19/20.019 | C32: OSSIMA MINKO Hermant Gilbert | D32: M | F32: 35570 | G32: Franceville | H32: Gabonaise
B33: CBH1.S1.19/20.020 | C33: SAMA Edgard | D33: M | F33: 35571 | G33: Franceville | H33: Gabonaise
B34: CBH1.S1.19/20.021 | C34: TONDIBADI MOUNIA Hans Kenneth | D34: M | E34: R1 | F34: 35572 | G34: Franceville | H34: Gabonaise
B35: CBH1.S1.19/20.022 | C35: ZZZ1
B36: CBH1.S1.19/20.023 | C36: ZZZ2
B37: CBH1.S1.19/20.024 | C37: ZZZ3
B38: CBH1.S1.19/20.025 | C38: ZZZ4
B39: CBH1.S1.19/20.026 | C39: ZZZ5
B40: CBH1.S1.19/20.027 | C40: ZZZ6
B41: CBH1.S1.19/20.028 | C41: ZZZ7
B42: CBH1.S1.19/20.029 | C42: ZZZ8
B43: CBH1.S1.19/20.030 | C43: ZZZ9
B44: CBH1.S1.19/20.031 | C44: ZZZ10
B45: CBH1.S1.19/20.032 | C45: ZZZ11
B46: CBH1.S1.19/20.033 | C46: ZZZ12
B47: CBH1.S1.19/20.034 | C47: ZZZ13
B48: CBH1.S1.19/20.035 | C48: ZZZ14
B49: CBH1.S1.19/20.036 | C49: ZZZ15
B50: CBH1.S1.19/20.037 | C50: ZZZ16
B51: CBH1.S1.19/20.038 | C51: ZZZ17
B52: CBH1.S1.19/20.039 | C52: ZZZ18
B53: CBH1.S1.19/20.040 | C53: ZZZ19
B54: CBH1.S1.19/20.041 | C54: ZZZ20
B55: CBH1.S1.19/20.042 | C55: ZZZ21
B56: CBH1.S1.19/20.043 | C56: ZZZ22
B57: CBH1.S1.19/20.044 | C57: ZZZ23
B58: CBH1.S1.19/20.045 | C58: ZZZ24
B59: CBH1.S1.19/20.046 | C59: ZZZ25
B60: CBH1.S1.19/20.047 | C60: ZZZ26
B61: CBH1.S1.19/20.048 | C61: ZZZ27
B62: CBH1.S1.19/20.049 | C62: ZZZ28
B63: CBH1.S1.19/20.050 | C63: ZZZ29

Sheet Relevé Notes CBH1_1
B6: FILIÈRE: | C6: STI | G6: SEMESTRE : | J6: S1
B8: DÉPARTEMENT : | C8: Génie_Bois | G8: SECTION : | J8: CBH
B11: =VLOOKUP(I11,CygleClasse,3,FALSE) -> 1ère Année Constructif Bois et Habitat | I11: CBH_1
B13: MODULE :
B15: ENSEIGNANT :
B17: CONTACT :
A19: Matricule | B19: Noms et prénoms | C19: Sexe | D19: St | E19: Note 1 | F19: Note 2 | G19: Note 3 | H19: Note 4 | I19: ∑Notes | J19: Moy.
A20: ='Liste CBH1_1'!B14 -> CBH1.S1.19/20.001 | B20: =VLOOKUP(A20,TabListe_CBH1_S1[],2,FALSE) -> BIKORO AVIE Kyllix Hyanez | C20: =VLOOKUP(A20,TabListe_CBH1_S1[],3,FALSE) -> F | D20: =VLOOKUP(A20,TabListe_CBH1_S1[],4,FALSE) -> R1
A21: ='Liste CBH1_1'!B15 -> CBH1.S1.19/20.002 | B21: =VLOOKUP(A21,TabListe_CBH1_S1[],2,FALSE) -> BOUCKA Horly Maclean's | C21: =VLOOKUP(A21,TabListe_CBH1_S1[],3,FALSE) -> M | D21: =VLOOKUP(A21,TabListe_CBH1_S1[],4,FALSE) -> 0
A22: ='Liste CBH1_1'!B16 -> CBH1.S1.19/20.003 | B22: =VLOOKUP(A22,TabListe_CBH1_S1[],2,FALSE) -> CHANGAUT Dann Phanel Ezechiel | C22: =VLOOKUP(A22,TabListe_CBH1_S1[],3,FALSE) -> F | D22: =VLOOKUP(A22,TabListe_CBH1_S1[],4,FALSE) -> 0
A23: ='Liste CBH1_1'!B17 -> CBH1.S1.19/20.004 | B23: =VLOOKUP(A23,TabListe_CBH1_S1[],2,FALSE) -> EBANG ELLA Guy Arsène | C23: =VLOOKUP(A23,TabListe_CBH1_S1[],3,FALSE) -> F | D23: =VLOOKUP(A23,TabListe_CBH1_S1[],4,FALSE) -> R1
A24: ='Liste CBH1_1'!B18 -> CBH1.S1.19/20.005 | B24: =VLOOKUP(A24,TabListe_CBH1_S1[],2,FALSE) -> ENGONGHA MBA Jean Damas | C24: =VLOOKUP(A24,TabListe_CBH1_S1[],3,FALSE) -> M | D24: =VLOOKUP(A24,TabListe_CBH1_S1[],4,FALSE) -> 0
A25: ='Liste CBH1_1'!B19 -> CBH1.S1.19/20.006 | B25: =VLOOKUP(A25,TabListe_CBH1_S1[],2,FALSE) -> ESSO BIVEGHE Hermenegilde | C25: =VLOOKUP(A25,TabListe_CBH1_S1[],3,FALSE) -> M | D25: =VLOOKUP(A25,TabListe_CBH1_S1[],4,FALSE) -> 0
A26: ='Liste CBH1_1'!B20 -> CBH1.S1.19/20.007 | B26: =VLOOKUP(A26,TabListe_CBH1_S1[],2,FALSE) -> EYONE MBA Luduine Claude | C26: =VLOOKUP(A26,TabListe_CBH1_S1[],3,FALSE) -> M | D26: =VLOOKUP(A26,TabListe_CBH1_S1[],4,FALSE) -> 0
A27: ='Liste CBH1_1'!B21 -> CBH1.S1.19/20.008 | B27: =VLOOKUP(A27,TabListe_CBH1_S1[],2,FALSE) -> IBOUANGA IBOUANGA Christ Jermy | C27: =VLOOKUP(A27,TabListe_CBH1_S1[],3,FALSE) -> M | D27: =VLOOKUP(A27,TabListe_CBH1_S1[],4,FALSE) -> 0
A28: ='Liste CBH1_1'!B22 -> CBH1.S1.19/20.009 | B28: =VLOOKUP(A28,TabListe_CBH1_S1[],2,FALSE) -> KOUMBA KOUMBA Guy Elvice | C28: =VLOOKUP(A28,TabListe_CBH1_S1[],3,FALSE) -> M | D28: =VLOOKUP(A28,TabListe_CBH1_S1[],4,FALSE) -> 0
A29: ='Liste CBH1_1'!B23 -> CBH1.S1.19/20.010 | B29: =VLOOKUP(A29,TabListe_CBH1_S1[],2,FALSE) -> MAMBOUNDOU MOUNGUENGUI Steven | C29: =VLOOKUP(A29,TabListe_CBH1_S1[],3,FALSE) -> M | D29: =VLOOKUP(A29,TabListe_CBH1_S1[],4,FALSE) -> 0
A30: ='Liste CBH1_1'!B24 -> CBH1.S1.19/20.011 | B30: =VLOOKUP(A30,TabListe_CBH1_S1[],2,FALSE) -> MAYOMBO-KONGO Fredy-Cherie | C30: =VLOOKUP(A30,TabListe_CBH1_S1[],3,FALSE) -> M | D30: =VLOOKUP(A30,TabListe_CBH1_S1[],4,FALSE) -> 0
A31: ='Liste CBH1_1'!B25 -> CBH1.S1.19/20.012 | B31: =VLOOKUP(A31,TabListe_CBH1_S1[],2,FALSE) -> MBOUNDOU Juste Méthode | C31: =VLOOKUP(A31,TabListe_CBH1_S1[],3,FALSE) -> M | D31: =VLOOKUP(A31,TabListe_CBH1_S1[],4,FALSE) -> 0
A32: ='Liste CBH1_1'!B26 -> CBH1.S1.19/20.013 | B32: =VLOOKUP(A32,TabListe_CBH1_S1[],2,FALSE) -> MBOUTSOU BOUGUEROU | C32: =VLOOKUP(A32,TabListe_CBH1_S1[],3,FALSE) -> M | D32: =VLOOKUP(A32,TabListe_CBH1_S1[],4,FALSE) -> 0
A33: ='Liste CBH1_1'!B27 -> CBH1.S1.19/20.014 | B33: =VLOOKUP(A33,TabListe_CBH1_S1[],2,FALSE) -> MINTSA ONDO Loic | C33: =VLOOKUP(A33,TabListe_CBH1_S1[],3,FALSE) -> M | D33: =VLOOKUP(A33,TabListe_CBH1_S1[],4,FALSE) -> 0
A34: ='Liste CBH1_1'!B28 -> CBH1.S1.19/20.015 | B34: =VLOOKUP(A34,TabListe_CBH1_S1[],2,FALSE) -> NDJOKOUNDA Rhaude Darrel | C34: =VLOOKUP(A34,TabListe_CBH1_S1[],3,FALSE) -> M | D34: =VLOOKUP(A34,TabListe_CBH1_S1[],4,FALSE) -> 0
A35: ='Liste CBH1_1'!B29 -> CBH1.S1.19/20.016 | B35: =VLOOKUP(A35,TabListe_CBH1_S1[],2,FALSE) -> NDJOUMBA NGUELE Warrel | C35: =VLOOKUP(A35,TabListe_CBH1_S1[],3,FALSE) -> M | D35: =VLOOKUP(A35,TabListe_CBH1_S1[],4,FALSE) -> R1
A36: ='Liste CBH1_1'!B30 -> CBH1.S1.19/20.017 | B36: =VLOOKUP(A36,TabListe_CBH1_S1[],2,FALSE) -> NZENGUI DIMBOUMBA Djerry Odhe | C36: =VLOOKUP(A36,TabListe_CBH1_S1[],3,FALSE) -> M | D36: =VLOOKUP(A36,TabListe_CBH1_S1[],4,FALSE) -> 0
A37: ='Liste CBH1_1'!B31 -> CBH1.S1.19/20.018 | B37: =VLOOKUP(A37,TabListe_CBH1_S1[],2,FALSE) -> ONDIMBA LEKOUTA Anouchka Infrid | C37: =VLOOKUP(A37,TabListe_CBH1_S1[],3,FALSE) -> M | D37: =VLOOKUP(A37,TabListe_CBH1_S1[],4,FALSE) -> 0
A38: ='Liste CBH1_1'!B32 -> CBH1.S1.19/20.019 | B38: =VLOOKUP(A38,TabListe_CBH1_S1[],2,FALSE) -> OSSIMA MINKO Hermant Gilbert | C38: =VLOOKUP(A38,TabListe_CBH1_S1[],3,FALSE) -> M | D38: =VLOOKUP(A38,TabListe_CBH1_S1[],4,FALSE) -> 0
A39: ='Liste CBH1_1'!B33 -> CBH1.S1.19/20.020 | B39: =VLOOKUP(A39,TabListe_CBH1_S1[],2,FALSE) -> SAMA Edgard | C39: =VLOOKUP(A39,TabListe_CBH1_S1[],3,FALSE) -> M | D39: =VLOOKUP(A39,TabListe_CBH1_S1[],4,FALSE) -> 0
A40: ='Liste CBH1_1'!B34 -> CBH1.S1.19/20.021 | B40: =VLOOKUP(A40,TabListe_CBH1_S1[],2,FALSE) -> TONDIBADI MOUNIA Hans Kenneth | C40: =VLOOKUP(A40,TabListe_CBH1_S1[],3,FALSE) -> M | D40: =VLOOKUP(A40,TabListe_CBH1_S1[],4,FALSE) -> R1
B71: TOTAL ETUDIANTS | C71: =COUNTA(A20:A69) -> 21

Sheet Bulletins CBH1_1
B2: INSTITUT DE TECHNOLOGIES D'OWENDO | K2: REPUBLIQUE GABONAISE
D4: Année Académique : | F4: 2019-2020 | J4: Semestre : | L4: S1
D6: Série : | F6: STI | J6: Section : | L6: CBH
D8: Filière : | F8: Génie_Bois | J8: Classe : | L8: CBH_1
D10: Option : | E10: =VLOOKUP(L8,CygleClasse,3,FALSE) -> 1ère Année Constructif Bois et Habitat
C13: BULLETIN DE NOTES
B14: Matricule | C14: Noms et Prénoms : | D14: =VLOOKUP(B15,TabMOYENNES_CBH1_1[],2,FALSE) -> BIKORO AVIE Kyllix Hyanez | J14: Effect. | K14: =TabMOYENNES_CBH1_1[[#Totals],[Matricule]] -> 50 | L14: Sexe | M14: =VLOOKUP(B15,TabMOYENNES_CBH1_1[],3,FALSE) -> F
B15: CBH1.S1.19/20.001 | C15: Date de naissance : | D15: =VLOOKUP(B15,TabListe_CBH1_S1[],5,FALSE) -> 32518 | E15: Lieu de naissance : | H15: =VLOOKUP(B15,TabListe_CBH1_S1[],6,FALSE) -> Fougamou | J15: Nationalite : | L15: =VLOOKUP(B15,TabListe_CBH1_S1[],7,FALSE) -> Gabonaise
B18: UNITES D'ENSEIGNEMENT | E18: Moy. Etud. | F18: Coef. | G18: N*Coef. | H18: Moy. Clas. | I18: Moy. Maxi | J18: Moy. Mini | K18: Rang | L18: APPRECIATION
B21: ='Moyennes CBH1_1'!V15 -> 5 | C21: ='Moyennes CBH1_1'!F15 -> LANGUE
B22: =TabMOYENNES_CBH1_1[[#Headers],[LG1]] -> LG1 | C22: ='Moyennes CBH1_1'!F18 -> Anglais | E22: =VLOOKUP(B$15,TabMOYENNES_CBH1_1[],5,FALSE) -> 6.5 | F22: ='Moyennes CBH1_1'!F17 -> 2 | G22: =E22*F22 -> 13 | H22: =VLOOKUP($H$18,SynthèseCBH1_1,2,FALSE) ->  | I22: =VLOOKUP($I$18,SynthèseCBH1_1,2,FALSE) ->  | J22: =VLOOKUP($J$18,SynthèseCBH1_1,2,FALSE) ->  | K22: =VLOOKUP($B$15,TabMOYENNES_CBH1_1[],6,FALSE) -> 14 | L22: =VLOOKUP(E22,TabMentions[],2) -> Très insuffisant
B23: =TabMOYENNES_CBH1_1[[#Headers],[LG2]] -> LG2 | C23: ='Moyennes CBH1_1'!I18 -> Culture Générale et Expression | E23: =VLOOKUP(B$15,TabMOYENNES_CBH1_1[],8,FALSE) -> 11.5 | F23: ='Moyennes CBH1_1'!I17 -> 3 | G23: =E23*F23 -> 34.5 | H23: =VLOOKUP($H$18,SynthèseCBH1_1,3,FALSE) ->  | I23: =VLOOKUP($I$18,SynthèseCBH1_1,3,FALSE) ->  | J23: =VLOOKUP($J$18,SynthèseCBH1_1,3,FALSE) ->  | K23: =VLOOKUP(B$15,TabMOYENNES_CBH1_1[],9,FALSE) -> 14 | L23: =VLOOKUP(E23,TabMentions[],2) -> Passable
B24: =TabMOYENNES_CBH1_1[[#Headers],[LG3]] -> LG3 | C24: ='Moyennes CBH1_1'!L18 -> A1 | E24: =VLOOKUP(B$15,TabMOYENNES_CBH1_1[],11,FALSE) -> 0 | F24: ='Moyennes CBH1_1'!L17 -> 0 | G24: =E24*F24 -> 0 | H24: =VLOOKUP($H$18,SynthèseCBH1_1,4,FALSE) ->  | I24: =VLOOKUP($I$18,SynthèseCBH1_1,4,FALSE) ->  | J24: =VLOOKUP($J$18,SynthèseCBH1_1,4,FALSE) ->  | K24: =VLOOKUP(B$15,TabMOYENNES_CBH1_1[],12,FALSE) -> 50 | L24: =VLOOKUP(E24,TabMentions[],2) -> Nul
B25: =TabMOYENNES_CBH1_1[[#Headers],[LG4]] -> LG4 | C25: ='Moyennes CBH1_1'!O18 -> A2 | E25: =VLOOKUP(B$15,TabMOYENNES_CBH1_1[],14,FALSE) -> 0 | F25: ='Moyennes CBH1_1'!O17 -> 0 | G25: =E25*F25 -> 0 | H25: =VLOOKUP($H$18,SynthèseCBH1_1,5,FALSE) ->  | I25: =VLOOKUP($I$18,SynthèseCBH1_1,5,FALSE) ->  | J25: =VLOOKUP($J$18,SynthèseCBH1_1,5,FALSE) ->  | K25: =VLOOKUP(B$15,TabMOYENNES_CBH1_1[],15,FALSE) -> 50 | L25: =VLOOKUP(E25,TabMentions[],2) -> Nul
B26: =TabMOYENNES_CBH1_1[[#Headers],[LG5]] -> LG5 | C26: ='Moyennes CBH1_1'!R18 -> A3 | E26: =VLOOKUP(B$15,TabMOYENNES_CBH1_1[],17,FALSE) -> 0 | F26: ='Moyennes CBH1_1'!R17 -> 0 | G26: =E26*F26 -> 0 | H26: =VLOOKUP($H$18,SynthèseCBH1_1,6,FALSE) ->  | I26: =VLOOKUP($I$18,SynthèseCBH1_1,6,FALSE) ->  | J26: =VLOOKUP($J$18,SynthèseCBH1_1,6,FALSE) ->  | K26: =VLOOKUP(B$15,TabMOYENNES_CBH1_1[],18,FALSE) -> 50 | L26: =VLOOKUP(E26,TabMentions[],2) -> Nul
B27: Moyenne U.E. 1 /20 | E27: =VLOOKUP(B$15,TabMOYENNES_CBH1_1[],20,FALSE) -> 9.496201519 | F27: =SUM(F22:F26) -> 5 | G27: =SUM(G22:G26) -> 47.5 | H27: =VLOOKUP($H$18,SynthèseCBH1_1,7,FALSE) ->  | I27: =VLOOKUP($I$18,SynthèseCBH1_1,7,FALSE) ->  | J27: =VLOOKUP($J$18,SynthèseCBH1_1,7,FALSE) ->  | K27: =VLOOKUP(B$15,TabMOYENNES_CBH1_1[],21,FALSE) -> 14 | L27: =VLOOKUP(E27,TabMentions[],2) -> Insuffisant
B30: ='Moyennes CBH1_1'!AN15 -> 4 | C30: ='Moyennes CBH1_1'!X15 -> SCIENCES
B31: =TabMOYENNES_CBH1_1[[#Headers],[SC1]] -> SC1 | C31: ='Moyennes CBH1_1'!X18 -> Mathématiques | E31: =VLOOKUP($B$15,TabMOYENNES_CBH1_1[],23,FALSE) -> 0 | F31: ='Moyennes CBH1_1'!X17 -> 2 | G31: =E31*F31 -> 0 | H31: =VLOOKUP($H$18,SynthèseCBH1_1,9,FALSE) ->  | I31: =VLOOKUP($I$18,SynthèseCBH1_1,9,FALSE) ->  | J31: =VLOOKUP($J$18,SynthèseCBH1_1,9,FALSE) ->  | K31: =VLOOKUP($B$15,TabMOYENNES_CBH1_1[],24,FALSE) -> 50 | L31: =VLOOKUP(E31,TabMentions[],2) -> Nul
B32: =TabMOYENNES_CBH1_1[[#Headers],[SC2]] -> SC2 | C32: ='Moyennes CBH1_1'!AA18 -> Sciences physiques | E32: =VLOOKUP($B$15,TabMOYENNES_CBH1_1[],26,FALSE) -> 7.5 | F32: ='Moyennes CBH1_1'!AA17 -> 1 | G32: =E32*F32 -> 7.5 | H32: =VLOOKUP($H$18,SynthèseCBH1_1,10,FALSE) ->  | I32: =VLOOKUP($I$18,SynthèseCBH1_1,10,FALSE) ->  | J32: =VLOOKUP($J$18,SynthèseCBH1_1,10,FALSE) ->  | K32: =VLOOKUP($B$15,TabMOYENNES_CBH1_1[],27,FALSE) -> 14 | L32: =VLOOKUP(E32,TabMentions[],2) -> Très insuffisant
B33: =TabMOYENNES_CBH1_1[[#Headers],[SC3]] -> SC3 | C33: ='Moyennes CBH1_1'!AD18 -> Physique du bâtiment | E33: =VLOOKUP($B$15,TabMOYENNES_CBH1_1[],29,FALSE) -> 0 | F33: ='Moyennes CBH1_1'!AD17 -> 1 | G33: =E33*F33 -> 0 | H33: =VLOOKUP($H$18,SynthèseCBH1_1,11,FALSE) ->  | I33: =VLOOKUP($I$18,SynthèseCBH1_1,11,FALSE) ->  | J33: =VLOOKUP($J$18,SynthèseCBH1_1,11,FALSE) ->  | K33: =VLOOKUP($B$15,TabMOYENNES_CBH1_1[],30,FALSE) -> 50 | L33: =VLOOKUP(E33,TabMentions[],2) -> Nul
B34: =TabMOYENNES_CBH1_1[[#Headers],[SC4]] -> SC4 | C34: ='Moyennes CBH1_1'!AG18 -> B1 | E34: =VLOOKUP($B$15,TabMOYENNES_CBH1_1[],32,FALSE) -> 0 | F34: ='Moyennes CBH1_1'!AG17 -> 0 | G34: =E34*F34 -> 0 | H34: =VLOOKUP($H$18,SynthèseCBH1_1,12,FALSE) ->  | I34: =VLOOKUP($I$18,SynthèseCBH1_1,12,FALSE) ->  | J34: =VLOOKUP($J$18,SynthèseCBH1_1,12,FALSE) ->  | K34: =VLOOKUP($B$15,TabMOYENNES_CBH1_1[],33,FALSE) -> 50 | L34: =VLOOKUP(E34,TabMentions[],2) -> Nul
B35: =TabMOYENNES_CBH1_1[[#Headers],[SC5]] -> SC5 | C35: ='Moyennes CBH1_1'!AJ18 -> B2 | E35: =VLOOKUP($B$15,TabMOYENNES_CBH1_1[],35,FALSE) -> 0 | F35: ='Moyennes CBH1_1'!AJ17 -> 0 | G35: =E35*F35 -> 0 | H35: =VLOOKUP($H$18,SynthèseCBH1_1,13,FALSE) ->  | I35: =VLOOKUP($I$18,SynthèseCBH1_1,13,FALSE) ->  | J35: =VLOOKUP($J$18,SynthèseCBH1_1,13,FALSE) ->  | K35: =VLOOKUP($B$15,TabMOYENNES_CBH1_1[],36,FALSE) -> 50 | L35: =VLOOKUP(E35,TabMentions[],2) -> Nul
B36: Moyenne U.E. 2 /20 | E36: =VLOOKUP(B$15,TabMOYENNES_CBH1_1[],38,FALSE) -> 1.874062969 | F36: =SUM(F31:F35) -> 4 | G36: =SUM(G31:G35) -> 7.5 | H36: =VLOOKUP($H$18,SynthèseCBH1_1,14,FALSE) ->  | I36: =VLOOKUP($I$18,SynthèseCBH1_1,14,FALSE) ->  | J36: =VLOOKUP($J$18,SynthèseCBH1_1,14,FALSE) ->  | K36: =VLOOKUP($B$15,TabMOYENNES_CBH1_1[],39,FALSE) -> 17 | L36: =VLOOKUP(E36,TabMentions[],2) -> Nul
B39: ='Moyennes CBH1_1'!BO15 -> 10 | C39: ='Moyennes CBH1_1'!AP15 -> TECHNOLOGIQUE | M39: =IF(AND(E39>=0,E39<=2),"Nul",IF(AND(E39>=3,E39<=5),"Médiocre",IF(AND(E39>=6,E39<=7),"Trés Insuffisant",IF(AND(E39>=8,E39<=9),"Insuffisant",IF(AND(E39>=10,E39<=11),"Passable",IF(AND(E39>=12,E39<=13),"Asse Bien",IF(AND(E39>=14,E39<=15),"Bien",IF(AND(E39>=16,E39<=17),"Trés Bien",IF(AND(E39>=18,E39<=19),"Excellent",IF(E39=20,"Parfait","")))))))))) -> Nul
B40: =TabMOYENNES_CBH1_1[[#Headers],[TECHNO1]] -> TECHNO1 | C40: ='Moyennes CBH1_1'!AP18 -> Dessin et DAO/CAO | E40: =VLOOKUP(B$15,TabMOYENNES_CBH1_1[],41,FALSE) -> 7.333333333 | F40: ='Moyennes CBH1_1'!AP17 -> 3 | G40: =E40*F40 -> 22 | H40: =VLOOKUP($H$18,SynthèseCBH1_1,16,FALSE) ->  | I40: =VLOOKUP($I$18,SynthèseCBH1_1,16,FALSE) ->  | J40: =VLOOKUP($J$18,SynthèseCBH1_1,16,FALSE) ->  | K40: =VLOOKUP($B$15,TabMOYENNES_CBH1_1[],42,FALSE) -> 15 | L40: =VLOOKUP(E40,TabMentions[],2) -> Très insuffisant
B41: =TabMOYENNES_CBH1_1[[#Headers],[TECHNO2]] -> TECHNO2 | C41: ='Moyennes CBH1_1'!AS18 -> Calculs de structures | E41: =VLOOKUP(B$15,TabMOYENNES_CBH1_1[],44,FALSE) -> 1.5 | F41: ='Moyennes CBH1_1'!AS17 -> 3 | G41: =E41*F41 -> 4.5 | H41: =VLOOKUP($H$18,SynthèseCBH1_1,17,FALSE) ->  | I41: =VLOOKUP($I$18,SynthèseCBH1_1,17,FALSE) ->  | J41: =VLOOKUP($J$18,SynthèseCBH1_1,17,FALSE) ->  | K41: =VLOOKUP($B$15,TabMOYENNES_CBH1_1[],45,FALSE) -> 17 | L41: =VLOOKUP(E41,TabMentions[],2) -> Nul
B42: =TabMOYENNES_CBH1_1[[#Headers],[TECHNO3]] -> TECHNO3 | C42: ='Moyennes CBH1_1'!AV18 -> Etudes des systèmes constructifs bois | E42: =VLOOKUP(B$15,TabMOYENNES_CBH1_1[],47,FALSE) -> 9 | F42: ='Moyennes CBH1_1'!AV17 -> 3 | G42: 27 | H42: =VLOOKUP($H$18,SynthèseCBH1_1,18,FALSE) ->  | I42: =VLOOKUP($I$18,SynthèseCBH1_1,18,FALSE) ->  | J42: =VLOOKUP($J$18,SynthèseCBH1_1,18,FALSE) ->  | K42: =VLOOKUP($B$15,TabMOYENNES_CBH1_1[],48,FALSE) -> 9 | L42: =VLOOKUP(E42,TabMentions[],2) -> Insuffisant
B43: =TabMOYENNES_CBH1_1[[#Headers],[TECHNO4]] -> TECHNO4 | C43: ='Moyennes CBH1_1'!AY18 -> Sciences des matériaux | E43: =VLOOKUP(B$15,TabMOYENNES_CBH1_1[],50,FALSE) -> 13.75 | F43: ='Moyennes CBH1_1'!AY17 -> 1 | G43: 13.75 | H43: =VLOOKUP($H$18,SynthèseCBH1_1,19,FALSE) ->  | I43: =VLOOKUP($I$18,SynthèseCBH1_1,19,FALSE) ->  | J43: =VLOOKUP($J$18,SynthèseCBH1_1,19,FALSE) ->  | K43: =VLOOKUP($B$15,TabMOYENNES_CBH1_1[],51,FALSE) -> 2 | L43: =VLOOKUP(E43,TabMentions[],2) -> Assez_bien
B44: =TabMOYENNES_CBH1_1[[#Headers],[TECHNO5]] -> TECHNO5 | C44: ='Moyennes CBH1_1'!BB18 -> C1 | E44: =VLOOKUP(B$15,TabMOYENNES_CBH1_1[],53,FALSE) -> 0 | F44: ='Moyennes CBH1_1'!BB17 -> 0 | G44: 0 | H44: =VLOOKUP($H$18,SynthèseCBH1_1,20,FALSE) ->  | I44: =VLOOKUP($I$18,SynthèseCBH1_1,20,FALSE) ->  | J44: =VLOOKUP($J$18,SynthèseCBH1_1,20,FALSE) ->  | K44: =VLOOKUP($B$15,TabMOYENNES_CBH1_1[],54,FALSE) -> 50 | L44: =VLOOKUP(E44,TabMentions[],2) -> Nul
B45: =TabMOYENNES_CBH1_1[[#Headers],[TECHNO6]] -> TECHNO6 | C45: ='Moyennes CBH1_1'!BE18 -> C2 | E45: =VLOOKUP(B$15,TabMOYENNES_CBH1_1[],56,FALSE) -> 0 | F45: ='Moyennes CBH1_1'!BE17 -> 0 | G45: 0 | H45: =VLOOKUP($H$18,SynthèseCBH1_1,21,FALSE) ->  | I45: =VLOOKUP($I$18,SynthèseCBH1_1,21,FALSE) ->  | J45: =VLOOKUP($J$18,SynthèseCBH1_1,21,FALSE) ->  | K45: =VLOOKUP($B$15,TabMOYENNES_CBH1_1[],57,FALSE) -> 50 | L45: =VLOOKUP(E45,TabMentions[],2) -> Nul
B46: =TabMOYENNES_CBH1_1[[#Headers],[TECHNO7]] -> TECHNO7 | C46: ='Moyennes CBH1_1'!BH18 -> C3 | E46: =VLOOKUP(B$15,TabMOYENNES_CBH1_1[],59,FALSE) -> 0 | F46: ='Moyennes CBH1_1'!BH17 -> 0 | G46: 0 | H46: =VLOOKUP($H$18,SynthèseCBH1_1,22,FALSE) ->  | I46: =VLOOKUP($I$18,SynthèseCBH1_1,22,FALSE) ->  | J46: =VLOOKUP($J$18,SynthèseCBH1_1,22,FALSE) ->  | K46: =VLOOKUP($B$15,TabMOYENNES_CBH1_1[],60,FALSE) -> 50 | L46: =VLOOKUP(E46,TabMentions[],2) -> Nul
B47: =TabMOYENNES_CBH1_1[[#Headers],[TECHNO8]] -> TECHNO8 | C47: ='Moyennes CBH1_1'!BK18 -> C4 | E47: =VLOOKUP(B$15,TabMOYENNES_CBH1_1[],62,FALSE) -> 0 | F47: ='Moyennes CBH1_1'!BK17 -> 0 | G47: =E47*F47 -> 0 | H47: =VLOOKUP($H$18,SynthèseCBH1_1,23,FALSE) ->  | I47: =VLOOKUP($I$18,SynthèseCBH1_1,23,FALSE) ->  | J47: =VLOOKUP($J$18,SynthèseCBH1_1,23,FALSE) ->  | K47: =VLOOKUP($B$15,TabMOYENNES_CBH1_1[],63,FALSE) -> 50 | L47: =VLOOKUP(E47,TabMentions[],2) -> Nul
B48: Moyenne U.E. 3 /20 | E48: =VLOOKUP(B$15,TabMOYENNES_CBH1_1[],65,FALSE) -> 6.723655269 | F48: =SUM(F40:F47) -> 10 | G48: =SUM(G40:G47) -> 67.25 | H48: =VLOOKUP($H$18,SynthèseCBH1_1,24,FALSE) ->  | I48: =VLOOKUP($I$18,SynthèseCBH1_1,24,FALSE) ->  | J48: =VLOOKUP($J$18,SynthèseCBH1_1,24,FALSE) ->  | K48: =VLOOKUP($B$15,TabMOYENNES_CBH1_1[],66,FALSE) -> 15 | L48: =VLOOKUP(E48,TabMentions[],2) -> Très insuffisant
B51: ='Moyennes CBH1_1'!CP15 -> 9 | C51: ='Moyennes CBH1_1'!BQ15 -> PROFESSIONNEL
B52: =TabMOYENNES_CBH1_1[[#Headers],[PROF1]] -> PROF1 | C52: ='Moyennes CBH1_1'!BQ18 -> Processus de fabrication et logistiques de Production /organisation et gestion travaux | E52: =VLOOKUP(B$15,TabMOYENNES_CBH1_1[],68,FALSE) -> 13.5 | F52: ='Moyennes CBH1_1'!BQ17 -> 3 | G52: =E52*F52 -> 40.5 | H52: =VLOOKUP($H$18,SynthèseCBH1_1,26,FALSE) ->  | I52: =VLOOKUP($I$18,SynthèseCBH1_1,26,FALSE) ->  | J52: =VLOOKUP($J$18,SynthèseCBH1_1,26,FALSE) ->  | K52: =VLOOKUP($B$15,TabMOYENNES_CBH1_1[],69,FALSE) -> 1 | L52: =VLOOKUP(E52,TabMentions[],2) -> Assez_bien
B53: =TabMOYENNES_CBH1_1[[#Headers],[PROF2]] -> PROF2 | C53: ='Moyennes CBH1_1'!BT18 -> Travaux Pratiques de réalisation | E53: =VLOOKUP(B$15,TabMOYENNES_CBH1_1[],71,FALSE) -> 12.75 | F53: ='Moyennes CBH1_1'!BT17 -> 3 | G53: 38.25 | H53: =VLOOKUP($H$18,SynthèseCBH1_1,27,FALSE) ->  | I53: =VLOOKUP($I$18,SynthèseCBH1_1,27,FALSE) ->  | J53: =VLOOKUP($J$18,SynthèseCBH1_1,27,FALSE) ->  | K53: =VLOOKUP($B$15,TabMOYENNES_CBH1_1[],72,FALSE) -> 15 | L53: =VLOOKUP(E53,TabMentions[],2) -> Assez_bien
B54: =TabMOYENNES_CBH1_1[[#Headers],[PROF3]] -> PROF3 | C54: ='Moyennes CBH1_1'!BW18 -> Sécurité au travail et Moyens de production généraux | E54: =VLOOKUP(B$15,TabMOYENNES_CBH1_1[],74,FALSE) -> 0 | F54: ='Moyennes CBH1_1'!BW17 -> 2 | G54: 0 | H54: =VLOOKUP($H$18,SynthèseCBH1_1,28,FALSE) ->  | I54: =VLOOKUP($I$18,SynthèseCBH1_1,28,FALSE) ->  | J54: =VLOOKUP($J$18,SynthèseCBH1_1,28,FALSE) ->  | K54: =VLOOKUP($B$15,TabMOYENNES_CBH1_1[],75,FALSE) -> 50 | L54: =VLOOKUP(E54,TabMentions[],2) -> Nul
B55: =TabMOYENNES_CBH1_1[[#Headers],[PROF4]] -> PROF4 | C55: ='Moyennes CBH1_1'!BZ18 -> Automatisation des techniques de production | E55: =VLOOKUP(B$15,TabMOYENNES_CBH1_1[],77,FALSE) -> 0 | F55: ='Moyennes CBH1_1'!BZ17 -> 1 | G55: 0 | H55: =VLOOKUP($H$18,SynthèseCBH1_1,29,FALSE) ->  | I55: =VLOOKUP($I$18,SynthèseCBH1_1,29,FALSE) ->  | J55: =VLOOKUP($J$18,SynthèseCBH1_1,29,FALSE) ->  | K55: =VLOOKUP($B$15,TabMOYENNES_CBH1_1[],78,FALSE) -> 50 | L55: =VLOOKUP(E55,TabMentions[],2) -> Nul
B56: =TabMOYENNES_CBH1_1[[#Headers],[PROF5]] -> PROF5 | C56: ='Moyennes CBH1_1'!CC18 -> D1 | E56: =VLOOKUP(B$15,TabMOYENNES_CBH1_1[],80,FALSE) -> 0 | F56: ='Moyennes CBH1_1'!CC17 -> 0 | G56: 0 | H56: =VLOOKUP($H$18,SynthèseCBH1_1,30,FALSE) ->  | I56: =VLOOKUP($I$18,SynthèseCBH1_1,30,FALSE) ->  | J56: =VLOOKUP($J$18,SynthèseCBH1_1,30,FALSE) ->  | K56: =VLOOKUP($B$15,TabMOYENNES_CBH1_1[],81,FALSE) -> 50 | L56: =VLOOKUP(E56,TabMentions[],2) -> Nul
B57: =TabMOYENNES_CBH1_1[[#Headers],[PROF6]] -> PROF6 | C57: ='Moyennes CBH1_1'!CF18 -> D2 | E57: =VLOOKUP(B$15,TabMOYENNES_CBH1_1[],83,FALSE) -> 0 | F57: ='Moyennes CBH1_1'!CF17 -> 0 | G57: 0 | H57: =VLOOKUP($H$18,SynthèseCBH1_1,31,FALSE) ->  | I57: =VLOOKUP($I$18,SynthèseCBH1_1,31,FALSE) ->  | J57: =VLOOKUP($J$18,SynthèseCBH1_1,31,FALSE) ->  | K57: =VLOOKUP($B$15,TabMOYENNES_CBH1_1[],84,FALSE) -> 50 | L57: =VLOOKUP(E57,TabMentions[],2) -> Nul
B58: =TabMOYENNES_CBH1_1[[#Headers],[PROF7]] -> PROF7 | C58: ='Moyennes CBH1_1'!CI18 -> D3 | E58: =VLOOKUP(B$15,TabMOYENNES_CBH1_1[],86,FALSE) -> 0 | F58: ='Moyennes CBH1_1'!CI17 -> 0 | G58: 0 | H58: =VLOOKUP($H$18,SynthèseCBH1_1,32,FALSE) ->  | I58: =VLOOKUP($I$18,SynthèseCBH1_1,32,FALSE) ->  | J58: =VLOOKUP($J$18,SynthèseCBH1_1,32,FALSE) ->  | K58: =VLOOKUP($B$15,TabMOYENNES_CBH1_1[],87,FALSE) -> 50 | L58: =VLOOKUP(E58,TabMentions[],2) -> Nul
B59: =TabMOYENNES_CBH1_1[[#Headers],[PROF8]] -> PROF8 | C59: ='Moyennes CBH1_1'!CL18 -> D4 | E59: =VLOOKUP(B$15,TabMOYENNES_CBH1_1[],89,FALSE) -> 0 | F59: ='Moyennes CBH1_1'!CL17 -> 0 | G59: 0 | H59: =VLOOKUP($H$18,SynthèseCBH1_1,33,FALSE) ->  | I59: =VLOOKUP($I$18,SynthèseCBH1_1,33,FALSE) ->  | J59: =VLOOKUP($J$18,SynthèseCBH1_1,33,FALSE) ->  | K59: =VLOOKUP($B$15,TabMOYENNES_CBH1_1[],90,FALSE) -> 50 | L59: =VLOOKUP(E59,TabMentions[],2) -> Nul
B60: Moyenne U.E. 4 /20 | E60: =VLOOKUP(B$15,TabMOYENNES_CBH1_1[],92,FALSE) -> 8.748055988 | F60: =SUM(F52:F59) -> 9 | G60: =SUM(G52:G59) -> 78.75 | H60: =VLOOKUP(H$18,SynthèseCBH1_1,34,FALSE) ->  | I60: =VLOOKUP(I18,SynthèseCBH1_1,34,FALSE) ->  | J60: =VLOOKUP(J18,SynthèseCBH1_1,34,FALSE) ->  | K60: =VLOOKUP(B15,TabMOYENNES_CBH1_1[],93,FALSE) -> 3 | L60: =VLOOKUP(E60,TabMentions[],2) -> Insuffisant
B63: ='Moyennes CBH1_1'!DQ15 -> 4 | C63: ='Moyennes CBH1_1'!CR15 -> ENVIRONNEMENT ECONOMIQUE ET CONNAISSANCE DE L'ENTREPRISE
B64: =TabMOYENNES_CBH1_1[[#Headers],[ECO1]] -> ECO1 | C64: ='Moyennes CBH1_1'!CR18 -> Economie /Droit | E64: =VLOOKUP(B$15,TabMOYENNES_CBH1_1[],95,FALSE) -> 7.5 | F64: ='Moyennes CBH1_1'!CR17 -> 1 | G64: =E64*F64 -> 7.5 | H64: =VLOOKUP($H$18,SynthèseCBH1_1,36,FALSE) ->  | I64: =VLOOKUP($I$18,SynthèseCBH1_1,36,FALSE) ->  | J64: =VLOOKUP($J$18,SynthèseCBH1_1,36,FALSE) ->  | K64: =VLOOKUP($B$15,TabMOYENNES_CBH1_1[],96,FALSE) -> 14 | L64: =VLOOKUP(E64,TabMentions[],2) -> Très insuffisant
B65: =TabMOYENNES_CBH1_1[[#Headers],[ECO2]] -> ECO2 | C65: ='Moyennes CBH1_1'!CU18 -> Gestion financière et comptabilité | E65: =VLOOKUP(B$15,TabMOYENNES_CBH1_1[],98,FALSE) -> 12.5 | F65: ='Moyennes CBH1_1'!CU17 -> 1 | G65: 12.5 | H65: =VLOOKUP($H$18,SynthèseCBH1_1,37,FALSE) ->  | I65: =VLOOKUP($I$18,SynthèseCBH1_1,37,FALSE) ->  | J65: =VLOOKUP($J$18,SynthèseCBH1_1,37,FALSE) ->  | K65: =VLOOKUP($B$15,TabMOYENNES_CBH1_1[],99,FALSE) -> 7 | L65: =VLOOKUP(E65,TabMentions[],2) -> Assez_bien
B66: =TabMOYENNES_CBH1_1[[#Headers],[ECO3]] -> ECO3 | C66: ='Moyennes CBH1_1'!CX18 -> Gestion et développement personnel | E66: =VLOOKUP(B$15,TabMOYENNES_CBH1_1[],101,FALSE) -> 11 | F66: ='Moyennes CBH1_1'!CX17 -> 1 | G66: 11 | H66: =VLOOKUP($H$18,SynthèseCBH1_1,38,FALSE) ->  | I66: =VLOOKUP($I$18,SynthèseCBH1_1,38,FALSE) ->  | J66: =VLOOKUP($J$18,SynthèseCBH1_1,38,FALSE) ->  | K66: =VLOOKUP($B$15,TabMOYENNES_CBH1_1[],102,FALSE) -> 15 | L66: =VLOOKUP(E66,TabMentions[],2) -> Passable
B67: =TabMOYENNES_CBH1_1[[#Headers],[ECO4]] -> ECO4 | C67: ='Moyennes CBH1_1'!DA18 -> Gestion de projet Organisation des entreprises / Innovation et initiation en RD | E67: =VLOOKUP(B$15,TabMOYENNES_CBH1_1[],104,FALSE) -> 0 | F67: ='Moyennes CBH1_1'!DA17 -> 1 | G67: 0 | H67: =VLOOKUP($H$18,SynthèseCBH1_1,39,FALSE) ->  | I67: =VLOOKUP($I$18,SynthèseCBH1_1,39,FALSE) ->  | J67: =VLOOKUP($J$18,SynthèseCBH1_1,39,FALSE) ->  | K67: =VLOOKUP($B$15,TabMOYENNES_CBH1_1[],105,FALSE) -> 50 | L67: =VLOOKUP(E67,TabMentions[],2) -> Nul
B68: =TabMOYENNES_CBH1_1[[#Headers],[ECO5]] -> ECO5 | C68: ='Moyennes CBH1_1'!DD18 -> E1 | E68: =VLOOKUP(B$15,TabMOYENNES_CBH1_1[],107,FALSE) -> 0 | F68: ='Moyennes CBH1_1'!DD17 -> 0 | G68: 0 | H68: =VLOOKUP($H$18,SynthèseCBH1_1,40,FALSE) ->  | I68: =VLOOKUP($I$18,SynthèseCBH1_1,40,FALSE) ->  | J68: =VLOOKUP($J$18,SynthèseCBH1_1,40,FALSE) ->  | K68: =VLOOKUP($B$15,TabMOYENNES_CBH1_1[],108,FALSE) -> 50 | L68: =VLOOKUP(E68,TabMentions[],2) -> Nul
B69: =TabMOYENNES_CBH1_1[[#Headers],[ECO6]] -> ECO6 | C69: ='Moyennes CBH1_1'!DG18 -> E2 | E69: =VLOOKUP(B$15,TabMOYENNES_CBH1_1[],110,FALSE) -> 0 | F69: ='Moyennes CBH1_1'!DG17 -> 0 | G69: 0 | H69: =VLOOKUP($H$18,SynthèseCBH1_1,41,FALSE) ->  | I69: =VLOOKUP($I$18,SynthèseCBH1_1,41,FALSE) ->  | J69: =VLOOKUP($J$18,SynthèseCBH1_1,41,FALSE) ->  | K69: =VLOOKUP($B$15,TabMOYENNES_CBH1_1[],111,FALSE) -> 50 | L69: =VLOOKUP(E69,TabMentions[],2) -> Nul
B70: =TabMOYENNES_CBH1_1[[#Headers],[ECO7]] -> ECO7 | C70: ='Moyennes CBH1_1'!DJ18 -> E3 | E70: =VLOOKUP(B$15,TabMOYENNES_CBH1_1[],113,FALSE) -> 0 | F70: ='Moyennes CBH1_1'!DJ17 -> 0 | G70: 0 | H70: =VLOOKUP($H$18,SynthèseCBH1_1,42,FALSE) ->  | I70: =VLOOKUP($I$18,SynthèseCBH1_1,42,FALSE) ->  | J70: =VLOOKUP($J$18,SynthèseCBH1_1,42,FALSE) ->  | K70: =VLOOKUP($B$15,TabMOYENNES_CBH1_1[],114,FALSE) -> 50 | L70: =VLOOKUP(E70,TabMentions[],2) -> Nul
B71: =TabMOYENNES_CBH1_1[[#Headers],[ECO8]] -> ECO8 | C71: ='Moyennes CBH1_1'!DM18 -> E4 | E71: =VLOOKUP(B$15,TabMOYENNES_CBH1_1[],116,FALSE) -> 0 | F71: ='Moyennes CBH1_1'!DM17 -> 0 | G71: 0 | H71: =VLOOKUP($H$18,SynthèseCBH1_1,43,FALSE) ->  | I71: =VLOOKUP($I$18,SynthèseCBH1_1,43,FALSE) ->  | J71: =VLOOKUP($J$18,SynthèseCBH1_1,43,FALSE) ->  | K71: =VLOOKUP($B$15,TabMOYENNES_CBH1_1[],117,FALSE) -> 50 | L71: =VLOOKUP(E71,TabMentions[],2) -> Nul
B72: Moyenne U.E. 5 /20 | E72: =VLOOKUP(B$15,TabMOYENNES_CBH1_1[],119,FALSE) -> 7.746126937 | F72: =SUM(F64:F70) -> 4 | G72: =SUM(G64:G70) -> 31 | H72: =VLOOKUP(H18,SynthèseCBH1_1,44,FALSE) ->  | I72: =VLOOKUP(I18,SynthèseCBH1_1,44,FALSE) ->  | J72: =VLOOKUP(J18,SynthèseCBH1_1,44,FALSE) ->  | K72: =VLOOKUP(B15,TabMOYENNES_CBH1_1[],120,FALSE) -> 14 | L72: =VLOOKUP(E72,TabMentions[],2) -> Très insuffisant
B76: Nomre d'heures d'Absences | D76: =VLOOKUP(B$15,TabMOYENNES_CBH1_1[],133,FALSE) -> 0 | E76: =IF(D76>=140,"Blâme",IF(D76>=80,"Avertissement","")) ->  | H76: MOYENNE Sem. 1 | J76: =D78 -> 7.25 | L76: =VLOOKUP(J76,TabMentions[],2) -> Très insuffisant
B78: Moyenne Semestrielle | D78: =D83/D81 -> 7.25 | E78: =VLOOKUP(D78,TabMentions[],2) -> Très insuffisant
B81: Total Coefficients | D81: =F27+F36+F48+F60+F72 -> 32 | H81: Décision du Conseil de Classe | K81: =IF(D78<10,"Non Validé",IF(D78>=10,"Validé","")) -> Non Validé
B83: Total Moyennes* Coef. | D83: =G27+G36+G48+G60+G72 -> 232
B85: Moyenne Classe | D85: =VLOOKUP(H$18,SynthèseCBH1_1,47,FALSE) ->  | F85: Le Directeur des Etudes des Filières Industrielles
B87: Moyenne Maxi Classe | D87: =VLOOKUP(I$18,SynthèseCBH1_1,47,FALSE) -> 
B90: Moyenne Mini Classe | D90: =VLOOKUP(J$18,SynthèseCBH1_1,47,FALSE) -> 
B93: RANG SEMESTRIEL | D93: =VLOOKUP(B$15,TabMOYENNES_CBH1_1[],131,FALSE) -> 15
F95: Ghislain Médard MBA

Sheet Récape CBH1_1
C1: Année académique :
C2: 2019-2020
B5: RESULTATS DU SEMESTRE | E5: S1
A7: Classe : | B7: ='Liste CBH1_1'!C10 -> 1ère Année Constructif Bois et Habitat
A9: N° | B9: NOMS ET PRENOMS | C9: Statut | D9: Moy. S 1 | E9: Décision du conseil de classe
A10: ='Liste CBH1_1'!B14 -> CBH1.S1.19/20.001 | B10: =VLOOKUP(A10,TabMOYENNES_CBH1_1[],2,FALSE) -> BIKORO AVIE Kyllix Hyanez | D10: =VLOOKUP(A10,TabMOYENNES_CBH1_1[],130,FALSE) -> 7.247385282 | E10: =VLOOKUP(A10,TabMOYENNES_CBH1_1[],134,FALSE) -> Non Validé
A11: ='Liste CBH1_1'!B15 -> CBH1.S1.19/20.002 | B11: =VLOOKUP(A11,TabMOYENNES_CBH1_1[],2,FALSE) -> BOUCKA Horly Maclean's | D11: =VLOOKUP(A11,TabMOYENNES_CBH1_1[],130,FALSE) -> 8.715285653 | E11: =VLOOKUP(A11,TabMOYENNES_CBH1_1[],134,FALSE) -> Non Validé
A12: ='Liste CBH1_1'!B16 -> CBH1.S1.19/20.003 | B12: =VLOOKUP(A12,TabMOYENNES_CBH1_1[],2,FALSE) -> CHANGAUT Dann Phanel Ezechiel | D12: =VLOOKUP(A12,TabMOYENNES_CBH1_1[],130,FALSE) -> 8.314286165 | E12: =VLOOKUP(A12,TabMOYENNES_CBH1_1[],134,FALSE) -> Non Validé
A13: ='Liste CBH1_1'!B17 -> CBH1.S1.19/20.004 | B13: =VLOOKUP(A13,TabMOYENNES_CBH1_1[],2,FALSE) -> EBANG ELLA Guy Arsène | D13: =VLOOKUP(A13,TabMOYENNES_CBH1_1[],130,FALSE) -> 9.376187023 | E13: =VLOOKUP(A13,TabMOYENNES_CBH1_1[],134,FALSE) -> Non Validé
A14: ='Liste CBH1_1'!B18 -> CBH1.S1.19/20.005 | B14: =VLOOKUP(A14,TabMOYENNES_CBH1_1[],2,FALSE) -> ENGONGHA MBA Jean Damas | D14: =VLOOKUP(A14,TabMOYENNES_CBH1_1[],130,FALSE) -> 1.059419683 | E14: =VLOOKUP(A14,TabMOYENNES_CBH1_1[],134,FALSE) -> Non Validé
A15: ='Liste CBH1_1'!B19 -> CBH1.S1.19/20.006 | B15: =VLOOKUP(A15,TabMOYENNES_CBH1_1[],2,FALSE) -> ESSO BIVEGHE Hermenegilde | D15: =VLOOKUP(A15,TabMOYENNES_CBH1_1[],130,FALSE) -> 0 | E15: =VLOOKUP(A15,TabMOYENNES_CBH1_1[],134,FALSE) -> Non Validé
A16: ='Liste CBH1_1'!B20 -> CBH1.S1.19/20.007 | B16: =VLOOKUP(A16,TabMOYENNES_CBH1_1[],2,FALSE) -> EYONE MBA Luduine Claude | D16: =VLOOKUP(A16,TabMOYENNES_CBH1_1[],130,FALSE) -> 10.13564346 | E16: =VLOOKUP(A16,TabMOYENNES_CBH1_1[],134,FALSE) -> Validé
A17: ='Liste CBH1_1'!B21 -> CBH1.S1.19/20.008 | B17: =VLOOKUP(A17,TabMOYENNES_CBH1_1[],2,FALSE) -> IBOUANGA IBOUANGA Christ Jermy | D17: =VLOOKUP(A17,TabMOYENNES_CBH1_1[],130,FALSE) -> 0 | E17: =VLOOKUP(A17,TabMOYENNES_CBH1_1[],134,FALSE) -> Non Validé
A18: ='Liste CBH1_1'!B22 -> CBH1.S1.19/20.009 | B18: =VLOOKUP(A18,TabMOYENNES_CBH1_1[],2,FALSE) -> KOUMBA KOUMBA Guy Elvice | D18: =VLOOKUP(A18,TabMOYENNES_CBH1_1[],130,FALSE) -> 8.581524031 | E18: =VLOOKUP(A18,TabMOYENNES_CBH1_1[],134,FALSE) -> Non Validé
A19: ='Liste CBH1_1'!B23 -> CBH1.S1.19/20.010 | B19: =VLOOKUP(A19,TabMOYENNES_CBH1_1[],2,FALSE) -> MAMBOUNDOU MOUNGUENGUI Steven | D19: =VLOOKUP(A19,TabMOYENNES_CBH1_1[],130,FALSE) -> 6.67358262 | E19: =VLOOKUP(A19,TabMOYENNES_CBH1_1[],134,FALSE) -> Non Validé
A20: ='Liste CBH1_1'!B24 -> CBH1.S1.19/20.011 | B20: =VLOOKUP(A20,TabMOYENNES_CBH1_1[],2,FALSE) -> MAYOMBO-KONGO Fredy-Cherie | D20: =VLOOKUP(A20,TabMOYENNES_CBH1_1[],130,FALSE) -> 7.683170728 | E20: =VLOOKUP(A20,TabMOYENNES_CBH1_1[],134,FALSE) -> Non Validé
A21: ='Liste CBH1_1'!B25 -> CBH1.S1.19/20.012 | B21: =VLOOKUP(A21,TabMOYENNES_CBH1_1[],2,FALSE) -> MBOUNDOU Juste Méthode | D21: =VLOOKUP(A21,TabMOYENNES_CBH1_1[],130,FALSE) -> 9.575246915 | E21: =VLOOKUP(A21,TabMOYENNES_CBH1_1[],134,FALSE) -> Non Validé
A22: ='Liste CBH1_1'!B26 -> CBH1.S1.19/20.013 | B22: =VLOOKUP(A22,TabMOYENNES_CBH1_1[],2,FALSE) -> MBOUTSOU BOUGUEROU | D22: =VLOOKUP(A22,TabMOYENNES_CBH1_1[],130,FALSE) -> 9.314792806 | E22: =VLOOKUP(A22,TabMOYENNES_CBH1_1[],134,FALSE) -> Non Validé
A23: ='Liste CBH1_1'!B27 -> CBH1.S1.19/20.014 | B23: =VLOOKUP(A23,TabMOYENNES_CBH1_1[],2,FALSE) -> MINTSA ONDO Loic | D23: =VLOOKUP(A23,TabMOYENNES_CBH1_1[],130,FALSE) -> 9.413462523 | E23: =VLOOKUP(A23,TabMOYENNES_CBH1_1[],134,FALSE) -> Non Validé
A24: ='Liste CBH1_1'!B28 -> CBH1.S1.19/20.015 | B24: =VLOOKUP(A24,TabMOYENNES_CBH1_1[],2,FALSE) -> NDJOKOUNDA Rhaude Darrel | D24: =VLOOKUP(A24,TabMOYENNES_CBH1_1[],130,FALSE) -> 7.76066718 | E24: =VLOOKUP(A24,TabMOYENNES_CBH1_1[],134,FALSE) -> Non Validé
A25: ='Liste CBH1_1'!B29 -> CBH1.S1.19/20.016 | B25: =VLOOKUP(A25,TabMOYENNES_CBH1_1[],2,FALSE) -> NDJOUMBA NGUELE Warrel | D25: =VLOOKUP(A25,TabMOYENNES_CBH1_1[],130,FALSE) -> 7.953154066 | E25: =VLOOKUP(A25,TabMOYENNES_CBH1_1[],134,FALSE) -> Non Validé
A26: ='Liste CBH1_1'!B30 -> CBH1.S1.19/20.017 | B26: =VLOOKUP(A26,TabMOYENNES_CBH1_1[],2,FALSE) -> NZENGUI DIMBOUMBA Djerry Odhe | D26: =VLOOKUP(A26,TabMOYENNES_CBH1_1[],130,FALSE) -> 9.347820241 | E26: =VLOOKUP(A26,TabMOYENNES_CBH1_1[],134,FALSE) -> Non Validé
A27: ='Liste CBH1_1'!B31 -> CBH1.S1.19/20.018 | B27: =VLOOKUP(A27,TabMOYENNES_CBH1_1[],2,FALSE) -> ONDIMBA LEKOUTA Anouchka Infrid | D27: =VLOOKUP(A27,TabMOYENNES_CBH1_1[],130,FALSE) -> 9.037998248 | E27: =VLOOKUP(A27,TabMOYENNES_CBH1_1[],134,FALSE) -> Non Validé
A28: ='Liste CBH1_1'!B32 -> CBH1.S1.19/20.019 | B28: =VLOOKUP(A28,TabMOYENNES_CBH1_1[],2,FALSE) -> OSSIMA MINKO Hermant Gilbert | D28: =VLOOKUP(A28,TabMOYENNES_CBH1_1[],130,FALSE) -> 3.78076606 | E28: =VLOOKUP(A28,TabMOYENNES_CBH1_1[],134,FALSE) -> Non Validé
A29: ='Liste CBH1_1'!B33 -> CBH1.S1.19/20.020 | B29: =VLOOKUP(A29,TabMOYENNES_CBH1_1[],2,FALSE) -> SAMA Edgard | D29: =VLOOKUP(A29,TabMOYENNES_CBH1_1[],130,FALSE) -> 3.630420703 | E29: =VLOOKUP(A29,TabMOYENNES_CBH1_1[],134,FALSE) -> Non Validé
A30: ='Liste CBH1_1'!B34 -> CBH1.S1.19/20.021 | B30: =VLOOKUP(A30,TabMOYENNES_CBH1_1[],2,FALSE) -> TONDIBADI MOUNIA Hans Kenneth | D30: =VLOOKUP(A30,TabMOYENNES_CBH1_1[],130,FALSE) -> 8.980357908 | E30: =VLOOKUP(A30,TabMOYENNES_CBH1_1[],134,FALSE) -> Non Validé
A31: ='Liste CBH1_1'!B35 -> CBH1.S1.19/20.022 | B31: =VLOOKUP(A31,TabMOYENNES_CBH1_1[],2,FALSE) -> ZZZ1 | D31: =VLOOKUP(A31,TabMOYENNES_CBH1_1[],130,FALSE) -> 0 | E31: =VLOOKUP(A31,TabMOYENNES_CBH1_1[],134,FALSE) -> Non Validé
A32: ='Liste CBH1_1'!B36 -> CBH1.S1.19/20.023 | B32: =VLOOKUP(A32,TabMOYENNES_CBH1_1[],2,FALSE) -> ZZZ2 | D32: =VLOOKUP(A32,TabMOYENNES_CBH1_1[],130,FALSE) -> 0 | E32: =VLOOKUP(A32,TabMOYENNES_CBH1_1[],134,FALSE) -> Non Validé
A33: ='Liste CBH1_1'!B37 -> CBH1.S1.19/20.024 | B33: =VLOOKUP(A33,TabMOYENNES_CBH1_1[],2,FALSE) -> ZZZ3 | D33: =VLOOKUP(A33,TabMOYENNES_CBH1_1[],130,FALSE) -> 0 | E33: =VLOOKUP(A33,TabMOYENNES_CBH1_1[],134,FALSE) -> Non Validé
A34: ='Liste CBH1_1'!B38 -> CBH1.S1.19/20.025 | B34: =VLOOKUP(A34,TabMOYENNES_CBH1_1[],2,FALSE) -> ZZZ4 | D34: =VLOOKUP(A34,TabMOYENNES_CBH1_1[],130,FALSE) -> 0 | E34: =VLOOKUP(A34,TabMOYENNES_CBH1_1[],134,FALSE) -> Non Validé
A35: ='Liste CBH1_1'!B39 -> CBH1.S1.19/20.026 | B35: =VLOOKUP(A35,TabMOYENNES_CBH1_1[],2,FALSE) -> ZZZ5 | D35: =VLOOKUP(A35,TabMOYENNES_CBH1_1[],130,FALSE) -> 0 | E35: =VLOOKUP(A35,TabMOYENNES_CBH1_1[],134,FALSE) -> Non Validé
A36: ='Liste CBH1_1'!B40 -> CBH1.S1.19/20.027 | B36: =VLOOKUP(A36,TabMOYENNES_CBH1_1[],2,FALSE) -> ZZZ6 | D36: =VLOOKUP(A36,TabMOYENNES_CBH1_1[],130,FALSE) -> 0 | E36: =VLOOKUP(A36,TabMOYENNES_CBH1_1[],134,FALSE) -> Non Validé
A37: ='Liste CBH1_1'!B41 -> CBH1.S1.19/20.028 | B37: =VLOOKUP(A37,TabMOYENNES_CBH1_1[],2,FALSE) -> ZZZ7 | D37: =VLOOKUP(A37,TabMOYENNES_CBH1_1[],130,FALSE) -> 0 | E37: =VLOOKUP(A37,TabMOYENNES_CBH1_1[],134,FALSE) -> Non Validé
A38: ='Liste CBH1_1'!B42 -> CBH1.S1.19/20.029 | B38: =VLOOKUP(A38,TabMOYENNES_CBH1_1[],2,FALSE) -> ZZZ8 | D38: =VLOOKUP(A38,TabMOYENNES_CBH1_1[],130,FALSE) -> 0 | E38: =VLOOKUP(A38,TabMOYENNES_CBH1_1[],134,FALSE) -> Non Validé
A39: ='Liste CBH1_1'!B43 -> CBH1.S1.19/20.030 | B39: =VLOOKUP(A39,TabMOYENNES_CBH1_1[],2,FALSE) -> ZZZ9 | D39: =VLOOKUP(A39,TabMOYENNES_CBH1_1[],130,FALSE) -> 0 | E39: =VLOOKUP(A39,TabMOYENNES_CBH1_1[],134,FALSE) -> Non Validé
A40: ='Liste CBH1_1'!B44 -> CBH1.S1.19/20.031 | B40: =VLOOKUP(A40,TabMOYENNES_CBH1_1[],2,FALSE) -> ZZZ10 | D40: =VLOOKUP(A40,TabMOYENNES_CBH1_1[],130,FALSE) -> 0 | E40: =VLOOKUP(A40,TabMOYENNES_CBH1_1[],134,FALSE) -> Non Validé
A41: ='Liste CBH1_1'!B45 -> CBH1.S1.19/20.032 | B41: =VLOOKUP(A41,TabMOYENNES_CBH1_1[],2,FALSE) -> ZZZ11 | D41: =VLOOKUP(A41,TabMOYENNES_CBH1_1[],130,FALSE) -> 0 | E41: =VLOOKUP(A41,TabMOYENNES_CBH1_1[],134,FALSE) -> Non Validé
A42: ='Liste CBH1_1'!B46 -> CBH1.S1.19/20.033 | B42: =VLOOKUP(A42,TabMOYENNES_CBH1_1[],2,FALSE) -> ZZZ12 | D42: =VLOOKUP(A42,TabMOYENNES_CBH1_1[],130,FALSE) -> 0 | E42: =VLOOKUP(A42,TabMOYENNES_CBH1_1[],134,FALSE) -> Non Validé
A43: ='Liste CBH1_1'!B47 -> CBH1.S1.19/20.034 | B43: =VLOOKUP(A43,TabMOYENNES_CBH1_1[],2,FALSE) -> ZZZ13 | D43: =VLOOKUP(A43,TabMOYENNES_CBH1_1[],130,FALSE) -> 0 | E43: =VLOOKUP(A43,TabMOYENNES_CBH1_1[],134,FALSE) -> Non Validé
A44: ='Liste CBH1_1'!B48 -> CBH1.S1.19/20.035 | B44: =VLOOKUP(A44,TabMOYENNES_CBH1_1[],2,FALSE) -> ZZZ14 | D44: =VLOOKUP(A44,TabMOYENNES_CBH1_1[],130,FALSE) -> 0 | E44: =VLOOKUP(A44,TabMOYENNES_CBH1_1[],134,FALSE) -> Non Validé
A45: ='Liste CBH1_1'!B49 -> CBH1.S1.19/20.036 | B45: =VLOOKUP(A45,TabMOYENNES_CBH1_1[],2,FALSE) -> ZZZ15 | D45: =VLOOKUP(A45,TabMOYENNES_CBH1_1[],130,FALSE) -> 0 | E45: =VLOOKUP(A45,TabMOYENNES_CBH1_1[],134,FALSE) -> Non Validé
A46: ='Liste CBH1_1'!B50 -> CBH1.S1.19/20.037 | B46: =VLOOKUP(A46,TabMOYENNES_CBH1_1[],2,FALSE) -> ZZZ16 | D46: =VLOOKUP(A46,TabMOYENNES_CBH1_1[],130,FALSE) -> 0 | E46: =VLOOKUP(A46,TabMOYENNES_CBH1_1[],134,FALSE) -> Non Validé
A47: ='Liste CBH1_1'!B51 -> CBH1.S1.19/20.038 | B47: =VLOOKUP(A47,TabMOYENNES_CBH1_1[],2,FALSE) -> ZZZ17 | D47: =VLOOKUP(A47,TabMOYENNES_CBH1_1[],130,FALSE) -> 0 | E47: =VLOOKUP(A47,TabMOYENNES_CBH1_1[],134,FALSE) -> Non Validé
A48: ='Liste CBH1_1'!B52 -> CBH1.S1.19/20.039 | B48: =VLOOKUP(A48,TabMOYENNES_CBH1_1[],2,FALSE) -> ZZZ18 | D48: =VLOOKUP(A48,TabMOYENNES_CBH1_1[],130,FALSE) -> 0 | E48: =VLOOKUP(A48,TabMOYENNES_CBH1_1[],134,FALSE) -> Non Validé
A49: ='Liste CBH1_1'!B53 -> CBH1.S1.19/20.040 | B49: =VLOOKUP(A49,TabMOYENNES_CBH1_1[],2,FALSE) -> ZZZ19 | D49: =VLOOKUP(A49,TabMOYENNES_CBH1_1[],130,FALSE) -> 0 | E49: =VLOOKUP(A49,TabMOYENNES_CBH1_1[],134,FALSE) -> Non Validé
A50: ='Liste CBH1_1'!B54 -> CBH1.S1.19/20.041 | B50: =VLOOKUP(A50,TabMOYENNES_CBH1_1[],2,FALSE) -> ZZZ20 | D50: =VLOOKUP(A50,TabMOYENNES_CBH1_1[],130,FALSE) -> 0 | E50: =VLOOKUP(A50,TabMOYENNES_CBH1_1[],134,FALSE) -> Non Validé
A51: ='Liste CBH1_1'!B55 -> CBH1.S1.19/20.042 | B51: =VLOOKUP(A51,TabMOYENNES_CBH1_1[],2,FALSE) -> ZZZ21 | D51: =VLOOKUP(A51,TabMOYENNES_CBH1_1[],130,FALSE) -> 0 | E51: =VLOOKUP(A51,TabMOYENNES_CBH1_1[],134,FALSE) -> Non Validé
A52: ='Liste CBH1_1'!B56 -> CBH1.S1.19/20.043 | B52: =VLOOKUP(A52,TabMOYENNES_CBH1_1[],2,FALSE) -> ZZZ22 | D52: =VLOOKUP(A52,TabMOYENNES_CBH1_1[],130,FALSE) -> 0 | E52: =VLOOKUP(A52,TabMOYENNES_CBH1_1[],134,FALSE) -> Non Validé
A53: ='Liste CBH1_1'!B57 -> CBH1.S1.19/20.044 | B53: =VLOOKUP(A53,TabMOYENNES_CBH1_1[],2,FALSE) -> ZZZ23 | D53: =VLOOKUP(A53,TabMOYENNES_CBH1_1[],130,FALSE) -> 0 | E53: =VLOOKUP(A53,TabMOYENNES_CBH1_1[],134,FALSE) -> Non Validé
A54: ='Liste CBH1_1'!B58 -> CBH1.S1.19/20.045 | B54: =VLOOKUP(A54,TabMOYENNES_CBH1_1[],2,FALSE) -> ZZZ24 | D54: =VLOOKUP(A54,TabMOYENNES_CBH1_1[],130,FALSE) -> 0 | E54: =VLOOKUP(A54,TabMOYENNES_CBH1_1[],134,FALSE) -> Non Validé
A55: ='Liste CBH1_1'!B59 -> CBH1.S1.19/20.046 | B55: =VLOOKUP(A55,TabMOYENNES_CBH1_1[],2,FALSE) -> ZZZ25 | D55: =VLOOKUP(A55,TabMOYENNES_CBH1_1[],130,FALSE) -> 0 | E55: =VLOOKUP(A55,TabMOYENNES_CBH1_1[],134,FALSE) -> Non Validé
A56: ='Liste CBH1_1'!B60 -> CBH1.S1.19/20.047 | B56: =VLOOKUP(A56,TabMOYENNES_CBH1_1[],2,FALSE) -> ZZZ26 | D56: =VLOOKUP(A56,TabMOYENNES_CBH1_1[],130,FALSE) -> 0 | E56: =VLOOKUP(A56,TabMOYENNES_CBH1_1[],134,FALSE) -> Non Validé
A57: ='Liste CBH1_1'!B61 -> CBH1.S1.19/20.048 | B57: =VLOOKUP(A57,TabMOYENNES_CBH1_1[],2,FALSE) -> ZZZ27 | D57: =VLOOKUP(A57,TabMOYENNES_CBH1_1[],130,FALSE) -> 0 | E57: =VLOOKUP(A57,TabMOYENNES_CBH1_1[],134,FALSE) -> Non Validé
A58: ='Liste CBH1_1'!B62 -> CBH1.S1.19/20.049 | B58: =VLOOKUP(A58,TabMOYENNES_CBH1_1[],2,FALSE) -> ZZZ28 | D58: =VLOOKUP(A58,TabMOYENNES_CBH1_1[],130,FALSE) -> 0 | E58: =VLOOKUP(A58,TabMOYENNES_CBH1_1[],134,FALSE) -> Non Validé
A59: ='Liste CBH1_1'!B63 -> CBH1.S1.19/20.050 | B59: =VLOOKUP(A59,TabMOYENNES_CBH1_1[],2,FALSE) -> ZZZ29 | D59: =VLOOKUP(A59,TabMOYENNES_CBH1_1[],130,FALSE) -> 0 | E59: =VLOOKUP(A59,TabMOYENNES_CBH1_1[],134,FALSE) -> Non Validé
B65: Abandon : | D65: =COUNTIF(E10:E59,"=Abandon") -> 0
B66: Non validé : | D66: =COUNTIF(D10:D59,"<10") -> 49
B67: Validé : | D67: =COUNTIF(D10:D59,">=10") -> 1
B68: Total : | D68: =COUNT(D10:D59) -> 50

Sheet Retraits CBH1_1
C1: Année académique :
D2: 2019-2020
B6: RETRAIT RELEVES NOTES SEMESTRE | E6: S1
A8: Classe : | B8: ='Liste CBH1_1'!C10 -> 1ère Année Constructif Bois et Habitat
A10: N° | B10: NOMS ET PRENOMS | D10: Date | E10: Signature
A11: ='Liste CBH1_1'!B14 -> CBH1.S1.19/20.001 | B11: =VLOOKUP(A11,TabMOYENNES_CBH1_1[],2,FALSE) -> BIKORO AVIE Kyllix Hyanez
A12: ='Liste CBH1_1'!B15 -> CBH1.S1.19/20.002 | B12: =VLOOKUP(A12,TabMOYENNES_CBH1_1[],2,FALSE) -> BOUCKA Horly Maclean's
A13: ='Liste CBH1_1'!B16 -> CBH1.S1.19/20.003 | B13: =VLOOKUP(A13,TabMOYENNES_CBH1_1[],2,FALSE) -> CHANGAUT Dann Phanel Ezechiel
A14: ='Liste CBH1_1'!B17 -> CBH1.S1.19/20.004 | B14: =VLOOKUP(A14,TabMOYENNES_CBH1_1[],2,FALSE) -> EBANG ELLA Guy Arsène
A15: ='Liste CBH1_1'!B18 -> CBH1.S1.19/20.005 | B15: =VLOOKUP(A15,TabMOYENNES_CBH1_1[],2,FALSE) -> ENGONGHA MBA Jean Damas
A16: ='Liste CBH1_1'!B19 -> CBH1.S1.19/20.006 | B16: =VLOOKUP(A16,TabMOYENNES_CBH1_1[],2,FALSE) -> ESSO BIVEGHE Hermenegilde
A17: ='Liste CBH1_1'!B20 -> CBH1.S1.19/20.007 | B17: =VLOOKUP(A17,TabMOYENNES_CBH1_1[],2,FALSE) -> EYONE MBA Luduine Claude
A18: ='Liste CBH1_1'!B21 -> CBH1.S1.19/20.008 | B18: =VLOOKUP(A18,TabMOYENNES_CBH1_1[],2,FALSE) -> IBOUANGA IBOUANGA Christ Jermy
A19: ='Liste CBH1_1'!B22 -> CBH1.S1.19/20.009 | B19: =VLOOKUP(A19,TabMOYENNES_CBH1_1[],2,FALSE) -> KOUMBA KOUMBA Guy Elvice
A20: ='Liste CBH1_1'!B23 -> CBH1.S1.19/20.010 | B20: =VLOOKUP(A20,TabMOYENNES_CBH1_1[],2,FALSE) -> MAMBOUNDOU MOUNGUENGUI Steven
A21: ='Liste CBH1_1'!B24 -> CBH1.S1.19/20.011 | B21: =VLOOKUP(A21,TabMOYENNES_CBH1_1[],2,FALSE) -> MAYOMBO-KONGO Fredy-Cherie
A22: ='Liste CBH1_1'!B25 -> CBH1.S1.19/20.012 | B22: =VLOOKUP(A22,TabMOYENNES_CBH1_1[],2,FALSE) -> MBOUNDOU Juste Méthode
A23: ='Liste CBH1_1'!B26 -> CBH1.S1.19/20.013 | B23: =VLOOKUP(A23,TabMOYENNES_CBH1_1[],2,FALSE) -> MBOUTSOU BOUGUEROU
A24: ='Liste CBH1_1'!B27 -> CBH1.S1.19/20.014 | B24: =VLOOKUP(A24,TabMOYENNES_CBH1_1[],2,FALSE) -> MINTSA ONDO Loic
A25: ='Liste CBH1_1'!B28 -> CBH1.S1.19/20.015 | B25: =VLOOKUP(A25,TabMOYENNES_CBH1_1[],2,FALSE) -> NDJOKOUNDA Rhaude Darrel
A26: ='Liste CBH1_1'!B29 -> CBH1.S1.19/20.016 | B26: =VLOOKUP(A26,TabMOYENNES_CBH1_1[],2,FALSE) -> NDJOUMBA NGUELE Warrel
A27: ='Liste CBH1_1'!B30 -> CBH1.S1.19/20.017 | B27: =VLOOKUP(A27,TabMOYENNES_CBH1_1[],2,FALSE) -> NZENGUI DIMBOUMBA Djerry Odhe
A28: ='Liste CBH1_1'!B31 -> CBH1.S1.19/20.018 | B28: =VLOOKUP(A28,TabMOYENNES_CBH1_1[],2,FALSE) -> ONDIMBA LEKOUTA Anouchka Infrid
A29: ='Liste CBH1_1'!B32 -> CBH1.S1.19/20.019 | B29: =VLOOKUP(A29,TabMOYENNES_CBH1_1[],2,FALSE) -> OSSIMA MINKO Hermant Gilbert
A30: ='Liste CBH1_1'!B33 -> CBH1.S1.19/20.020 | B30: =VLOOKUP(A30,TabMOYENNES_CBH1_1[],2,FALSE) -> SAMA Edgard
A31: ='Liste CBH1_1'!B34 -> CBH1.S1.19/20.021 | B31: =VLOOKUP(A31,TabMOYENNES_CBH1_1[],2,FALSE) -> TONDIBADI MOUNIA Hans Kenneth
A32: ='Liste CBH1_1'!B35 -> CBH1.S1.19/20.022 | B32: =VLOOKUP(A32,TabMOYENNES_CBH1_1[],2,FALSE) -> ZZZ1
A33: ='Liste CBH1_1'!B36 -> CBH1.S1.19/20.023 | B33: =VLOOKUP(A33,TabMOYENNES_CBH1_1[],2,FALSE) -> ZZZ2
A34: ='Liste CBH1_1'!B37 -> CBH1.S1.19/20.024 | B34: =VLOOKUP(A34,TabMOYENNES_CBH1_1[],2,FALSE) -> ZZZ3
A35: ='Liste CBH1_1'!B38 -> CBH1.S1.19/20.025 | B35: =VLOOKUP(A35,TabMOYENNES_CBH1_1[],2,FALSE) -> ZZZ4
A36: ='Liste CBH1_1'!B39 -> CBH1.S1.19/20.026 | B36: =VLOOKUP(A36,TabMOYENNES_CBH1_1[],2,FALSE) -> ZZZ5
A37: ='Liste CBH1_1'!B40 -> CBH1.S1.19/20.027 | B37: =VLOOKUP(A37,TabMOYENNES_CBH1_1[],2,FALSE) -> ZZZ6
A38: ='Liste CBH1_1'!B41 -> CBH1.S1.19/20.028 | B38: =VLOOKUP(A38,TabMOYENNES_CBH1_1[],2,FALSE) -> ZZZ7
A39: ='Liste CBH1_1'!B42 -> CBH1.S1.19/20.029 | B39: =VLOOKUP(A39,TabMOYENNES_CBH1_1[],2,FALSE) -> ZZZ8
A40: ='Liste CBH1_1'!B43 -> CBH1.S1.19/20.030 | B40: =VLOOKUP(A40,TabMOYENNES_CBH1_1[],2,FALSE) -> ZZZ9
A41: ='Liste CBH1_1'!B44 -> CBH1.S1.19/20.031 | B41: =VLOOKUP(A41,TabMOYENNES_CBH1_1[],2,FALSE) -> ZZZ10
A42: ='Liste CBH1_1'!B45 -> CBH1.S1.19/20.032 | B42: =VLOOKUP(A42,TabMOYENNES_CBH1_1[],2,FALSE) -> ZZZ11
A43: ='Liste CBH1_1'!B46 -> CBH1.S1.19/20.033 | B43: =VLOOKUP(A43,TabMOYENNES_CBH1_1[],2,FALSE) -> ZZZ12
A44: ='Liste CBH1_1'!B47 -> CBH1.S1.19/20.034 | B44: =VLOOKUP(A44,TabMOYENNES_CBH1_1[],2,FALSE) -> ZZZ13
A45: ='Liste CBH1_1'!B48 -> CBH1.S1.19/20.035 | B45: =VLOOKUP(A45,TabMOYENNES_CBH1_1[],2,FALSE) -> ZZZ14
A46: ='Liste CBH1_1'!B49 -> CBH1.S1.19/20.036 | B46: =VLOOKUP(A46,TabMOYENNES_CBH1_1[],2,FALSE) -> ZZZ15
A47: ='Liste CBH1_1'!B50 -> CBH1.S1.19/20.037 | B47: =VLOOKUP(A47,TabMOYENNES_CBH1_1[],2,FALSE) -> ZZZ16
A48: ='Liste CBH1_1'!B51 -> CBH1.S1.19/20.038 | B48: =VLOOKUP(A48,TabMOYENNES_CBH1_1[],2,FALSE) -> ZZZ17
A49: ='Liste CBH1_1'!B52 -> CBH1.S1.19/20.039 | B49: =VLOOKUP(A49,TabMOYENNES_CBH1_1[],2,FALSE) -> ZZZ18
A50: ='Liste CBH1_1'!B53 -> CBH1.S1.19/20.040 | B50: =VLOOKUP(A50,TabMOYENNES_CBH1_1[],2,FALSE) -> ZZZ19
A51: ='Liste CBH1_1'!B54 -> CBH1.S1.19/20.041 | B51: =VLOOKUP(A51,TabMOYENNES_CBH1_1[],2,FALSE) -> ZZZ20
A52: ='Liste CBH1_1'!B55 -> CBH1.S1.19/20.042 | B52: =VLOOKUP(A52,TabMOYENNES_CBH1_1[],2,FALSE) -> ZZZ21
A53: ='Liste CBH1_1'!B56 -> CBH1.S1.19/20.043 | B53: =VLOOKUP(A53,TabMOYENNES_CBH1_1[],2,FALSE) -> ZZZ22
A54: ='Liste CBH1_1'!B57 -> CBH1.S1.19/20.044 | B54: =VLOOKUP(A54,TabMOYENNES_CBH1_1[],2,FALSE) -> ZZZ23
A55: ='Liste CBH1_1'!B58 -> CBH1.S1.19/20.045 | B55: =VLOOKUP(A55,TabMOYENNES_CBH1_1[],2,FALSE) -> ZZZ24
A56: ='Liste CBH1_1'!B59 -> CBH1.S1.19/20.046 | B56: =VLOOKUP(A56,TabMOYENNES_CBH1_1[],2,FALSE) -> ZZZ25
A57: ='Liste CBH1_1'!B60 -> CBH1.S1.19/20.047 | B57: =VLOOKUP(A57,TabMOYENNES_CBH1_1[],2,FALSE) -> ZZZ26
A58: ='Liste CBH1_1'!B61 -> CBH1.S1.19/20.048 | B58: =VLOOKUP(A58,TabMOYENNES_CBH1_1[],2,FALSE) -> ZZZ27
A59: ='Liste CBH1_1'!B62 -> CBH1.S1.19/20.049 | B59: =VLOOKUP(A59,TabMOYENNES_CBH1_1[],2,FALSE) -> ZZZ28
A60: ='Liste CBH1_1'!B63 -> CBH1.S1.19/20.050 | B60: =VLOOKUP(A60,TabMOYENNES_CBH1_1[],2,FALSE) -> ZZZ29

Sheet Moyennes CBH1_1
B2: FILIÈRE : | C2: STI
B4: ANNÉE : | C4: 2019-2020
B6: DÉPARTEMENT : | C6: Génie_Bois
B8: SECTION : | C8: CBH
B10: CLASSE : | C10: CBH1
B12: SEMESTRE : | C12: S1
F15: ='U.E-STI'!AA16 -> LANGUE | V15: =SUMIF(F17:R17,">=0") -> 5 | X15: ='U.E-STI'!AA17 -> SCIENCES | AN15: =SUMIF(X17:AL17,">=0") -> 4 | AP15: ='U.E-STI'!AA18 -> TECHNOLOGIQUE | BO15: =SUMIF(AP17:BM17,">=0") -> 10 | BQ15: ='U.E-STI'!AA19 -> PROFESSIONNEL | CP15: =SUMIF(BQ17:CK17,">=0") -> 9 | CR15: ='U.E-STI'!AA20 -> ENVIRONNEMENT ECONOMIQUE ET CONNAISSANCE DE L'ENTREPRISE | DQ15: =SUMIF(CR17:DO17,">=0") -> 4 | DU15: Moyennes Semestrielles | EB15: Semestre 1
F16: =IFERROR(INDEX(Tab_Global_Filières_STI[CODE S1/S3],SMALL(IF('Moyennes CBH1_1'!$C$10=Tab_Global_Filières_STI[Classe],ROW(Tab_Global_Filières_STI[Classe])-MIN(ROW('U.E-STI'!$D$15))+1,""),ROWS(C$10:C10))),"A0") -> CBH1.1_LG1 | I16: =IFERROR(INDEX(Tab_Global_Filières_STI[CODE S1/S3],SMALL(IF('Moyennes CBH1_1'!$C$10=Tab_Global_Filières_STI[Classe],ROW(Tab_Global_Filières_STI[Classe])-MIN(ROW('U.E-STI'!$D$15))+1,""),ROWS(F$3:F4))),"A0") -> CBH1.1_LG2 | L16: =IFERROR(INDEX(Tab_Global_Filières_STI[CODE S1/S3],SMALL(IF('Moyennes CBH1_1'!$C$10=Tab_Global_Filières_STI[Classe],ROW(Tab_Global_Filières_STI[Classe])-MIN(ROW('U.E-STI'!$D$15))+1,""),ROWS(F$3:F5))),"A0") -> CBH1.1_LG3 | O16: =IFERROR(INDEX(Tab_Global_Filières_STI[CODE S1/S3],SMALL(IF('Moyennes CBH1_1'!$C$10=Tab_Global_Filières_STI[Classe],ROW(Tab_Global_Filières_STI[Classe])-MIN(ROW('U.E-STI'!$D$15))+1,""),ROWS(F$3:F6))),"A0") -> CBH1.1_LG4 | R16: =IFERROR(INDEX(Tab_Global_Filières_STI[CODE S1/S3],SMALL(IF('Moyennes CBH1_1'!$C$10=Tab_Global_Filières_STI[Classe],ROW(Tab_Global_Filières_STI[Classe])-MIN(ROW('U.E-STI'!$D$15))+1,""),ROWS(F$3:F7))),"A0") -> CBH1.1_LG5 | X16: =IFERROR(INDEX(Tab_Global_Filières_STI[CODE S1/S3],SMALL(IF('Moyennes CBH1_1'!$C$10=Tab_Global_Filières_STI[Classe],ROW(Tab_Global_Filières_STI[Classe])-MIN(ROW('U.E-STI'!$D$15))+1,""),ROWS(F$3:F8))),"B0") -> CBH1.1_SC1 | AA16: =IFERROR(INDEX(Tab_Global_Filières_STI[CODE S1/S3],SMALL(IF('Moyennes CBH1_1'!$C$10=Tab_Global_Filières_STI[Classe],ROW(Tab_Global_Filières_STI[Classe])-MIN(ROW('U.E-STI'!$D$15))+1,""),ROWS(F$3:F9))),"B0") -> CBH1.1_SC2 | AD16: =IFERROR(INDEX(Tab_Global_Filières_STI[CODE S1/S3],SMALL(IF('Moyennes CBH1_1'!$C$10=Tab_Global_Filières_STI[Classe],ROW(Tab_Global_Filières_STI[Classe])-MIN(ROW('U.E-STI'!$D$15))+1,""),ROWS(F$3:F10))),"B0") -> CBH1.1_SC3 | AG16: =IFERROR(INDEX(Tab_Global_Filières_STI[CODE S1/S3],SMALL(IF('Moyennes CBH1_1'!$C$10=Tab_Global_Filières_STI[Classe],ROW(Tab_Global_Filières_STI[Classe])-MIN(ROW('U.E-STI'!$D$15))+1,""),ROWS(F$3:F11))),"B0") -> CBH1.1_SC4 | AJ16: =IFERROR(INDEX(Tab_Global_Filières_STI[CODE S1/S3],SMALL(IF('Moyennes CBH1_1'!$C$10=Tab_Global_Filières_STI[Classe],ROW(Tab_Global_Filières_STI[Classe])-MIN(ROW('U.E-STI'!$D$15))+1,""),ROWS(F$3:F12))),"B0") -> CBH1.1_SC5 | AP16: =IFERROR(INDEX(Tab_Global_Filières_STI[CODE S1/S3],SMALL(IF('Moyennes CBH1_1'!$C$10=Tab_Global_Filières_STI[Classe],ROW(Tab_Global_Filières_STI[Classe])-MIN(ROW('U.E-STI'!$D$15))+1,""),ROWS(F$3:F13))),"C0") -> CBH1.1_TECHNO1 | AS16: =IFERROR(INDEX(Tab_Global_Filières_STI[CODE S1/S3],SMALL(IF('Moyennes CBH1_1'!$C$10=Tab_Global_Filières_STI[Classe],ROW(Tab_Global_Filières_STI[Classe])-MIN(ROW('U.E-STI'!$D$15))+1,""),ROWS(F$3:F14))),"C0") -> CBH1.1_TECHNO2 | AV16: =IFERROR(INDEX(Tab_Global_Filières_STI[CODE S1/S3],SMALL(IF('Moyennes CBH1_1'!$C$10=Tab_Global_Filières_STI[Classe],ROW(Tab_Global_Filières_STI[Classe])-MIN(ROW('U.E-STI'!$D$15))+1,""),ROWS(F$3:F15))),"C0") -> CBH1.1_TECHNO3 | AY16: =IFERROR(INDEX(Tab_Global_Filières_STI[CODE S1/S3],SMALL(IF('Moyennes CBH1_1'!$C$10=Tab_Global_Filières_STI[Classe],ROW(Tab_Global_Filières_STI[Classe])-MIN(ROW('U.E-STI'!$D$15))+1,""),ROWS(F$3:F16))),"C0") -> CBH1.1_TECHNO4 | BB16: =IFERROR(INDEX(Tab_Global_Filières_STI[CODE S1/S3],SMALL(IF('Moyennes CBH1_1'!$C$10=Tab_Global_Filières_STI[Classe],ROW(Tab_Global_Filières_STI[Classe])-MIN(ROW('U.E-STI'!$D$15))+1,""),ROWS(F$3:F17))),"C0") -> CBH1.1_TECHNO5 | BE16: =IFERROR(INDEX(Tab_Global_Filières_STI[CODE S1/S3],SMALL(IF('Moyennes CBH1_1'!$C$10=Tab_Global_Filières_STI[Classe],ROW(Tab_Global_Filières_STI[Classe])-MIN(ROW('U.E-STI'!$D$15))+1,""),ROWS(F$3:F18))),"C0") -> CBH1.1_TECHNO6 | BH16: =IFERROR(INDEX(Tab_Global_Filières_STI[CODE S1/S3],SMALL(IF('Moyennes CBH1_1'!$C$10=Tab_Global_Filières_STI[Classe],ROW(Tab_Global_Filières_STI[Classe])-MIN(ROW('U.E-STI'!$D$15))+1,""),ROWS(F$3:F19))),"C0") -> CBH1.1_TECHNO7 | BK16: =IFERROR(INDEX(Tab_Global_Filières_STI[CODE S1/S3],SMALL(IF('Moyennes CBH1_1'!$C$10=Tab_Global_Filières_STI[Classe],ROW(Tab_Global_Filières_STI[Classe])-MIN(ROW('U.E-STI'!$D$15))+1,""),ROWS(F$3:F20))),"C0") -> CBH1.1_TECHNO8 | BQ16: =IFERROR(INDEX(Tab_Global_Filières_STI[CODE S1/S3],SMALL(IF('Moyennes CBH1_1'!$C$10=Tab_Global_Filières_STI[Classe],ROW(Tab_Global_Filières_STI[Classe])-MIN(ROW('U.E-STI'!$D$15))+1,""),ROWS(F$3:F21))),"D0") -> CBH1.1_PROF1 | BT16: =IFERROR(INDEX(Tab_Global_Filières_STI[CODE S1/S3],SMALL(IF('Moyennes CBH1_1'!$C$10=Tab_Global_Filières_STI[Classe],ROW(Tab_Global_Filières_STI[Classe])-MIN(ROW('U.E-STI'!$D$15))+1,""),ROWS(F$3:F22))),"D0") -> CBH1.1_PROF2 | BW16: =IFERROR(INDEX(Tab_Global_Filières_STI[CODE S1/S3],SMALL(IF('Moyennes CBH1_1'!$C$10=Tab_Global_Filières_STI[Classe],ROW(Tab_Global_Filières_STI[Classe])-MIN(ROW('U.E-STI'!$D$15))+1,""),ROWS(F$3:F23))),"D0") -> CBH1.1_PROF3 | BZ16: =IFERROR(INDEX(Tab_Global_Filières_STI[CODE S1/S3],SMALL(IF('Moyennes CBH1_1'!$C$10=Tab_Global_Filières_STI[Classe],ROW(Tab_Global_Filières_STI[Classe])-MIN(ROW('U.E-STI'!$D$15))+1,""),ROWS(F$3:F24))),"D0") -> CBH1.1_PROF4 | CC16: =IFERROR(INDEX(Tab_Global_Filières_STI[CODE S1/S3],SMALL(IF('Moyennes CBH1_1'!$C$10=Tab_Global_Filières_STI[Classe],ROW(Tab_Global_Filières_STI[Classe])-MIN(ROW('U.E-STI'!$D$15))+1,""),ROWS(F$3:F25))),"D0") -> CBH1.1_PROF5 | CF16: =IFERROR(INDEX(Tab_Global_Filières_STI[CODE S1/S3],SMALL(IF('Moyennes CBH1_1'!$C$10=Tab_Global_Filières_STI[Classe],ROW(Tab_Global_Filières_STI[Classe])-MIN(ROW('U.E-STI'!$D$15))+1,""),ROWS(F$3:F26))),"D0") -> CBH1.1_PROF6 | CI16: =IFERROR(INDEX(Tab_Global_Filières_STI[CODE S1/S3],SMALL(IF('Moyennes CBH1_1'!$C$10=Tab_Global_Filières_STI[Classe],ROW(Tab_Global_Filières_STI[Classe])-MIN(ROW('U.E-STI'!$D$15))+1,""),ROWS(F$3:F27))),"D0") -> CBH1.1_PROF7 | CL16: =IFERROR(INDEX(Tab_Global_Filières_STI[CODE S1/S3],SMALL(IF('Moyennes CBH1_1'!$C$10=Tab_Global_Filières_STI[Classe],ROW(Tab_Global_Filières_STI[Classe])-MIN(ROW('U.E-STI'!$D$15))+1,""),ROWS(F$3:F28))),"D0") -> CBH1.1_PROF8 | CR16: =IFERROR(INDEX(Tab_Global_Filières_STI[CODE S1/S3],SMALL(IF('Moyennes CBH1_1'!$C$10=Tab_Global_Filières_STI[Classe],ROW(Tab_Global_Filières_STI[Classe])-MIN(ROW('U.E-STI'!$D$15))+1,""),ROWS(F$3:F29))),"E0") -> CBH1.1_ECO1 | CU16: =IFERROR(INDEX(Tab_Global_Filières_STI[CODE S1/S3],SMALL(IF('Moyennes CBH1_1'!$C$10=Tab_Global_Filières_STI[Classe],ROW(Tab_Global_Filières_STI[Classe])-MIN(ROW('U.E-STI'!$D$15))+1,""),ROWS(F$3:F30))),"E0") -> CBH1.1_ECO2 | CX16: =IFERROR(INDEX(Tab_Global_Filières_STI[CODE S1/S3],SMALL(IF('Moyennes CBH1_1'!$C$10=Tab_Global_Filières_STI[Classe],ROW(Tab_Global_Filières_STI[Classe])-MIN(ROW('U.E-STI'!$D$15))+1,""),ROWS(F$3:F31))),"E0") -> CBH1.1_ECO3 | DA16: =IFERROR(INDEX(Tab_Global_Filières_STI[CODE S1/S3],SMALL(IF('Moyennes CBH1_1'!$C$10=Tab_Global_Filières_STI[Classe],ROW(Tab_Global_Filières_STI[Classe])-MIN(ROW('U.E-STI'!$D$15))+1,""),ROWS(F$3:F32))),"E0") -> CBH1.1_ECO4 | DD16: =IFERROR(INDEX(Tab_Global_Filières_STI[CODE S1/S3],SMALL(IF('Moyennes CBH1_1'!$C$10=Tab_Global_Filières_STI[Classe],ROW(Tab_Global_Filières_STI[Classe])-MIN(ROW('U.E-STI'!$D$15))+1,""),ROWS(F$3:F33))),"E0") -> CBH1.1_ECO5 | DG16: =IFERROR(INDEX(Tab_Global_Filières_STI[CODE S1/S3],SMALL(IF('Moyennes CBH1_1'!$C$10=Tab_Global_Filières_STI[Classe],ROW(Tab_Global_Filières_STI[Classe])-MIN(ROW('U.E-STI'!$D$15))+1,""),ROWS(F$3:F34))),"E0") -> CBH1.1_ECO6 | DJ16: =IFERROR(INDEX(Tab_Global_Filières_STI[CODE S1/S3],SMALL(IF('Moyennes CBH1_1'!$C$10=Tab_Global_Filières_STI[Classe],ROW(Tab_Global_Filières_STI[Classe])-MIN(ROW('U.E-STI'!$D$15))+1,""),ROWS(F$3:F35))),"E0") -> CBH1.1_ECO7 | DM16: =IFERROR(INDEX(Tab_Global_Filières_STI[CODE S1/S3],SMALL(IF('Moyennes CBH1_1'!$C$10=Tab_Global_Filières_STI[Classe],ROW(Tab_Global_Filières_STI[Classe])-MIN(ROW('U.E-STI'!$D$15))+1,""),ROWS(F$3:F36))),"E0") -> CBH1.1_ECO8
F17: =VLOOKUP(F16,REF_ModulesSTI_S1_S3,3,FALSE) -> 2 | I17: =VLOOKUP(I16,REF_ModulesSTI_S1_S3,3,FALSE) -> 3 | L17: =VLOOKUP(L16,REF_ModulesSTI_S1_S3,3,FALSE) -> 0 | O17: =VLOOKUP(O16,REF_ModulesSTI_S1_S3,3,FALSE) -> 0 | R17: =VLOOKUP(R16,REF_ModulesSTI_S1_S3,3,FALSE) -> 0 | X17: =VLOOKUP(X16,REF_ModulesSTI_S1_S3,3,FALSE) -> 2 | AA17: =VLOOKUP(AA16,REF_ModulesSTI_S1_S3,3,FALSE) -> 1 | AD17: =VLOOKUP(AD16,REF_ModulesSTI_S1_S3,3,FALSE) -> 1 | AG17: =VLOOKUP(AG16,REF_ModulesSTI_S1_S3,3,FALSE) -> 0 | AJ17: =VLOOKUP(AJ16,REF_ModulesSTI_S1_S3,3,FALSE) -> 0 | AP17: =VLOOKUP(AP16,REF_ModulesSTI_S1_S3,3,FALSE) -> 3 | AS17: =VLOOKUP(AS16,REF_ModulesSTI_S1_S3,3,FALSE) -> 3 | AV17: =VLOOKUP(AV16,REF_ModulesSTI_S1_S3,3,FALSE) -> 3 | AY17: =VLOOKUP(AY16,REF_ModulesSTI_S1_S3,3,FALSE) -> 1 | BB17: =VLOOKUP(BB16,REF_ModulesSTI_S1_S3,3,FALSE) -> 0 | BE17: =VLOOKUP(BE16,REF_ModulesSTI_S1_S3,3,FALSE) -> 0 | BH17: =VLOOKUP(BH16,REF_ModulesSTI_S1_S3,3,FALSE) -> 0 | BK17: =VLOOKUP(BK16,REF_ModulesSTI_S1_S3,3,FALSE) -> 0 | BQ17: =VLOOKUP(BQ16,REF_ModulesSTI_S1_S3,3,FALSE) -> 3 | BT17: =VLOOKUP(BT16,REF_ModulesSTI_S1_S3,3,FALSE) -> 3 | BW17: =VLOOKUP(BW16,REF_ModulesSTI_S1_S3,3,FALSE) -> 2 | BZ17: =VLOOKUP(BZ16,REF_ModulesSTI_S1_S3,3,FALSE) -> 1 | CC17: =VLOOKUP(CC16,REF_ModulesSTI_S1_S3,3,FALSE) -> 0 | CF17: =VLOOKUP(CF16,REF_ModulesSTI_S1_S3,3,FALSE) -> 0 | CI17: =VLOOKUP(CI16,REF_ModulesSTI_S1_S3,3,FALSE) -> 0 | CL17: =VLOOKUP(CL16,REF_ModulesSTI_S1_S3,3,FALSE) -> 0 | CR17: =VLOOKUP(CR16,REF_ModulesSTI_S1_S3,3,FALSE) -> 1 | CU17: =VLOOKUP(CU16,REF_ModulesSTI_S1_S3,3,FALSE) -> 1 | CX17: =VLOOKUP(CX16,REF_ModulesSTI_S1_S3,3,FALSE) -> 1 | DA17: =VLOOKUP(DA16,REF_ModulesSTI_S1_S3,3,FALSE) -> 1 | DD17: =VLOOKUP(DD16,REF_ModulesSTI_S1_S3,3,FALSE) -> 0 | DG17: =VLOOKUP(DG16,REF_ModulesSTI_S1_S3,3,FALSE) -> 0 | DJ17: =VLOOKUP(DJ16,REF_ModulesSTI_S1_S3,3,FALSE) -> 0 | DM17: =VLOOKUP(DM16,REF_ModulesSTI_S1_S3,3,FALSE) -> 0 | DU17: =V15 -> 5 | DV17: =AN15 -> 4 | DW17: =BO15 -> 10 | DX17: =CP15 -> 9 | DY17: =DQ15 -> 4 | EA17: =SUM(DU17:DY17) -> 32
F18: =VLOOKUP(F16,REF_ModulesSTI_S1_S3,2,FALSE) -> Anglais | I18: =VLOOKUP(I16,REF_ModulesSTI_S1_S3,2,FALSE) -> Culture Générale et Expression | L18: =VLOOKUP(L16,REF_ModulesSTI_S1_S3,2,FALSE) -> A1 | O18: =VLOOKUP(O16,REF_ModulesSTI_S1_S3,2,FALSE) -> A2 | R18: =VLOOKUP(R16,REF_ModulesSTI_S1_S3,2,FALSE) -> A3 | U18: Moy. U.E. 1 | V18: Rang U.E. 1 | X18: =VLOOKUP(X16,REF_ModulesSTI_S1_S3,2,FALSE) -> Mathématiques | AA18: =VLOOKUP(AA16,REF_ModulesSTI_S1_S3,2,FALSE) -> Sciences physiques | AD18: =VLOOKUP(AD16,REF_ModulesSTI_S1_S3,2,FALSE) -> Physique du bâtiment | AG18: =VLOOKUP(AG16,REF_ModulesSTI_S1_S3,2,FALSE) -> B1 | AJ18: =VLOOKUP(AJ16,REF_ModulesSTI_S1_S3,2,FALSE) -> B2 | AM18: Moy. U.E. 2 | AN18: Rang U.E. 2 | AP18: =VLOOKUP(AP16,REF_ModulesSTI_S1_S3,2,FALSE) -> Dessin et DAO/CAO | AS18: =VLOOKUP(AS16,REF_ModulesSTI_S1_S3,2,FALSE) -> Calculs de structures | AV18: =VLOOKUP(AV16,REF_ModulesSTI_S1_S3,2,FALSE) -> Etudes des systèmes constructifs bois | AY18: =VLOOKUP(AY16,REF_ModulesSTI_S1_S3,2,FALSE) -> Sciences des matériaux | BB18: =VLOOKUP(BB16,REF_ModulesSTI_S1_S3,2,FALSE) -> C1 | BE18: =VLOOKUP(BE16,REF_ModulesSTI_S1_S3,2,FALSE) -> C2 | BH18: =VLOOKUP(BH16,REF_ModulesSTI_S1_S3,2,FALSE) -> C3 | BK18: =VLOOKUP(BK16,REF_ModulesSTI_S1_S3,2,FALSE) -> C4 | BN18: Moy. U.E. 3 | BO18: Rang U.E. 3 | BQ18: =VLOOKUP(BQ16,REF_ModulesSTI_S1_S3,2,FALSE) -> Processus de fabrication et logistiques de Production /organisation et gestion travaux | BT18: =VLOOKUP(BT16,REF_ModulesSTI_S1_S3,2,FALSE) -> Travaux Pratiques de réalisation | BW18: =VLOOKUP(BW16,REF_ModulesSTI_S1_S3,2,FALSE) -> Sécurité au travail et Moyens de production généraux | BZ18: =VLOOKUP(BZ16,REF_ModulesSTI_S1_S3,2,FALSE) -> Automatisation des techniques de production | CC18: =VLOOKUP(CC16,REF_ModulesSTI_S1_S3,2,FALSE) -> D1 | CF18: =VLOOKUP(CF16,REF_ModulesSTI_S1_S3,2,FALSE) -> D2 | CI18: =VLOOKUP(CI16,REF_ModulesSTI_S1_S3,2,FALSE) -> D3 | CL18: =VLOOKUP(CL16,REF_ModulesSTI_S1_S3,2,FALSE) -> D4 | CO18: Moy. U.E. 4 | CP18: Rang U.E. 4 | CR18: =VLOOKUP(CR16,REF_ModulesSTI_S1_S3,2,FALSE) -> Economie /Droit | CU18: =VLOOKUP(CU16,REF_ModulesSTI_S1_S3,2,FALSE) -> Gestion financière et comptabilité | CX18: =VLOOKUP(CX16,REF_ModulesSTI_S1_S3,2,FALSE) -> Gestion et développement personnel | DA18: =VLOOKUP(DA16,REF_ModulesSTI_S1_S3,2,FALSE) -> Gestion de projet Organisation des entreprises / Innovation et initiation en RD | DD18: =VLOOKUP(DD16,REF_ModulesSTI_S1_S3,2,FALSE) -> E1 | DG18: =VLOOKUP(DG16,REF_ModulesSTI_S1_S3,2,FALSE) -> E2 | DJ18: =VLOOKUP(DJ16,REF_ModulesSTI_S1_S3,2,FALSE) -> E3 | DM18: =VLOOKUP(DM16,REF_ModulesSTI_S1_S3,2,FALSE) -> E4 | DP18: Moy. U.E. 5 | DQ18: Rang U.E. 5 | DU18: LANGUE | DV18: SCIENCES | DW18: TECHNOLOGIQUE | DX18: PROFESSIONNEL | DY18: ENVIRONNEMENT ECONOMIQUE ET CONNAISSANCE DE L'ENTREPRISE | DZ18: TOTAL POINTS | EA18: Moy. S 1 | EB18: RANG CLASSE / S1
B19: Matricule | C19: Noms et Prénoms | D19: Sexe | E19: . | F19: LG1 | G19: Rang Ang. | H19: Ref. 1 | I19: LG2 | J19: Rang CGE | K19: Ref. 2 | L19: LG3 | M19: Rang 3 | N19: Ref. 3 | O19: LG4 | P19: Rang 4 | Q19: Ref. 4 | R19: LG5 | S19: Rang 5 | T19: Ref. 5 | U19: M.1 | V19: RM1 | W19: Colonne4 | X19: SC1 | Y19: Rang SCI 1 | Z19: Ref 2.1 | AA19: SC2 | AB19: Rang SC I2 | AC19: Ref 2.2 | AD19: SC3 | AE19: Rang SCI 3 | AF19: Ref 2.3 | AG19: SC4 | AH19: Rang SCI 4 | AI19: Ref 2.4 | AJ19: SC5 | AK19: Rang SCI 5 | AL19: Ref 2.5 | AM19: M2 | AN19: RM2 | AO19: Colonne44 | AP19: TECHNO1 | AQ19: Colonne31 | AR19: Colonne32 | AS19: TECHNO2 | AT19: Colonne33 | AU19: Colonne34 | AV19: TECHNO3 | AW19: Colonne35 | AX19: Colonne36 | AY19: TECHNO4 | AZ19: Colonne37 | BA19: Colonne38 | BB19: TECHNO5 | BC19: Colonne372 | BD19: Colonne383 | BE19: TECHNO6 | BF19: Colonne3832 | BG19: Colonne384 | BH19: TECHNO7 | BI19: Colonne3842 | BJ19: Colonne385 | BK19: TECHNO8 | BL19: Colonne3852 | BM19: Colonne386 | BN19: M3 | BO19: R3 | BP19: , | BQ19: PROF1 | BR19: Colonne13 | BS19: Colonne14 | BT19: PROF2 | BU19: Colonne15 | BV19: Colonne16 | BW19: PROF3 | BX19: Colonne165 | BY19: Colonne164 | BZ19: PROF4 | CA19: Colonne162 | CB19: Colonne17 | CC19: PROF5 | CD19: Colonne172 | CE19: Colonne18 | CF19: PROF6 | CG19: Colonne185 | CH19: Colonne184 | CI19: PROF7 | CJ19: Colonne182 | CK19: Colonne19 | CL19: PROF8 | CM19: Colonne192 | CN19: Colonne20 | CO19: M4 | CP19: R4 | CQ19: Colonne23 | CR19: ECO1 | CS19: Colonne1 | CT19: Colonne2 | CU19: ECO2 | CV19: Colonne53 | CW19: Colonne6 | CX19: ECO3 | CY19: Colonne62 | CZ19: Colonne7 | DA19: ECO4 | DB19: Colonne72 | DC19: Colonne8 | DD19: ECO5 | DE19: Colonne82 | DF19: Colonne9 | DG19: ECO6 | DH19: Colonne96 | DI19: Colonne95 | DJ19: ECO7 | DK19: Colonne93 | DL19: Colonne92 | DM19: ECO8 | DN19: Colonne923 | DO19: Colonne922 | DP19: M5 | DQ19: R5 | DR19: Colonne30 | DS19: Colonne303 | DT19: Colonne302 | DU19: MUE1 | DV19: MUE2 | DW19: MUE3 | DX19: MUE4 | DY19: MUE5 | DZ19: TP | EA19: MS1 | EB19: RS1 | EC19: .. | ED19: H.A. | EE19: DECISIONS DU CONSEIL DE CLASSE
B20: ='Liste CBH1_1'!B14 -> CBH1.S1.19/20.001 | C20: =VLOOKUP(B20,TabListe_CBH1_S1[],2,FALSE) -> BIKORO AVIE Kyllix Hyanez | D20: =VLOOKUP(B20,TabListe_CBH1_S1[],3,FALSE) -> F | F20: 6.5 | G20: =RANK(H20,$H$20:$H$69) -> 14 | H20: =F20+ROW()/100000 -> 6.5002 | I20: 11.5 | J20: =RANK(K20,TabMOYENNES_CBH1_1[Ref. 2]) -> 14 | K20: =I20+ROW()/100000 -> 11.5002 | M20: =RANK(N20,TabMOYENNES_CBH1_1[Ref. 3]) -> 50 | N20: =L20+ROW()/100000 -> 0.0002 | P20: =RANK(Q20,TabMOYENNES_CBH1_1[Ref. 4]) -> 50 | Q20: =O20+ROW()/100000 -> 0.0002 | S20: =RANK(T20,TabMOYENNES_CBH1_1[Ref. 5]) -> 50 | T20: =R20+ROW()/100000 -> 0.0002 | U20: =(F20*F$17+I20*I$17+TabMOYENNES_CBH1_1[[#This Row],[LG3]]*L$17+TabMOYENNES_CBH1_1[[#This Row],[LG4]]*O$17+TabMOYENNES_CBH1_1[[#This Row],[LG5]]*R$17)/(V$15+ROW()/10000) -> 9.496201519 | V20: =RANK(W20,TabMOYENNES_CBH1_1[Colonne4]) -> 14 | W20: =U20+ROW()/100000 -> 9.496401519 | X20: 0 | Y20: =RANK(Z20,TabMOYENNES_CBH1_1[Ref 2.1]) -> 50 | Z20: =X20+ROW()/100000 -> 0.0002 | AA20: 7.5 | AB20: =RANK(AC20,TabMOYENNES_CBH1_1[Ref 2.2]) -> 14 | AC20: =AA20+ROW()/100000 -> 7.5002 | AE20: =RANK(AF20,TabMOYENNES_CBH1_1[Ref 2.3]) -> 50 | AF20: =AD20+ROW()/100000 -> 0.0002 | AH20: =RANK(AI20,TabMOYENNES_CBH1_1[Ref 2.4]) -> 50 | AI20: =AG20+ROW()/100000 -> 0.0002 | AK20: =RANK(AL20,TabMOYENNES_CBH1_1[Ref 2.5]) -> 50 | AL20: =AJ20+ROW()/100000 -> 0.0002 | AM20: =(X20*X$17+AA20*AA$17+TabMOYENNES_CBH1_1[[#This Row],[SC3]]*AD$17+TabMOYENNES_CBH1_1[[#This Row],[SC4]]*AG$17+TabMOYENNES_CBH1_1[[#This Row],[SC5]]*AJ$17)/(AN$15+ROW()/10000) -> 1.874062969 | AN20: =RANK(AO20,TabMOYENNES_CBH1_1[Colonne44]) -> 17 | AO20: =AM20+ROW()/100000 -> 1.874262969 | AP20: 7.333333333 | AQ20: =RANK(AR20,TabMOYENNES_CBH1_1[Colonne32]) -> 15 | AR20: =AP20+ROW()/100000 -> 7.333533333 | AS20: 1.5 | AT20: =RANK(AU20,TabMOYENNES_CBH1_1[Colonne34]) -> 17 | AU20: =AS20+ROW()/100000 -> 1.5002 | AV20: 9 | AW20: =RANK(AX20,TabMOYENNES_CBH1_1[Colonne36]) -> 9 | AX20: =AV20+ROW()/100000 -> 9.0002 | AY20: 13.75 | AZ20: =RANK(BA20,TabMOYENNES_CBH1_1[Colonne38]) -> 2 | BA20: =AY20+ROW()/100000 -> 13.7502 | BC20: =RANK(BD20,TabMOYENNES_CBH1_1[Colonne383]) -> 50 | BD20: =BB20+ROW()/100000 -> 0.0002 | BF20: =RANK(BG20,TabMOYENNES_CBH1_1[Colonne384]) -> 50 | BG20: =BE20+ROW()/100000 -> 0.0002 | BI20: =RANK(BJ20,TabMOYENNES_CBH1_1[Colonne385]) -> 50 | BJ20: =BH20+ROW()/100000 -> 0.0002 | BL20: =RANK(BM20,TabMOYENNES_CBH1_1[Colonne386]) -> 50 | BM20: =BK20+ROW()/100000 -> 0.0002 | BN20: =(AP20*AP$17+AS20*AS$17+AV20*AV$17+AY20*AY$17+TabMOYENNES_CBH1_1[[#This Row],[TECHNO5]]*BB$17+TabMOYENNES_CBH1_1[[#This Row],[TECHNO6]]*BE$17+TabMOYENNES_CBH1_1[[#This Row],[TECHNO7]]*BH$17+TabMOYENNES_CBH1_1[[#This Row],[TECHNO8]]*BK$17)/(BO$15+ROW()/10000) -> 6.723655269 | BO20: =RANK(TabMOYENNES_CBH1_1[[#This Row],[,]],TabMOYENNES_CBH1_1[,]) -> 15 | BP20: =BN20+ROW()/100000 -> 6.723855269 | BQ20: 13.5 | BR20: =RANK(BS20,TabMOYENNES_CBH1_1[Colonne14]) -> 1 | BS20: =BQ20+ROW()/100000 -> 13.5002 | BT20: 12.75 | BU20: =RANK(BV20,TabMOYENNES_CBH1_1[Colonne16]) -> 15 | BV20: =BT20+ROW()/100000 -> 12.7502 | BX20: =RANK(BY20,TabMOYENNES_CBH1_1[Colonne164]) -> 50 | BY20: =BW20+ROW()/100000 -> 0.0002 | CA20: =RANK(CB20,TabMOYENNES_CBH1_1[Colonne17]) -> 50 | CB20: =BZ20+ROW()/100000 -> 0.0002 | CD20: =RANK(CE20,TabMOYENNES_CBH1_1[Colonne18]) -> 50 | CE20: =CC20+ROW()/100000 -> 0.0002 | CG20: =RANK(CH20,TabMOYENNES_CBH1_1[Colonne184]) -> 50 | CH20: =CF20+ROW()/100000 -> 0.0002 | CJ20: =RANK(CK20,TabMOYENNES_CBH1_1[Colonne19]) -> 50 | CK20: =CI20+ROW()/100000 -> 0.0002 | CM20: =RANK(CN20,TabMOYENNES_CBH1_1[Colonne20]) -> 50 | CN20: =CL20+ROW()/100000 -> 0.0002 | CO20: =(TabMOYENNES_CBH1_1[[#This Row],[PROF1]]*$BQ$17+TabMOYENNES_CBH1_1[[#This Row],[PROF2]]*BT$17+TabMOYENNES_CBH1_1[[#This Row],[PROF3]]*BW$17+TabMOYENNES_CBH1_1[[#This Row],[PROF4]]*BZ$17+TabMOYENNES_CBH1_1[[#This Row],[PROF5]]*CC$17+TabMOYENNES_CBH1_1[[#This Row],[PROF6]]*CF$17+TabMOYENNES_CBH1_1[[#This Row],[PROF7]]*CI$17+TabMOYENNES_CBH1_1[[#This Row],[PROF8]]*CL$17)/($CP$15+ROW()/10000) -> 8.748055988 | CP20: =RANK(CQ20,TabMOYENNES_CBH1_1[Colonne23]) -> 3 | CQ20: =CO20+ROW()/100000 -> 8.748255988 | CR20: 7.5 | CS20: =RANK(CT20,TabMOYENNES_CBH1_1[Colonne2]) -> 14 | CT20: =CR20+ROW()/100000 -> 7.5002 | CU20: 12.5 | CV20: =RANK(CW20,TabMOYENNES_CBH1_1[Colonne6]) -> 7 | CW20: =CU20+ROW()/100000 -> 12.5002 | CX20: 11 | CY20: =RANK(CZ20,TabMOYENNES_CBH1_1[Colonne7]) -> 15 | CZ20: =CX20+ROW()/100000 -> 11.0002 | DB20: =RANK(DC20,TabMOYENNES_CBH1_1[Colonne8]) -> 50 | DC20: =DA20+ROW()/100000 -> 0.0002 | DE20: =RANK(DF20,TabMOYENNES_CBH1_1[Colonne9]) -> 50 | DF20: =DD20+ROW()/100000 -> 0.0002 | DH20: =RANK(DI20,TabMOYENNES_CBH1_1[Colonne95]) -> 50 | DI20: =DG20+ROW()/100000 -> 0.0002 | DK20: =RANK(DL20,TabMOYENNES_CBH1_1[Colonne92]) -> 50 | DL20: =DJ20+ROW()/100000 -> 0.0002 | DN20: =RANK(DO20,TabMOYENNES_CBH1_1[Colonne922]) -> 50 | DO20: =DM20+ROW()/100000 -> 0.0002 | DP20: =(CR20*CR$17+CU20*CU$17+TabMOYENNES_CBH1_1[[#This Row],[ECO3]]*CX$17+TabMOYENNES_CBH1_1[[#This Row],[ECO4]]*DA$17+TabMOYENNES_CBH1_1[[#This Row],[ECO5]]*DD$17+TabMOYENNES_CBH1_1[[#This Row],[ECO6]]*DG$17+TabMOYENNES_CBH1_1[[#This Row],[ECO7]]*DJ$17+TabMOYENNES_CBH1_1[[#This Row],[ECO8]]*DM$17)/(DQ$15+ROW()/10000) -> 7.746126937 | DQ20: =RANK(TabMOYENNES_CBH1_1[[#This Row],[Colonne30]],TabMOYENNES_CBH1_1[Colonne30]) -> 14 | DR20: =DP20+ROW()/100000 -> 7.746326937 | DU20: =VLOOKUP(TabMOYENNES_CBH1_1[[#This Row],[Matricule]],TabMOYENNES_CBH1_1[],20,FALSE) -> 9.496201519 | DV20: =VLOOKUP(TabMOYENNES_CBH1_1[[#This Row],[Matricule]],TabMOYENNES_CBH1_1[],38,FALSE) -> 1.874062969 | DW20: =VLOOKUP(TabMOYENNES_CBH1_1[[#This Row],[Matricule]],TabMOYENNES_CBH1_1[],65,FALSE) -> 6.723655269 | DX20: =VLOOKUP(TabMOYENNES_CBH1_1[[#This Row],[Matricule]],TabMOYENNES_CBH1_1[],92,FALSE) -> 8.748055988 | DY20: =VLOOKUP(TabMOYENNES_CBH1_1[[#This Row],[Matricule]],TabMOYENNES_CBH1_1[],119,FALSE) -> 7.746126937 | DZ20: =(DU20*$DU$17+DV20*$DV$17+DW20*$DW$17+DX20*$DX$17+DY20*$DY$17) -> 231.9308238 | EA20: =(DU20*DU$17+DY20*DY$17+DX20*DX$17+DV20*DV$17+DW20*DW$17)/(EA$17+ROW()/10000) -> 7.247385282 | EB20: =RANK(EC20,TabMOYENNES_CBH1_1[..],0) -> 15 | EC20: =EA20+ROW()/100000 -> 7.247585282 | ED20: 0 | EE20: =IF($EA20="","",IF(AND($EA20=0,TabMOYENNES_CBH1_1[[#This Row],[H.A.]]>=140),"Abandon",IF($EA20>9.99,"Validé","Non Validé"))) -> Non Validé
B21: ='Liste CBH1_1'!B15 -> CBH1.S1.19/20.002 | C21: =VLOOKUP(B21,TabListe_CBH1_S1[],2,FALSE) -> BOUCKA Horly Maclean's | D21: =VLOOKUP(B21,TabListe_CBH1_S1[],3,FALSE) -> M | F21: 10 | G21: 11 | H21: 10.00021 | I21: 13 | J21: =RANK(K21,TabMOYENNES_CBH1_1[Ref. 2]) -> 6 | K21: 13.00021 | M21: =RANK(N21,TabMOYENNES_CBH1_1[Ref. 3]) -> 49 | N21: 0.00021 | P21: =RANK(Q21,TabMOYENNES_CBH1_1[Ref. 4]) -> 49 | Q21: 0.00021 | S21: =RANK(T21,TabMOYENNES_CBH1_1[Ref. 5]) -> 49 | T21: 0.00021 | U21: =(F21*F$17+I21*I$17+TabMOYENNES_CBH1_1[[#This Row],[LG3]]*L$17+TabMOYENNES_CBH1_1[[#This Row],[LG4]]*O$17+TabMOYENNES_CBH1_1[[#This Row],[LG5]]*R$17)/(V$15+ROW()/10000) -> 11.79504608 | V21: =RANK(W21,TabMOYENNES_CBH1_1[Colonne4]) -> 9 | W21: =U21+ROW()/100000 -> 11.79525608 | X21: 9 | Y21: =RANK(Z21,TabMOYENNES_CBH1_1[Ref 2.1]) -> 7 | Z21: 9.00021 | AA21: 11 | AB21: =RANK(AC21,TabMOYENNES_CBH1_1[Ref 2.2]) -> 9 | AC21: =AA21+ROW()/100000 -> 11.00021 | AE21: =RANK(AF21,TabMOYENNES_CBH1_1[Ref 2.3]) -> 49 | AF21: =AD21+ROW()/100000 -> 0.00021 | AH21: =RANK(AI21,TabMOYENNES_CBH1_1[Ref 2.4]) -> 49 | AI21: =AG21+ROW()/100000 -> 0.00021 | AK21: =RANK(AL21,TabMOYENNES_CBH1_1[Ref 2.5]) -> 49 | AL21: =AJ21+ROW()/100000 -> 0.00021 | AM21: =(X21*X$17+AA21*AA$17+TabMOYENNES_CBH1_1[[#This Row],[SC3]]*AD$17+TabMOYENNES_CBH1_1[[#This Row],[SC4]]*AG$17+TabMOYENNES_CBH1_1[[#This Row],[SC5]]*AJ$17)/(AN$15+ROW()/10000) -> 7.246195747 | AN21: =RANK(AO21,TabMOYENNES_CBH1_1[Colonne44]) -> 6 | AO21: 7.246405747 | AP21: 7.333333333 | AQ21: =RANK(AR21,TabMOYENNES_CBH1_1[Colonne32]) -> 14 | AR21: =AP21+ROW()/100000 -> 7.333543333 | AS21: 6.75 | AT21: =RANK(AU21,TabMOYENNES_CBH1_1[Colonne34]) -> 12 | AU21: =AS21+ROW()/100000 -> 6.75021 | AV21: 10.33333333 | AW21: =RANK(AX21,TabMOYENNES_CBH1_1[Colonne36]) -> 4 | AX21: =AV21+ROW()/100000 -> 10.33354333 | AY21: 14.25 | AZ21: =RANK(BA21,TabMOYENNES_CBH1_1[Colonne38]) -> 1 | BA21: =AY21+ROW()/100000 -> 14.25021 | BC21: =RANK(BD21,TabMOYENNES_CBH1_1[Colonne383]) -> 49 | BD21: =BB21+ROW()/100000 -> 0.00021 | BF21: =RANK(BG21,TabMOYENNES_CBH1_1[Colonne384]) -> 49 | BG21: =BE21+ROW()/100000 -> 0.00021 | BI21: =RANK(BJ21,TabMOYENNES_CBH1_1[Colonne385]) -> 49 | BJ21: =BH21+ROW()/100000 -> 0.00021 | BL21: =RANK(BM21,TabMOYENNES_CBH1_1[Colonne386]) -> 49 | BM21: =BK21+ROW()/100000 -> 0.00021 | BN21: =(AP21*AP$17+AS21*AS$17+AV21*AV$17+AY21*AY$17+TabMOYENNES_CBH1_1[[#This Row],[TECHNO5]]*BB$17+TabMOYENNES_CBH1_1[[#This Row],[TECHNO6]]*BE$17+TabMOYENNES_CBH1_1[[#This Row],[TECHNO7]]*BH$17+TabMOYENNES_CBH1_1[[#This Row],[TECHNO8]]*BK$17)/(BO$15+ROW()/10000) -> 8.748162886 | BO21: =RANK(TabMOYENNES_CBH1_1[[#This Row],[,]],TabMOYENNES_CBH1_1[,]) -> 10 | BP21: 8.748372886 | BQ21: 9.25 | BR21: =RANK(BS21,TabMOYENNES_CBH1_1[Colonne14]) -> 12 | BS21: =BQ21+ROW()/100000 -> 9.25021 | BT21: 13.75 | BU21: =RANK(BV21,TabMOYENNES_CBH1_1[Colonne16]) -> 7 | BV21: =BT21+ROW()/100000 -> 13.75021 | BX21: =RANK(BY21,TabMOYENNES_CBH1_1[Colonne164]) -> 49 | BY21: =BW21+ROW()/100000 -> 0.00021 | CA21: =RANK(CB21,TabMOYENNES_CBH1_1[Colonne17]) -> 49 | CB21: =BZ21+ROW()/100000 -> 0.00021 | CD21: =RANK(CE21,TabMOYENNES_CBH1_1[Colonne18]) -> 49 | CE21: =CC21+ROW()/100000 -> 0.00021 | CG21: =RANK(CH21,TabMOYENNES_CBH1_1[Colonne184]) -> 49 | CH21: =CF21+ROW()/100000 -> 0.00021 | CJ21: =RANK(CK21,TabMOYENNES_CBH1_1[Colonne19]) -> 49 | CK21: =CI21+ROW()/100000 -> 0.00021 | CM21: =RANK(CN21,TabMOYENNES_CBH1_1[Colonne20]) -> 49 | CN21: =CL21+ROW()/100000 -> 0.00021 | CO21: =(TabMOYENNES_CBH1_1[[#This Row],[PROF1]]*$BQ$17+TabMOYENNES_CBH1_1[[#This Row],[PROF2]]*BT$17+TabMOYENNES_CBH1_1[[#This Row],[PROF3]]*BW$17+TabMOYENNES_CBH1_1[[#This Row],[PROF4]]*BZ$17+TabMOYENNES_CBH1_1[[#This Row],[PROF5]]*CC$17+TabMOYENNES_CBH1_1[[#This Row],[PROF6]]*CF$17+TabMOYENNES_CBH1_1[[#This Row],[PROF7]]*CI$17+TabMOYENNES_CBH1_1[[#This Row],[PROF8]]*CL$17)/($CP$15+ROW()/10000) -> 7.664878195 | CP21: =RANK(CQ21,TabMOYENNES_CBH1_1[Colonne23]) -> 11 | CQ21: =CO21+ROW()/100000 -> 7.665088195 | CR21: 9.5 | CS21: =RANK(CT21,TabMOYENNES_CBH1_1[Colonne2]) -> 9 | CT21: =CR21+ROW()/100000 -> 9.50021 | CU21: 14 | CV21: =RANK(CW21,TabMOYENNES_CBH1_1[Colonne6]) -> 5 | CW21: =CU21+ROW()/100000 -> 14.00021 | CX21: 11 | CY21: =RANK(CZ21,TabMOYENNES_CBH1_1[Colonne7]) -> 14 | CZ21: =CX21+ROW()/100000 -> 11.00021 | DB21: =RANK(DC21,TabMOYENNES_CBH1_1[Colonne8]) -> 49 | DC21: =DA21+ROW()/100000 -> 0.00021 | DE21: =RANK(DF21,TabMOYENNES_CBH1_1[Colonne9]) -> 49 | DF21: =DD21+ROW()/100000 -> 0.00021 | DH21: =RANK(DI21,TabMOYENNES_CBH1_1[Colonne95]) -> 49 | DI21: =DG21+ROW()/100000 -> 0.00021 | DK21: =RANK(DL21,TabMOYENNES_CBH1_1[Colonne92]) -> 49 | DL21: =DJ21+ROW()/100000 -> 0.00021 | DN21: =RANK(DO21,TabMOYENNES_CBH1_1[Colonne922]) -> 49 | DO21: 0.00021 | DP21: =(CR21*CR$17+CU21*CU$17+TabMOYENNES_CBH1_1[[#This Row],[ECO3]]*CX$17+TabMOYENNES_CBH1_1[[#This Row],[ECO4]]*DA$17+TabMOYENNES_CBH1_1[[#This Row],[ECO5]]*DD$17+TabMOYENNES_CBH1_1[[#This Row],[ECO6]]*DG$17+TabMOYENNES_CBH1_1[[#This Row],[ECO7]]*DJ$17+TabMOYENNES_CBH1_1[[#This Row],[ECO8]]*DM$17)/(DQ$15+ROW()/10000) -> 8.620474251 | DQ21: =RANK(TabMOYENNES_CBH1_1[[#This Row],[Colonne30]],TabMOYENNES_CBH1_1[Colonne30]) -> 5 | DR21: 8.620684251 | DU21: =VLOOKUP(TabMOYENNES_CBH1_1[[#This Row],[Matricule]],TabMOYENNES_CBH1_1[],20,FALSE) -> 11.79504608 | DV21: =VLOOKUP(TabMOYENNES_CBH1_1[[#This Row],[Matricule]],TabMOYENNES_CBH1_1[],38,FALSE) -> 7.246195747 | DW21: =VLOOKUP(TabMOYENNES_CBH1_1[[#This Row],[Matricule]],TabMOYENNES_CBH1_1[],65,FALSE) -> 8.748162886 | DX21: =VLOOKUP(TabMOYENNES_CBH1_1[[#This Row],[Matricule]],TabMOYENNES_CBH1_1[],92,FALSE) -> 7.664878195 | DY21: =VLOOKUP(TabMOYENNES_CBH1_1[[#This Row],[Matricule]],TabMOYENNES_CBH1_1[],119,FALSE) -> 8.620474251 | DZ21: =(DU21*$DU$17+DV21*$DV$17+DW21*$DW$17+DX21*$DX$17+DY21*$DY$17) -> 278.907443 | EA21: 8.715285653 | EB21: =RANK(EC21,TabMOYENNES_CBH1_1[..],0) -> 9 | EC21: =EA21+ROW()/100000 -> 8.715495653 | ED21: 0 | EE21: =IF($EA21="","",IF(AND($EA21=0,TabMOYENNES_CBH1_1[[#This Row],[H.A.]]>=140),"Abandon",IF($EA21>9.99,"Validé","Non Validé"))) -> Non Validé
B22: ='Liste CBH1_1'!B16 -> CBH1.S1.19/20.003 | C22: =VLOOKUP(B22,TabListe_CBH1_S1[],2,FALSE) -> CHANGAUT Dann Phanel Ezechiel | D22: =VLOOKUP(B22,TabListe_CBH1_S1[],3,FALSE) -> F | F22: 10.5 | G22: 10 | H22: 10.50022 | I22: 11 | J22: =RANK(K22,TabMOYENNES_CBH1_1[Ref. 2]) -> 16 | K22: 11.00022 | M22: =RANK(N22,TabMOYENNES_CBH1_1[Ref. 3]) -> 48 | N22: 0.00022 | P22: =RANK(Q22,TabMOYENNES_CBH1_1[Ref. 4]) -> 48 | Q22: 0.00022 | S22: =RANK(T22,TabMOYENNES_CBH1_1[Ref. 5]) -> 48 | T22: 0.00022 | U22: =(F22*F$17+I22*I$17+TabMOYENNES_CBH1_1[[#This Row],[LG3]]*L$17+TabMOYENNES_CBH1_1[[#This Row],[LG4]]*O$17+TabMOYENNES_CBH1_1[[#This Row],[LG5]]*R$17)/(V$15+ROW()/10000) -> 10.79525009 | V22: =RANK(W22,TabMOYENNES_CBH1_1[Colonne4]) -> 12 | W22: 10.79547009 | X22: 5.833333333 | Y22: =RANK(Z22,TabMOYENNES_CBH1_1[Ref 2.1]) -> 15 | Z22: 5.833553333 | AA22: 13.5 | AB22: =RANK(AC22,TabMOYENNES_CBH1_1[Ref 2.2]) -> 1 | AC22: 13.50022 | AE22: =RANK(AF22,TabMOYENNES_CBH1_1[Ref 2.3]) -> 48 | AF22: 0.00022 | AH22: =RANK(AI22,TabMOYENNES_CBH1_1[Ref 2.4]) -> 48 | AI22: 0.00022 | AK22: =RANK(AL22,TabMOYENNES_CBH1_1[Ref 2.5]) -> 48 | AL22: 0.00022 | AM22: =(X22*X$17+AA22*AA$17+TabMOYENNES_CBH1_1[[#This Row],[SC3]]*AD$17+TabMOYENNES_CBH1_1[[#This Row],[SC4]]*AG$17+TabMOYENNES_CBH1_1[[#This Row],[SC5]]*AJ$17)/(AN$15+ROW()/10000) -> 6.288208152 | AN22: =RANK(AO22,TabMOYENNES_CBH1_1[Colonne44]) -> 10 | AO22: 6.288428152 | AP22: 10.66666667 | AQ22: =RANK(AR22,TabMOYENNES_CBH1_1[Colonne32]) -> 10 | AR22: 10.66688667 | AS22: 7 | AT22: =RANK(AU22,TabMOYENNES_CBH1_1[Colonne34]) -> 10 | AU22: 7.00022 | AV22: 8.5 | AW22: =RANK(AX22,TabMOYENNES_CBH1_1[Colonne36]) -> 11 | AX22: 8.50022 | AY22: 6 | AZ22: =RANK(BA22,TabMOYENNES_CBH1_1[Colonne38]) -> 15 | BA22: 6.00022 | BC22: =RANK(BD22,TabMOYENNES_CBH1_1[Colonne383]) -> 48 | BD22: 0.00022 | BF22: =RANK(BG22,TabMOYENNES_CBH1_1[Colonne384]) -> 48 | BG22: 0.00022 | BI22: =RANK(BJ22,TabMOYENNES_CBH1_1[Colonne385]) -> 48 | BJ22: 0.00022 | BL22: =RANK(BM22,TabMOYENNES_CBH1_1[Colonne386]) -> 48 | BM22: 0.00022 | BN22: =(AP22*AP$17+AS22*AS$17+AV22*AV$17+AY22*AY$17+TabMOYENNES_CBH1_1[[#This Row],[TECHNO5]]*BB$17+TabMOYENNES_CBH1_1[[#This Row],[TECHNO6]]*BE$17+TabMOYENNES_CBH1_1[[#This Row],[TECHNO7]]*BH$17+TabMOYENNES_CBH1_1[[#This Row],[TECHNO8]]*BK$17)/(BO$15+ROW()/10000) -> 8.448141409 | BO22: =RANK(TabMOYENNES_CBH1_1[[#This Row],[,]],TabMOYENNES_CBH1_1[,]) -> 12 | BP22: 8.448361409 | BQ22: 10 | BR22: =RANK(BS22,TabMOYENNES_CBH1_1[Colonne14]) -> 7 | BS22: 10.00022 | BT22: 13.25 | BU22: =RANK(BV22,TabMOYENNES_CBH1_1[Colonne16]) -> 10 | BV22: 13.25022 | BX22: =RANK(BY22,TabMOYENNES_CBH1_1[Colonne164]) -> 48 | BY22: 0.00022 | CA22: =RANK(CB22,TabMOYENNES_CBH1_1[Colonne17]) -> 48 | CB22: 0.00022 | CD22: =RANK(CE22,TabMOYENNES_CBH1_1[Colonne18]) -> 48 | CE22: 0.00022 | CG22: =RANK(CH22,TabMOYENNES_CBH1_1[Colonne184]) -> 48 | CH22: 0.00022 | CJ22: =RANK(CK22,TabMOYENNES_CBH1_1[Colonne19]) -> 48 | CK22: 0.00022 | CM22: =RANK(CN22,TabMOYENNES_CBH1_1[Colonne20]) -> 48 | CN22: 0.00022 | CO22: =(TabMOYENNES_CBH1_1[[#This Row],[PROF1]]*$BQ$17+TabMOYENNES_CBH1_1[[#This Row],[PROF2]]*BT$17+TabMOYENNES_CBH1_1[[#This Row],[PROF3]]*BW$17+TabMOYENNES_CBH1_1[[#This Row],[PROF4]]*BZ$17+TabMOYENNES_CBH1_1[[#This Row],[PROF5]]*CC$17+TabMOYENNES_CBH1_1[[#This Row],[PROF6]]*CF$17+TabMOYENNES_CBH1_1[[#This Row],[PROF7]]*CI$17+TabMOYENNES_CBH1_1[[#This Row],[PROF8]]*CL$17)/($CP$15+ROW()/10000) -> 7.748106019 | CP22: =RANK(CQ22,TabMOYENNES_CBH1_1[Colonne23]) -> 7 | CQ22: 7.748326019 | CR22: 7 | CS22: =RANK(CT22,TabMOYENNES_CBH1_1[Colonne2]) -> 15 | CT22: 7.00022 | CU22: 10.75 | CV22: =RANK(CW22,TabMOYENNES_CBH1_1[Colonne6]) -> 11 | CW22: 10.75022 | CX22: 15 | CY22: =RANK(CZ22,TabMOYENNES_CBH1_1[Colonne7]) -> 3 | CZ22: 15.00022 | DB22: =RANK(DC22,TabMOYENNES_CBH1_1[Colonne8]) -> 48 | DC22: 0.00022 | DE22: =RANK(DF22,TabMOYENNES_CBH1_1[Colonne9]) -> 48 | DF22: 0.00022 | DH22: =RANK(DI22,TabMOYENNES_CBH1_1[Colonne95]) -> 48 | DI22: 0.00022 | DK22: =RANK(DL22,TabMOYENNES_CBH1_1[Colonne92]) -> 48 | DL22: 0.00022 | DN22: =RANK(DO22,TabMOYENNES_CBH1_1[Colonne922]) -> 48 | DO22: 0.00022 | DP22: =(CR22*CR$17+CU22*CU$17+TabMOYENNES_CBH1_1[[#This Row],[ECO3]]*CX$17+TabMOYENNES_CBH1_1[[#This Row],[ECO4]]*DA$17+TabMOYENNES_CBH1_1[[#This Row],[ECO5]]*DD$17+TabMOYENNES_CBH1_1[[#This Row],[ECO6]]*DG$17+TabMOYENNES_CBH1_1[[#This Row],[ECO7]]*DJ$17+TabMOYENNES_CBH1_1[[#This Row],[ECO8]]*DM$17)/(DQ$15+ROW()/10000) -> 8.18299935 | DQ22: =RANK(TabMOYENNES_CBH1_1[[#This Row],[Colonne30]],TabMOYENNES_CBH1_1[Colonne30]) -> 8 | DR22: 8.18321935 | DU22: =VLOOKUP(TabMOYENNES_CBH1_1[[#This Row],[Matricule]],TabMOYENNES_CBH1_1[],20,FALSE) -> 10.79525009 | DV22: =VLOOKUP(TabMOYENNES_CBH1_1[[#This Row],[Matricule]],TabMOYENNES_CBH1_1[],38,FALSE) -> 6.288208152 | DW22: =VLOOKUP(TabMOYENNES_CBH1_1[[#This Row],[Matricule]],TabMOYENNES_CBH1_1[],65,FALSE) -> 8.448141409 | DX22: =VLOOKUP(TabMOYENNES_CBH1_1[[#This Row],[Matricule]],TabMOYENNES_CBH1_1[],92,FALSE) -> 7.748106019 | DY22: =VLOOKUP(TabMOYENNES_CBH1_1[[#This Row],[Matricule]],TabMOYENNES_CBH1_1[],119,FALSE) -> 8.18299935 | DZ22: 266.0754487 | EA22: 8.314286165 | EB22: =RANK(EC22,TabMOYENNES_CBH1_1[..],0) -> 11 | EC22: 8.314506165 | ED22: 0 | EE22: =IF($EA22="","",IF(AND($EA22=0,TabMOYENNES_CBH1_1[[#This Row],[H.A.]]>=140),"Abandon",IF($EA22>9.99,"Validé","Non Validé"))) -> Non Validé
B23: ='Liste CBH1_1'!B17 -> CBH1.S1.19/20.004 | C23: =VLOOKUP(B23,TabListe_CBH1_S1[],2,FALSE) -> EBANG ELLA Guy Arsène | D23: =VLOOKUP(B23,TabListe_CBH1_S1[],3,FALSE) -> F | F23: 11 | G23: 7 | H23: 11.00023 | I23: 14.5 | J23: =RANK(K23,TabMOYENNES_CBH1_1[Ref. 2]) -> 1 | K23: 14.50023 | M23: =RANK(N23,TabMOYENNES_CBH1_1[Ref. 3]) -> 47 | N23: 0.00023 | P23: =RANK(Q23,TabMOYENNES_CBH1_1[Ref. 4]) -> 47 | Q23: 0.00023 | S23: =RANK(T23,TabMOYENNES_CBH1_1[Ref. 5]) -> 47 | T23: 0.00023 | U23: =(F23*F$17+I23*I$17+TabMOYENNES_CBH1_1[[#This Row],[LG3]]*L$17+TabMOYENNES_CBH1_1[[#This Row],[LG4]]*O$17+TabMOYENNES_CBH1_1[[#This Row],[LG5]]*R$17)/(V$15+ROW()/10000) -> 13.09397677 | V23: =RANK(W23,TabMOYENNES_CBH1_1[Colonne4]) -> 1 | W23: 13.09420677 | X23: 7.833333333 | Y23: =RANK(Z23,TabMOYENNES_CBH1_1[Ref 2.1]) -> 9 | Z23: 7.833563333 | AA23: 11 | AB23: =RANK(AC23,TabMOYENNES_CBH1_1[Ref 2.2]) -> 8 | AC23: 11.00023 | AE23: =RANK(AF23,TabMOYENNES_CBH1_1[Ref 2.3]) -> 47 | AF23: 0.00023 | AH23: =RANK(AI23,TabMOYENNES_CBH1_1[Ref 2.4]) -> 47 | AI23: 0.00023 | AK23: =RANK(AL23,TabMOYENNES_CBH1_1[Ref 2.5]) -> 47 | AL23: 0.00023 | AM23: =(X23*X$17+AA23*AA$17+TabMOYENNES_CBH1_1[[#This Row],[SC3]]*AD$17+TabMOYENNES_CBH1_1[[#This Row],[SC4]]*AG$17+TabMOYENNES_CBH1_1[[#This Row],[SC5]]*AJ$17)/(AN$15+ROW()/10000) -> 6.662835536 | AN23: =RANK(AO23,TabMOYENNES_CBH1_1[Colonne44]) -> 9 | AO23: 6.663065536 | AP23: 7.333333333 | AQ23: =RANK(AR23,TabMOYENNES_CBH1_1[Colonne32]) -> 13 | AR23: 7.333563333 | AS23: 6.25 | AT23: =RANK(AU23,TabMOYENNES_CBH1_1[Colonne34]) -> 14 | AU23: 6.25023 | AV23: 12.33333333 | AW23: =RANK(AX23,TabMOYENNES_CBH1_1[Colonne36]) -> 1 | AX23: 12.33356333 | AY23: 13 | AZ23: =RANK(BA23,TabMOYENNES_CBH1_1[Colonne38]) -> 4 | BA23: 13.00023 | BC23: =RANK(BD23,TabMOYENNES_CBH1_1[Colonne383]) -> 47 | BD23: 0.00023 | BF23: =RANK(BG23,TabMOYENNES_CBH1_1[Colonne384]) -> 47 | BG23: 0.00023 | BI23: =RANK(BJ23,TabMOYENNES_CBH1_1[Colonne385]) -> 47 | BJ23: 0.00023 | BL23: =RANK(BM23,TabMOYENNES_CBH1_1[Colonne386]) -> 47 | BM23: 0.00023 | BN23: =(AP23*AP$17+AS23*AS$17+AV23*AV$17+AY23*AY$17+TabMOYENNES_CBH1_1[[#This Row],[TECHNO5]]*BB$17+TabMOYENNES_CBH1_1[[#This Row],[TECHNO6]]*BE$17+TabMOYENNES_CBH1_1[[#This Row],[TECHNO7]]*BH$17+TabMOYENNES_CBH1_1[[#This Row],[TECHNO8]]*BK$17)/(BO$15+ROW()/10000) -> 9.07291323 | BO23: =RANK(TabMOYENNES_CBH1_1[[#This Row],[,]],TabMOYENNES_CBH1_1[,]) -> 9 | BP23: 9.07314323 | BQ23: 13.25 | BR23: =RANK(BS23,TabMOYENNES_CBH1_1[Colonne14]) -> 2 | BS23: 13.25023 | BT23: 14.5 | BU23: =RANK(BV23,TabMOYENNES_CBH1_1[Colonne16]) -> 3 | BV23: 14.50023 | BX23: =RANK(BY23,TabMOYENNES_CBH1_1[Colonne164]) -> 47 | BY23: 0.00023 | CA23: =RANK(CB23,TabMOYENNES_CBH1_1[Colonne17]) -> 47 | CB23: 0.00023 | CD23: =RANK(CE23,TabMOYENNES_CBH1_1[Colonne18]) -> 47 | CE23: 0.00023 | CG23: =RANK(CH23,TabMOYENNES_CBH1_1[Colonne184]) -> 47 | CH23: 0.00023 | CJ23: =RANK(CK23,TabMOYENNES_CBH1_1[Colonne19]) -> 47 | CK23: 0.00023 | CM23: =RANK(CN23,TabMOYENNES_CBH1_1[Colonne20]) -> 47 | CN23: 0.00023 | CO23: =(TabMOYENNES_CBH1_1[[#This Row],[PROF1]]*$BQ$17+TabMOYENNES_CBH1_1[[#This Row],[PROF2]]*BT$17+TabMOYENNES_CBH1_1[[#This Row],[PROF3]]*BW$17+TabMOYENNES_CBH1_1[[#This Row],[PROF4]]*BZ$17+TabMOYENNES_CBH1_1[[#This Row],[PROF5]]*CC$17+TabMOYENNES_CBH1_1[[#This Row],[PROF6]]*CF$17+TabMOYENNES_CBH1_1[[#This Row],[PROF7]]*CI$17+TabMOYENNES_CBH1_1[[#This Row],[PROF8]]*CL$17)/($CP$15+ROW()/10000) -> 9.247636715 | CP23: =RANK(CQ23,TabMOYENNES_CBH1_1[Colonne23]) -> 1 | CQ23: 9.247866715 | CR23: 9 | CS23: =RANK(CT23,TabMOYENNES_CBH1_1[Colonne2]) -> 12 | CT23: 9.00023 | CU23: 13 | CV23: =RANK(CW23,TabMOYENNES_CBH1_1[Colonne6]) -> 6 | CW23: 13.00023 | CX23: 12 | CY23: =RANK(CZ23,TabMOYENNES_CBH1_1[Colonne7]) -> 13 | CZ23: 12.00023 | DB23: =RANK(DC23,TabMOYENNES_CBH1_1[Colonne8]) -> 47 | DC23: 0.00023 | DE23: =RANK(DF23,TabMOYENNES_CBH1_1[Colonne9]) -> 47 | DF23: 0.00023 | DH23: =RANK(DI23,TabMOYENNES_CBH1_1[Colonne95]) -> 47 | DI23: 0.00023 | DK23: =RANK(DL23,TabMOYENNES_CBH1_1[Colonne92]) -> 47 | DL23: 0.00023 | DN23: =RANK(DO23,TabMOYENNES_CBH1_1[Colonne922]) -> 47 | DO23: 0.00023 | DP23: =(CR23*CR$17+CU23*CU$17+TabMOYENNES_CBH1_1[[#This Row],[ECO3]]*CX$17+TabMOYENNES_CBH1_1[[#This Row],[ECO4]]*DA$17+TabMOYENNES_CBH1_1[[#This Row],[ECO5]]*DD$17+TabMOYENNES_CBH1_1[[#This Row],[ECO6]]*DG$17+TabMOYENNES_CBH1_1[[#This Row],[ECO7]]*DJ$17+TabMOYENNES_CBH1_1[[#This Row],[ECO8]]*DM$17)/(DQ$15+ROW()/10000) -> 8.495115309 | DQ23: =RANK(TabMOYENNES_CBH1_1[[#This Row],[Colonne30]],TabMOYENNES_CBH1_1[Colonne30]) -> 6 | DR23: 8.495345309 | DU23: =VLOOKUP(TabMOYENNES_CBH1_1[[#This Row],[Matricule]],TabMOYENNES_CBH1_1[],20,FALSE) -> 13.09397677 | DV23: =VLOOKUP(TabMOYENNES_CBH1_1[[#This Row],[Matricule]],TabMOYENNES_CBH1_1[],38,FALSE) -> 6.662835536 | DW23: =VLOOKUP(TabMOYENNES_CBH1_1[[#This Row],[Matricule]],TabMOYENNES_CBH1_1[],65,FALSE) -> 9.07291323 | DX23: =VLOOKUP(TabMOYENNES_CBH1_1[[#This Row],[Matricule]],TabMOYENNES_CBH1_1[],92,FALSE) -> 9.247636715 | DY23: =VLOOKUP(TabMOYENNES_CBH1_1[[#This Row],[Matricule]],TabMOYENNES_CBH1_1[],119,FALSE) -> 8.495115309 | DZ23: 300.05955 | EA23: 9.376187023 | EB23: =RANK(EC23,TabMOYENNES_CBH1_1[..],0) -> 4 | EC23: 9.376417023 | ED23: 0 | EE23: =IF($EA23="","",IF(AND($EA23=0,TabMOYENNES_CBH1_1[[#This Row],[H.A.]]>=140),"Abandon",IF($EA23>9.99,"Validé","Non Validé"))) -> Non Validé
B24: ='Liste CBH1_1'!B18 -> CBH1.S1.19/20.005 | C24: =VLOOKUP(B24,TabListe_CBH1_S1[],2,FALSE) -> ENGONGHA MBA Jean Damas | D24: =VLOOKUP(B24,TabListe_CBH1_S1[],3,FALSE) -> M | F24: 0 | G24: 50 | H24: 0.00024 | I24: 0 | J24: =RANK(K24,TabMOYENNES_CBH1_1[Ref. 2]) -> 50 | K24: 0.00024 | M24: =RANK(N24,TabMOYENNES_CBH1_1[Ref. 3]) -> 46 | N24: 0.00024 | P24: =RANK(Q24,TabMOYENNES_CBH1_1[Ref. 4]) -> 46 | Q24: 0.00024 | S24: =RANK(T24,TabMOYENNES_CBH1_1[Ref. 5]) -> 46 | T24: 0.00024 | U24: =(F24*F$17+I24*I$17+TabMOYENNES_CBH1_1[[#This Row],[LG3]]*L$17+TabMOYENNES_CBH1_1[[#This Row],[LG4]]*O$17+TabMOYENNES_CBH1_1[[#This Row],[LG5]]*R$17)/(V$15+ROW()/10000) -> 0 | V24: =RANK(W24,TabMOYENNES_CBH1_1[Colonne4]) -> 50 | W24: 0.00024 | X24: 1.333333333 | Y24: =RANK(Z24,TabMOYENNES_CBH1_1[Ref 2.1]) -> 17 | Z24: 1.333573333 | AA24: 0 | AB24: =RANK(AC24,TabMOYENNES_CBH1_1[Ref 2.2]) -> 50 | AC24: 0.00024 | AE24: =RANK(AF24,TabMOYENNES_CBH1_1[Ref 2.3]) -> 46 | AF24: 0.00024 | AH24: =RANK(AI24,TabMOYENNES_CBH1_1[Ref 2.4]) -> 46 | AI24: 0.00024 | AK24: =RANK(AL24,TabMOYENNES_CBH1_1[Ref 2.5]) -> 46 | AL24: 0.00024 | AM24: =(X24*X$17+AA24*AA$17+TabMOYENNES_CBH1_1[[#This Row],[SC3]]*AD$17+TabMOYENNES_CBH1_1[[#This Row],[SC4]]*AG$17+TabMOYENNES_CBH1_1[[#This Row],[SC5]]*AJ$17)/(AN$15+ROW()/10000) -> 0.6662669065 | AN24: =RANK(AO24,TabMOYENNES_CBH1_1[Colonne44]) -> 18 | AO24: 0.6665069065 | AP24: 0 | AQ24: =RANK(AR24,TabMOYENNES_CBH1_1[Colonne32]) -> 50 | AR24: 0.00024 | AS24: 1.75 | AT24: =RANK(AU24,TabMOYENNES_CBH1_1[Colonne34]) -> 16 | AU24: 1.75024 | AV24: 5.333333333 | AW24: =RANK(AX24,TabMOYENNES_CBH1_1[Colonne36]) -> 17 | AX24: 5.333573333 | AY24: 0 | AZ24: =RANK(BA24,TabMOYENNES_CBH1_1[Colonne38]) -> 50 | BA24: 0.00024 | BC24: =RANK(BD24,TabMOYENNES_CBH1_1[Colonne383]) -> 46 | BD24: 0.00024 | BF24: =RANK(BG24,TabMOYENNES_CBH1_1[Colonne384]) -> 46 | BG24: 0.00024 | BI24: =RANK(BJ24,TabMOYENNES_CBH1_1[Colonne385]) -> 46 | BJ24: 0.00024 | BL24: =RANK(BM24,TabMOYENNES_CBH1_1[Colonne386]) -> 46 | BM24: 0.00024 | BN24: =(AP24*AP$17+AS24*AS$17+AV24*AV$17+AY24*AY$17+TabMOYENNES_CBH1_1[[#This Row],[TECHNO5]]*BB$17+TabMOYENNES_CBH1_1[[#This Row],[TECHNO6]]*BE$17+TabMOYENNES_CBH1_1[[#This Row],[TECHNO7]]*BH$17+TabMOYENNES_CBH1_1[[#This Row],[TECHNO8]]*BK$17)/(BO$15+ROW()/10000) -> 2.124490122 | BO24: =RANK(TabMOYENNES_CBH1_1[[#This Row],[,]],TabMOYENNES_CBH1_1[,]) -> 19 | BP24: 2.124730122 | BQ24: 0 | BR24: =RANK(BS24,TabMOYENNES_CBH1_1[Colonne14]) -> 50 | BS24: 0.00024 | BT24: 0 | BU24: =RANK(BV24,TabMOYENNES_CBH1_1[Colonne16]) -> 50 | BV24: 0.00024 | BX24: =RANK(BY24,TabMOYENNES_CBH1_1[Colonne164]) -> 46 | BY24: 0.00024 | CA24: =RANK(CB24,TabMOYENNES_CBH1_1[Colonne17]) -> 46 | CB24: 0.00024 | CD24: =RANK(CE24,TabMOYENNES_CBH1_1[Colonne18]) -> 46 | CE24: 0.00024 | CG24: =RANK(CH24,TabMOYENNES_CBH1_1[Colonne184]) -> 46 | CH24: 0.00024 | CJ24: =RANK(CK24,TabMOYENNES_CBH1_1[Colonne19]) -> 46 | CK24: 0.00024 | CM24: =RANK(CN24,TabMOYENNES_CBH1_1[Colonne20]) -> 46 | CN24: 0.00024 | CO24: =(TabMOYENNES_CBH1_1[[#This Row],[PROF1]]*$BQ$17+TabMOYENNES_CBH1_1[[#This Row],[PROF2]]*BT$17+TabMOYENNES_CBH1_1[[#This Row],[PROF3]]*BW$17+TabMOYENNES_CBH1_1[[#This Row],[PROF4]]*BZ$17+TabMOYENNES_CBH1_1[[#This Row],[PROF5]]*CC$17+TabMOYENNES_CBH1_1[[#This Row],[PROF6]]*CF$17+TabMOYENNES_CBH1_1[[#This Row],[PROF7]]*CI$17+TabMOYENNES_CBH1_1[[#This Row],[PROF8]]*CL$17)/($CP$15+ROW()/10000) -> 0 | CP24: =RANK(CQ24,TabMOYENNES_CBH1_1[Colonne23]) -> 50 | CQ24: 0.00024 | CR24: 0 | CS24: =RANK(CT24,TabMOYENNES_CBH1_1[Colonne2]) -> 50 | CT24: 0.00024 | CU24: 0 | CV24: =RANK(CW24,TabMOYENNES_CBH1_1[Colonne6]) -> 50 | CW24: 0.00024 | CX24: 10 | CY24: =RANK(CZ24,TabMOYENNES_CBH1_1[Colonne7]) -> 17 | CZ24: 10.00024 | DB24: =RANK(DC24,TabMOYENNES_CBH1_1[Colonne8]) -> 46 | DC24: 0.00024 | DE24: =RANK(DF24,TabMOYENNES_CBH1_1[Colonne9]) -> 46 | DF24: 0.00024 | DH24: =RANK(DI24,TabMOYENNES_CBH1_1[Colonne95]) -> 46 | DI24: 0.00024 | DK24: =RANK(DL24,TabMOYENNES_CBH1_1[Colonne92]) -> 46 | DL24: 0.00024 | DN24: =RANK(DO24,TabMOYENNES_CBH1_1[Colonne922]) -> 46 | DO24: 0.00024 | DP24: =(CR24*CR$17+CU24*CU$17+TabMOYENNES_CBH1_1[[#This Row],[ECO3]]*CX$17+TabMOYENNES_CBH1_1[[#This Row],[ECO4]]*DA$17+TabMOYENNES_CBH1_1[[#This Row],[ECO5]]*DD$17+TabMOYENNES_CBH1_1[[#This Row],[ECO6]]*DG$17+TabMOYENNES_CBH1_1[[#This Row],[ECO7]]*DJ$17+TabMOYENNES_CBH1_1[[#This Row],[ECO8]]*DM$17)/(DQ$15+ROW()/10000) -> 2.498500899 | DQ24: =RANK(TabMOYENNES_CBH1_1[[#This Row],[Colonne30]],TabMOYENNES_CBH1_1[Colonne30]) -> 18 | DR24: 2.498740899 | DU24: =VLOOKUP(TabMOYENNES_CBH1_1[[#This Row],[Matricule]],TabMOYENNES_CBH1_1[],20,FALSE) -> 0 | DV24: =VLOOKUP(TabMOYENNES_CBH1_1[[#This Row],[Matricule]],TabMOYENNES_CBH1_1[],38,FALSE) -> 0.6662669065 | DW24: =VLOOKUP(TabMOYENNES_CBH1_1[[#This Row],[Matricule]],TabMOYENNES_CBH1_1[],65,FALSE) -> 2.124490122 | DX24: =VLOOKUP(TabMOYENNES_CBH1_1[[#This Row],[Matricule]],TabMOYENNES_CBH1_1[],92,FALSE) -> 0 | DY24: =VLOOKUP(TabMOYENNES_CBH1_1[[#This Row],[Matricule]],TabMOYENNES_CBH1_1[],119,FALSE) -> 2.498500899 | DZ24: 33.90397245 | EA24: 1.059419683 | EB24: =RANK(EC24,TabMOYENNES_CBH1_1[..],0) -> 19 | EC24: 1.059659683 | ED24: 0 | EE24: =IF($EA24="","",IF(AND($EA24=0,TabMOYENNES_CBH1_1[[#This Row],[H.A.]]>=140),"Abandon",IF($EA24>9.99,"Validé","Non Validé"))) -> Non Validé
B25: ='Liste CBH1_1'!B19 -> CBH1.S1.19/20.006 | C25: =VLOOKUP(B25,TabListe_CBH1_S1[],2,FALSE) -> ESSO BIVEGHE Hermenegilde | D25: =VLOOKUP(B25,TabListe_CBH1_S1[],3,FALSE) -> M | F25: 0 | G25: 49 | H25: 0.00025 | I25: 0 | J25: =RANK(K25,TabMOYENNES_CBH1_1[Ref. 2]) -> 49 | K25: 0.00025 | M25: =RANK(N25,TabMOYENNES_CBH1_1[Ref. 3]) -> 45 | N25: 0.00025 | P25: =RANK(Q25,TabMOYENNES_CBH1_1[Ref. 4]) -> 45 | Q25: 0.00025 | S25: =RANK(T25,TabMOYENNES_CBH1_1[Ref. 5]) -> 45 | T25: 0.00025 | U25: =(F25*F$17+I25*I$17+TabMOYENNES_CBH1_1[[#This Row],[LG3]]*L$17+TabMOYENNES_CBH1_1[[#This Row],[LG4]]*O$17+TabMOYENNES_CBH1_1[[#This Row],[LG5]]*R$17)/(V$15+ROW()/10000) -> 0 | V25: =RANK(W25,TabMOYENNES_CBH1_1[Colonne4]) -> 49 | W25: 0.00025 | X25: 0 | Y25: =RANK(Z25,TabMOYENNES_CBH1_1[Ref 2.1]) -> 49 | Z25: 0.00025 | AA25: 0 | AB25: =RANK(AC25,TabMOYENNES_CBH1_1[Ref 2.2]) -> 49 | AC25: 0.00025 | AE25: =RANK(AF25,TabMOYENNES_CBH1_1[Ref 2.3]) -> 45 | AF25: 0.00025 | AH25: =RANK(AI25,TabMOYENNES_CBH1_1[Ref 2.4]) -> 45 | AI25: 0.00025 | AK25: =RANK(AL25,TabMOYENNES_CBH1_1[Ref 2.5]) -> 45 | AL25: 0.00025 | AM25: =(X25*X$17+AA25*AA$17+TabMOYENNES_CBH1_1[[#This Row],[SC3]]*AD$17+TabMOYENNES_CBH1_1[[#This Row],[SC4]]*AG$17+TabMOYENNES_CBH1_1[[#This Row],[SC5]]*AJ$17)/(AN$15+ROW()/10000) -> 0 | AN25: =RANK(AO25,TabMOYENNES_CBH1_1[Colonne44]) -> 50 | AO25: 0.00025 | AP25: 0 | AQ25: =RANK(AR25,TabMOYENNES_CBH1_1[Colonne32]) -> 49 | AR25: 0.00025 | AS25: 0 | AT25: =RANK(AU25,TabMOYENNES_CBH1_1[Colonne34]) -> 50 | AU25: 0.00025 | AV25: 0 | AW25: =RANK(AX25,TabMOYENNES_CBH1_1[Colonne36]) -> 50 | AX25: 0.00025 | AY25: 0 | AZ25: =RANK(BA25,TabMOYENNES_CBH1_1[Colonne38]) -> 49 | BA25: 0.00025 | BC25: =RANK(BD25,TabMOYENNES_CBH1_1[Colonne383]) -> 45 | BD25: 0.00025 | BF25: =RANK(BG25,TabMOYENNES_CBH1_1[Colonne384]) -> 45 | BG25: 0.00025 | BI25: =RANK(BJ25,TabMOYENNES_CBH1_1[Colonne385]) -> 45 | BJ25: 0.00025 | BL25: =RANK(BM25,TabMOYENNES_CBH1_1[Colonne386]) -> 45 | BM25: 0.00025 | BN25: =(AP25*AP$17+AS25*AS$17+AV25*AV$17+AY25*AY$17+TabMOYENNES_CBH1_1[[#This Row],[TECHNO5]]*BB$17+TabMOYENNES_CBH1_1[[#This Row],[TECHNO6]]*BE$17+TabMOYENNES_CBH1_1[[#This Row],[TECHNO7]]*BH$17+TabMOYENNES_CBH1_1[[#This Row],[TECHNO8]]*BK$17)/(BO$15+ROW()/10000) -> 0 | BO25: =RANK(TabMOYENNES_CBH1_1[[#This Row],[,]],TabMOYENNES_CBH1_1[,]) -> 50 | BP25: 0.00025 | BQ25: 0 | BR25: =RANK(BS25,TabMOYENNES_CBH1_1[Colonne14]) -> 49 | BS25: 0.00025 | BT25: 0 | BU25: =RANK(BV25,TabMOYENNES_CBH1_1[Colonne16]) -> 49 | BV25: 0.00025 | BX25: =RANK(BY25,TabMOYENNES_CBH1_1[Colonne164]) -> 45 | BY25: 0.00025 | CA25: =RANK(CB25,TabMOYENNES_CBH1_1[Colonne17]) -> 45 | CB25: 0.00025 | CD25: =RANK(CE25,TabMOYENNES_CBH1_1[Colonne18]) -> 45 | CE25: 0.00025 | CG25: =RANK(CH25,TabMOYENNES_CBH1_1[Colonne184]) -> 45 | CH25: 0.00025 | CJ25: =RANK(CK25,TabMOYENNES_CBH1_1[Colonne19]) -> 45 | CK25: 0.00025 | CM25: =RANK(CN25,TabMOYENNES_CBH1_1[Colonne20]) -> 45 | CN25: 0.00025 | CO25: =(TabMOYENNES_CBH1_1[[#This Row],[PROF1]]*$BQ$17+TabMOYENNES_CBH1_1[[#This Row],[PROF2]]*BT$17+TabMOYENNES_CBH1_1[[#This Row],[PROF3]]*BW$17+TabMOYENNES_CBH1_1[[#This Row],[PROF4]]*BZ$17+TabMOYENNES_CBH1_1[[#This Row],[PROF5]]*CC$17+TabMOYENNES_CBH1_1[[#This Row],[PROF6]]*CF$17+TabMOYENNES_CBH1_1[[#This Row],[PROF7]]*CI$17+TabMOYENNES_CBH1_1[[#This Row],[PROF8]]*CL$17)/($CP$15+ROW()/10000) -> 0 | CP25: =RANK(CQ25,TabMOYENNES_CBH1_1[Colonne23]) -> 49 | CQ25: 0.00025 | CR25: 0 | CS25: =RANK(CT25,TabMOYENNES_CBH1_1[Colonne2]) -> 49 | CT25: 0.00025 | CU25: 0 | CV25: =RANK(CW25,TabMOYENNES_CBH1_1[Colonne6]) -> 49 | CW25: 0.00025 | CX25: 0 | CY25: =RANK(CZ25,TabMOYENNES_CBH1_1[Colonne7]) -> 50 | CZ25: 0.00025 | DB25: =RANK(DC25,TabMOYENNES_CBH1_1[Colonne8]) -> 45 | DC25: 0.00025 | DE25: =RANK(DF25,TabMOYENNES_CBH1_1[Colonne9]) -> 45 | DF25: 0.00025 | DH25: =RANK(DI25,TabMOYENNES_CBH1_1[Colonne95]) -> 45 | DI25: 0.00025 | DK25: =RANK(DL25,TabMOYENNES_CBH1_1[Colonne92]) -> 45 | DL25: 0.00025 | DN25: =RANK(DO25,TabMOYENNES_CBH1_1[Colonne922]) -> 45 | DO25: 0.00025 | DP25: =(CR25*CR$17+CU25*CU$17+TabMOYENNES_CBH1_1[[#This Row],[ECO3]]*CX$17+TabMOYENNES_CBH1_1[[#This Row],[ECO4]]*DA$17+TabMOYENNES_CBH1_1[[#This Row],[ECO5]]*DD$17+TabMOYENNES_CBH1_1[[#This Row],[ECO6]]*DG$17+TabMOYENNES_CBH1_1[[#This Row],[ECO7]]*DJ$17+TabMOYENNES_CBH1_1[[#This Row],[ECO8]]*DM$17)/(DQ$15+ROW()/10000) -> 0 | DQ25: =RANK(TabMOYENNES_CBH1_1[[#This Row],[Colonne30]],TabMOYENNES_CBH1_1[Colonne30]) -> 50 | DR25: 0.00025 | DU25: =VLOOKUP(TabMOYENNES_CBH1_1[[#This Row],[Matricule]],TabMOYENNES_CBH1_1[],20,FALSE) -> 0 | DV25: =VLOOKUP(TabMOYENNES_CBH1_1[[#This Row],[Matricule]],TabMOYENNES_CBH1_1[],38,FALSE) -> 0 | DW25: =VLOOKUP(TabMOYENNES_CBH1_1[[#This Row],[Matricule]],TabMOYENNES_CBH1_1[],65,FALSE) -> 0 | DX25: =VLOOKUP(TabMOYENNES_CBH1_1[[#This Row],[Matricule]],TabMOYENNES_CBH1_1[],92,FALSE) -> 0 | DY25: =VLOOKUP(TabMOYENNES_CBH1_1[[#This Row],[Matricule]],TabMOYENNES_CBH1_1[],119,FALSE) -> 0 | DZ25: 0 | EA25: 0 | EB25: =RANK(EC25,TabMOYENNES_CBH1_1[..],0) -> 50 | EC25: 0.00025 | ED25: 0 | EE25: =IF($EA25="","",IF(AND($EA25=0,TabMOYENNES_CBH1_1[[#This Row],[H.A.]]>=140),"Abandon",IF($EA25>9.99,"Validé","Non Validé"))) -> Non Validé
B26: ='Liste CBH1_1'!B20 -> CBH1.S1.19/20.007 | C26: =VLOOKUP(B26,TabListe_CBH1_S1[],2,FALSE) -> EYONE MBA Luduine Claude | D26: =VLOOKUP(B26,TabListe_CBH1_S1[],3,FALSE) -> M | F26: 11.5 | G26: 6 | H26: 11.50026 | I26: 12.5 | J26: =RANK(K26,TabMOYENNES_CBH1_1[Ref. 2]) -> 11 | K26: 12.50026 | M26: =RANK(N26,TabMOYENNES_CBH1_1[Ref. 3]) -> 44 | N26: 0.00026 | P26: =RANK(Q26,TabMOYENNES_CBH1_1[Ref. 4]) -> 44 | Q26: 0.00026 | S26: =RANK(T26,TabMOYENNES_CBH1_1[Ref. 5]) -> 44 | T26: 0.00026 | U26: =(F26*F$17+I26*I$17+TabMOYENNES_CBH1_1[[#This Row],[LG3]]*L$17+TabMOYENNES_CBH1_1[[#This Row],[LG4]]*O$17+TabMOYENNES_CBH1_1[[#This Row],[LG5]]*R$17)/(V$15+ROW()/10000) -> 12.09371127 | V26: =RANK(W26,TabMOYENNES_CBH1_1[Colonne4]) -> 6 | W26: 12.09397127 | X26: 13.5 | Y26: =RANK(Z26,TabMOYENNES_CBH1_1[Ref 2.1]) -> 1 | Z26: 13.50026 | AA26: 12.5 | AB26: =RANK(AC26,TabMOYENNES_CBH1_1[Ref 2.2]) -> 2 | AC26: 12.50026 | AE26: =RANK(AF26,TabMOYENNES_CBH1_1[Ref 2.3]) -> 44 | AF26: 0.00026 | AH26: =RANK(AI26,TabMOYENNES_CBH1_1[Ref 2.4]) -> 44 | AI26: 0.00026 | AK26: =RANK(AL26,TabMOYENNES_CBH1_1[Ref 2.5]) -> 44 | AL26: 0.00026 | AM26: =(X26*X$17+AA26*AA$17+TabMOYENNES_CBH1_1[[#This Row],[SC3]]*AD$17+TabMOYENNES_CBH1_1[[#This Row],[SC4]]*AG$17+TabMOYENNES_CBH1_1[[#This Row],[SC5]]*AJ$17)/(AN$15+ROW()/10000) -> 9.868585419 | AN26: =RANK(AO26,TabMOYENNES_CBH1_1[Colonne44]) -> 1 | AO26: 9.868845419 | AP26: 13 | AQ26: =RANK(AR26,TabMOYENNES_CBH1_1[Colonne32]) -> 3 | AR26: 13.00026 | AS26: 9.25 | AT26: =RANK(AU26,TabMOYENNES_CBH1_1[Colonne34]) -> 7 | AU26: 9.25026 | AV26: 11.66666667 | AW26: =RANK(AX26,TabMOYENNES_CBH1_1[Colonne36]) -> 2 | AX26: 11.66692667 | AY26: 13 | AZ26: =RANK(BA26,TabMOYENNES_CBH1_1[Colonne38]) -> 3 | BA26: 13.00026 | BC26: =RANK(BD26,TabMOYENNES_CBH1_1[Colonne383]) -> 44 | BD26: 0.00026 | BF26: =RANK(BG26,TabMOYENNES_CBH1_1[Colonne384]) -> 44 | BG26: 0.00026 | BI26: =RANK(BJ26,TabMOYENNES_CBH1_1[Colonne385]) -> 44 | BJ26: 0.00026 | BL26: =RANK(BM26,TabMOYENNES_CBH1_1[Colonne386]) -> 44 | BM26: 0.00026 | BN26: =(AP26*AP$17+AS26*AS$17+AV26*AV$17+AY26*AY$17+TabMOYENNES_CBH1_1[[#This Row],[TECHNO5]]*BB$17+TabMOYENNES_CBH1_1[[#This Row],[TECHNO6]]*BE$17+TabMOYENNES_CBH1_1[[#This Row],[TECHNO7]]*BH$17+TabMOYENNES_CBH1_1[[#This Row],[TECHNO8]]*BK$17)/(BO$15+ROW()/10000) -> 11.47201728 | BO26: =RANK(TabMOYENNES_CBH1_1[[#This Row],[,]],TabMOYENNES_CBH1_1[,]) -> 1 | BP26: 11.47227728 | BQ26: 10.5 | BR26: =RANK(BS26,TabMOYENNES_CBH1_1[Colonne14]) -> 4 | BS26: 10.50026 | BT26: 12.75 | BU26: =RANK(BV26,TabMOYENNES_CBH1_1[Colonne16]) -> 14 | BV26: 12.75026 | BX26: =RANK(BY26,TabMOYENNES_CBH1_1[Colonne164]) -> 44 | BY26: 0.00026 | CA26: =RANK(CB26,TabMOYENNES_CBH1_1[Colonne17]) -> 44 | CB26: 0.00026 | CD26: =RANK(CE26,TabMOYENNES_CBH1_1[Colonne18]) -> 44 | CE26: 0.00026 | CG26: =RANK(CH26,TabMOYENNES_CBH1_1[Colonne184]) -> 44 | CH26: 0.00026 | CJ26: =RANK(CK26,TabMOYENNES_CBH1_1[Colonne19]) -> 44 | CK26: 0.00026 | CM26: =RANK(CN26,TabMOYENNES_CBH1_1[Colonne20]) -> 44 | CN26: 0.00026 | CO26: =(TabMOYENNES_CBH1_1[[#This Row],[PROF1]]*$BQ$17+TabMOYENNES_CBH1_1[[#This Row],[PROF2]]*BT$17+TabMOYENNES_CBH1_1[[#This Row],[PROF3]]*BW$17+TabMOYENNES_CBH1_1[[#This Row],[PROF4]]*BZ$17+TabMOYENNES_CBH1_1[[#This Row],[PROF5]]*CC$17+TabMOYENNES_CBH1_1[[#This Row],[PROF6]]*CF$17+TabMOYENNES_CBH1_1[[#This Row],[PROF7]]*CI$17+TabMOYENNES_CBH1_1[[#This Row],[PROF8]]*CL$17)/($CP$15+ROW()/10000) -> 7.747761758 | CP26: =RANK(CQ26,TabMOYENNES_CBH1_1[Colonne23]) -> 8 | CQ26: 7.748021758 | CR26: 12 | CS26: =RANK(CT26,TabMOYENNES_CBH1_1[Colonne2]) -> 1 | CT26: 12.00026 | CU26: 15 | CV26: =RANK(CW26,TabMOYENNES_CBH1_1[Colonne6]) -> 3 | CW26: 15.00026 | CX26: 13 | CY26: =RANK(CZ26,TabMOYENNES_CBH1_1[Colonne7]) -> 7 | CZ26: 13.00026 | DB26: =RANK(DC26,TabMOYENNES_CBH1_1[Colonne8]) -> 44 | DC26: 0.00026 | DE26: =RANK(DF26,TabMOYENNES_CBH1_1[Colonne9]) -> 44 | DF26: 0.00026 | DH26: =RANK(DI26,TabMOYENNES_CBH1_1[Colonne95]) -> 44 | DI26: 0.00026 | DK26: =RANK(DL26,TabMOYENNES_CBH1_1[Colonne92]) -> 44 | DL26: 0.00026 | DN26: =RANK(DO26,TabMOYENNES_CBH1_1[Colonne922]) -> 44 | DO26: 0.00026 | DP26: =(CR26*CR$17+CU26*CU$17+TabMOYENNES_CBH1_1[[#This Row],[ECO3]]*CX$17+TabMOYENNES_CBH1_1[[#This Row],[ECO4]]*DA$17+TabMOYENNES_CBH1_1[[#This Row],[ECO5]]*DD$17+TabMOYENNES_CBH1_1[[#This Row],[ECO6]]*DG$17+TabMOYENNES_CBH1_1[[#This Row],[ECO7]]*DJ$17+TabMOYENNES_CBH1_1[[#This Row],[ECO8]]*DM$17)/(DQ$15+ROW()/10000) -> 9.993504222 | DQ26: =RANK(TabMOYENNES_CBH1_1[[#This Row],[Colonne30]],TabMOYENNES_CBH1_1[Colonne30]) -> 2 | DR26: 9.993764222 | DU26: =VLOOKUP(TabMOYENNES_CBH1_1[[#This Row],[Matricule]],TabMOYENNES_CBH1_1[],20,FALSE) -> 12.09371127 | DV26: =VLOOKUP(TabMOYENNES_CBH1_1[[#This Row],[Matricule]],TabMOYENNES_CBH1_1[],38,FALSE) -> 9.868585419 | DW26: =VLOOKUP(TabMOYENNES_CBH1_1[[#This Row],[Matricule]],TabMOYENNES_CBH1_1[],65,FALSE) -> 11.47201728 | DX26: =VLOOKUP(TabMOYENNES_CBH1_1[[#This Row],[Matricule]],TabMOYENNES_CBH1_1[],92,FALSE) -> 7.747761758 | DY26: =VLOOKUP(TabMOYENNES_CBH1_1[[#This Row],[Matricule]],TabMOYENNES_CBH1_1[],119,FALSE) -> 9.993504222 | DZ26: 324.3669435 | EA26: 10.13564346 | EB26: =RANK(EC26,TabMOYENNES_CBH1_1[..],0) -> 1 | EC26: 10.13590346 | ED26: 0 | EE26: =IF($EA26="","",IF(AND($EA26=0,TabMOYENNES_CBH1_1[[#This Row],[H.A.]]>=140),"Abandon",IF($EA26>9.99,"Validé","Non Validé"))) -> Validé
B27: ='Liste CBH1_1'!B21 -> CBH1.S1.19/20.008 | C27: =VLOOKUP(B27,TabListe_CBH1_S1[],2,FALSE) -> IBOUANGA IBOUANGA Christ Jermy | D27: =VLOOKUP(B27,TabListe_CBH1_S1[],3,FALSE) -> M | F27: 0 | G27: 48 | H27: 0.00027 | I27: 0 | J27: =RANK(K27,TabMOYENNES_CBH1_1[Ref. 2]) -> 48 | K27: 0.00027 | M27: =RANK(N27,TabMOYENNES_CBH1_1[Ref. 3]) -> 43 | N27: 0.00027 | P27: =RANK(Q27,TabMOYENNES_CBH1_1[Ref. 4]) -> 43 | Q27: 0.00027 | S27: =RANK(T27,TabMOYENNES_CBH1_1[Ref. 5]) -> 43 | T27: 0.00027 | U27: =(F27*F$17+I27*I$17+TabMOYENNES_CBH1_1[[#This Row],[LG3]]*L$17+TabMOYENNES_CBH1_1[[#This Row],[LG4]]*O$17+TabMOYENNES_CBH1_1[[#This Row],[LG5]]*R$17)/(V$15+ROW()/10000) -> 0 | V27: =RANK(W27,TabMOYENNES_CBH1_1[Colonne4]) -> 48 | W27: 0.00027 | X27: 0 | Y27: =RANK(Z27,TabMOYENNES_CBH1_1[Ref 2.1]) -> 48 | Z27: 0.00027 | AA27: 0 | AB27: =RANK(AC27,TabMOYENNES_CBH1_1[Ref 2.2]) -> 48 | AC27: 0.00027 | AE27: =RANK(AF27,TabMOYENNES_CBH1_1[Ref 2.3]) -> 43 | AF27: 0.00027 | AH27: =RANK(AI27,TabMOYENNES_CBH1_1[Ref 2.4]) -> 43 | AI27: 0.00027 | AK27: =RANK(AL27,TabMOYENNES_CBH1_1[Ref 2.5]) -> 43 | AL27: 0.00027 | AM27: =(X27*X$17+AA27*AA$17+TabMOYENNES_CBH1_1[[#This Row],[SC3]]*AD$17+TabMOYENNES_CBH1_1[[#This Row],[SC4]]*AG$17+TabMOYENNES_CBH1_1[[#This Row],[SC5]]*AJ$17)/(AN$15+ROW()/10000) -> 0 | AN27: =RANK(AO27,TabMOYENNES_CBH1_1[Colonne44]) -> 49 | AO27: 0.00027 | AP27: 0 | AQ27: =RANK(AR27,TabMOYENNES_CBH1_1[Colonne32]) -> 48 | AR27: 0.00027 | AS27: 0 | AT27: =RANK(AU27,TabMOYENNES_CBH1_1[Colonne34]) -> 49 | AU27: 0.00027 | AV27: 0 | AW27: =RANK(AX27,TabMOYENNES_CBH1_1[Colonne36]) -> 49 | AX27: 0.00027 | AY27: 0 | AZ27: =RANK(BA27,TabMOYENNES_CBH1_1[Colonne38]) -> 48 | BA27: 0.00027 | BC27: =RANK(BD27,TabMOYENNES_CBH1_1[Colonne383]) -> 43 | BD27: 0.00027 | BF27: =RANK(BG27,TabMOYENNES_CBH1_1[Colonne384]) -> 43 | BG27: 0.00027 | BI27: =RANK(BJ27,TabMOYENNES_CBH1_1[Colonne385]) -> 43 | BJ27: 0.00027 | BL27: =RANK(BM27,TabMOYENNES_CBH1_1[Colonne386]) -> 43 | BM27: 0.00027 | BN27: =(AP27*AP$17+AS27*AS$17+AV27*AV$17+AY27*AY$17+TabMOYENNES_CBH1_1[[#This Row],[TECHNO5]]*BB$17+TabMOYENNES_CBH1_1[[#This Row],[TECHNO6]]*BE$17+TabMOYENNES_CBH1_1[[#This Row],[TECHNO7]]*BH$17+TabMOYENNES_CBH1_1[[#This Row],[TECHNO8]]*BK$17)/(BO$15+ROW()/10000) -> 0 | BO27: =RANK(TabMOYENNES_CBH1_1[[#This Row],[,]],TabMOYENNES_CBH1_1[,]) -> 49 | BP27: 0.00027 | BQ27: 0 | BR27: =RANK(BS27,TabMOYENNES_CBH1_1[Colonne14]) -> 48 | BS27: 0.00027 | BT27: 0 | BU27: =RANK(BV27,TabMOYENNES_CBH1_1[Colonne16]) -> 48 | BV27: 0.00027 | BX27: =RANK(BY27,TabMOYENNES_CBH1_1[Colonne164]) -> 43 | BY27: 0.00027 | CA27: =RANK(CB27,TabMOYENNES_CBH1_1[Colonne17]) -> 43 | CB27: 0.00027 | CD27: =RANK(CE27,TabMOYENNES_CBH1_1[Colonne18]) -> 43 | CE27: 0.00027 | CG27: =RANK(CH27,TabMOYENNES_CBH1_1[Colonne184]) -> 43 | CH27: 0.00027 | CJ27: =RANK(CK27,TabMOYENNES_CBH1_1[Colonne19]) -> 43 | CK27: 0.00027 | CM27: =RANK(CN27,TabMOYENNES_CBH1_1[Colonne20]) -> 43 | CN27: 0.00027 | CO27: =(TabMOYENNES_CBH1_1[[#This Row],[PROF1]]*$BQ$17+TabMOYENNES_CBH1_1[[#This Row],[PROF2]]*BT$17+TabMOYENNES_CBH1_1[[#This Row],[PROF3]]*BW$17+TabMOYENNES_CBH1_1[[#This Row],[PROF4]]*BZ$17+TabMOYENNES_CBH1_1[[#This Row],[PROF5]]*CC$17+TabMOYENNES_CBH1_1[[#This Row],[PROF6]]*CF$17+TabMOYENNES_CBH1_1[[#This Row],[PROF7]]*CI$17+TabMOYENNES_CBH1_1[[#This Row],[PROF8]]*CL$17)/($CP$15+ROW()/10000) -> 0 | CP27: =RANK(CQ27,TabMOYENNES_CBH1_1[Colonne23]) -> 48 | CQ27: 0.00027 | CR27: 0 | CS27: =RANK(CT27,TabMOYENNES_CBH1_1[Colonne2]) -> 48 | CT27: 0.00027 | CU27: 0 | CV27: =RANK(CW27,TabMOYENNES_CBH1_1[Colonne6]) -> 48 | CW27: 0.00027 | CX27: 0 | CY27: =RANK(CZ27,TabMOYENNES_CBH1_1[Colonne7]) -> 49 | CZ27: 0.00027 | DB27: =RANK(DC27,TabMOYENNES_CBH1_1[Colonne8]) -> 43 | DC27: 0.00027 | DE27: =RANK(DF27,TabMOYENNES_CBH1_1[Colonne9]) -> 43 | DF27: 0.00027 | DH27: =RANK(DI27,TabMOYENNES_CBH1_1[Colonne95]) -> 43 | DI27: 0.00027 | DK27: =RANK(DL27,TabMOYENNES_CBH1_1[Colonne92]) -> 43 | DL27: 0.00027 | DN27: =RANK(DO27,TabMOYENNES_CBH1_1[Colonne922]) -> 43 | DO27: 0.00027 | DP27: =(CR27*CR$17+CU27*CU$17+TabMOYENNES_CBH1_1[[#This Row],[ECO3]]*CX$17+TabMOYENNES_CBH1_1[[#This Row],[ECO4]]*DA$17+TabMOYENNES_CBH1_1[[#This Row],[ECO5]]*DD$17+TabMOYENNES_CBH1_1[[#This Row],[ECO6]]*DG$17+TabMOYENNES_CBH1_1[[#This Row],[ECO7]]*DJ$17+TabMOYENNES_CBH1_1[[#This Row],[ECO8]]*DM$17)/(DQ$15+ROW()/10000) -> 0 | DQ27: =RANK(TabMOYENNES_CBH1_1[[#This Row],[Colonne30]],TabMOYENNES_CBH1_1[Colonne30]) -> 49 | DR27: 0.00027 | DU27: =VLOOKUP(TabMOYENNES_CBH1_1[[#This Row],[Matricule]],TabMOYENNES_CBH1_1[],20,FALSE) -> 0 | DV27: =VLOOKUP(TabMOYENNES_CBH1_1[[#This Row],[Matricule]],TabMOYENNES_CBH1_1[],38,FALSE) -> 0 | DW27: =VLOOKUP(TabMOYENNES_CBH1_1[[#This Row],[Matricule]],TabMOYENNES_CBH1_1[],65,FALSE) -> 0 | DX27: =VLOOKUP(TabMOYENNES_CBH1_1[[#This Row],[Matricule]],TabMOYENNES_CBH1_1[],92,FALSE) -> 0 | DY27: =VLOOKUP(TabMOYENNES_CBH1_1[[#This Row],[Matricule]],TabMOYENNES_CBH1_1[],119,FALSE) -> 0 | DZ27: 0 | EA27: 0 | EB27: =RANK(EC27,TabMOYENNES_CBH1_1[..],0) -> 49 | EC27: 0.00027 | ED27: 0 | EE27: =IF($EA27="","",IF(AND($EA27=0,TabMOYENNES_CBH1_1[[#This Row],[H.A.]]>=140),"Abandon",IF($EA27>9.99,"Validé","Non Validé"))) -> Non Validé
B28: ='Liste CBH1_1'!B22 -> CBH1.S1.19/20.009 | C28: =VLOOKUP(B28,TabListe_CBH1_S1[],2,FALSE) -> KOUMBA KOUMBA Guy Elvice | D28: =VLOOKUP(B28,TabListe_CBH1_S1[],3,FALSE) -> M | F28: 0 | G28: 47 | H28: 0.00028 | I28: 10.5 | J28: =RANK(K28,TabMOYENNES_CBH1_1[Ref. 2]) -> 18 | K28: 10.50028 | M28: =RANK(N28,TabMOYENNES_CBH1_1[Ref. 3]) -> 42 | N28: 0.00028 | P28: =RANK(Q28,TabMOYENNES_CBH1_1[Ref. 4]) -> 42 | Q28: 0.00028 | S28: =RANK(T28,TabMOYENNES_CBH1_1[Ref. 5]) -> 42 | T28: 0.00028 | U28: =(F28*F$17+I28*I$17+TabMOYENNES_CBH1_1[[#This Row],[LG3]]*L$17+TabMOYENNES_CBH1_1[[#This Row],[LG4]]*O$17+TabMOYENNES_CBH1_1[[#This Row],[LG5]]*R$17)/(V$15+ROW()/10000) -> 6.296473975 | V28: =RANK(W28,TabMOYENNES_CBH1_1[Colonne4]) -> 18 | W28: 6.296753975 | X28: 9.5 | Y28: =RANK(Z28,TabMOYENNES_CBH1_1[Ref 2.1]) -> 6 | Z28: 9.50028 | AA28: 11 | AB28: =RANK(AC28,TabMOYENNES_CBH1_1[Ref 2.2]) -> 7 | AC28: 11.00028 | AE28: =RANK(AF28,TabMOYENNES_CBH1_1[Ref 2.3]) -> 42 | AF28: 0.00028 | AH28: =RANK(AI28,TabMOYENNES_CBH1_1[Ref 2.4]) -> 42 | AI28: 0.00028 | AK28: =RANK(AL28,TabMOYENNES_CBH1_1[Ref 2.5]) -> 42 | AL28: 0.00028 | AM28: =(X28*X$17+AA28*AA$17+TabMOYENNES_CBH1_1[[#This Row],[SC3]]*AD$17+TabMOYENNES_CBH1_1[[#This Row],[SC4]]*AG$17+TabMOYENNES_CBH1_1[[#This Row],[SC5]]*AJ$17)/(AN$15+ROW()/10000) -> 7.494753672 | AN28: =RANK(AO28,TabMOYENNES_CBH1_1[Colonne44]) -> 4 | AO28: 7.495033672 | AP28: 13 | AQ28: =RANK(AR28,TabMOYENNES_CBH1_1[Colonne32]) -> 2 | AR28: 13.00028 | AS28: 11 | AT28: =RANK(AU28,TabMOYENNES_CBH1_1[Colonne34]) -> 4 | AU28: 11.00028 | AV28: 7.333333333 | AW28: =RANK(AX28,TabMOYENNES_CBH1_1[Colonne36]) -> 15 | AX28: 7.333613333 | AY28: 8.25 | AZ28: =RANK(BA28,TabMOYENNES_CBH1_1[Colonne38]) -> 12 | BA28: 8.25028 | BC28: =RANK(BD28,TabMOYENNES_CBH1_1[Colonne383]) -> 42 | BD28: 0.00028 | BF28: =RANK(BG28,TabMOYENNES_CBH1_1[Colonne384]) -> 42 | BG28: 0.00028 | BI28: =RANK(BJ28,TabMOYENNES_CBH1_1[Colonne385]) -> 42 | BJ28: 0.00028 | BL28: =RANK(BM28,TabMOYENNES_CBH1_1[Colonne386]) -> 42 | BM28: 0.00028 | BN28: =(AP28*AP$17+AS28*AS$17+AV28*AV$17+AY28*AY$17+TabMOYENNES_CBH1_1[[#This Row],[TECHNO5]]*BB$17+TabMOYENNES_CBH1_1[[#This Row],[TECHNO6]]*BE$17+TabMOYENNES_CBH1_1[[#This Row],[TECHNO7]]*BH$17+TabMOYENNES_CBH1_1[[#This Row],[TECHNO8]]*BK$17)/(BO$15+ROW()/10000) -> 10.2221378 | BO28: =RANK(TabMOYENNES_CBH1_1[[#This Row],[,]],TabMOYENNES_CBH1_1[,]) -> 5 | BP28: 10.2224178 | BQ28: 10.25 | BR28: =RANK(BS28,TabMOYENNES_CBH1_1[Colonne14]) -> 5 | BS28: 10.25028 | BT28: 13.5 | BU28: =RANK(BV28,TabMOYENNES_CBH1_1[Colonne16]) -> 8 | BV28: 13.50028 | BX28: =RANK(BY28,TabMOYENNES_CBH1_1[Colonne164]) -> 42 | BY28: 0.00028 | CA28: =RANK(CB28,TabMOYENNES_CBH1_1[Colonne17]) -> 42 | CB28: 0.00028 | CD28: =RANK(CE28,TabMOYENNES_CBH1_1[Colonne18]) -> 42 | CE28: 0.00028 | CG28: =RANK(CH28,TabMOYENNES_CBH1_1[Colonne184]) -> 42 | CH28: 0.00028 | CJ28: =RANK(CK28,TabMOYENNES_CBH1_1[Colonne19]) -> 42 | CK28: 0.00028 | CM28: =RANK(CN28,TabMOYENNES_CBH1_1[Colonne20]) -> 42 | CN28: 0.00028 | CO28: =(TabMOYENNES_CBH1_1[[#This Row],[PROF1]]*$BQ$17+TabMOYENNES_CBH1_1[[#This Row],[PROF2]]*BT$17+TabMOYENNES_CBH1_1[[#This Row],[PROF3]]*BW$17+TabMOYENNES_CBH1_1[[#This Row],[PROF4]]*BZ$17+TabMOYENNES_CBH1_1[[#This Row],[PROF5]]*CC$17+TabMOYENNES_CBH1_1[[#This Row],[PROF6]]*CF$17+TabMOYENNES_CBH1_1[[#This Row],[PROF7]]*CI$17+TabMOYENNES_CBH1_1[[#This Row],[PROF8]]*CL$17)/($CP$15+ROW()/10000) -> 7.91420447 | CP28: =RANK(CQ28,TabMOYENNES_CBH1_1[Colonne23]) -> 5 | CQ28: 7.91448447 | CR28: 9 | CS28: =RANK(CT28,TabMOYENNES_CBH1_1[Colonne2]) -> 11 | CT28: 9.00028 | CU28: 17.75 | CV28: =RANK(CW28,TabMOYENNES_CBH1_1[Colonne6]) -> 1 | CW28: 17.75028 | CX28: 13 | CY28: =RANK(CZ28,TabMOYENNES_CBH1_1[Colonne7]) -> 6 | CZ28: 13.00028 | DB28: =RANK(DC28,TabMOYENNES_CBH1_1[Colonne8]) -> 42 | DC28: 0.00028 | DE28: =RANK(DF28,TabMOYENNES_CBH1_1[Colonne9]) -> 42 | DF28: 0.00028 | DH28: =RANK(DI28,TabMOYENNES_CBH1_1[Colonne95]) -> 42 | DI28: 0.00028 | DK28: =RANK(DL28,TabMOYENNES_CBH1_1[Colonne92]) -> 42 | DL28: 0.00028 | DN28: =RANK(DO28,TabMOYENNES_CBH1_1[Colonne922]) -> 42 | DO28: 0.00028 | DP28: =(CR28*CR$17+CU28*CU$17+TabMOYENNES_CBH1_1[[#This Row],[ECO3]]*CX$17+TabMOYENNES_CBH1_1[[#This Row],[ECO4]]*DA$17+TabMOYENNES_CBH1_1[[#This Row],[ECO5]]*DD$17+TabMOYENNES_CBH1_1[[#This Row],[ECO6]]*DG$17+TabMOYENNES_CBH1_1[[#This Row],[ECO7]]*DJ$17+TabMOYENNES_CBH1_1[[#This Row],[ECO8]]*DM$17)/(DQ$15+ROW()/10000) -> 9.930548616 | DQ28: =RANK(TabMOYENNES_CBH1_1[[#This Row],[Colonne30]],TabMOYENNES_CBH1_1[Colonne30]) -> 3 | DR28: 9.930828616 | DU28: =VLOOKUP(TabMOYENNES_CBH1_1[[#This Row],[Matricule]],TabMOYENNES_CBH1_1[],20,FALSE) -> 6.296473975 | DV28: =VLOOKUP(TabMOYENNES_CBH1_1[[#This Row],[Matricule]],TabMOYENNES_CBH1_1[],38,FALSE) -> 7.494753672 | DW28: =VLOOKUP(TabMOYENNES_CBH1_1[[#This Row],[Matricule]],TabMOYENNES_CBH1_1[],65,FALSE) -> 10.2221378 | DX28: =VLOOKUP(TabMOYENNES_CBH1_1[[#This Row],[Matricule]],TabMOYENNES_CBH1_1[],92,FALSE) -> 7.91420447 | DY28: =VLOOKUP(TabMOYENNES_CBH1_1[[#This Row],[Matricule]],TabMOYENNES_CBH1_1[],119,FALSE) -> 9.930548616 | DZ28: 274.6327973 | EA28: 8.581524031 | EB28: =RANK(EC28,TabMOYENNES_CBH1_1[..],0) -> 10 | EC28: 8.581804031 | ED28: 0 | EE28: =IF($EA28="","",IF(AND($EA28=0,TabMOYENNES_CBH1_1[[#This Row],[H.A.]]>=140),"Abandon",IF($EA28>9.99,"Validé","Non Validé"))) -> Non Validé
B29: ='Liste CBH1_1'!B23 -> CBH1.S1.19/20.010 | C29: =VLOOKUP(B29,TabListe_CBH1_S1[],2,FALSE) -> MAMBOUNDOU MOUNGUENGUI Steven | D29: =VLOOKUP(B29,TabListe_CBH1_S1[],3,FALSE) -> M | F29: 9 | G29: 13 | H29: 9.00029 | I29: 12.5 | J29: =RANK(K29,TabMOYENNES_CBH1_1[Ref. 2]) -> 10 | K29: 12.50029 | M29: =RANK(N29,TabMOYENNES_CBH1_1[Ref. 3]) -> 41 | N29: 0.00029 | P29: =RANK(Q29,TabMOYENNES_CBH1_1[Ref. 4]) -> 41 | Q29: 0.00029 | S29: =RANK(T29,TabMOYENNES_CBH1_1[Ref. 5]) -> 41 | T29: 0.00029 | U29: =(F29*F$17+I29*I$17+TabMOYENNES_CBH1_1[[#This Row],[LG3]]*L$17+TabMOYENNES_CBH1_1[[#This Row],[LG4]]*O$17+TabMOYENNES_CBH1_1[[#This Row],[LG5]]*R$17)/(V$15+ROW()/10000) -> 11.09356573 | V29: =RANK(W29,TabMOYENNES_CBH1_1[Colonne4]) -> 10 | W29: 11.09385573 | X29: 1.833333333 | Y29: =RANK(Z29,TabMOYENNES_CBH1_1[Ref 2.1]) -> 16 | Z29: 1.833623333 | AA29: 6.5 | AB29: =RANK(AC29,TabMOYENNES_CBH1_1[Ref 2.2]) -> 15 | AC29: 6.50029 | AE29: =RANK(AF29,TabMOYENNES_CBH1_1[Ref 2.3]) -> 41 | AF29: 0.00029 | AH29: =RANK(AI29,TabMOYENNES_CBH1_1[Ref 2.4]) -> 41 | AI29: 0.00029 | AK29: =RANK(AL29,TabMOYENNES_CBH1_1[Ref 2.5]) -> 41 | AL29: 0.00029 | AM29: =(X29*X$17+AA29*AA$17+TabMOYENNES_CBH1_1[[#This Row],[SC3]]*AD$17+TabMOYENNES_CBH1_1[[#This Row],[SC4]]*AG$17+TabMOYENNES_CBH1_1[[#This Row],[SC5]]*AJ$17)/(AN$15+ROW()/10000) -> 2.539825293 | AN29: =RANK(AO29,TabMOYENNES_CBH1_1[Colonne44]) -> 16 | AO29: 2.540115293 | AP29: 6.666666667 | AQ29: =RANK(AR29,TabMOYENNES_CBH1_1[Colonne32]) -> 18 | AR29: 6.666956667 | AS29: 6.25 | AT29: =RANK(AU29,TabMOYENNES_CBH1_1[Colonne34]) -> 13 | AU29: 6.25029 | AV29: 6.666666667 | AW29: =RANK(AX29,TabMOYENNES_CBH1_1[Colonne36]) -> 16 | AX29: 6.666956667 | AY29: 6 | AZ29: =RANK(BA29,TabMOYENNES_CBH1_1[Colonne38]) -> 14 | BA29: 6.00029 | BC29: =RANK(BD29,TabMOYENNES_CBH1_1[Colonne383]) -> 41 | BD29: 0.00029 | BF29: =RANK(BG29,TabMOYENNES_CBH1_1[Colonne384]) -> 41 | BG29: 0.00029 | BI29: =RANK(BJ29,TabMOYENNES_CBH1_1[Colonne385]) -> 41 | BJ29: 0.00029 | BL29: =RANK(BM29,TabMOYENNES_CBH1_1[Colonne386]) -> 41 | BM29: 0.00029 | BN29: =(AP29*AP$17+AS29*AS$17+AV29*AV$17+AY29*AY$17+TabMOYENNES_CBH1_1[[#This Row],[TECHNO5]]*BB$17+TabMOYENNES_CBH1_1[[#This Row],[TECHNO6]]*BE$17+TabMOYENNES_CBH1_1[[#This Row],[TECHNO7]]*BH$17+TabMOYENNES_CBH1_1[[#This Row],[TECHNO8]]*BK$17)/(BO$15+ROW()/10000) -> 6.473122794 | BO29: =RANK(TabMOYENNES_CBH1_1[[#This Row],[,]],TabMOYENNES_CBH1_1[,]) -> 16 | BP29: 6.473412794 | BQ29: 8.75 | BR29: =RANK(BS29,TabMOYENNES_CBH1_1[Colonne14]) -> 14 | BS29: 8.75029 | BT29: 12.75 | BU29: =RANK(BV29,TabMOYENNES_CBH1_1[Colonne16]) -> 13 | BV29: 12.75029 | BX29: =RANK(BY29,TabMOYENNES_CBH1_1[Colonne164]) -> 41 | BY29: 0.00029 | CA29: =RANK(CB29,TabMOYENNES_CBH1_1[Colonne17]) -> 41 | CB29: 0.00029 | CD29: =RANK(CE29,TabMOYENNES_CBH1_1[Colonne18]) -> 41 | CE29: 0.00029 | CG29: =RANK(CH29,TabMOYENNES_CBH1_1[Colonne184]) -> 41 | CH29: 0.00029 | CJ29: =RANK(CK29,TabMOYENNES_CBH1_1[Colonne19]) -> 41 | CK29: 0.00029 | CM29: =RANK(CN29,TabMOYENNES_CBH1_1[Colonne20]) -> 41 | CN29: 0.00029 | CO29: =(TabMOYENNES_CBH1_1[[#This Row],[PROF1]]*$BQ$17+TabMOYENNES_CBH1_1[[#This Row],[PROF2]]*BT$17+TabMOYENNES_CBH1_1[[#This Row],[PROF3]]*BW$17+TabMOYENNES_CBH1_1[[#This Row],[PROF4]]*BZ$17+TabMOYENNES_CBH1_1[[#This Row],[PROF5]]*CC$17+TabMOYENNES_CBH1_1[[#This Row],[PROF6]]*CF$17+TabMOYENNES_CBH1_1[[#This Row],[PROF7]]*CI$17+TabMOYENNES_CBH1_1[[#This Row],[PROF8]]*CL$17)/($CP$15+ROW()/10000) -> 7.164358151 | CP29: =RANK(CQ29,TabMOYENNES_CBH1_1[Colonne23]) -> 13 | CQ29: 7.164648151 | CR29: 7.5 | CS29: =RANK(CT29,TabMOYENNES_CBH1_1[Colonne2]) -> 13 | CT29: 7.50029 | CU29: 5.25 | CV29: =RANK(CW29,TabMOYENNES_CBH1_1[Colonne6]) -> 16 | CW29: 5.25029 | CX29: 6 | CY29: =RANK(CZ29,TabMOYENNES_CBH1_1[Colonne7]) -> 18 | CZ29: 6.00029 | DB29: =RANK(DC29,TabMOYENNES_CBH1_1[Colonne8]) -> 41 | DC29: 0.00029 | DE29: =RANK(DF29,TabMOYENNES_CBH1_1[Colonne9]) -> 41 | DF29: 0.00029 | DH29: =RANK(DI29,TabMOYENNES_CBH1_1[Colonne95]) -> 41 | DI29: 0.00029 | DK29: =RANK(DL29,TabMOYENNES_CBH1_1[Colonne92]) -> 41 | DL29: 0.00029 | DN29: =RANK(DO29,TabMOYENNES_CBH1_1[Colonne922]) -> 41 | DO29: 0.00029 | DP29: =(CR29*CR$17+CU29*CU$17+TabMOYENNES_CBH1_1[[#This Row],[ECO3]]*CX$17+TabMOYENNES_CBH1_1[[#This Row],[ECO4]]*DA$17+TabMOYENNES_CBH1_1[[#This Row],[ECO5]]*DD$17+TabMOYENNES_CBH1_1[[#This Row],[ECO6]]*DG$17+TabMOYENNES_CBH1_1[[#This Row],[ECO7]]*DJ$17+TabMOYENNES_CBH1_1[[#This Row],[ECO8]]*DM$17)/(DQ$15+ROW()/10000) -> 4.684104025 | DQ29: =RANK(TabMOYENNES_CBH1_1[[#This Row],[Colonne30]],TabMOYENNES_CBH1_1[Colonne30]) -> 17 | DR29: 4.684394025 | DU29: =VLOOKUP(TabMOYENNES_CBH1_1[[#This Row],[Matricule]],TabMOYENNES_CBH1_1[],20,FALSE) -> 11.09356573 | DV29: =VLOOKUP(TabMOYENNES_CBH1_1[[#This Row],[Matricule]],TabMOYENNES_CBH1_1[],38,FALSE) -> 2.539825293 | DW29: =VLOOKUP(TabMOYENNES_CBH1_1[[#This Row],[Matricule]],TabMOYENNES_CBH1_1[],65,FALSE) -> 6.473122794 | DX29: =VLOOKUP(TabMOYENNES_CBH1_1[[#This Row],[Matricule]],TabMOYENNES_CBH1_1[],92,FALSE) -> 7.164358151 | DY29: =VLOOKUP(TabMOYENNES_CBH1_1[[#This Row],[Matricule]],TabMOYENNES_CBH1_1[],119,FALSE) -> 4.684104025 | DZ29: 213.5739972 | EA29: 6.67358262 | EB29: =RANK(EC29,TabMOYENNES_CBH1_1[..],0) -> 16 | EC29: 6.67387262 | ED29: 0 | EE29: =IF($EA29="","",IF(AND($EA29=0,TabMOYENNES_CBH1_1[[#This Row],[H.A.]]>=140),"Abandon",IF($EA29>9.99,"Validé","Non Validé"))) -> Non Validé
B30: ='Liste CBH1_1'!B24 -> CBH1.S1.19/20.011 | C30: =VLOOKUP(B30,TabListe_CBH1_S1[],2,FALSE) -> MAYOMBO-KONGO Fredy-Cherie | D30: =VLOOKUP(B30,TabListe_CBH1_S1[],3,FALSE) -> M | F30: 9.5 | G30: 12 | H30: 9.5003 | I30: 10.5 | J30: =RANK(K30,TabMOYENNES_CBH1_1[Ref. 2]) -> 17 | K30: 10.5003 | M30: =RANK(N30,TabMOYENNES_CBH1_1[Ref. 3]) -> 40 | N30: 0.0003 | P30: =RANK(Q30,TabMOYENNES_CBH1_1[Ref. 4]) -> 40 | Q30: 0.0003 | S30: =RANK(T30,TabMOYENNES_CBH1_1[Ref. 5]) -> 40 | T30: 0.0003 | U30: =(F30*F$17+I30*I$17+TabMOYENNES_CBH1_1[[#This Row],[LG3]]*L$17+TabMOYENNES_CBH1_1[[#This Row],[LG4]]*O$17+TabMOYENNES_CBH1_1[[#This Row],[LG5]]*R$17)/(V$15+ROW()/10000) -> 10.09394363 | V30: =RANK(W30,TabMOYENNES_CBH1_1[Colonne4]) -> 13 | W30: 10.09424363 | X30: 7 | Y30: =RANK(Z30,TabMOYENNES_CBH1_1[Ref 2.1]) -> 11 | Z30: 7.0003 | AA30: 8 | AB30: =RANK(AC30,TabMOYENNES_CBH1_1[Ref 2.2]) -> 13 | AC30: 8.0003 | AE30: =RANK(AF30,TabMOYENNES_CBH1_1[Ref 2.3]) -> 40 | AF30: 0.0003 | AH30: =RANK(AI30,TabMOYENNES_CBH1_1[Ref 2.4]) -> 40 | AI30: 0.0003 | AK30: =RANK(AL30,TabMOYENNES_CBH1_1[Ref 2.5]) -> 40 | AL30: 0.0003 | AM30: =(X30*X$17+AA30*AA$17+TabMOYENNES_CBH1_1[[#This Row],[SC3]]*AD$17+TabMOYENNES_CBH1_1[[#This Row],[SC4]]*AG$17+TabMOYENNES_CBH1_1[[#This Row],[SC5]]*AJ$17)/(AN$15+ROW()/10000) -> 5.495878091 | AN30: =RANK(AO30,TabMOYENNES_CBH1_1[Colonne44]) -> 13 | AO30: 5.496178091 | AP30: 12.33333333 | AQ30: =RANK(AR30,TabMOYENNES_CBH1_1[Colonne32]) -> 6 | AR30: 12.33363333 | AS30: 2.25 | AT30: =RANK(AU30,TabMOYENNES_CBH1_1[Colonne34]) -> 15 | AU30: 2.2503 | AV30: 9.666666667 | AW30: =RANK(AX30,TabMOYENNES_CBH1_1[Colonne36]) -> 7 | AX30: 9.666966667 | AY30: 6 | AZ30: =RANK(BA30,TabMOYENNES_CBH1_1[Colonne38]) -> 13 | BA30: 6.0003 | BC30: =RANK(BD30,TabMOYENNES_CBH1_1[Colonne383]) -> 40 | BD30: 0.0003 | BF30: =RANK(BG30,TabMOYENNES_CBH1_1[Colonne384]) -> 40 | BG30: 0.0003 | BI30: =RANK(BJ30,TabMOYENNES_CBH1_1[Colonne385]) -> 40 | BJ30: 0.0003 | BL30: =RANK(BM30,TabMOYENNES_CBH1_1[Colonne386]) -> 40 | BM30: 0.0003 | BN30: =(AP30*AP$17+AS30*AS$17+AV30*AV$17+AY30*AY$17+TabMOYENNES_CBH1_1[[#This Row],[TECHNO5]]*BB$17+TabMOYENNES_CBH1_1[[#This Row],[TECHNO6]]*BE$17+TabMOYENNES_CBH1_1[[#This Row],[TECHNO7]]*BH$17+TabMOYENNES_CBH1_1[[#This Row],[TECHNO8]]*BK$17)/(BO$15+ROW()/10000) -> 7.872638209 | BO30: =RANK(TabMOYENNES_CBH1_1[[#This Row],[,]],TabMOYENNES_CBH1_1[,]) -> 13 | BP30: 7.872938209 | BQ30: 8 | BR30: =RANK(BS30,TabMOYENNES_CBH1_1[Colonne14]) -> 16 | BS30: 8.0003 | BT30: 12.75 | BU30: =RANK(BV30,TabMOYENNES_CBH1_1[Colonne16]) -> 12 | BV30: 12.7503 | BX30: =RANK(BY30,TabMOYENNES_CBH1_1[Colonne164]) -> 40 | BY30: 0.0003 | CA30: =RANK(CB30,TabMOYENNES_CBH1_1[Colonne17]) -> 40 | CB30: 0.0003 | CD30: =RANK(CE30,TabMOYENNES_CBH1_1[Colonne18]) -> 40 | CE30: 0.0003 | CG30: =RANK(CH30,TabMOYENNES_CBH1_1[Colonne184]) -> 40 | CH30: 0.0003 | CJ30: =RANK(CK30,TabMOYENNES_CBH1_1[Colonne19]) -> 40 | CK30: 0.0003 | CM30: =RANK(CN30,TabMOYENNES_CBH1_1[Colonne20]) -> 40 | CN30: 0.0003 | CO30: =(TabMOYENNES_CBH1_1[[#This Row],[PROF1]]*$BQ$17+TabMOYENNES_CBH1_1[[#This Row],[PROF2]]*BT$17+TabMOYENNES_CBH1_1[[#This Row],[PROF3]]*BW$17+TabMOYENNES_CBH1_1[[#This Row],[PROF4]]*BZ$17+TabMOYENNES_CBH1_1[[#This Row],[PROF5]]*CC$17+TabMOYENNES_CBH1_1[[#This Row],[PROF6]]*CF$17+TabMOYENNES_CBH1_1[[#This Row],[PROF7]]*CI$17+TabMOYENNES_CBH1_1[[#This Row],[PROF8]]*CL$17)/($CP$15+ROW()/10000) -> 6.914361879 | CP30: =RANK(CQ30,TabMOYENNES_CBH1_1[Colonne23]) -> 15 | CQ30: 6.914661879 | CR30: 11 | CS30: =RANK(CT30,TabMOYENNES_CBH1_1[Colonne2]) -> 5 | CT30: 11.0003 | CU30: 9.5 | CV30: =RANK(CW30,TabMOYENNES_CBH1_1[Colonne6]) -> 13 | CW30: 9.5003 | CX30: 12 | CY30: =RANK(CZ30,TabMOYENNES_CBH1_1[Colonne7]) -> 12 | CZ30: 12.0003 | DB30: =RANK(DC30,TabMOYENNES_CBH1_1[Colonne8]) -> 40 | DC30: 0.0003 | DE30: =RANK(DF30,TabMOYENNES_CBH1_1[Colonne9]) -> 40 | DF30: 0.0003 | DH30: =RANK(DI30,TabMOYENNES_CBH1_1[Colonne95]) -> 40 | DI30: 0.0003 | DK30: =RANK(DL30,TabMOYENNES_CBH1_1[Colonne92]) -> 40 | DL30: 0.0003 | DN30: =RANK(DO30,TabMOYENNES_CBH1_1[Colonne922]) -> 40 | DO30: 0.0003 | DP30: =(CR30*CR$17+CU30*CU$17+TabMOYENNES_CBH1_1[[#This Row],[ECO3]]*CX$17+TabMOYENNES_CBH1_1[[#This Row],[ECO4]]*DA$17+TabMOYENNES_CBH1_1[[#This Row],[ECO5]]*DD$17+TabMOYENNES_CBH1_1[[#This Row],[ECO6]]*DG$17+TabMOYENNES_CBH1_1[[#This Row],[ECO7]]*DJ$17+TabMOYENNES_CBH1_1[[#This Row],[ECO8]]*DM$17)/(DQ$15+ROW()/10000) -> 8.118910817 | DQ30: =RANK(TabMOYENNES_CBH1_1[[#This Row],[Colonne30]],TabMOYENNES_CBH1_1[Colonne30]) -> 10 | DR30: 8.119210817 | DU30: =VLOOKUP(TabMOYENNES_CBH1_1[[#This Row],[Matricule]],TabMOYENNES_CBH1_1[],20,FALSE) -> 10.09394363 | DV30: =VLOOKUP(TabMOYENNES_CBH1_1[[#This Row],[Matricule]],TabMOYENNES_CBH1_1[],38,FALSE) -> 5.495878091 | DW30: =VLOOKUP(TabMOYENNES_CBH1_1[[#This Row],[Matricule]],TabMOYENNES_CBH1_1[],65,FALSE) -> 7.872638209 | DX30: =VLOOKUP(TabMOYENNES_CBH1_1[[#This Row],[Matricule]],TabMOYENNES_CBH1_1[],92,FALSE) -> 6.914361879 | DY30: =VLOOKUP(TabMOYENNES_CBH1_1[[#This Row],[Matricule]],TabMOYENNES_CBH1_1[],119,FALSE) -> 8.118910817 | DZ30: 245.8845128 | EA30: 7.683170728 | EB30: =RANK(EC30,TabMOYENNES_CBH1_1[..],0) -> 14 | EC30: 7.683470728 | ED30: 0 | EE30: =IF($EA30="","",IF(AND($EA30=0,TabMOYENNES_CBH1_1[[#This Row],[H.A.]]>=140),"Abandon",IF($EA30>9.99,"Validé","Non Validé"))) -> Non Validé
B31: ='Liste CBH1_1'!B25 -> CBH1.S1.19/20.012 | C31: =VLOOKUP(B31,TabListe_CBH1_S1[],2,FALSE) -> MBOUNDOU Juste Méthode | D31: =VLOOKUP(B31,TabListe_CBH1_S1[],3,FALSE) -> M | F31: 12 | G31: 2 | H31: 12.00031 | I31: 12.5 | J31: =RANK(K31,TabMOYENNES_CBH1_1[Ref. 2]) -> 9 | K31: 12.50031 | M31: =RANK(N31,TabMOYENNES_CBH1_1[Ref. 3]) -> 39 | N31: 0.00031 | P31: =RANK(Q31,TabMOYENNES_CBH1_1[Ref. 4]) -> 39 | Q31: 0.00031 | S31: =RANK(T31,TabMOYENNES_CBH1_1[Ref. 5]) -> 39 | T31: 0.00031 | U31: =(F31*F$17+I31*I$17+TabMOYENNES_CBH1_1[[#This Row],[LG3]]*L$17+TabMOYENNES_CBH1_1[[#This Row],[LG4]]*O$17+TabMOYENNES_CBH1_1[[#This Row],[LG5]]*R$17)/(V$15+ROW()/10000) -> 12.29237873 | V31: =RANK(W31,TabMOYENNES_CBH1_1[Colonne4]) -> 5 | W31: 12.29268873 | X31: 9.666666667 | Y31: =RANK(Z31,TabMOYENNES_CBH1_1[Ref 2.1]) -> 4 | Z31: 9.666976667 | AA31: 11.5 | AB31: =RANK(AC31,TabMOYENNES_CBH1_1[Ref 2.2]) -> 6 | AC31: 11.50031 | AE31: =RANK(AF31,TabMOYENNES_CBH1_1[Ref 2.3]) -> 39 | AF31: 0.00031 | AH31: =RANK(AI31,TabMOYENNES_CBH1_1[Ref 2.4]) -> 39 | AI31: 0.00031 | AK31: =RANK(AL31,TabMOYENNES_CBH1_1[Ref 2.5]) -> 39 | AL31: 0.00031 | AM31: =(X31*X$17+AA31*AA$17+TabMOYENNES_CBH1_1[[#This Row],[SC3]]*AD$17+TabMOYENNES_CBH1_1[[#This Row],[SC4]]*AG$17+TabMOYENNES_CBH1_1[[#This Row],[SC5]]*AJ$17)/(AN$15+ROW()/10000) -> 7.702364001 | AN31: =RANK(AO31,TabMOYENNES_CBH1_1[Colonne44]) -> 3 | AO31: 7.702674001 | AP31: 11.33333333 | AQ31: =RANK(AR31,TabMOYENNES_CBH1_1[Colonne32]) -> 8 | AR31: 11.33364333 | AS31: 11.25 | AT31: =RANK(AU31,TabMOYENNES_CBH1_1[Colonne34]) -> 3 | AU31: 11.25031 | AV31: 8.666666667 | AW31: =RANK(AX31,TabMOYENNES_CBH1_1[Colonne36]) -> 10 | AX31: 8.666976667 | AY31: 9.5 | AZ31: =RANK(BA31,TabMOYENNES_CBH1_1[Colonne38]) -> 9 | BA31: 9.50031 | BC31: =RANK(BD31,TabMOYENNES_CBH1_1[Colonne383]) -> 39 | BD31: 0.00031 | BF31: =RANK(BG31,TabMOYENNES_CBH1_1[Colonne384]) -> 39 | BG31: 0.00031 | BI31: =RANK(BJ31,TabMOYENNES_CBH1_1[Colonne385]) -> 39 | BJ31: 0.00031 | BL31: =RANK(BM31,TabMOYENNES_CBH1_1[Colonne386]) -> 39 | BM31: 0.00031 | BN31: =(AP31*AP$17+AS31*AS$17+AV31*AV$17+AY31*AY$17+TabMOYENNES_CBH1_1[[#This Row],[TECHNO5]]*BB$17+TabMOYENNES_CBH1_1[[#This Row],[TECHNO6]]*BE$17+TabMOYENNES_CBH1_1[[#This Row],[TECHNO7]]*BH$17+TabMOYENNES_CBH1_1[[#This Row],[TECHNO8]]*BK$17)/(BO$15+ROW()/10000) -> 10.32180024 | BO31: =RANK(TabMOYENNES_CBH1_1[[#This Row],[,]],TabMOYENNES_CBH1_1[,]) -> 4 | BP31: 10.32211024 | BQ31: 11.75 | BR31: =RANK(BS31,TabMOYENNES_CBH1_1[Colonne14]) -> 3 | BS31: 11.75031 | BT31: 14.75 | BU31: =RANK(BV31,TabMOYENNES_CBH1_1[Colonne16]) -> 1 | BV31: 14.75031 | BX31: =RANK(BY31,TabMOYENNES_CBH1_1[Colonne164]) -> 39 | BY31: 0.00031 | CA31: =RANK(CB31,TabMOYENNES_CBH1_1[Colonne17]) -> 39 | CB31: 0.00031 | CD31: =RANK(CE31,TabMOYENNES_CBH1_1[Colonne18]) -> 39 | CE31: 0.00031 | CG31: =RANK(CH31,TabMOYENNES_CBH1_1[Colonne184]) -> 39 | CH31: 0.00031 | CJ31: =RANK(CK31,TabMOYENNES_CBH1_1[Colonne19]) -> 39 | CK31: 0.00031 | CM31: =RANK(CN31,TabMOYENNES_CBH1_1[Colonne20]) -> 39 | CN31: 0.00031 | CO31: =(TabMOYENNES_CBH1_1[[#This Row],[PROF1]]*$BQ$17+TabMOYENNES_CBH1_1[[#This Row],[PROF2]]*BT$17+TabMOYENNES_CBH1_1[[#This Row],[PROF3]]*BW$17+TabMOYENNES_CBH1_1[[#This Row],[PROF4]]*BZ$17+TabMOYENNES_CBH1_1[[#This Row],[PROF5]]*CC$17+TabMOYENNES_CBH1_1[[#This Row],[PROF6]]*CF$17+TabMOYENNES_CBH1_1[[#This Row],[PROF7]]*CI$17+TabMOYENNES_CBH1_1[[#This Row],[PROF8]]*CL$17)/($CP$15+ROW()/10000) -> 8.830291788 | CP31: =RANK(CQ31,TabMOYENNES_CBH1_1[Colonne23]) -> 2 | CQ31: 8.830601788 | CR31: 11 | CS31: =RANK(CT31,TabMOYENNES_CBH1_1[Colonne2]) -> 4 | CT31: 11.00031 | CU31: 2.5 | CV31: =RANK(CW31,TabMOYENNES_CBH1_1[Colonne6]) -> 17 | CW31: 2.50031 | CX31: 18 | CY31: =RANK(CZ31,TabMOYENNES_CBH1_1[Colonne7]) -> 1 | CZ31: 18.00031 | DB31: =RANK(DC31,TabMOYENNES_CBH1_1[Colonne8]) -> 39 | DC31: 0.00031 | DE31: =RANK(DF31,TabMOYENNES_CBH1_1[Colonne9]) -> 39 | DF31: 0.00031 | DH31: =RANK(DI31,TabMOYENNES_CBH1_1[Colonne95]) -> 39 | DI31: 0.00031 | DK31: =RANK(DL31,TabMOYENNES_CBH1_1[Colonne92]) -> 39 | DL31: 0.00031 | DN31: =RANK(DO31,TabMOYENNES_CBH1_1[Colonne922]) -> 39 | DO31: 0.00031 | DP31: =(CR31*CR$17+CU31*CU$17+TabMOYENNES_CBH1_1[[#This Row],[ECO3]]*CX$17+TabMOYENNES_CBH1_1[[#This Row],[ECO4]]*DA$17+TabMOYENNES_CBH1_1[[#This Row],[ECO5]]*DD$17+TabMOYENNES_CBH1_1[[#This Row],[ECO6]]*DG$17+TabMOYENNES_CBH1_1[[#This Row],[ECO7]]*DJ$17+TabMOYENNES_CBH1_1[[#This Row],[ECO8]]*DM$17)/(DQ$15+ROW()/10000) -> 7.868901601 | DQ31: =RANK(TabMOYENNES_CBH1_1[[#This Row],[Colonne30]],TabMOYENNES_CBH1_1[Colonne30]) -> 13 | DR31: 7.869211601 | DU31: =VLOOKUP(TabMOYENNES_CBH1_1[[#This Row],[Matricule]],TabMOYENNES_CBH1_1[],20,FALSE) -> 12.29237873 | DV31: =VLOOKUP(TabMOYENNES_CBH1_1[[#This Row],[Matricule]],TabMOYENNES_CBH1_1[],38,FALSE) -> 7.702364001 | DW31: =VLOOKUP(TabMOYENNES_CBH1_1[[#This Row],[Matricule]],TabMOYENNES_CBH1_1[],65,FALSE) -> 10.32180024 | DX31: =VLOOKUP(TabMOYENNES_CBH1_1[[#This Row],[Matricule]],TabMOYENNES_CBH1_1[],92,FALSE) -> 8.830291788 | DY31: =VLOOKUP(TabMOYENNES_CBH1_1[[#This Row],[Matricule]],TabMOYENNES_CBH1_1[],119,FALSE) -> 7.868901601 | DZ31: 306.4375846 | EA31: 9.575246915 | EB31: =RANK(EC31,TabMOYENNES_CBH1_1[..],0) -> 2 | EC31: 9.575556915 | ED31: 0 | EE31: =IF($EA31="","",IF(AND($EA31=0,TabMOYENNES_CBH1_1[[#This Row],[H.A.]]>=140),"Abandon",IF($EA31>9.99,"Validé","Non Validé"))) -> Non Validé
B32: ='Liste CBH1_1'!B26 -> CBH1.S1.19/20.013 | C32: =VLOOKUP(B32,TabListe_CBH1_S1[],2,FALSE) -> MBOUTSOU BOUGUEROU | D32: =VLOOKUP(B32,TabListe_CBH1_S1[],3,FALSE) -> M | F32: 10.5 | G32: 9 | H32: 10.50032 | I32: 14 | J32: =RANK(K32,TabMOYENNES_CBH1_1[Ref. 2]) -> 2 | K32: 14.00032 | M32: =RANK(N32,TabMOYENNES_CBH1_1[Ref. 3]) -> 38 | N32: 0.00032 | P32: =RANK(Q32,TabMOYENNES_CBH1_1[Ref. 4]) -> 38 | Q32: 0.00032 | S32: =RANK(T32,TabMOYENNES_CBH1_1[Ref. 5]) -> 38 | T32: 0.00032 | U32: =(F32*F$17+I32*I$17+TabMOYENNES_CBH1_1[[#This Row],[LG3]]*L$17+TabMOYENNES_CBH1_1[[#This Row],[LG4]]*O$17+TabMOYENNES_CBH1_1[[#This Row],[LG5]]*R$17)/(V$15+ROW()/10000) -> 12.59194116 | V32: =RANK(W32,TabMOYENNES_CBH1_1[Colonne4]) -> 4 | W32: 12.59226116 | X32: 9.5 | Y32: =RANK(Z32,TabMOYENNES_CBH1_1[Ref 2.1]) -> 5 | Z32: 9.50032 | AA32: 8.5 | AB32: =RANK(AC32,TabMOYENNES_CBH1_1[Ref 2.2]) -> 12 | AC32: 8.50032 | AE32: =RANK(AF32,TabMOYENNES_CBH1_1[Ref 2.3]) -> 38 | AF32: 0.00032 | AH32: =RANK(AI32,TabMOYENNES_CBH1_1[Ref 2.4]) -> 38 | AI32: 0.00032 | AK32: =RANK(AL32,TabMOYENNES_CBH1_1[Ref 2.5]) -> 38 | AL32: 0.00032 | AM32: =(X32*X$17+AA32*AA$17+TabMOYENNES_CBH1_1[[#This Row],[SC3]]*AD$17+TabMOYENNES_CBH1_1[[#This Row],[SC4]]*AG$17+TabMOYENNES_CBH1_1[[#This Row],[SC5]]*AJ$17)/(AN$15+ROW()/10000) -> 6.869504396 | AN32: =RANK(AO32,TabMOYENNES_CBH1_1[Colonne44]) -> 8 | AO32: 6.869824396 | AP32: 11 | AQ32: =RANK(AR32,TabMOYENNES_CBH1_1[Colonne32]) -> 9 | AR32: 11.00032 | AS32: 12.75 | AT32: =RANK(AU32,TabMOYENNES_CBH1_1[Colonne34]) -> 1 | AU32: 12.75032 | AV32: 7.666666667 | AW32: =RANK(AX32,TabMOYENNES_CBH1_1[Colonne36]) -> 13 | AX32: 7.666986667 | AY32: 10.5 | AZ32: =RANK(BA32,TabMOYENNES_CBH1_1[Colonne38]) -> 7 | BA32: 10.50032 | BC32: =RANK(BD32,TabMOYENNES_CBH1_1[Colonne383]) -> 38 | BD32: 0.00032 | BF32: =RANK(BG32,TabMOYENNES_CBH1_1[Colonne384]) -> 38 | BG32: 0.00032 | BI32: =RANK(BJ32,TabMOYENNES_CBH1_1[Colonne385]) -> 38 | BJ32: 0.00032 | BL32: =RANK(BM32,TabMOYENNES_CBH1_1[Colonne386]) -> 38 | BM32: 0.00032 | BN32: =(AP32*AP$17+AS32*AS$17+AV32*AV$17+AY32*AY$17+TabMOYENNES_CBH1_1[[#This Row],[TECHNO5]]*BB$17+TabMOYENNES_CBH1_1[[#This Row],[TECHNO6]]*BE$17+TabMOYENNES_CBH1_1[[#This Row],[TECHNO7]]*BH$17+TabMOYENNES_CBH1_1[[#This Row],[TECHNO8]]*BK$17)/(BO$15+ROW()/10000) -> 10.47164907 | BO32: =RANK(TabMOYENNES_CBH1_1[[#This Row],[,]],TabMOYENNES_CBH1_1[,]) -> 3 | BP32: 10.47196907 | BQ32: 9.5 | BR32: =RANK(BS32,TabMOYENNES_CBH1_1[Colonne14]) -> 11 | BS32: 9.50032 | BT32: 14 | BU32: =RANK(BV32,TabMOYENNES_CBH1_1[Colonne16]) -> 4 | BV32: 14.00032 | BX32: =RANK(BY32,TabMOYENNES_CBH1_1[Colonne164]) -> 38 | BY32: 0.00032 | CA32: =RANK(CB32,TabMOYENNES_CBH1_1[Colonne17]) -> 38 | CB32: 0.00032 | CD32: =RANK(CE32,TabMOYENNES_CBH1_1[Colonne18]) -> 38 | CE32: 0.00032 | CG32: =RANK(CH32,TabMOYENNES_CBH1_1[Colonne184]) -> 38 | CH32: 0.00032 | CJ32: =RANK(CK32,TabMOYENNES_CBH1_1[Colonne19]) -> 38 | CK32: 0.00032 | CM32: =RANK(CN32,TabMOYENNES_CBH1_1[Colonne20]) -> 38 | CN32: 0.00032 | CO32: =(TabMOYENNES_CBH1_1[[#This Row],[PROF1]]*$BQ$17+TabMOYENNES_CBH1_1[[#This Row],[PROF2]]*BT$17+TabMOYENNES_CBH1_1[[#This Row],[PROF3]]*BW$17+TabMOYENNES_CBH1_1[[#This Row],[PROF4]]*BZ$17+TabMOYENNES_CBH1_1[[#This Row],[PROF5]]*CC$17+TabMOYENNES_CBH1_1[[#This Row],[PROF6]]*CF$17+TabMOYENNES_CBH1_1[[#This Row],[PROF7]]*CI$17+TabMOYENNES_CBH1_1[[#This Row],[PROF8]]*CL$17)/($CP$15+ROW()/10000) -> 7.830549138 | CP32: =RANK(CQ32,TabMOYENNES_CBH1_1[Colonne23]) -> 6 | CQ32: 7.830869138 | CR32: 9 | CS32: =RANK(CT32,TabMOYENNES_CBH1_1[Colonne2]) -> 10 | CT32: 9.00032 | CU32: 11.5 | CV32: =RANK(CW32,TabMOYENNES_CBH1_1[Colonne6]) -> 8 | CW32: 11.50032 | CX32: 12 | CY32: =RANK(CZ32,TabMOYENNES_CBH1_1[Colonne7]) -> 11 | CZ32: 12.00032 | DB32: =RANK(DC32,TabMOYENNES_CBH1_1[Colonne8]) -> 38 | DC32: 0.00032 | DE32: =RANK(DF32,TabMOYENNES_CBH1_1[Colonne9]) -> 38 | DF32: 0.00032 | DH32: =RANK(DI32,TabMOYENNES_CBH1_1[Colonne95]) -> 38 | DI32: 0.00032 | DK32: =RANK(DL32,TabMOYENNES_CBH1_1[Colonne92]) -> 38 | DL32: 0.00032 | DN32: =RANK(DO32,TabMOYENNES_CBH1_1[Colonne922]) -> 38 | DO32: 0.00032 | DP32: =(CR32*CR$17+CU32*CU$17+TabMOYENNES_CBH1_1[[#This Row],[ECO3]]*CX$17+TabMOYENNES_CBH1_1[[#This Row],[ECO4]]*DA$17+TabMOYENNES_CBH1_1[[#This Row],[ECO5]]*DD$17+TabMOYENNES_CBH1_1[[#This Row],[ECO6]]*DG$17+TabMOYENNES_CBH1_1[[#This Row],[ECO7]]*DJ$17+TabMOYENNES_CBH1_1[[#This Row],[ECO8]]*DM$17)/(DQ$15+ROW()/10000) -> 8.118505196 | DQ32: =RANK(TabMOYENNES_CBH1_1[[#This Row],[Colonne30]],TabMOYENNES_CBH1_1[Colonne30]) -> 11 | DR32: 8.118825196 | DU32: =VLOOKUP(TabMOYENNES_CBH1_1[[#This Row],[Matricule]],TabMOYENNES_CBH1_1[],20,FALSE) -> 12.59194116 | DV32: =VLOOKUP(TabMOYENNES_CBH1_1[[#This Row],[Matricule]],TabMOYENNES_CBH1_1[],38,FALSE) -> 6.869504396 | DW32: =VLOOKUP(TabMOYENNES_CBH1_1[[#This Row],[Matricule]],TabMOYENNES_CBH1_1[],65,FALSE) -> 10.47164907 | DX32: =VLOOKUP(TabMOYENNES_CBH1_1[[#This Row],[Matricule]],TabMOYENNES_CBH1_1[],92,FALSE) -> 7.830549138 | DY32: =VLOOKUP(TabMOYENNES_CBH1_1[[#This Row],[Matricule]],TabMOYENNES_CBH1_1[],119,FALSE) -> 8.118505196 | DZ32: 298.1031771 | EA32: 9.314792806 | EB32: =RANK(EC32,TabMOYENNES_CBH1_1[..],0) -> 6 | EC32: 9.315112806 | ED32: 0 | EE32: =IF($EA32="","",IF(AND($EA32=0,TabMOYENNES_CBH1_1[[#This Row],[H.A.]]>=140),"Abandon",IF($EA32>9.99,"Validé","Non Validé"))) -> Non Validé
B33: ='Liste CBH1_1'!B27 -> CBH1.S1.19/20.014 | C33: =VLOOKUP(B33,TabListe_CBH1_S1[],2,FALSE) -> MINTSA ONDO Loic | D33: =VLOOKUP(B33,TabListe_CBH1_S1[],3,FALSE) -> M | F33: 11.5 | G33: 5 | H33: 11.50033 | I33: 13.5 | J33: =RANK(K33,TabMOYENNES_CBH1_1[Ref. 2]) -> 4 | K33: 13.50033 | M33: =RANK(N33,TabMOYENNES_CBH1_1[Ref. 3]) -> 37 | N33: 0.00033 | P33: =RANK(Q33,TabMOYENNES_CBH1_1[Ref. 4]) -> 37 | Q33: 0.00033 | S33: =RANK(T33,TabMOYENNES_CBH1_1[Ref. 5]) -> 37 | T33: 0.00033 | U33: =(F33*F$17+I33*I$17+TabMOYENNES_CBH1_1[[#This Row],[LG3]]*L$17+TabMOYENNES_CBH1_1[[#This Row],[LG4]]*O$17+TabMOYENNES_CBH1_1[[#This Row],[LG5]]*R$17)/(V$15+ROW()/10000) -> 12.69162353 | V33: =RANK(W33,TabMOYENNES_CBH1_1[Colonne4]) -> 3 | W33: 12.69195353 | X33: 6.833333333 | Y33: =RANK(Z33,TabMOYENNES_CBH1_1[Ref 2.1]) -> 12 | Z33: 6.833663333 | AA33: 11.5 | AB33: =RANK(AC33,TabMOYENNES_CBH1_1[Ref 2.2]) -> 5 | AC33: 11.50033 | AE33: =RANK(AF33,TabMOYENNES_CBH1_1[Ref 2.3]) -> 37 | AF33: 0.00033 | AH33: =RANK(AI33,TabMOYENNES_CBH1_1[Ref 2.4]) -> 37 | AI33: 0.00033 | AK33: =RANK(AL33,TabMOYENNES_CBH1_1[Ref 2.5]) -> 37 | AL33: 0.00033 | AM33: =(X33*X$17+AA33*AA$17+TabMOYENNES_CBH1_1[[#This Row],[SC3]]*AD$17+TabMOYENNES_CBH1_1[[#This Row],[SC4]]*AG$17+TabMOYENNES_CBH1_1[[#This Row],[SC5]]*AJ$17)/(AN$15+ROW()/10000) -> 6.28648032 | AN33: =RANK(AO33,TabMOYENNES_CBH1_1[Colonne44]) -> 11 | AO33: 6.28681032 | AP33: 12 | AQ33: =RANK(AR33,TabMOYENNES_CBH1_1[Colonne32]) -> 7 | AR33: 12.00033 | AS33: 10.75 | AT33: =RANK(AU33,TabMOYENNES_CBH1_1[Colonne34]) -> 5 | AU33: 10.75033 | AV33: 9.833333333 | AW33: =RANK(AX33,TabMOYENNES_CBH1_1[Colonne36]) -> 6 | AX33: 9.833663333 | AY33: 11.5 | AZ33: =RANK(BA33,TabMOYENNES_CBH1_1[Colonne38]) -> 6 | BA33: 11.50033 | BC33: =RANK(BD33,TabMOYENNES_CBH1_1[Colonne383]) -> 37 | BD33: 0.00033 | BF33: =RANK(BG33,TabMOYENNES_CBH1_1[Colonne384]) -> 37 | BG33: 0.00033 | BI33: =RANK(BJ33,TabMOYENNES_CBH1_1[Colonne385]) -> 37 | BJ33: 0.00033 | BL33: =RANK(BM33,TabMOYENNES_CBH1_1[Colonne386]) -> 37 | BM33: 0.00033 | BN33: =(AP33*AP$17+AS33*AS$17+AV33*AV$17+AY33*AY$17+TabMOYENNES_CBH1_1[[#This Row],[TECHNO5]]*BB$17+TabMOYENNES_CBH1_1[[#This Row],[TECHNO6]]*BE$17+TabMOYENNES_CBH1_1[[#This Row],[TECHNO7]]*BH$17+TabMOYENNES_CBH1_1[[#This Row],[TECHNO8]]*BK$17)/(BO$15+ROW()/10000) -> 10.92139594 | BO33: =RANK(TabMOYENNES_CBH1_1[[#This Row],[,]],TabMOYENNES_CBH1_1[,]) -> 2 | BP33: 10.92172594 | BQ33: 8.5 | BR33: =RANK(BS33,TabMOYENNES_CBH1_1[Colonne14]) -> 15 | BS33: 8.50033 | BT33: 12.75 | BU33: =RANK(BV33,TabMOYENNES_CBH1_1[Colonne16]) -> 11 | BV33: 12.75033 | BX33: =RANK(BY33,TabMOYENNES_CBH1_1[Colonne164]) -> 37 | BY33: 0.00033 | CA33: =RANK(CB33,TabMOYENNES_CBH1_1[Colonne17]) -> 37 | CB33: 0.00033 | CD33: =RANK(CE33,TabMOYENNES_CBH1_1[Colonne18]) -> 37 | CE33: 0.00033 | CG33: =RANK(CH33,TabMOYENNES_CBH1_1[Colonne184]) -> 37 | CH33: 0.00033 | CJ33: =RANK(CK33,TabMOYENNES_CBH1_1[Colonne19]) -> 37 | CK33: 0.00033 | CM33: =RANK(CN33,TabMOYENNES_CBH1_1[Colonne20]) -> 37 | CN33: 0.00033 | CO33: =(TabMOYENNES_CBH1_1[[#This Row],[PROF1]]*$BQ$17+TabMOYENNES_CBH1_1[[#This Row],[PROF2]]*BT$17+TabMOYENNES_CBH1_1[[#This Row],[PROF3]]*BW$17+TabMOYENNES_CBH1_1[[#This Row],[PROF4]]*BZ$17+TabMOYENNES_CBH1_1[[#This Row],[PROF5]]*CC$17+TabMOYENNES_CBH1_1[[#This Row],[PROF6]]*CF$17+TabMOYENNES_CBH1_1[[#This Row],[PROF7]]*CI$17+TabMOYENNES_CBH1_1[[#This Row],[PROF8]]*CL$17)/($CP$15+ROW()/10000) -> 7.080737063 | CP33: =RANK(CQ33,TabMOYENNES_CBH1_1[Colonne23]) -> 14 | CQ33: 7.081067063 | CR33: 10.5 | CS33: =RANK(CT33,TabMOYENNES_CBH1_1[Colonne2]) -> 6 | CT33: 10.50033 | CU33: 15.25 | CV33: =RANK(CW33,TabMOYENNES_CBH1_1[Colonne6]) -> 2 | CW33: 15.25033 | CX33: 14 | CY33: =RANK(CZ33,TabMOYENNES_CBH1_1[Colonne7]) -> 5 | CZ33: 14.00033 | DB33: =RANK(DC33,TabMOYENNES_CBH1_1[Colonne8]) -> 37 | DC33: 0.00033 | DE33: =RANK(DF33,TabMOYENNES_CBH1_1[Colonne9]) -> 37 | DF33: 0.00033 | DH33: =RANK(DI33,TabMOYENNES_CBH1_1[Colonne95]) -> 37 | DI33: 0.00033 | DK33: =RANK(DL33,TabMOYENNES_CBH1_1[Colonne92]) -> 37 | DL33: 0.00033 | DN33: =RANK(DO33,TabMOYENNES_CBH1_1[Colonne922]) -> 37 | DO33: 0.00033 | DP33: =(CR33*CR$17+CU33*CU$17+TabMOYENNES_CBH1_1[[#This Row],[ECO3]]*CX$17+TabMOYENNES_CBH1_1[[#This Row],[ECO4]]*DA$17+TabMOYENNES_CBH1_1[[#This Row],[ECO5]]*DD$17+TabMOYENNES_CBH1_1[[#This Row],[ECO6]]*DG$17+TabMOYENNES_CBH1_1[[#This Row],[ECO7]]*DJ$17+TabMOYENNES_CBH1_1[[#This Row],[ECO8]]*DM$17)/(DQ$15+ROW()/10000) -> 9.929308321 | DQ33: =RANK(TabMOYENNES_CBH1_1[[#This Row],[Colonne30]],TabMOYENNES_CBH1_1[Colonne30]) -> 4 | DR33: 9.929638321 | DU33: =VLOOKUP(TabMOYENNES_CBH1_1[[#This Row],[Matricule]],TabMOYENNES_CBH1_1[],20,FALSE) -> 12.69162353 | DV33: =VLOOKUP(TabMOYENNES_CBH1_1[[#This Row],[Matricule]],TabMOYENNES_CBH1_1[],38,FALSE) -> 6.28648032 | DW33: =VLOOKUP(TabMOYENNES_CBH1_1[[#This Row],[Matricule]],TabMOYENNES_CBH1_1[],65,FALSE) -> 10.92139594 | DX33: =VLOOKUP(TabMOYENNES_CBH1_1[[#This Row],[Matricule]],TabMOYENNES_CBH1_1[],92,FALSE) -> 7.080737063 | DY33: =VLOOKUP(TabMOYENNES_CBH1_1[[#This Row],[Matricule]],TabMOYENNES_CBH1_1[],119,FALSE) -> 9.929308321 | DZ33: 301.2618652 | EA33: 9.413462523 | EB33: =RANK(EC33,TabMOYENNES_CBH1_1[..],0) -> 3 | EC33: 9.413792523 | ED33: 0 | EE33: =IF($EA33="","",IF(AND($EA33=0,TabMOYENNES_CBH1_1[[#This Row],[H.A.]]>=140),"Abandon",IF($EA33>9.99,"Validé","Non Validé"))) -> Non Validé
B34: ='Liste CBH1_1'!B28 -> CBH1.S1.19/20.015 | C34: =VLOOKUP(B34,TabListe_CBH1_S1[],2,FALSE) -> NDJOKOUNDA Rhaude Darrel | D34: =VLOOKUP(B34,TabListe_CBH1_S1[],3,FALSE) -> M | F34: 11.5 | G34: 4 | H34: 11.50034 | I34: 12.5 | J34: =RANK(K34,TabMOYENNES_CBH1_1[Ref. 2]) -> 8 | K34: 12.50034 | M34: =RANK(N34,TabMOYENNES_CBH1_1[Ref. 3]) -> 36 | N34: 0.00034 | P34: =RANK(Q34,TabMOYENNES_CBH1_1[Ref. 4]) -> 36 | Q34: 0.00034 | S34: =RANK(T34,TabMOYENNES_CBH1_1[Ref. 5]) -> 36 | T34: 0.00034 | U34: =(F34*F$17+I34*I$17+TabMOYENNES_CBH1_1[[#This Row],[LG3]]*L$17+TabMOYENNES_CBH1_1[[#This Row],[LG4]]*O$17+TabMOYENNES_CBH1_1[[#This Row],[LG5]]*R$17)/(V$15+ROW()/10000) -> 12.09177759 | V34: =RANK(W34,TabMOYENNES_CBH1_1[Colonne4]) -> 7 | W34: 12.09211759 | X34: 6 | Y34: =RANK(Z34,TabMOYENNES_CBH1_1[Ref 2.1]) -> 14 | Z34: 6.00034 | AA34: 5 | AB34: =RANK(AC34,TabMOYENNES_CBH1_1[Ref 2.2]) -> 17 | AC34: 5.00034 | AE34: =RANK(AF34,TabMOYENNES_CBH1_1[Ref 2.3]) -> 36 | AF34: 0.00034 | AH34: =RANK(AI34,TabMOYENNES_CBH1_1[Ref 2.4]) -> 36 | AI34: 0.00034 | AK34: =RANK(AL34,TabMOYENNES_CBH1_1[Ref 2.5]) -> 36 | AL34: 0.00034 | AM34: =(X34*X$17+AA34*AA$17+TabMOYENNES_CBH1_1[[#This Row],[SC3]]*AD$17+TabMOYENNES_CBH1_1[[#This Row],[SC4]]*AG$17+TabMOYENNES_CBH1_1[[#This Row],[SC5]]*AJ$17)/(AN$15+ROW()/10000) -> 4.246390568 | AN34: =RANK(AO34,TabMOYENNES_CBH1_1[Colonne44]) -> 15 | AO34: 4.246730568 | AP34: 12.66666667 | AQ34: =RANK(AR34,TabMOYENNES_CBH1_1[Colonne32]) -> 4 | AR34: 12.66700667 | AS34: 6.75 | AT34: =RANK(AU34,TabMOYENNES_CBH1_1[Colonne34]) -> 11 | AU34: 6.75034 | AV34: 3.833333333 | AW34: =RANK(AX34,TabMOYENNES_CBH1_1[Colonne36]) -> 18 | AX34: 3.833673333 | AY34: 8.5 | AZ34: =RANK(BA34,TabMOYENNES_CBH1_1[Colonne38]) -> 11 | BA34: 8.50034 | BC34: =RANK(BD34,TabMOYENNES_CBH1_1[Colonne383]) -> 36 | BD34: 0.00034 | BF34: =RANK(BG34,TabMOYENNES_CBH1_1[Colonne384]) -> 36 | BG34: 0.00034 | BI34: =RANK(BJ34,TabMOYENNES_CBH1_1[Colonne385]) -> 36 | BJ34: 0.00034 | BL34: =RANK(BM34,TabMOYENNES_CBH1_1[Colonne386]) -> 36 | BM34: 0.00034 | BN34: =(AP34*AP$17+AS34*AS$17+AV34*AV$17+AY34*AY$17+TabMOYENNES_CBH1_1[[#This Row],[TECHNO5]]*BB$17+TabMOYENNES_CBH1_1[[#This Row],[TECHNO6]]*BE$17+TabMOYENNES_CBH1_1[[#This Row],[TECHNO7]]*BH$17+TabMOYENNES_CBH1_1[[#This Row],[TECHNO8]]*BK$17)/(BO$15+ROW()/10000) -> 7.822340404 | BO34: =RANK(TabMOYENNES_CBH1_1[[#This Row],[,]],TabMOYENNES_CBH1_1[,]) -> 14 | BP34: 7.822680404 | BQ34: 6.5 | BR34: =RANK(BS34,TabMOYENNES_CBH1_1[Colonne14]) -> 17 | BS34: 6.50034 | BT34: 13.75 | BU34: =RANK(BV34,TabMOYENNES_CBH1_1[Colonne16]) -> 6 | BV34: 13.75034 | BX34: =RANK(BY34,TabMOYENNES_CBH1_1[Colonne164]) -> 36 | BY34: 0.00034 | CA34: =RANK(CB34,TabMOYENNES_CBH1_1[Colonne17]) -> 36 | CB34: 0.00034 | CD34: =RANK(CE34,TabMOYENNES_CBH1_1[Colonne18]) -> 36 | CE34: 0.00034 | CG34: =RANK(CH34,TabMOYENNES_CBH1_1[Colonne184]) -> 36 | CH34: 0.00034 | CJ34: =RANK(CK34,TabMOYENNES_CBH1_1[Colonne19]) -> 36 | CK34: 0.00034 | CM34: =RANK(CN34,TabMOYENNES_CBH1_1[Colonne20]) -> 36 | CN34: 0.00034 | CO34: =(TabMOYENNES_CBH1_1[[#This Row],[PROF1]]*$BQ$17+TabMOYENNES_CBH1_1[[#This Row],[PROF2]]*BT$17+TabMOYENNES_CBH1_1[[#This Row],[PROF3]]*BW$17+TabMOYENNES_CBH1_1[[#This Row],[PROF4]]*BZ$17+TabMOYENNES_CBH1_1[[#This Row],[PROF5]]*CC$17+TabMOYENNES_CBH1_1[[#This Row],[PROF6]]*CF$17+TabMOYENNES_CBH1_1[[#This Row],[PROF7]]*CI$17+TabMOYENNES_CBH1_1[[#This Row],[PROF8]]*CL$17)/($CP$15+ROW()/10000) -> 6.747450963 | CP34: =RANK(CQ34,TabMOYENNES_CBH1_1[Colonne23]) -> 16 | CQ34: 6.747790963 | CR34: 11 | CS34: =RANK(CT34,TabMOYENNES_CBH1_1[Colonne2]) -> 3 | CT34: 11.00034 | CU34: 9 | CV34: =RANK(CW34,TabMOYENNES_CBH1_1[Colonne6]) -> 14 | CW34: 9.00034 | CX34: 12 | CY34: =RANK(CZ34,TabMOYENNES_CBH1_1[Colonne7]) -> 10 | CZ34: 12.00034 | DB34: =RANK(DC34,TabMOYENNES_CBH1_1[Colonne8]) -> 36 | DC34: 0.00034 | DE34: =RANK(DF34,TabMOYENNES_CBH1_1[Colonne9]) -> 36 | DF34: 0.00034 | DH34: =RANK(DI34,TabMOYENNES_CBH1_1[Colonne95]) -> 36 | DI34: 0.00034 | DK34: =RANK(DL34,TabMOYENNES_CBH1_1[Colonne92]) -> 36 | DL34: 0.00034 | DN34: =RANK(DO34,TabMOYENNES_CBH1_1[Colonne922]) -> 36 | DO34: 0.00034 | DP34: =(CR34*CR$17+CU34*CU$17+TabMOYENNES_CBH1_1[[#This Row],[ECO3]]*CX$17+TabMOYENNES_CBH1_1[[#This Row],[ECO4]]*DA$17+TabMOYENNES_CBH1_1[[#This Row],[ECO5]]*DD$17+TabMOYENNES_CBH1_1[[#This Row],[ECO6]]*DG$17+TabMOYENNES_CBH1_1[[#This Row],[ECO7]]*DJ$17+TabMOYENNES_CBH1_1[[#This Row],[ECO8]]*DM$17)/(DQ$15+ROW()/10000) -> 7.993205775 | DQ34: =RANK(TabMOYENNES_CBH1_1[[#This Row],[Colonne30]],TabMOYENNES_CBH1_1[Colonne30]) -> 12 | DR34: 7.993545775 | DU34: =VLOOKUP(TabMOYENNES_CBH1_1[[#This Row],[Matricule]],TabMOYENNES_CBH1_1[],20,FALSE) -> 12.09177759 | DV34: =VLOOKUP(TabMOYENNES_CBH1_1[[#This Row],[Matricule]],TabMOYENNES_CBH1_1[],38,FALSE) -> 4.246390568 | DW34: =VLOOKUP(TabMOYENNES_CBH1_1[[#This Row],[Matricule]],TabMOYENNES_CBH1_1[],65,FALSE) -> 7.822340404 | DX34: =VLOOKUP(TabMOYENNES_CBH1_1[[#This Row],[Matricule]],TabMOYENNES_CBH1_1[],92,FALSE) -> 6.747450963 | DY34: =VLOOKUP(TabMOYENNES_CBH1_1[[#This Row],[Matricule]],TabMOYENNES_CBH1_1[],119,FALSE) -> 7.993205775 | DZ34: 248.367736 | EA34: 7.76066718 | EB34: =RANK(EC34,TabMOYENNES_CBH1_1[..],0) -> 13 | EC34: 7.76100718 | ED34: 0 | EE34: =IF($EA34="","",IF(AND($EA34=0,TabMOYENNES_CBH1_1[[#This Row],[H.A.]]>=140),"Abandon",IF($EA34>9.99,"Validé","Non Validé"))) -> Non Validé
B35: ='Liste CBH1_1'!B29 -> CBH1.S1.19/20.016 | C35: =VLOOKUP(B35,TabListe_CBH1_S1[],2,FALSE) -> NDJOUMBA NGUELE Warrel | D35: =VLOOKUP(B35,TabListe_CBH1_S1[],3,FALSE) -> M | F35: 6 | G35: 15 | H35: 6.00035 | I35: 11 | J35: =RANK(K35,TabMOYENNES_CBH1_1[Ref. 2]) -> 15 | K35: 11.00035 | M35: =RANK(N35,TabMOYENNES_CBH1_1[Ref. 3]) -> 35 | N35: 0.00035 | P35: =RANK(Q35,TabMOYENNES_CBH1_1[Ref. 4]) -> 35 | Q35: 0.00035 | S35: =RANK(T35,TabMOYENNES_CBH1_1[Ref. 5]) -> 35 | T35: 0.00035 | U35: =(F35*F$17+I35*I$17+TabMOYENNES_CBH1_1[[#This Row],[LG3]]*L$17+TabMOYENNES_CBH1_1[[#This Row],[LG4]]*O$17+TabMOYENNES_CBH1_1[[#This Row],[LG5]]*R$17)/(V$15+ROW()/10000) -> 8.993704407 | V35: =RANK(W35,TabMOYENNES_CBH1_1[Colonne4]) -> 15 | W35: 8.994054407 | X35: 8.333333333 | Y35: =RANK(Z35,TabMOYENNES_CBH1_1[Ref 2.1]) -> 8 | Z35: 8.333683333 | AA35: 12 | AB35: =RANK(AC35,TabMOYENNES_CBH1_1[Ref 2.2]) -> 4 | AC35: 12.00035 | AE35: =RANK(AF35,TabMOYENNES_CBH1_1[Ref 2.3]) -> 35 | AF35: 0.00035 | AH35: =RANK(AI35,TabMOYENNES_CBH1_1[Ref 2.4]) -> 35 | AI35: 0.00035 | AK35: =RANK(AL35,TabMOYENNES_CBH1_1[Ref 2.5]) -> 35 | AL35: 0.00035 | AM35: =(X35*X$17+AA35*AA$17+TabMOYENNES_CBH1_1[[#This Row],[SC3]]*AD$17+TabMOYENNES_CBH1_1[[#This Row],[SC4]]*AG$17+TabMOYENNES_CBH1_1[[#This Row],[SC5]]*AJ$17)/(AN$15+ROW()/10000) -> 7.160401316 | AN35: =RANK(AO35,TabMOYENNES_CBH1_1[Colonne44]) -> 7 | AO35: 7.160751316 | AP35: 6.666666667 | AQ35: =RANK(AR35,TabMOYENNES_CBH1_1[Colonne32]) -> 17 | AR35: 6.667016667 | AS35: 7 | AT35: =RANK(AU35,TabMOYENNES_CBH1_1[Colonne34]) -> 9 | AU35: 7.00035 | AV35: 10.83333333 | AW35: =RANK(AX35,TabMOYENNES_CBH1_1[Colonne36]) -> 3 | AX35: 10.83368333 | AY35: 12 | AZ35: =RANK(BA35,TabMOYENNES_CBH1_1[Colonne38]) -> 5 | BA35: 12.00035 | BC35: =RANK(BD35,TabMOYENNES_CBH1_1[Colonne383]) -> 35 | BD35: 0.00035 | BF35: =RANK(BG35,TabMOYENNES_CBH1_1[Colonne384]) -> 35 | BG35: 0.00035 | BI35: =RANK(BJ35,TabMOYENNES_CBH1_1[Colonne385]) -> 35 | BJ35: 0.00035 | BL35: =RANK(BM35,TabMOYENNES_CBH1_1[Colonne386]) -> 35 | BM35: 0.00035 | BN35: =(AP35*AP$17+AS35*AS$17+AV35*AV$17+AY35*AY$17+TabMOYENNES_CBH1_1[[#This Row],[TECHNO5]]*BB$17+TabMOYENNES_CBH1_1[[#This Row],[TECHNO6]]*BE$17+TabMOYENNES_CBH1_1[[#This Row],[TECHNO7]]*BH$17+TabMOYENNES_CBH1_1[[#This Row],[TECHNO8]]*BK$17)/(BO$15+ROW()/10000) -> 8.547008547 | BO35: =RANK(TabMOYENNES_CBH1_1[[#This Row],[,]],TabMOYENNES_CBH1_1[,]) -> 11 | BP35: 8.547358547 | BQ35: 9.5 | BR35: =RANK(BS35,TabMOYENNES_CBH1_1[Colonne14]) -> 10 | BS35: 9.50035 | BT35: 12.5 | BU35: =RANK(BV35,TabMOYENNES_CBH1_1[Colonne16]) -> 16 | BV35: 12.50035 | BX35: =RANK(BY35,TabMOYENNES_CBH1_1[Colonne164]) -> 35 | BY35: 0.00035 | CA35: =RANK(CB35,TabMOYENNES_CBH1_1[Colonne17]) -> 35 | CB35: 0.00035 | CD35: =RANK(CE35,TabMOYENNES_CBH1_1[Colonne18]) -> 35 | CE35: 0.00035 | CG35: =RANK(CH35,TabMOYENNES_CBH1_1[Colonne184]) -> 35 | CH35: 0.00035 | CJ35: =RANK(CK35,TabMOYENNES_CBH1_1[Colonne19]) -> 35 | CK35: 0.00035 | CM35: =RANK(CN35,TabMOYENNES_CBH1_1[Colonne20]) -> 35 | CN35: 0.00035 | CO35: =(TabMOYENNES_CBH1_1[[#This Row],[PROF1]]*$BQ$17+TabMOYENNES_CBH1_1[[#This Row],[PROF2]]*BT$17+TabMOYENNES_CBH1_1[[#This Row],[PROF3]]*BW$17+TabMOYENNES_CBH1_1[[#This Row],[PROF4]]*BZ$17+TabMOYENNES_CBH1_1[[#This Row],[PROF5]]*CC$17+TabMOYENNES_CBH1_1[[#This Row],[PROF6]]*CF$17+TabMOYENNES_CBH1_1[[#This Row],[PROF7]]*CI$17+TabMOYENNES_CBH1_1[[#This Row],[PROF8]]*CL$17)/($CP$15+ROW()/10000) -> 7.33048259 | CP35: =RANK(CQ35,TabMOYENNES_CBH1_1[Colonne23]) -> 12 | CQ35: 7.33083259 | CR35: 4.5 | CS35: =RANK(CT35,TabMOYENNES_CBH1_1[Colonne2]) -> 16 | CT35: 4.50035 | CU35: 11 | CV35: =RANK(CW35,TabMOYENNES_CBH1_1[Colonne6]) -> 10 | CW35: 11.00035 | CX35: 14 | CY35: =RANK(CZ35,TabMOYENNES_CBH1_1[Colonne7]) -> 4 | CZ35: 14.00035 | DB35: =RANK(DC35,TabMOYENNES_CBH1_1[Colonne8]) -> 35 | DC35: 0.00035 | DE35: =RANK(DF35,TabMOYENNES_CBH1_1[Colonne9]) -> 35 | DF35: 0.00035 | DH35: =RANK(DI35,TabMOYENNES_CBH1_1[Colonne95]) -> 35 | DI35: 0.00035 | DK35: =RANK(DL35,TabMOYENNES_CBH1_1[Colonne92]) -> 35 | DL35: 0.00035 | DN35: =RANK(DO35,TabMOYENNES_CBH1_1[Colonne922]) -> 35 | DO35: 0.00035 | DP35: =(CR35*CR$17+CU35*CU$17+TabMOYENNES_CBH1_1[[#This Row],[ECO3]]*CX$17+TabMOYENNES_CBH1_1[[#This Row],[ECO4]]*DA$17+TabMOYENNES_CBH1_1[[#This Row],[ECO5]]*DD$17+TabMOYENNES_CBH1_1[[#This Row],[ECO6]]*DG$17+TabMOYENNES_CBH1_1[[#This Row],[ECO7]]*DJ$17+TabMOYENNES_CBH1_1[[#This Row],[ECO8]]*DM$17)/(DQ$15+ROW()/10000) -> 7.368552517 | DQ35: =RANK(TabMOYENNES_CBH1_1[[#This Row],[Colonne30]],TabMOYENNES_CBH1_1[Colonne30]) -> 15 | DR35: 7.368902517 | DU35: =VLOOKUP(TabMOYENNES_CBH1_1[[#This Row],[Matricule]],TabMOYENNES_CBH1_1[],20,FALSE) -> 8.993704407 | DV35: =VLOOKUP(TabMOYENNES_CBH1_1[[#This Row],[Matricule]],TabMOYENNES_CBH1_1[],38,FALSE) -> 7.160401316 | DW35: =VLOOKUP(TabMOYENNES_CBH1_1[[#This Row],[Matricule]],TabMOYENNES_CBH1_1[],65,FALSE) -> 8.547008547 | DX35: =VLOOKUP(TabMOYENNES_CBH1_1[[#This Row],[Matricule]],TabMOYENNES_CBH1_1[],92,FALSE) -> 7.33048259 | DY35: =VLOOKUP(TabMOYENNES_CBH1_1[[#This Row],[Matricule]],TabMOYENNES_CBH1_1[],119,FALSE) -> 7.368552517 | DZ35: 254.5287661 | EA35: 7.953154066 | EB35: =RANK(EC35,TabMOYENNES_CBH1_1[..],0) -> 12 | EC35: 7.953504066 | ED35: 0 | EE35: =IF($EA35="","",IF(AND($EA35=0,TabMOYENNES_CBH1_1[[#This Row],[H.A.]]>=140),"Abandon",IF($EA35>9.99,"Validé","Non Validé"))) -> Non Validé
B36: ='Liste CBH1_1'!B30 -> CBH1.S1.19/20.017 | C36: =VLOOKUP(B36,TabListe_CBH1_S1[],2,FALSE) -> NZENGUI DIMBOUMBA Djerry Odhe | D36: =VLOOKUP(B36,TabListe_CBH1_S1[],3,FALSE) -> M | F36: 10.5 | G36: 8 | H36: 10.50036 | I36: 11.5 | J36: =RANK(K36,TabMOYENNES_CBH1_1[Ref. 2]) -> 13 | K36: 11.50036 | M36: =RANK(N36,TabMOYENNES_CBH1_1[Ref. 3]) -> 34 | N36: 0.00036 | P36: =RANK(Q36,TabMOYENNES_CBH1_1[Ref. 4]) -> 34 | Q36: 0.00036 | S36: =RANK(T36,TabMOYENNES_CBH1_1[Ref. 5]) -> 34 | T36: 0.00036 | U36: =(F36*F$17+I36*I$17+TabMOYENNES_CBH1_1[[#This Row],[LG3]]*L$17+TabMOYENNES_CBH1_1[[#This Row],[LG4]]*O$17+TabMOYENNES_CBH1_1[[#This Row],[LG5]]*R$17)/(V$15+ROW()/10000) -> 11.09201375 | V36: =RANK(W36,TabMOYENNES_CBH1_1[Colonne4]) -> 11 | W36: 11.09237375 | X36: 9.666666667 | Y36: =RANK(Z36,TabMOYENNES_CBH1_1[Ref 2.1]) -> 3 | Z36: 9.667026667 | AA36: 12 | AB36: =RANK(AC36,TabMOYENNES_CBH1_1[Ref 2.2]) -> 3 | AC36: 12.00036 | AE36: =RANK(AF36,TabMOYENNES_CBH1_1[Ref 2.3]) -> 34 | AF36: 0.00036 | AH36: =RANK(AI36,TabMOYENNES_CBH1_1[Ref 2.4]) -> 34 | AI36: 0.00036 | AK36: =RANK(AL36,TabMOYENNES_CBH1_1[Ref 2.5]) -> 34 | AL36: 0.00036 | AM36: =(X36*X$17+AA36*AA$17+TabMOYENNES_CBH1_1[[#This Row],[SC3]]*AD$17+TabMOYENNES_CBH1_1[[#This Row],[SC4]]*AG$17+TabMOYENNES_CBH1_1[[#This Row],[SC5]]*AJ$17)/(AN$15+ROW()/10000) -> 7.826289673 | AN36: =RANK(AO36,TabMOYENNES_CBH1_1[Colonne44]) -> 2 | AO36: 7.826649673 | AP36: 8.666666667 | AQ36: =RANK(AR36,TabMOYENNES_CBH1_1[Colonne32]) -> 11 | AR36: 8.667026667 | AS36: 11.25 | AT36: =RANK(AU36,TabMOYENNES_CBH1_1[Colonne34]) -> 2 | AU36: 11.25036 | AV36: 10.16666667 | AW36: =RANK(AX36,TabMOYENNES_CBH1_1[Colonne36]) -> 5 | AX36: 10.16702667 | AY36: 9.5 | AZ36: =RANK(BA36,TabMOYENNES_CBH1_1[Colonne38]) -> 8 | BA36: 9.50036 | BC36: =RANK(BD36,TabMOYENNES_CBH1_1[Colonne383]) -> 34 | BD36: 0.00036 | BF36: =RANK(BG36,TabMOYENNES_CBH1_1[Colonne384]) -> 34 | BG36: 0.00036 | BI36: =RANK(BJ36,TabMOYENNES_CBH1_1[Colonne385]) -> 34 | BJ36: 0.00036 | BL36: =RANK(BM36,TabMOYENNES_CBH1_1[Colonne386]) -> 34 | BM36: 0.00036 | BN36: =(AP36*AP$17+AS36*AS$17+AV36*AV$17+AY36*AY$17+TabMOYENNES_CBH1_1[[#This Row],[TECHNO5]]*BB$17+TabMOYENNES_CBH1_1[[#This Row],[TECHNO6]]*BE$17+TabMOYENNES_CBH1_1[[#This Row],[TECHNO7]]*BH$17+TabMOYENNES_CBH1_1[[#This Row],[TECHNO8]]*BK$17)/(BO$15+ROW()/10000) -> 9.971410292 | BO36: =RANK(TabMOYENNES_CBH1_1[[#This Row],[,]],TabMOYENNES_CBH1_1[,]) -> 6 | BP36: 9.971770292 | BQ36: 9.5 | BR36: =RANK(BS36,TabMOYENNES_CBH1_1[Colonne14]) -> 9 | BS36: 9.50036 | BT36: 14.5 | BU36: =RANK(BV36,TabMOYENNES_CBH1_1[Colonne16]) -> 2 | BV36: 14.50036 | BX36: =RANK(BY36,TabMOYENNES_CBH1_1[Colonne164]) -> 34 | BY36: 0.00036 | CA36: =RANK(CB36,TabMOYENNES_CBH1_1[Colonne17]) -> 34 | CB36: 0.00036 | CD36: =RANK(CE36,TabMOYENNES_CBH1_1[Colonne18]) -> 34 | CE36: 0.00036 | CG36: =RANK(CH36,TabMOYENNES_CBH1_1[Colonne184]) -> 34 | CH36: 0.00036 | CJ36: =RANK(CK36,TabMOYENNES_CBH1_1[Colonne19]) -> 34 | CK36: 0.00036 | CM36: =RANK(CN36,TabMOYENNES_CBH1_1[Colonne20]) -> 34 | CN36: 0.00036 | CO36: =(TabMOYENNES_CBH1_1[[#This Row],[PROF1]]*$BQ$17+TabMOYENNES_CBH1_1[[#This Row],[PROF2]]*BT$17+TabMOYENNES_CBH1_1[[#This Row],[PROF3]]*BW$17+TabMOYENNES_CBH1_1[[#This Row],[PROF4]]*BZ$17+TabMOYENNES_CBH1_1[[#This Row],[PROF5]]*CC$17+TabMOYENNES_CBH1_1[[#This Row],[PROF6]]*CF$17+TabMOYENNES_CBH1_1[[#This Row],[PROF7]]*CI$17+TabMOYENNES_CBH1_1[[#This Row],[PROF8]]*CL$17)/($CP$15+ROW()/10000) -> 7.996801279 | CP36: =RANK(CQ36,TabMOYENNES_CBH1_1[Colonne23]) -> 4 | CQ36: 7.997161279 | CR36: 10 | CS36: =RANK(CT36,TabMOYENNES_CBH1_1[Colonne2]) -> 7 | CT36: 10.00036 | CU36: 14.75 | CV36: =RANK(CW36,TabMOYENNES_CBH1_1[Colonne6]) -> 4 | CW36: 14.75036 | CX36: 16 | CY36: =RANK(CZ36,TabMOYENNES_CBH1_1[Colonne7]) -> 2 | CZ36: 16.00036 | DB36: =RANK(DC36,TabMOYENNES_CBH1_1[Colonne8]) -> 34 | DC36: 0.00036 | DE36: =RANK(DF36,TabMOYENNES_CBH1_1[Colonne9]) -> 34 | DF36: 0.00036 | DH36: =RANK(DI36,TabMOYENNES_CBH1_1[Colonne95]) -> 34 | DI36: 0.00036 | DK36: =RANK(DL36,TabMOYENNES_CBH1_1[Colonne92]) -> 34 | DL36: 0.00036 | DN36: =RANK(DO36,TabMOYENNES_CBH1_1[Colonne922]) -> 34 | DO36: 0.00036 | DP36: =(CR36*CR$17+CU36*CU$17+TabMOYENNES_CBH1_1[[#This Row],[ECO3]]*CX$17+TabMOYENNES_CBH1_1[[#This Row],[ECO4]]*DA$17+TabMOYENNES_CBH1_1[[#This Row],[ECO5]]*DD$17+TabMOYENNES_CBH1_1[[#This Row],[ECO6]]*DG$17+TabMOYENNES_CBH1_1[[#This Row],[ECO7]]*DJ$17+TabMOYENNES_CBH1_1[[#This Row],[ECO8]]*DM$17)/(DQ$15+ROW()/10000) -> 10.17833949 | DQ36: =RANK(TabMOYENNES_CBH1_1[[#This Row],[Colonne30]],TabMOYENNES_CBH1_1[Colonne30]) -> 1 | DR36: 10.17869949 | DU36: =VLOOKUP(TabMOYENNES_CBH1_1[[#This Row],[Matricule]],TabMOYENNES_CBH1_1[],20,FALSE) -> 11.09201375 | DV36: =VLOOKUP(TabMOYENNES_CBH1_1[[#This Row],[Matricule]],TabMOYENNES_CBH1_1[],38,FALSE) -> 7.826289673 | DW36: =VLOOKUP(TabMOYENNES_CBH1_1[[#This Row],[Matricule]],TabMOYENNES_CBH1_1[],65,FALSE) -> 9.971410292 | DX36: =VLOOKUP(TabMOYENNES_CBH1_1[[#This Row],[Matricule]],TabMOYENNES_CBH1_1[],92,FALSE) -> 7.996801279 | DY36: =VLOOKUP(TabMOYENNES_CBH1_1[[#This Row],[Matricule]],TabMOYENNES_CBH1_1[],119,FALSE) -> 10.17833949 | DZ36: 299.1638999 | EA36: 9.347820241 | EB36: =RANK(EC36,TabMOYENNES_CBH1_1[..],0) -> 5 | EC36: 9.348180241 | ED36: 0 | EE36: =IF($EA36="","",IF(AND($EA36=0,TabMOYENNES_CBH1_1[[#This Row],[H.A.]]>=140),"Abandon",IF($EA36>9.99,"Validé","Non Validé"))) -> Non Validé
B37: ='Liste CBH1_1'!B31 -> CBH1.S1.19/20.018 | C37: =VLOOKUP(B37,TabListe_CBH1_S1[],2,FALSE) -> ONDIMBA LEKOUTA Anouchka Infrid | D37: =VLOOKUP(B37,TabListe_CBH1_S1[],3,FALSE) -> M | F37: 11.5 | G37: 3 | H37: 11.50037 | I37: 12.5 | J37: =RANK(K37,TabMOYENNES_CBH1_1[Ref. 2]) -> 7 | K37: 12.50037 | M37: =RANK(N37,TabMOYENNES_CBH1_1[Ref. 3]) -> 33 | N37: 0.00037 | P37: =RANK(Q37,TabMOYENNES_CBH1_1[Ref. 4]) -> 33 | Q37: 0.00037 | S37: =RANK(T37,TabMOYENNES_CBH1_1[Ref. 5]) -> 33 | T37: 0.00037 | U37: =(F37*F$17+I37*I$17+TabMOYENNES_CBH1_1[[#This Row],[LG3]]*L$17+TabMOYENNES_CBH1_1[[#This Row],[LG4]]*O$17+TabMOYENNES_CBH1_1[[#This Row],[LG5]]*R$17)/(V$15+ROW()/10000) -> 12.09105262 | V37: =RANK(W37,TabMOYENNES_CBH1_1[Colonne4]) -> 8 | W37: 12.09142262 | X37: 10.33333333 | Y37: =RANK(Z37,TabMOYENNES_CBH1_1[Ref 2.1]) -> 2 | Z37: 10.33370333 | AA37: 9 | AB37: =RANK(AC37,TabMOYENNES_CBH1_1[Ref 2.2]) -> 11 | AC37: 9.00037 | AE37: =RANK(AF37,TabMOYENNES_CBH1_1[Ref 2.3]) -> 33 | AF37: 0.00037 | AH37: =RANK(AI37,TabMOYENNES_CBH1_1[Ref 2.4]) -> 33 | AI37: 0.00037 | AK37: =RANK(AL37,TabMOYENNES_CBH1_1[Ref 2.5]) -> 33 | AL37: 0.00037 | AM37: =(X37*X$17+AA37*AA$17+TabMOYENNES_CBH1_1[[#This Row],[SC3]]*AD$17+TabMOYENNES_CBH1_1[[#This Row],[SC4]]*AG$17+TabMOYENNES_CBH1_1[[#This Row],[SC5]]*AJ$17)/(AN$15+ROW()/10000) -> 7.40981259 | AN37: =RANK(AO37,TabMOYENNES_CBH1_1[Colonne44]) -> 5 | AO37: 7.41018259 | AP37: 12.33333333 | AQ37: =RANK(AR37,TabMOYENNES_CBH1_1[Colonne32]) -> 5 | AR37: 12.33370333 | AS37: 8.5 | AT37: =RANK(AU37,TabMOYENNES_CBH1_1[Colonne34]) -> 8 | AU37: 8.50037 | AV37: 8.166666667 | AW37: =RANK(AX37,TabMOYENNES_CBH1_1[Colonne36]) -> 12 | AX37: 8.167036667 | AY37: 9 | AZ37: =RANK(BA37,TabMOYENNES_CBH1_1[Colonne38]) -> 10 | BA37: 9.00037 | BC37: =RANK(BD37,TabMOYENNES_CBH1_1[Colonne383]) -> 33 | BD37: 0.00037 | BF37: =RANK(BG37,TabMOYENNES_CBH1_1[Colonne384]) -> 33 | BG37: 0.00037 | BI37: =RANK(BJ37,TabMOYENNES_CBH1_1[Colonne385]) -> 33 | BJ37: 0.00037 | BL37: =RANK(BM37,TabMOYENNES_CBH1_1[Colonne386]) -> 33 | BM37: 0.00037 | BN37: =(AP37*AP$17+AS37*AS$17+AV37*AV$17+AY37*AY$17+TabMOYENNES_CBH1_1[[#This Row],[TECHNO5]]*BB$17+TabMOYENNES_CBH1_1[[#This Row],[TECHNO6]]*BE$17+TabMOYENNES_CBH1_1[[#This Row],[TECHNO7]]*BH$17+TabMOYENNES_CBH1_1[[#This Row],[TECHNO8]]*BK$17)/(BO$15+ROW()/10000) -> 9.596449314 | BO37: =RANK(TabMOYENNES_CBH1_1[[#This Row],[,]],TabMOYENNES_CBH1_1[,]) -> 8 | BP37: 9.596819314 | BQ37: 9.5 | BR37: =RANK(BS37,TabMOYENNES_CBH1_1[Colonne14]) -> 8 | BS37: 9.50037 | BT37: 13.75 | BU37: =RANK(BV37,TabMOYENNES_CBH1_1[Colonne16]) -> 5 | BV37: 13.75037 | BX37: =RANK(BY37,TabMOYENNES_CBH1_1[Colonne164]) -> 33 | BY37: 0.00037 | CA37: =RANK(CB37,TabMOYENNES_CBH1_1[Colonne17]) -> 33 | CB37: 0.00037 | CD37: =RANK(CE37,TabMOYENNES_CBH1_1[Colonne18]) -> 33 | CE37: 0.00037 | CG37: =RANK(CH37,TabMOYENNES_CBH1_1[Colonne184]) -> 33 | CH37: 0.00037 | CJ37: =RANK(CK37,TabMOYENNES_CBH1_1[Colonne19]) -> 33 | CK37: 0.00037 | CM37: =RANK(CN37,TabMOYENNES_CBH1_1[Colonne20]) -> 33 | CN37: 0.00037 | CO37: =(TabMOYENNES_CBH1_1[[#This Row],[PROF1]]*$BQ$17+TabMOYENNES_CBH1_1[[#This Row],[PROF2]]*BT$17+TabMOYENNES_CBH1_1[[#This Row],[PROF3]]*BW$17+TabMOYENNES_CBH1_1[[#This Row],[PROF4]]*BZ$17+TabMOYENNES_CBH1_1[[#This Row],[PROF5]]*CC$17+TabMOYENNES_CBH1_1[[#This Row],[PROF6]]*CF$17+TabMOYENNES_CBH1_1[[#This Row],[PROF7]]*CI$17+TabMOYENNES_CBH1_1[[#This Row],[PROF8]]*CL$17)/($CP$15+ROW()/10000) -> 7.746815198 | CP37: =RANK(CQ37,TabMOYENNES_CBH1_1[Colonne23]) -> 9 | CQ37: 7.747185198 | CR37: 11 | CS37: =RANK(CT37,TabMOYENNES_CBH1_1[Colonne2]) -> 2 | CT37: 11.00037 | CU37: 10.5 | CV37: =RANK(CW37,TabMOYENNES_CBH1_1[Colonne6]) -> 12 | CW37: 10.50037 | CX37: 12 | CY37: =RANK(CZ37,TabMOYENNES_CBH1_1[Colonne7]) -> 9 | CZ37: 12.00037 | DB37: =RANK(DC37,TabMOYENNES_CBH1_1[Colonne8]) -> 33 | DC37: 0.00037 | DE37: =RANK(DF37,TabMOYENNES_CBH1_1[Colonne9]) -> 33 | DF37: 0.00037 | DH37: =RANK(DI37,TabMOYENNES_CBH1_1[Colonne95]) -> 33 | DI37: 0.00037 | DK37: =RANK(DL37,TabMOYENNES_CBH1_1[Colonne92]) -> 33 | DL37: 0.00037 | DN37: =RANK(DO37,TabMOYENNES_CBH1_1[Colonne922]) -> 33 | DO37: 0.00037 | DP37: =(CR37*CR$17+CU37*CU$17+TabMOYENNES_CBH1_1[[#This Row],[ECO3]]*CX$17+TabMOYENNES_CBH1_1[[#This Row],[ECO4]]*DA$17+TabMOYENNES_CBH1_1[[#This Row],[ECO5]]*DD$17+TabMOYENNES_CBH1_1[[#This Row],[ECO6]]*DG$17+TabMOYENNES_CBH1_1[[#This Row],[ECO7]]*DJ$17+TabMOYENNES_CBH1_1[[#This Row],[ECO8]]*DM$17)/(DQ$15+ROW()/10000) -> 8.367260284 | DQ37: =RANK(TabMOYENNES_CBH1_1[[#This Row],[Colonne30]],TabMOYENNES_CBH1_1[Colonne30]) -> 7 | DR37: 8.367630284 | DU37: =VLOOKUP(TabMOYENNES_CBH1_1[[#This Row],[Matricule]],TabMOYENNES_CBH1_1[],20,FALSE) -> 12.09105262 | DV37: =VLOOKUP(TabMOYENNES_CBH1_1[[#This Row],[Matricule]],TabMOYENNES_CBH1_1[],38,FALSE) -> 7.40981259 | DW37: =VLOOKUP(TabMOYENNES_CBH1_1[[#This Row],[Matricule]],TabMOYENNES_CBH1_1[],65,FALSE) -> 9.596449314 | DX37: =VLOOKUP(TabMOYENNES_CBH1_1[[#This Row],[Matricule]],TabMOYENNES_CBH1_1[],92,FALSE) -> 7.746815198 | DY37: =VLOOKUP(TabMOYENNES_CBH1_1[[#This Row],[Matricule]],TabMOYENNES_CBH1_1[],119,FALSE) -> 8.367260284 | DZ37: 289.2493845 | EA37: 9.037998248 | EB37: =RANK(EC37,TabMOYENNES_CBH1_1[..],0) -> 7 | EC37: 9.038368248 | ED37: 0 | EE37: =IF($EA37="","",IF(AND($EA37=0,TabMOYENNES_CBH1_1[[#This Row],[H.A.]]>=140),"Abandon",IF($EA37>9.99,"Validé","Non Validé"))) -> Non Validé
B38: ='Liste CBH1_1'!B32 -> CBH1.S1.19/20.019 | C38: =VLOOKUP(B38,TabListe_CBH1_S1[],2,FALSE) -> OSSIMA MINKO Hermant Gilbert | D38: =VLOOKUP(B38,TabListe_CBH1_S1[],3,FALSE) -> M | F38: 0 | G38: 46 | H38: 0.00038 | I38: 12 | J38: =RANK(K38,TabMOYENNES_CBH1_1[Ref. 2]) -> 12 | K38: 12.00038 | M38: =RANK(N38,TabMOYENNES_CBH1_1[Ref. 3]) -> 32 | N38: 0.00038 | P38: =RANK(Q38,TabMOYENNES_CBH1_1[Ref. 4]) -> 32 | Q38: 0.00038 | S38: =RANK(T38,TabMOYENNES_CBH1_1[Ref. 5]) -> 32 | T38: 0.00038 | U38: =(F38*F$17+I38*I$17+TabMOYENNES_CBH1_1[[#This Row],[LG3]]*L$17+TabMOYENNES_CBH1_1[[#This Row],[LG4]]*O$17+TabMOYENNES_CBH1_1[[#This Row],[LG5]]*R$17)/(V$15+ROW()/10000) -> 7.194532156 | V38: =RANK(W38,TabMOYENNES_CBH1_1[Colonne4]) -> 17 | W38: 7.194912156 | X38: 6.666666667 | Y38: =RANK(Z38,TabMOYENNES_CBH1_1[Ref 2.1]) -> 13 | Z38: 6.667046667 | AA38: 10 | AB38: =RANK(AC38,TabMOYENNES_CBH1_1[Ref 2.2]) -> 10 | AC38: 10.00038 | AE38: =RANK(AF38,TabMOYENNES_CBH1_1[Ref 2.3]) -> 32 | AF38: 0.00038 | AH38: =RANK(AI38,TabMOYENNES_CBH1_1[Ref 2.4]) -> 32 | AI38: 0.00038 | AK38: =RANK(AL38,TabMOYENNES_CBH1_1[Ref 2.5]) -> 32 | AL38: 0.00038 | AM38: =(X38*X$17+AA38*AA$17+TabMOYENNES_CBH1_1[[#This Row],[SC3]]*AD$17+TabMOYENNES_CBH1_1[[#This Row],[SC4]]*AG$17+TabMOYENNES_CBH1_1[[#This Row],[SC5]]*AJ$17)/(AN$15+ROW()/10000) -> 5.827796926 | AN38: =RANK(AO38,TabMOYENNES_CBH1_1[Colonne44]) -> 12 | AO38: 5.828176926 | AP38: 6.666666667 | AQ38: =RANK(AR38,TabMOYENNES_CBH1_1[Colonne32]) -> 16 | AR38: 6.667046667 | AS38: 0 | AT38: =RANK(AU38,TabMOYENNES_CBH1_1[Colonne34]) -> 48 | AU38: 0.00038 | AV38: 2.5 | AW38: =RANK(AX38,TabMOYENNES_CBH1_1[Colonne36]) -> 19 | AX38: 2.50038 | AY38: 5 | AZ38: =RANK(BA38,TabMOYENNES_CBH1_1[Colonne38]) -> 17 | BA38: 5.00038 | BC38: =RANK(BD38,TabMOYENNES_CBH1_1[Colonne383]) -> 32 | BD38: 0.00038 | BF38: =RANK(BG38,TabMOYENNES_CBH1_1[Colonne384]) -> 32 | BG38: 0.00038 | BI38: =RANK(BJ38,TabMOYENNES_CBH1_1[Colonne385]) -> 32 | BJ38: 0.00038 | BL38: =RANK(BM38,TabMOYENNES_CBH1_1[Colonne386]) -> 32 | BM38: 0.00038 | BN38: =(AP38*AP$17+AS38*AS$17+AV38*AV$17+AY38*AY$17+TabMOYENNES_CBH1_1[[#This Row],[TECHNO5]]*BB$17+TabMOYENNES_CBH1_1[[#This Row],[TECHNO6]]*BE$17+TabMOYENNES_CBH1_1[[#This Row],[TECHNO7]]*BH$17+TabMOYENNES_CBH1_1[[#This Row],[TECHNO8]]*BK$17)/(BO$15+ROW()/10000) -> 3.248765469 | BO38: =RANK(TabMOYENNES_CBH1_1[[#This Row],[,]],TabMOYENNES_CBH1_1[,]) -> 18 | BP38: 3.249145469 | BQ38: 3.25 | BR38: =RANK(BS38,TabMOYENNES_CBH1_1[Colonne14]) -> 18 | BS38: 3.25038 | BT38: 0 | BU38: =RANK(BV38,TabMOYENNES_CBH1_1[Colonne16]) -> 47 | BV38: 0.00038 | BX38: =RANK(BY38,TabMOYENNES_CBH1_1[Colonne164]) -> 32 | BY38: 0.00038 | CA38: =RANK(CB38,TabMOYENNES_CBH1_1[Colonne17]) -> 32 | CB38: 0.00038 | CD38: =RANK(CE38,TabMOYENNES_CBH1_1[Colonne18]) -> 32 | CE38: 0.00038 | CG38: =RANK(CH38,TabMOYENNES_CBH1_1[Colonne184]) -> 32 | CH38: 0.00038 | CJ38: =RANK(CK38,TabMOYENNES_CBH1_1[Colonne19]) -> 32 | CK38: 0.00038 | CM38: =RANK(CN38,TabMOYENNES_CBH1_1[Colonne20]) -> 32 | CN38: 0.00038 | CO38: =(TabMOYENNES_CBH1_1[[#This Row],[PROF1]]*$BQ$17+TabMOYENNES_CBH1_1[[#This Row],[PROF2]]*BT$17+TabMOYENNES_CBH1_1[[#This Row],[PROF3]]*BW$17+TabMOYENNES_CBH1_1[[#This Row],[PROF4]]*BZ$17+TabMOYENNES_CBH1_1[[#This Row],[PROF5]]*CC$17+TabMOYENNES_CBH1_1[[#This Row],[PROF6]]*CF$17+TabMOYENNES_CBH1_1[[#This Row],[PROF7]]*CI$17+TabMOYENNES_CBH1_1[[#This Row],[PROF8]]*CL$17)/($CP$15+ROW()/10000) -> 1.082876119 | CP38: =RANK(CQ38,TabMOYENNES_CBH1_1[Colonne23]) -> 18 | CQ38: 1.083256119 | CR38: 2.5 | CS38: =RANK(CT38,TabMOYENNES_CBH1_1[Colonne2]) -> 17 | CT38: 2.50038 | CU38: 7 | CV38: =RANK(CW38,TabMOYENNES_CBH1_1[Colonne6]) -> 15 | CW38: 7.00038 | CX38: 10 | CY38: =RANK(CZ38,TabMOYENNES_CBH1_1[Colonne7]) -> 16 | CZ38: 10.00038 | DB38: =RANK(DC38,TabMOYENNES_CBH1_1[Colonne8]) -> 32 | DC38: 0.00038 | DE38: =RANK(DF38,TabMOYENNES_CBH1_1[Colonne9]) -> 32 | DF38: 0.00038 | DH38: =RANK(DI38,TabMOYENNES_CBH1_1[Colonne95]) -> 32 | DI38: 0.00038 | DK38: =RANK(DL38,TabMOYENNES_CBH1_1[Colonne92]) -> 32 | DL38: 0.00038 | DN38: =RANK(DO38,TabMOYENNES_CBH1_1[Colonne922]) -> 32 | DO38: 0.00038 | DP38: =(CR38*CR$17+CU38*CU$17+TabMOYENNES_CBH1_1[[#This Row],[ECO3]]*CX$17+TabMOYENNES_CBH1_1[[#This Row],[ECO4]]*DA$17+TabMOYENNES_CBH1_1[[#This Row],[ECO5]]*DD$17+TabMOYENNES_CBH1_1[[#This Row],[ECO6]]*DG$17+TabMOYENNES_CBH1_1[[#This Row],[ECO7]]*DJ$17+TabMOYENNES_CBH1_1[[#This Row],[ECO8]]*DM$17)/(DQ$15+ROW()/10000) -> 4.870373146 | DQ38: =RANK(TabMOYENNES_CBH1_1[[#This Row],[Colonne30]],TabMOYENNES_CBH1_1[Colonne30]) -> 16 | DR38: 4.870753146 | DU38: =VLOOKUP(TabMOYENNES_CBH1_1[[#This Row],[Matricule]],TabMOYENNES_CBH1_1[],20,FALSE) -> 7.194532156 | DV38: =VLOOKUP(TabMOYENNES_CBH1_1[[#This Row],[Matricule]],TabMOYENNES_CBH1_1[],38,FALSE) -> 5.827796926 | DW38: =VLOOKUP(TabMOYENNES_CBH1_1[[#This Row],[Matricule]],TabMOYENNES_CBH1_1[],65,FALSE) -> 3.248765469 | DX38: =VLOOKUP(TabMOYENNES_CBH1_1[[#This Row],[Matricule]],TabMOYENNES_CBH1_1[],92,FALSE) -> 1.082876119 | DY38: =VLOOKUP(TabMOYENNES_CBH1_1[[#This Row],[Matricule]],TabMOYENNES_CBH1_1[],119,FALSE) -> 4.870373146 | DZ38: 120.9988808 | EA38: 3.78076606 | EB38: =RANK(EC38,TabMOYENNES_CBH1_1[..],0) -> 17 | EC38: 3.78114606 | ED38: 0 | EE38: =IF($EA38="","",IF(AND($EA38=0,TabMOYENNES_CBH1_1[[#This Row],[H.A.]]>=140),"Abandon",IF($EA38>9.99,"Validé","Non Validé"))) -> Non Validé
B39: ='Liste CBH1_1'!B33 -> CBH1.S1.19/20.020 | C39: =VLOOKUP(B39,TabListe_CBH1_S1[],2,FALSE) -> SAMA Edgard | D39: =VLOOKUP(B39,TabListe_CBH1_S1[],3,FALSE) -> M | F39: 0 | G39: 45 | H39: 0.00039 | I39: 13 | J39: =RANK(K39,TabMOYENNES_CBH1_1[Ref. 2]) -> 5 | K39: 13.00039 | M39: =RANK(N39,TabMOYENNES_CBH1_1[Ref. 3]) -> 31 | N39: 0.00039 | P39: =RANK(Q39,TabMOYENNES_CBH1_1[Ref. 4]) -> 31 | Q39: 0.00039 | S39: =RANK(T39,TabMOYENNES_CBH1_1[Ref. 5]) -> 31 | T39: 0.00039 | U39: =(F39*F$17+I39*I$17+TabMOYENNES_CBH1_1[[#This Row],[LG3]]*L$17+TabMOYENNES_CBH1_1[[#This Row],[LG4]]*O$17+TabMOYENNES_CBH1_1[[#This Row],[LG5]]*R$17)/(V$15+ROW()/10000) -> 7.793920742 | V39: =RANK(W39,TabMOYENNES_CBH1_1[Colonne4]) -> 16 | W39: 7.794310742 | X39: 0 | Y39: =RANK(Z39,TabMOYENNES_CBH1_1[Ref 2.1]) -> 47 | Z39: 0.00039 | AA39: 0 | AB39: =RANK(AC39,TabMOYENNES_CBH1_1[Ref 2.2]) -> 47 | AC39: 0.00039 | AE39: =RANK(AF39,TabMOYENNES_CBH1_1[Ref 2.3]) -> 31 | AF39: 0.00039 | AH39: =RANK(AI39,TabMOYENNES_CBH1_1[Ref 2.4]) -> 31 | AI39: 0.00039 | AK39: =RANK(AL39,TabMOYENNES_CBH1_1[Ref 2.5]) -> 31 | AL39: 0.00039 | AM39: =(X39*X$17+AA39*AA$17+TabMOYENNES_CBH1_1[[#This Row],[SC3]]*AD$17+TabMOYENNES_CBH1_1[[#This Row],[SC4]]*AG$17+TabMOYENNES_CBH1_1[[#This Row],[SC5]]*AJ$17)/(AN$15+ROW()/10000) -> 0 | AN39: =RANK(AO39,TabMOYENNES_CBH1_1[Colonne44]) -> 48 | AO39: 0.00039 | AP39: 8.333333333 | AQ39: =RANK(AR39,TabMOYENNES_CBH1_1[Colonne32]) -> 12 | AR39: 8.333723333 | AS39: 0 | AT39: =RANK(AU39,TabMOYENNES_CBH1_1[Colonne34]) -> 47 | AU39: 0.00039 | AV39: 7.333333333 | AW39: =RANK(AX39,TabMOYENNES_CBH1_1[Colonne36]) -> 14 | AX39: 7.333723333 | AY39: 2.75 | AZ39: =RANK(BA39,TabMOYENNES_CBH1_1[Colonne38]) -> 18 | BA39: 2.75039 | BC39: =RANK(BD39,TabMOYENNES_CBH1_1[Colonne383]) -> 31 | BD39: 0.00039 | BF39: =RANK(BG39,TabMOYENNES_CBH1_1[Colonne384]) -> 31 | BG39: 0.00039 | BI39: =RANK(BJ39,TabMOYENNES_CBH1_1[Colonne385]) -> 31 | BJ39: 0.00039 | BL39: =RANK(BM39,TabMOYENNES_CBH1_1[Colonne386]) -> 31 | BM39: 0.00039 | BN39: =(AP39*AP$17+AS39*AS$17+AV39*AV$17+AY39*AY$17+TabMOYENNES_CBH1_1[[#This Row],[TECHNO5]]*BB$17+TabMOYENNES_CBH1_1[[#This Row],[TECHNO6]]*BE$17+TabMOYENNES_CBH1_1[[#This Row],[TECHNO7]]*BH$17+TabMOYENNES_CBH1_1[[#This Row],[TECHNO8]]*BK$17)/(BO$15+ROW()/10000) -> 4.973060506 | BO39: =RANK(TabMOYENNES_CBH1_1[[#This Row],[,]],TabMOYENNES_CBH1_1[,]) -> 17 | BP39: 4.973450506 | BQ39: 8.75 | BR39: =RANK(BS39,TabMOYENNES_CBH1_1[Colonne14]) -> 13 | BS39: 8.75039 | BT39: 0 | BU39: =RANK(BV39,TabMOYENNES_CBH1_1[Colonne16]) -> 46 | BV39: 0.00039 | BX39: =RANK(BY39,TabMOYENNES_CBH1_1[Colonne164]) -> 31 | BY39: 0.00039 | CA39: =RANK(CB39,TabMOYENNES_CBH1_1[Colonne17]) -> 31 | CB39: 0.00039 | CD39: =RANK(CE39,TabMOYENNES_CBH1_1[Colonne18]) -> 31 | CE39: 0.00039 | CG39: =RANK(CH39,TabMOYENNES_CBH1_1[Colonne184]) -> 31 | CH39: 0.00039 | CJ39: =RANK(CK39,TabMOYENNES_CBH1_1[Colonne19]) -> 31 | CK39: 0.00039 | CM39: =RANK(CN39,TabMOYENNES_CBH1_1[Colonne20]) -> 31 | CN39: 0.00039 | CO39: =(TabMOYENNES_CBH1_1[[#This Row],[PROF1]]*$BQ$17+TabMOYENNES_CBH1_1[[#This Row],[PROF2]]*BT$17+TabMOYENNES_CBH1_1[[#This Row],[PROF3]]*BW$17+TabMOYENNES_CBH1_1[[#This Row],[PROF4]]*BZ$17+TabMOYENNES_CBH1_1[[#This Row],[PROF5]]*CC$17+TabMOYENNES_CBH1_1[[#This Row],[PROF6]]*CF$17+TabMOYENNES_CBH1_1[[#This Row],[PROF7]]*CI$17+TabMOYENNES_CBH1_1[[#This Row],[PROF8]]*CL$17)/($CP$15+ROW()/10000) -> 2.915403325 | CP39: =RANK(CQ39,TabMOYENNES_CBH1_1[Colonne23]) -> 17 | CQ39: 2.915793325 | CR39: 0 | CS39: =RANK(CT39,TabMOYENNES_CBH1_1[Colonne2]) -> 47 | CT39: 0.00039 | CU39: 1.25 | CV39: =RANK(CW39,TabMOYENNES_CBH1_1[Colonne6]) -> 18 | CW39: 1.25039 | CX39: 0 | CY39: =RANK(CZ39,TabMOYENNES_CBH1_1[Colonne7]) -> 48 | CZ39: 0.00039 | DB39: =RANK(DC39,TabMOYENNES_CBH1_1[Colonne8]) -> 31 | DC39: 0.00039 | DE39: =RANK(DF39,TabMOYENNES_CBH1_1[Colonne9]) -> 31 | DF39: 0.00039 | DH39: =RANK(DI39,TabMOYENNES_CBH1_1[Colonne95]) -> 31 | DI39: 0.00039 | DK39: =RANK(DL39,TabMOYENNES_CBH1_1[Colonne92]) -> 31 | DL39: 0.00039 | DN39: =RANK(DO39,TabMOYENNES_CBH1_1[Colonne922]) -> 31 | DO39: 0.00039 | DP39: =(CR39*CR$17+CU39*CU$17+TabMOYENNES_CBH1_1[[#This Row],[ECO3]]*CX$17+TabMOYENNES_CBH1_1[[#This Row],[ECO4]]*DA$17+TabMOYENNES_CBH1_1[[#This Row],[ECO5]]*DD$17+TabMOYENNES_CBH1_1[[#This Row],[ECO6]]*DG$17+TabMOYENNES_CBH1_1[[#This Row],[ECO7]]*DJ$17+TabMOYENNES_CBH1_1[[#This Row],[ECO8]]*DM$17)/(DQ$15+ROW()/10000) -> 0.3121956093 | DQ39: =RANK(TabMOYENNES_CBH1_1[[#This Row],[Colonne30]],TabMOYENNES_CBH1_1[Colonne30]) -> 19 | DR39: 0.3125856093 | DU39: =VLOOKUP(TabMOYENNES_CBH1_1[[#This Row],[Matricule]],TabMOYENNES_CBH1_1[],20,FALSE) -> 7.793920742 | DV39: =VLOOKUP(TabMOYENNES_CBH1_1[[#This Row],[Matricule]],TabMOYENNES_CBH1_1[],38,FALSE) -> 0 | DW39: =VLOOKUP(TabMOYENNES_CBH1_1[[#This Row],[Matricule]],TabMOYENNES_CBH1_1[],65,FALSE) -> 4.973060506 | DX39: =VLOOKUP(TabMOYENNES_CBH1_1[[#This Row],[Matricule]],TabMOYENNES_CBH1_1[],92,FALSE) -> 2.915403325 | DY39: =VLOOKUP(TabMOYENNES_CBH1_1[[#This Row],[Matricule]],TabMOYENNES_CBH1_1[],119,FALSE) -> 0.3121956093 | DZ39: 116.1876211 | EA39: 3.630420703 | EB39: =RANK(EC39,TabMOYENNES_CBH1_1[..],0) -> 18 | EC39: 3.630810703 | ED39: 0 | EE39: =IF($EA39="","",IF(AND($EA39=0,TabMOYENNES_CBH1_1[[#This Row],[H.A.]]>=140),"Abandon",IF($EA39>9.99,"Validé","Non Validé"))) -> Non Validé
B40: ='Liste CBH1_1'!B34 -> CBH1.S1.19/20.021 | C40: =VLOOKUP(B40,TabListe_CBH1_S1[],2,FALSE) -> TONDIBADI MOUNIA Hans Kenneth | D40: =VLOOKUP(B40,TabListe_CBH1_S1[],3,FALSE) -> M | F40: 12 | G40: 1 | H40: 12.0004 | I40: 13.5 | J40: =RANK(K40,TabMOYENNES_CBH1_1[Ref. 2]) -> 3 | K40: 13.5004 | M40: =RANK(N40,TabMOYENNES_CBH1_1[Ref. 3]) -> 30 | N40: 0.0004 | P40: =RANK(Q40,TabMOYENNES_CBH1_1[Ref. 4]) -> 30 | Q40: 0.0004 | S40: =RANK(T40,TabMOYENNES_CBH1_1[Ref. 5]) -> 30 | T40: 0.0004 | U40: =(F40*F$17+I40*I$17+TabMOYENNES_CBH1_1[[#This Row],[LG3]]*L$17+TabMOYENNES_CBH1_1[[#This Row],[LG4]]*O$17+TabMOYENNES_CBH1_1[[#This Row],[LG5]]*R$17)/(V$15+ROW()/10000) -> 12.88968825 | V40: =RANK(W40,TabMOYENNES_CBH1_1[Colonne4]) -> 2 | W40: 12.89008825 | X40: 7.666666667 | Y40: =RANK(Z40,TabMOYENNES_CBH1_1[Ref 2.1]) -> 10 | Z40: 7.667066667 | AA40: 5.5 | AB40: =RANK(AC40,TabMOYENNES_CBH1_1[Ref 2.2]) -> 16 | AC40: 5.5004 | AE40: =RANK(AF40,TabMOYENNES_CBH1_1[Ref 2.3]) -> 30 | AF40: 0.0004 | AH40: =RANK(AI40,TabMOYENNES_CBH1_1[Ref 2.4]) -> 30 | AI40: 0.0004 | AK40: =RANK(AL40,TabMOYENNES_CBH1_1[Ref 2.5]) -> 30 | AL40: 0.0004 | AM40: =(X40*X$17+AA40*AA$17+TabMOYENNES_CBH1_1[[#This Row],[SC3]]*AD$17+TabMOYENNES_CBH1_1[[#This Row],[SC4]]*AG$17+TabMOYENNES_CBH1_1[[#This Row],[SC5]]*AJ$17)/(AN$15+ROW()/10000) -> 5.203130203 | AN40: =RANK(AO40,TabMOYENNES_CBH1_1[Colonne44]) -> 14 | AO40: 5.203530203 | AP40: 13 | AQ40: =RANK(AR40,TabMOYENNES_CBH1_1[Colonne32]) -> 1 | AR40: 13.0004 | AS40: 9.25 | AT40: =RANK(AU40,TabMOYENNES_CBH1_1[Colonne34]) -> 6 | AU40: 9.2504 | AV40: 9.333333333 | AW40: =RANK(AX40,TabMOYENNES_CBH1_1[Colonne36]) -> 8 | AX40: 9.333733333 | AY40: 5 | AZ40: =RANK(BA40,TabMOYENNES_CBH1_1[Colonne38]) -> 16 | BA40: 5.0004 | BC40: =RANK(BD40,TabMOYENNES_CBH1_1[Colonne383]) -> 30 | BD40: 0.0004 | BF40: =RANK(BG40,TabMOYENNES_CBH1_1[Colonne384]) -> 30 | BG40: 0.0004 | BI40: =RANK(BJ40,TabMOYENNES_CBH1_1[Colonne385]) -> 30 | BJ40: 0.0004 | BL40: =RANK(BM40,TabMOYENNES_CBH1_1[Colonne386]) -> 30 | BM40: 0.0004 | BN40: =(AP40*AP$17+AS40*AS$17+AV40*AV$17+AY40*AY$17+TabMOYENNES_CBH1_1[[#This Row],[TECHNO5]]*BB$17+TabMOYENNES_CBH1_1[[#This Row],[TECHNO6]]*BE$17+TabMOYENNES_CBH1_1[[#This Row],[TECHNO7]]*BH$17+TabMOYENNES_CBH1_1[[#This Row],[TECHNO8]]*BK$17)/(BO$15+ROW()/10000) -> 9.971011595 | BO40: =RANK(TabMOYENNES_CBH1_1[[#This Row],[,]],TabMOYENNES_CBH1_1[,]) -> 7 | BP40: 9.971411595 | BQ40: 10 | BR40: =RANK(BS40,TabMOYENNES_CBH1_1[Colonne14]) -> 6 | BS40: 10.0004 | BT40: 13.25 | BU40: =RANK(BV40,TabMOYENNES_CBH1_1[Colonne16]) -> 9 | BV40: 13.2504 | BX40: =RANK(BY40,TabMOYENNES_CBH1_1[Colonne164]) -> 30 | BY40: 0.0004 | CA40: =RANK(CB40,TabMOYENNES_CBH1_1[Colonne17]) -> 30 | CB40: 0.0004 | CD40: =RANK(CE40,TabMOYENNES_CBH1_1[Colonne18]) -> 30 | CE40: 0.0004 | CG40: =RANK(CH40,TabMOYENNES_CBH1_1[Colonne184]) -> 30 | CH40: 0.0004 | CJ40: =RANK(CK40,TabMOYENNES_CBH1_1[Colonne19]) -> 30 | CK40: 0.0004 | CM40: =RANK(CN40,TabMOYENNES_CBH1_1[Colonne20]) -> 30 | CN40: 0.0004 | CO40: =(TabMOYENNES_CBH1_1[[#This Row],[PROF1]]*$BQ$17+TabMOYENNES_CBH1_1[[#This Row],[PROF2]]*BT$17+TabMOYENNES_CBH1_1[[#This Row],[PROF3]]*BW$17+TabMOYENNES_CBH1_1[[#This Row],[PROF4]]*BZ$17+TabMOYENNES_CBH1_1[[#This Row],[PROF5]]*CC$17+TabMOYENNES_CBH1_1[[#This Row],[PROF6]]*CF$17+TabMOYENNES_CBH1_1[[#This Row],[PROF7]]*CI$17+TabMOYENNES_CBH1_1[[#This Row],[PROF8]]*CL$17)/($CP$15+ROW()/10000) -> 7.746557086 | CP40: =RANK(CQ40,TabMOYENNES_CBH1_1[Colonne23]) -> 10 | CQ40: 7.746957086 | CR40: 9.5 | CS40: =RANK(CT40,TabMOYENNES_CBH1_1[Colonne2]) -> 8 | CT40: 9.5004 | CU40: 11.25 | CV40: =RANK(CW40,TabMOYENNES_CBH1_1[Colonne6]) -> 9 | CW40: 11.2504 | CX40: 12 | CY40: =RANK(CZ40,TabMOYENNES_CBH1_1[Colonne7]) -> 8 | CZ40: 12.0004 | DB40: =RANK(DC40,TabMOYENNES_CBH1_1[Colonne8]) -> 30 | DC40: 0.0004 | DE40: =RANK(DF40,TabMOYENNES_CBH1_1[Colonne9]) -> 30 | DF40: 0.0004 | DH40: =RANK(DI40,TabMOYENNES_CBH1_1[Colonne95]) -> 30 | DI40: 0.0004 | DK40: =RANK(DL40,TabMOYENNES_CBH1_1[Colonne92]) -> 30 | DL40: 0.0004 | DN40: =RANK(DO40,TabMOYENNES_CBH1_1[Colonne922]) -> 30 | DO40: 0.0004 | DP40: =(CR40*CR$17+CU40*CU$17+TabMOYENNES_CBH1_1[[#This Row],[ECO3]]*CX$17+TabMOYENNES_CBH1_1[[#This Row],[ECO4]]*DA$17+TabMOYENNES_CBH1_1[[#This Row],[ECO5]]*DD$17+TabMOYENNES_CBH1_1[[#This Row],[ECO6]]*DG$17+TabMOYENNES_CBH1_1[[#This Row],[ECO7]]*DJ$17+TabMOYENNES_CBH1_1[[#This Row],[ECO8]]*DM$17)/(DQ$15+ROW()/10000) -> 8.179320679 | DQ40: =RANK(TabMOYENNES_CBH1_1[[#This Row],[Colonne30]],TabMOYENNES_CBH1_1[Colonne30]) -> 9 | DR40: 8.179720679 | DU40: =VLOOKUP(TabMOYENNES_CBH1_1[[#This Row],[Matricule]],TabMOYENNES_CBH1_1[],20,FALSE) -> 12.88968825 | DV40: =VLOOKUP(TabMOYENNES_CBH1_1[[#This Row],[Matricule]],TabMOYENNES_CBH1_1[],38,FALSE) -> 5.203130203 | DW40: =VLOOKUP(TabMOYENNES_CBH1_1[[#This Row],[Matricule]],TabMOYENNES_CBH1_1[],65,FALSE) -> 9.971011595 | DX40: =VLOOKUP(TabMOYENNES_CBH1_1[[#This Row],[Matricule]],TabMOYENNES_CBH1_1[],92,FALSE) -> 7.746557086 | DY40: =VLOOKUP(TabMOYENNES_CBH1_1[[#This Row],[Matricule]],TabMOYENNES_CBH1_1[],119,FALSE) -> 8.179320679 | DZ40: 287.4073745 | EA40: 8.980357908 | EB40: =RANK(EC40,TabMOYENNES_CBH1_1[..],0) -> 8 | EC40: 8.980757908 | ED40: 0 | EE40: =IF($EA40="","",IF(AND($EA40=0,TabMOYENNES_CBH1_1[[#This Row],[H.A.]]>=140),"Abandon",IF($EA40>9.99,"Validé","Non Validé"))) -> Non Validé
B41: ='Liste CBH1_1'!B35 -> CBH1.S1.19/20.022 | C41: =VLOOKUP(B41,TabListe_CBH1_S1[],2,FALSE) -> ZZZ1 | D41: =VLOOKUP(B41,TabListe_CBH1_S1[],3,FALSE) -> 0 | G41: 44 | H41: =F41+ROW()/100000 -> 0.00041 | J41: =RANK(K41,TabMOYENNES_CBH1_1[Ref. 2]) -> 47 | K41: =I41+ROW()/100000 -> 0.00041 | M41: =RANK(N41,TabMOYENNES_CBH1_1[Ref. 3]) -> 29 | N41: =L41+ROW()/100000 -> 0.00041 | P41: =RANK(Q41,TabMOYENNES_CBH1_1[Ref. 4]) -> 29 | Q41: =O41+ROW()/100000 -> 0.00041 | S41: =RANK(T41,TabMOYENNES_CBH1_1[Ref. 5]) -> 29 | T41: =R41+ROW()/100000 -> 0.00041 | U41: =(F41*F$17+I41*I$17+TabMOYENNES_CBH1_1[[#This Row],[LG3]]*L$17+TabMOYENNES_CBH1_1[[#This Row],[LG4]]*O$17+TabMOYENNES_CBH1_1[[#This Row],[LG5]]*R$17)/(V$15+ROW()/10000) -> 0 | V41: =RANK(W41,TabMOYENNES_CBH1_1[Colonne4]) -> 47 | W41: =U41+ROW()/100000 -> 0.00041 | Y41: =RANK(Z41,TabMOYENNES_CBH1_1[Ref 2.1]) -> 46 | Z41: =X41+ROW()/100000 -> 0.00041 | AB41: =RANK(AC41,TabMOYENNES_CBH1_1[Ref 2.2]) -> 46 | AC41: =AA41+ROW()/100000 -> 0.00041 | AE41: =RANK(AF41,TabMOYENNES_CBH1_1[Ref 2.3]) -> 29 | AF41: =AD41+ROW()/100000 -> 0.00041 | AH41: =RANK(AI41,TabMOYENNES_CBH1_1[Ref 2.4]) -> 29 | AI41: =AG41+ROW()/100000 -> 0.00041 | AK41: =RANK(AL41,TabMOYENNES_CBH1_1[Ref 2.5]) -> 29 | AL41: =AJ41+ROW()/100000 -> 0.00041 | AM41: =(X41*X$17+AA41*AA$17+TabMOYENNES_CBH1_1[[#This Row],[SC3]]*AD$17+TabMOYENNES_CBH1_1[[#This Row],[SC4]]*AG$17+TabMOYENNES_CBH1_1[[#This Row],[SC5]]*AJ$17)/(AN$15+ROW()/10000) -> 0 | AN41: =RANK(AO41,TabMOYENNES_CBH1_1[Colonne44]) -> 47 | AO41: =AM41+ROW()/100000 -> 0.00041 | AQ41: =RANK(AR41,TabMOYENNES_CBH1_1[Colonne32]) -> 47 | AR41: =AP41+ROW()/100000 -> 0.00041 | AT41: =RANK(AU41,TabMOYENNES_CBH1_1[Colonne34]) -> 46 | AU41: =AS41+ROW()/100000 -> 0.00041 | AW41: =RANK(AX41,TabMOYENNES_CBH1_1[Colonne36]) -> 48 | AX41: =AV41+ROW()/100000 -> 0.00041 | AZ41: =RANK(BA41,TabMOYENNES_CBH1_1[Colonne38]) -> 47 | BA41: =AY41+ROW()/100000 -> 0.00041 | BC41: =RANK(BD41,TabMOYENNES_CBH1_1[Colonne383]) -> 29 | BD41: =BB41+ROW()/100000 -> 0.00041 | BF41: =RANK(BG41,TabMOYENNES_CBH1_1[Colonne384]) -> 29 | BG41: =BE41+ROW()/100000 -> 0.00041 | BI41: =RANK(BJ41,TabMOYENNES_CBH1_1[Colonne385]) -> 29 | BJ41: =BH41+ROW()/100000 -> 0.00041 | BL41: =RANK(BM41,TabMOYENNES_CBH1_1[Colonne386]) -> 29 | BM41: =BK41+ROW()/100000 -> 0.00041 | BN41: =(AP41*AP$17+AS41*AS$17+AV41*AV$17+AY41*AY$17+TabMOYENNES_CBH1_1[[#This Row],[TECHNO5]]*BB$17+TabMOYENNES_CBH1_1[[#This Row],[TECHNO6]]*BE$17+TabMOYENNES_CBH1_1[[#This Row],[TECHNO7]]*BH$17+TabMOYENNES_CBH1_1[[#This Row],[TECHNO8]]*BK$17)/(BO$15+ROW()/10000) -> 0 | BO41: =RANK(TabMOYENNES_CBH1_1[[#This Row],[,]],TabMOYENNES_CBH1_1[,]) -> 48 | BP41: =BN41+ROW()/100000 -> 0.00041 | BR41: =RANK(BS41,TabMOYENNES_CBH1_1[Colonne14]) -> 47 | BS41: =BQ41+ROW()/100000 -> 0.00041 | BU41: =RANK(BV41,TabMOYENNES_CBH1_1[Colonne16]) -> 45 | BV41: =BT41+ROW()/100000 -> 0.00041 | BX41: =RANK(BY41,TabMOYENNES_CBH1_1[Colonne164]) -> 29 | BY41: =BW41+ROW()/100000 -> 0.00041 | CA41: =RANK(CB41,TabMOYENNES_CBH1_1[Colonne17]) -> 29 | CB41: =BZ41+ROW()/100000 -> 0.00041 | CD41: =RANK(CE41,TabMOYENNES_CBH1_1[Colonne18]) -> 29 | CE41: =CC41+ROW()/100000 -> 0.00041 | CG41: =RANK(CH41,TabMOYENNES_CBH1_1[Colonne184]) -> 29 | CH41: =CF41+ROW()/100000 -> 0.00041 | CJ41: =RANK(CK41,TabMOYENNES_CBH1_1[Colonne19]) -> 29 | CK41: =CI41+ROW()/100000 -> 0.00041 | CM41: =RANK(CN41,TabMOYENNES_CBH1_1[Colonne20]) -> 29 | CN41: =CL41+ROW()/100000 -> 0.00041 | CO41: =(TabMOYENNES_CBH1_1[[#This Row],[PROF1]]*$BQ$17+TabMOYENNES_CBH1_1[[#This Row],[PROF2]]*BT$17+TabMOYENNES_CBH1_1[[#This Row],[PROF3]]*BW$17+TabMOYENNES_CBH1_1[[#This Row],[PROF4]]*BZ$17+TabMOYENNES_CBH1_1[[#This Row],[PROF5]]*CC$17+TabMOYENNES_CBH1_1[[#This Row],[PROF6]]*CF$17+TabMOYENNES_CBH1_1[[#This Row],[PROF7]]*CI$17+TabMOYENNES_CBH1_1[[#This Row],[PROF8]]*CL$17)/($CP$15+ROW()/10000) -> 0 | CP41: =RANK(CQ41,TabMOYENNES_CBH1_1[Colonne23]) -> 47 | CQ41: =CO41+ROW()/100000 -> 0.00041 | CS41: =RANK(CT41,TabMOYENNES_CBH1_1[Colonne2]) -> 46 | CT41: =CR41+ROW()/100000 -> 0.00041 | CV41: =RANK(CW41,TabMOYENNES_CBH1_1[Colonne6]) -> 47 | CW41: =CU41+ROW()/100000 -> 0.00041 | CY41: =RANK(CZ41,TabMOYENNES_CBH1_1[Colonne7]) -> 47 | CZ41: =CX41+ROW()/100000 -> 0.00041 | DB41: =RANK(DC41,TabMOYENNES_CBH1_1[Colonne8]) -> 29 | DC41: =DA41+ROW()/100000 -> 0.00041 | DE41: =RANK(DF41,TabMOYENNES_CBH1_1[Colonne9]) -> 29 | DF41: =DD41+ROW()/100000 -> 0.00041 | DH41: =RANK(DI41,TabMOYENNES_CBH1_1[Colonne95]) -> 29 | DI41: =DG41+ROW()/100000 -> 0.00041 | DK41: =RANK(DL41,TabMOYENNES_CBH1_1[Colonne92]) -> 29 | DL41: =DJ41+ROW()/100000 -> 0.00041 | DN41: =RANK(DO41,TabMOYENNES_CBH1_1[Colonne922]) -> 29 | DO41: =DM41+ROW()/100000 -> 0.00041 | DP41: =(CR41*CR$17+CU41*CU$17+TabMOYENNES_CBH1_1[[#This Row],[ECO3]]*CX$17+TabMOYENNES_CBH1_1[[#This Row],[ECO4]]*DA$17+TabMOYENNES_CBH1_1[[#This Row],[ECO5]]*DD$17+TabMOYENNES_CBH1_1[[#This Row],[ECO6]]*DG$17+TabMOYENNES_CBH1_1[[#This Row],[ECO7]]*DJ$17+TabMOYENNES_CBH1_1[[#This Row],[ECO8]]*DM$17)/(DQ$15+ROW()/10000) -> 0 | DQ41: =RANK(TabMOYENNES_CBH1_1[[#This Row],[Colonne30]],TabMOYENNES_CBH1_1[Colonne30]) -> 48 | DR41: =DP41+ROW()/100000 -> 0.00041 | DU41: =VLOOKUP(TabMOYENNES_CBH1_1[[#This Row],[Matricule]],TabMOYENNES_CBH1_1[],20,FALSE) -> 0 | DV41: =VLOOKUP(TabMOYENNES_CBH1_1[[#This Row],[Matricule]],TabMOYENNES_CBH1_1[],38,FALSE) -> 0 | DW41: =VLOOKUP(TabMOYENNES_CBH1_1[[#This Row],[Matricule]],TabMOYENNES_CBH1_1[],65,FALSE) -> 0 | DX41: =VLOOKUP(TabMOYENNES_CBH1_1[[#This Row],[Matricule]],TabMOYENNES_CBH1_1[],92,FALSE) -> 0 | DY41: =VLOOKUP(TabMOYENNES_CBH1_1[[#This Row],[Matricule]],TabMOYENNES_CBH1_1[],119,FALSE) -> 0 | DZ41: =(DU41*$DU$17+DV41*$DV$17+DW41*$DW$17+DX41*$DX$17+DY41*$DY$17) -> 0 | EA41: =(DU41*DU$17+DY41*DY$17+DX41*DX$17+DV41*DV$17+DW41*DW$17)/(EA$17+ROW()/10000) -> 0 | EB41: =RANK(EC41,TabMOYENNES_CBH1_1[..],0) -> 48 | EC41: =EA41+ROW()/100000 -> 0.00041 | ED41: 0 | EE41: =IF($EA41="","",IF(AND($EA41=0,TabMOYENNES_CBH1_1[[#This Row],[H.A.]]>=140),"Abandon",IF($EA41>9.99,"Validé","Non Validé"))) -> Non Validé
B42: ='Liste CBH1_1'!B36 -> CBH1.S1.19/20.023 | C42: =VLOOKUP(B42,TabListe_CBH1_S1[],2,FALSE) -> ZZZ2 | D42: =VLOOKUP(B42,TabListe_CBH1_S1[],3,FALSE) -> 0 | G42: 43 | H42: 0.00042 | J42: =RANK(K42,TabMOYENNES_CBH1_1[Ref. 2]) -> 46 | K42: 0.00042 | M42: =RANK(N42,TabMOYENNES_CBH1_1[Ref. 3]) -> 28 | N42: 0.00042 | P42: =RANK(Q42,TabMOYENNES_CBH1_1[Ref. 4]) -> 28 | Q42: 0.00042 | S42: =RANK(T42,TabMOYENNES_CBH1_1[Ref. 5]) -> 28 | T42: 0.00042 | U42: =(F42*F$17+I42*I$17+TabMOYENNES_CBH1_1[[#This Row],[LG3]]*L$17+TabMOYENNES_CBH1_1[[#This Row],[LG4]]*O$17+TabMOYENNES_CBH1_1[[#This Row],[LG5]]*R$17)/(V$15+ROW()/10000) -> 0 | V42: =RANK(W42,TabMOYENNES_CBH1_1[Colonne4]) -> 46 | W42: 0.00042 | Y42: =RANK(Z42,TabMOYENNES_CBH1_1[Ref 2.1]) -> 45 | Z42: 0.00042 | AB42: =RANK(AC42,TabMOYENNES_CBH1_1[Ref 2.2]) -> 45 | AC42: 0.00042 | AE42: =RANK(AF42,TabMOYENNES_CBH1_1[Ref 2.3]) -> 28 | AF42: 0.00042 | AH42: =RANK(AI42,TabMOYENNES_CBH1_1[Ref 2.4]) -> 28 | AI42: 0.00042 | AK42: =RANK(AL42,TabMOYENNES_CBH1_1[Ref 2.5]) -> 28 | AL42: 0.00042 | AM42: =(X42*X$17+AA42*AA$17+TabMOYENNES_CBH1_1[[#This Row],[SC3]]*AD$17+TabMOYENNES_CBH1_1[[#This Row],[SC4]]*AG$17+TabMOYENNES_CBH1_1[[#This Row],[SC5]]*AJ$17)/(AN$15+ROW()/10000) -> 0 | AN42: =RANK(AO42,TabMOYENNES_CBH1_1[Colonne44]) -> 46 | AO42: 0.00042 | AQ42: =RANK(AR42,TabMOYENNES_CBH1_1[Colonne32]) -> 46 | AR42: 0.00042 | AT42: =RANK(AU42,TabMOYENNES_CBH1_1[Colonne34]) -> 45 | AU42: 0.00042 | AW42: =RANK(AX42,TabMOYENNES_CBH1_1[Colonne36]) -> 47 | AX42: 0.00042 | AZ42: =RANK(BA42,TabMOYENNES_CBH1_1[Colonne38]) -> 46 | BA42: 0.00042 | BC42: =RANK(BD42,TabMOYENNES_CBH1_1[Colonne383]) -> 28 | BD42: 0.00042 | BF42: =RANK(BG42,TabMOYENNES_CBH1_1[Colonne384]) -> 28 | BG42: 0.00042 | BI42: =RANK(BJ42,TabMOYENNES_CBH1_1[Colonne385]) -> 28 | BJ42: 0.00042 | BL42: =RANK(BM42,TabMOYENNES_CBH1_1[Colonne386]) -> 28 | BM42: 0.00042 | BN42: =(AP42*AP$17+AS42*AS$17+AV42*AV$17+AY42*AY$17+TabMOYENNES_CBH1_1[[#This Row],[TECHNO5]]*BB$17+TabMOYENNES_CBH1_1[[#This Row],[TECHNO6]]*BE$17+TabMOYENNES_CBH1_1[[#This Row],[TECHNO7]]*BH$17+TabMOYENNES_CBH1_1[[#This Row],[TECHNO8]]*BK$17)/(BO$15+ROW()/10000) -> 0 | BO42: =RANK(TabMOYENNES_CBH1_1[[#This Row],[,]],TabMOYENNES_CBH1_1[,]) -> 47 | BP42: 0.00042 | BR42: =RANK(BS42,TabMOYENNES_CBH1_1[Colonne14]) -> 46 | BS42: 0.00042 | BU42: =RANK(BV42,TabMOYENNES_CBH1_1[Colonne16]) -> 44 | BV42: 0.00042 | BX42: =RANK(BY42,TabMOYENNES_CBH1_1[Colonne164]) -> 28 | BY42: 0.00042 | CA42: =RANK(CB42,TabMOYENNES_CBH1_1[Colonne17]) -> 28 | CB42: 0.00042 | CD42: =RANK(CE42,TabMOYENNES_CBH1_1[Colonne18]) -> 28 | CE42: 0.00042 | CG42: =RANK(CH42,TabMOYENNES_CBH1_1[Colonne184]) -> 28 | CH42: 0.00042 | CJ42: =RANK(CK42,TabMOYENNES_CBH1_1[Colonne19]) -> 28 | CK42: 0.00042 | CM42: =RANK(CN42,TabMOYENNES_CBH1_1[Colonne20]) -> 28 | CN42: 0.00042 | CO42: =(TabMOYENNES_CBH1_1[[#This Row],[PROF1]]*$BQ$17+TabMOYENNES_CBH1_1[[#This Row],[PROF2]]*BT$17+TabMOYENNES_CBH1_1[[#This Row],[PROF3]]*BW$17+TabMOYENNES_CBH1_1[[#This Row],[PROF4]]*BZ$17+TabMOYENNES_CBH1_1[[#This Row],[PROF5]]*CC$17+TabMOYENNES_CBH1_1[[#This Row],[PROF6]]*CF$17+TabMOYENNES_CBH1_1[[#This Row],[PROF7]]*CI$17+TabMOYENNES_CBH1_1[[#This Row],[PROF8]]*CL$17)/($CP$15+ROW()/10000) -> 0 | CP42: =RANK(CQ42,TabMOYENNES_CBH1_1[Colonne23]) -> 46 | CQ42: 0.00042 | CS42: =RANK(CT42,TabMOYENNES_CBH1_1[Colonne2]) -> 45 | CT42: 0.00042 | CV42: =RANK(CW42,TabMOYENNES_CBH1_1[Colonne6]) -> 46 | CW42: 0.00042 | CY42: =RANK(CZ42,TabMOYENNES_CBH1_1[Colonne7]) -> 46 | CZ42: 0.00042 | DB42: =RANK(DC42,TabMOYENNES_CBH1_1[Colonne8]) -> 28 | DC42: 0.00042 | DE42: =RANK(DF42,TabMOYENNES_CBH1_1[Colonne9]) -> 28 | DF42: 0.00042 | DH42: =RANK(DI42,TabMOYENNES_CBH1_1[Colonne95]) -> 28 | DI42: 0.00042 | DK42: =RANK(DL42,TabMOYENNES_CBH1_1[Colonne92]) -> 28 | DL42: 0.00042 | DN42: =RANK(DO42,TabMOYENNES_CBH1_1[Colonne922]) -> 28 | DO42: 0.00042 | DP42: =(CR42*CR$17+CU42*CU$17+TabMOYENNES_CBH1_1[[#This Row],[ECO3]]*CX$17+TabMOYENNES_CBH1_1[[#This Row],[ECO4]]*DA$17+TabMOYENNES_CBH1_1[[#This Row],[ECO5]]*DD$17+TabMOYENNES_CBH1_1[[#This Row],[ECO6]]*DG$17+TabMOYENNES_CBH1_1[[#This Row],[ECO7]]*DJ$17+TabMOYENNES_CBH1_1[[#This Row],[ECO8]]*DM$17)/(DQ$15+ROW()/10000) -> 0 | DQ42: =RANK(TabMOYENNES_CBH1_1[[#This Row],[Colonne30]],TabMOYENNES_CBH1_1[Colonne30]) -> 47 | DR42: 0.00042 | DU42: =VLOOKUP(TabMOYENNES_CBH1_1[[#This Row],[Matricule]],TabMOYENNES_CBH1_1[],20,FALSE) -> 0 | DV42: =VLOOKUP(TabMOYENNES_CBH1_1[[#This Row],[Matricule]],TabMOYENNES_CBH1_1[],38,FALSE) -> 0 | DW42: =VLOOKUP(TabMOYENNES_CBH1_1[[#This Row],[Matricule]],TabMOYENNES_CBH1_1[],65,FALSE) -> 0 | DX42: =VLOOKUP(TabMOYENNES_CBH1_1[[#This Row],[Matricule]],TabMOYENNES_CBH1_1[],92,FALSE) -> 0 | DY42: =VLOOKUP(TabMOYENNES_CBH1_1[[#This Row],[Matricule]],TabMOYENNES_CBH1_1[],119,FALSE) -> 0 | DZ42: 0 | EA42: 0 | EB42: =RANK(EC42,TabMOYENNES_CBH1_1[..],0) -> 47 | EC42: 0.00042 | ED42: 0 | EE42: =IF($EA42="","",IF(AND($EA42=0,TabMOYENNES_CBH1_1[[#This Row],[H.A.]]>=140),"Abandon",IF($EA42>9.99,"Validé","Non Validé"))) -> Non Validé
B43: ='Liste CBH1_1'!B37 -> CBH1.S1.19/20.024 | C43: =VLOOKUP(B43,TabListe_CBH1_S1[],2,FALSE) -> ZZZ3 | D43: =VLOOKUP(B43,TabListe_CBH1_S1[],3,FALSE) -> 0 | G43: 42 | H43: 0.00043 | J43: =RANK(K43,TabMOYENNES_CBH1_1[Ref. 2]) -> 45 | K43: 0.00043 | M43: =RANK(N43,TabMOYENNES_CBH1_1[Ref. 3]) -> 27 | N43: 0.00043 | P43: =RANK(Q43,TabMOYENNES_CBH1_1[Ref. 4]) -> 27 | Q43: 0.00043 | S43: =RANK(T43,TabMOYENNES_CBH1_1[Ref. 5]) -> 27 | T43: 0.00043 | U43: =(F43*F$17+I43*I$17+TabMOYENNES_CBH1_1[[#This Row],[LG3]]*L$17+TabMOYENNES_CBH1_1[[#This Row],[LG4]]*O$17+TabMOYENNES_CBH1_1[[#This Row],[LG5]]*R$17)/(V$15+ROW()/10000) -> 0 | V43: =RANK(W43,TabMOYENNES_CBH1_1[Colonne4]) -> 45 | W43: 0.00043 | Y43: =RANK(Z43,TabMOYENNES_CBH1_1[Ref 2.1]) -> 44 | Z43: 0.00043 | AB43: =RANK(AC43,TabMOYENNES_CBH1_1[Ref 2.2]) -> 44 | AC43: 0.00043 | AE43: =RANK(AF43,TabMOYENNES_CBH1_1[Ref 2.3]) -> 27 | AF43: 0.00043 | AH43: =RANK(AI43,TabMOYENNES_CBH1_1[Ref 2.4]) -> 27 | AI43: 0.00043 | AK43: =RANK(AL43,TabMOYENNES_CBH1_1[Ref 2.5]) -> 27 | AL43: 0.00043 | AM43: =(X43*X$17+AA43*AA$17+TabMOYENNES_CBH1_1[[#This Row],[SC3]]*AD$17+TabMOYENNES_CBH1_1[[#This Row],[SC4]]*AG$17+TabMOYENNES_CBH1_1[[#This Row],[SC5]]*AJ$17)/(AN$15+ROW()/10000) -> 0 | AN43: =RANK(AO43,TabMOYENNES_CBH1_1[Colonne44]) -> 45 | AO43: 0.00043 | AQ43: =RANK(AR43,TabMOYENNES_CBH1_1[Colonne32]) -> 45 | AR43: 0.00043 | AT43: =RANK(AU43,TabMOYENNES_CBH1_1[Colonne34]) -> 44 | AU43: 0.00043 | AW43: =RANK(AX43,TabMOYENNES_CBH1_1[Colonne36]) -> 46 | AX43: 0.00043 | AZ43: =RANK(BA43,TabMOYENNES_CBH1_1[Colonne38]) -> 45 | BA43: 0.00043 | BC43: =RANK(BD43,TabMOYENNES_CBH1_1[Colonne383]) -> 27 | BD43: 0.00043 | BF43: =RANK(BG43,TabMOYENNES_CBH1_1[Colonne384]) -> 27 | BG43: 0.00043 | BI43: =RANK(BJ43,TabMOYENNES_CBH1_1[Colonne385]) -> 27 | BJ43: 0.00043 | BL43: =RANK(BM43,TabMOYENNES_CBH1_1[Colonne386]) -> 27 | BM43: 0.00043 | BN43: =(AP43*AP$17+AS43*AS$17+AV43*AV$17+AY43*AY$17+TabMOYENNES_CBH1_1[[#This Row],[TECHNO5]]*BB$17+TabMOYENNES_CBH1_1[[#This Row],[TECHNO6]]*BE$17+TabMOYENNES_CBH1_1[[#This Row],[TECHNO7]]*BH$17+TabMOYENNES_CBH1_1[[#This Row],[TECHNO8]]*BK$17)/(BO$15+ROW()/10000) -> 0 | BO43: =RANK(TabMOYENNES_CBH1_1[[#This Row],[,]],TabMOYENNES_CBH1_1[,]) -> 46 | BP43: 0.00043 | BR43: =RANK(BS43,TabMOYENNES_CBH1_1[Colonne14]) -> 45 | BS43: 0.00043 | BU43: =RANK(BV43,TabMOYENNES_CBH1_1[Colonne16]) -> 43 | BV43: 0.00043 | BX43: =RANK(BY43,TabMOYENNES_CBH1_1[Colonne164]) -> 27 | BY43: 0.00043 | CA43: =RANK(CB43,TabMOYENNES_CBH1_1[Colonne17]) -> 27 | CB43: 0.00043 | CD43: =RANK(CE43,TabMOYENNES_CBH1_1[Colonne18]) -> 27 | CE43: 0.00043 | CG43: =RANK(CH43,TabMOYENNES_CBH1_1[Colonne184]) -> 27 | CH43: 0.00043 | CJ43: =RANK(CK43,TabMOYENNES_CBH1_1[Colonne19]) -> 27 | CK43: 0.00043 | CM43: =RANK(CN43,TabMOYENNES_CBH1_1[Colonne20]) -> 27 | CN43: 0.00043 | CO43: =(TabMOYENNES_CBH1_1[[#This Row],[PROF1]]*$BQ$17+TabMOYENNES_CBH1_1[[#This Row],[PROF2]]*BT$17+TabMOYENNES_CBH1_1[[#This Row],[PROF3]]*BW$17+TabMOYENNES_CBH1_1[[#This Row],[PROF4]]*BZ$17+TabMOYENNES_CBH1_1[[#This Row],[PROF5]]*CC$17+TabMOYENNES_CBH1_1[[#This Row],[PROF6]]*CF$17+TabMOYENNES_CBH1_1[[#This Row],[PROF7]]*CI$17+TabMOYENNES_CBH1_1[[#This Row],[PROF8]]*CL$17)/($CP$15+ROW()/10000) -> 0 | CP43: =RANK(CQ43,TabMOYENNES_CBH1_1[Colonne23]) -> 45 | CQ43: 0.00043 | CS43: =RANK(CT43,TabMOYENNES_CBH1_1[Colonne2]) -> 44 | CT43: 0.00043 | CV43: =RANK(CW43,TabMOYENNES_CBH1_1[Colonne6]) -> 45 | CW43: 0.00043 | CY43: =RANK(CZ43,TabMOYENNES_CBH1_1[Colonne7]) -> 45 | CZ43: 0.00043 | DB43: =RANK(DC43,TabMOYENNES_CBH1_1[Colonne8]) -> 27 | DC43: 0.00043 | DE43: =RANK(DF43,TabMOYENNES_CBH1_1[Colonne9]) -> 27 | DF43: 0.00043 | DH43: =RANK(DI43,TabMOYENNES_CBH1_1[Colonne95]) -> 27 | DI43: 0.00043 | DK43: =RANK(DL43,TabMOYENNES_CBH1_1[Colonne92]) -> 27 | DL43: 0.00043 | DN43: =RANK(DO43,TabMOYENNES_CBH1_1[Colonne922]) -> 27 | DO43: 0.00043 | DP43: =(CR43*CR$17+CU43*CU$17+TabMOYENNES_CBH1_1[[#This Row],[ECO3]]*CX$17+TabMOYENNES_CBH1_1[[#This Row],[ECO4]]*DA$17+TabMOYENNES_CBH1_1[[#This Row],[ECO5]]*DD$17+TabMOYENNES_CBH1_1[[#This Row],[ECO6]]*DG$17+TabMOYENNES_CBH1_1[[#This Row],[ECO7]]*DJ$17+TabMOYENNES_CBH1_1[[#This Row],[ECO8]]*DM$17)/(DQ$15+ROW()/10000) -> 0 | DQ43: =RANK(TabMOYENNES_CBH1_1[[#This Row],[Colonne30]],TabMOYENNES_CBH1_1[Colonne30]) -> 46 | DR43: 0.00043 | DU43: =VLOOKUP(TabMOYENNES_CBH1_1[[#This Row],[Matricule]],TabMOYENNES_CBH1_1[],20,FALSE) -> 0 | DV43: =VLOOKUP(TabMOYENNES_CBH1_1[[#This Row],[Matricule]],TabMOYENNES_CBH1_1[],38,FALSE) -> 0 | DW43: =VLOOKUP(TabMOYENNES_CBH1_1[[#This Row],[Matricule]],TabMOYENNES_CBH1_1[],65,FALSE) -> 0 | DX43: =VLOOKUP(TabMOYENNES_CBH1_1[[#This Row],[Matricule]],TabMOYENNES_CBH1_1[],92,FALSE) -> 0 | DY43: =VLOOKUP(TabMOYENNES_CBH1_1[[#This Row],[Matricule]],TabMOYENNES_CBH1_1[],119,FALSE) -> 0 | DZ43: 0 | EA43: 0 | EB43: =RANK(EC43,TabMOYENNES_CBH1_1[..],0) -> 46 | EC43: 0.00043 | ED43: 0 | EE43: =IF($EA43="","",IF(AND($EA43=0,TabMOYENNES_CBH1_1[[#This Row],[H.A.]]>=140),"Abandon",IF($EA43>9.99,"Validé","Non Validé"))) -> Non Validé
B44: ='Liste CBH1_1'!B38 -> CBH1.S1.19/20.025 | C44: =VLOOKUP(B44,TabListe_CBH1_S1[],2,FALSE) -> ZZZ4 | D44: =VLOOKUP(B44,TabListe_CBH1_S1[],3,FALSE) -> 0 | G44: 41 | H44: 0.00044 | J44: =RANK(K44,TabMOYENNES_CBH1_1[Ref. 2]) -> 44 | K44: 0.00044 | M44: =RANK(N44,TabMOYENNES_CBH1_1[Ref. 3]) -> 26 | N44: 0.00044 | P44: =RANK(Q44,TabMOYENNES_CBH1_1[Ref. 4]) -> 26 | Q44: 0.00044 | S44: =RANK(T44,TabMOYENNES_CBH1_1[Ref. 5]) -> 26 | T44: 0.00044 | U44: =(F44*F$17+I44*I$17+TabMOYENNES_CBH1_1[[#This Row],[LG3]]*L$17+TabMOYENNES_CBH1_1[[#This Row],[LG4]]*O$17+TabMOYENNES_CBH1_1[[#This Row],[LG5]]*R$17)/(V$15+ROW()/10000) -> 0 | V44: =RANK(W44,TabMOYENNES_CBH1_1[Colonne4]) -> 44 | W44: 0.00044 | Y44: =RANK(Z44,TabMOYENNES_CBH1_1[Ref 2.1]) -> 43 | Z44: 0.00044 | AB44: =RANK(AC44,TabMOYENNES_CBH1_1[Ref 2.2]) -> 43 | AC44: 0.00044 | AE44: =RANK(AF44,TabMOYENNES_CBH1_1[Ref 2.3]) -> 26 | AF44: 0.00044 | AH44: =RANK(AI44,TabMOYENNES_CBH1_1[Ref 2.4]) -> 26 | AI44: 0.00044 | AK44: =RANK(AL44,TabMOYENNES_CBH1_1[Ref 2.5]) -> 26 | AL44: 0.00044 | AM44: =(X44*X$17+AA44*AA$17+TabMOYENNES_CBH1_1[[#This Row],[SC3]]*AD$17+TabMOYENNES_CBH1_1[[#This Row],[SC4]]*AG$17+TabMOYENNES_CBH1_1[[#This Row],[SC5]]*AJ$17)/(AN$15+ROW()/10000) -> 0 | AN44: =RANK(AO44,TabMOYENNES_CBH1_1[Colonne44]) -> 44 | AO44: 0.00044 | AQ44: =RANK(AR44,TabMOYENNES_CBH1_1[Colonne32]) -> 44 | AR44: 0.00044 | AT44: =RANK(AU44,TabMOYENNES_CBH1_1[Colonne34]) -> 43 | AU44: 0.00044 | AW44: =RANK(AX44,TabMOYENNES_CBH1_1[Colonne36]) -> 45 | AX44: 0.00044 | AZ44: =RANK(BA44,TabMOYENNES_CBH1_1[Colonne38]) -> 44 | BA44: 0.00044 | BC44: =RANK(BD44,TabMOYENNES_CBH1_1[Colonne383]) -> 26 | BD44: 0.00044 | BF44: =RANK(BG44,TabMOYENNES_CBH1_1[Colonne384]) -> 26 | BG44: 0.00044 | BI44: =RANK(BJ44,TabMOYENNES_CBH1_1[Colonne385]) -> 26 | BJ44: 0.00044 | BL44: =RANK(BM44,TabMOYENNES_CBH1_1[Colonne386]) -> 26 | BM44: 0.00044 | BN44: =(AP44*AP$17+AS44*AS$17+AV44*AV$17+AY44*AY$17+TabMOYENNES_CBH1_1[[#This Row],[TECHNO5]]*BB$17+TabMOYENNES_CBH1_1[[#This Row],[TECHNO6]]*BE$17+TabMOYENNES_CBH1_1[[#This Row],[TECHNO7]]*BH$17+TabMOYENNES_CBH1_1[[#This Row],[TECHNO8]]*BK$17)/(BO$15+ROW()/10000) -> 0 | BO44: =RANK(TabMOYENNES_CBH1_1[[#This Row],[,]],TabMOYENNES_CBH1_1[,]) -> 45 | BP44: 0.00044 | BR44: =RANK(BS44,TabMOYENNES_CBH1_1[Colonne14]) -> 44 | BS44: 0.00044 | BU44: =RANK(BV44,TabMOYENNES_CBH1_1[Colonne16]) -> 42 | BV44: 0.00044 | BX44: =RANK(BY44,TabMOYENNES_CBH1_1[Colonne164]) -> 26 | BY44: 0.00044 | CA44: =RANK(CB44,TabMOYENNES_CBH1_1[Colonne17]) -> 26 | CB44: 0.00044 | CD44: =RANK(CE44,TabMOYENNES_CBH1_1[Colonne18]) -> 26 | CE44: 0.00044 | CG44: =RANK(CH44,TabMOYENNES_CBH1_1[Colonne184]) -> 26 | CH44: 0.00044 | CJ44: =RANK(CK44,TabMOYENNES_CBH1_1[Colonne19]) -> 26 | CK44: 0.00044 | CM44: =RANK(CN44,TabMOYENNES_CBH1_1[Colonne20]) -> 26 | CN44: 0.00044 | CO44: =(TabMOYENNES_CBH1_1[[#This Row],[PROF1]]*$BQ$17+TabMOYENNES_CBH1_1[[#This Row],[PROF2]]*BT$17+TabMOYENNES_CBH1_1[[#This Row],[PROF3]]*BW$17+TabMOYENNES_CBH1_1[[#This Row],[PROF4]]*BZ$17+TabMOYENNES_CBH1_1[[#This Row],[PROF5]]*CC$17+TabMOYENNES_CBH1_1[[#This Row],[PROF6]]*CF$17+TabMOYENNES_CBH1_1[[#This Row],[PROF7]]*CI$17+TabMOYENNES_CBH1_1[[#This Row],[PROF8]]*CL$17)/($CP$15+ROW()/10000) -> 0 | CP44: =RANK(CQ44,TabMOYENNES_CBH1_1[Colonne23]) -> 44 | CQ44: 0.00044 | CS44: =RANK(CT44,TabMOYENNES_CBH1_1[Colonne2]) -> 43 | CT44: 0.00044 | CV44: =RANK(CW44,TabMOYENNES_CBH1_1[Colonne6]) -> 44 | CW44: 0.00044 | CY44: =RANK(CZ44,TabMOYENNES_CBH1_1[Colonne7]) -> 44 | CZ44: 0.00044 | DB44: =RANK(DC44,TabMOYENNES_CBH1_1[Colonne8]) -> 26 | DC44: 0.00044 | DE44: =RANK(DF44,TabMOYENNES_CBH1_1[Colonne9]) -> 26 | DF44: 0.00044 | DH44: =RANK(DI44,TabMOYENNES_CBH1_1[Colonne95]) -> 26 | DI44: 0.00044 | DK44: =RANK(DL44,TabMOYENNES_CBH1_1[Colonne92]) -> 26 | DL44: 0.00044 | DN44: =RANK(DO44,TabMOYENNES_CBH1_1[Colonne922]) -> 26 | DO44: 0.00044 | DP44: =(CR44*CR$17+CU44*CU$17+TabMOYENNES_CBH1_1[[#This Row],[ECO3]]*CX$17+TabMOYENNES_CBH1_1[[#This Row],[ECO4]]*DA$17+TabMOYENNES_CBH1_1[[#This Row],[ECO5]]*DD$17+TabMOYENNES_CBH1_1[[#This Row],[ECO6]]*DG$17+TabMOYENNES_CBH1_1[[#This Row],[ECO7]]*DJ$17+TabMOYENNES_CBH1_1[[#This Row],[ECO8]]*DM$17)/(DQ$15+ROW()/10000) -> 0 | DQ44: =RANK(TabMOYENNES_CBH1_1[[#This Row],[Colonne30]],TabMOYENNES_CBH1_1[Colonne30]) -> 45 | DR44: 0.00044 | DU44: =VLOOKUP(TabMOYENNES_CBH1_1[[#This Row],[Matricule]],TabMOYENNES_CBH1_1[],20,FALSE) -> 0 | DV44: =VLOOKUP(TabMOYENNES_CBH1_1[[#This Row],[Matricule]],TabMOYENNES_CBH1_1[],38,FALSE) -> 0 | DW44: =VLOOKUP(TabMOYENNES_CBH1_1[[#This Row],[Matricule]],TabMOYENNES_CBH1_1[],65,FALSE) -> 0 | DX44: =VLOOKUP(TabMOYENNES_CBH1_1[[#This Row],[Matricule]],TabMOYENNES_CBH1_1[],92,FALSE) -> 0 | DY44: =VLOOKUP(TabMOYENNES_CBH1_1[[#This Row],[Matricule]],TabMOYENNES_CBH1_1[],119,FALSE) -> 0 | DZ44: 0 | EA44: 0 | EB44: =RANK(EC44,TabMOYENNES_CBH1_1[..],0) -> 45 | EC44: 0.00044 | ED44: 0 | EE44: =IF($EA44="","",IF(AND($EA44=0,TabMOYENNES_CBH1_1[[#This Row],[H.A.]]>=140),"Abandon",IF($EA44>9.99,"Validé","Non Validé"))) -> Non Validé
B45: ='Liste CBH1_1'!B39 -> CBH1.S1.19/20.026 | C45: =VLOOKUP(B45,TabListe_CBH1_S1[],2,FALSE) -> ZZZ5 | D45: =VLOOKUP(B45,TabListe_CBH1_S1[],3,FALSE) -> 0 | G45: 40 | H45: 0.00045 | J45: =RANK(K45,TabMOYENNES_CBH1_1[Ref. 2]) -> 43 | K45: 0.00045 | M45: =RANK(N45,TabMOYENNES_CBH1_1[Ref. 3]) -> 25 | N45: 0.00045 | P45: =RANK(Q45,TabMOYENNES_CBH1_1[Ref. 4]) -> 25 | Q45: 0.00045 | S45: =RANK(T45,TabMOYENNES_CBH1_1[Ref. 5]) -> 25 | T45: 0.00045 | U45: =(F45*F$17+I45*I$17+TabMOYENNES_CBH1_1[[#This Row],[LG3]]*L$17+TabMOYENNES_CBH1_1[[#This Row],[LG4]]*O$17+TabMOYENNES_CBH1_1[[#This Row],[LG5]]*R$17)/(V$15+ROW()/10000) -> 0 | V45: =RANK(W45,TabMOYENNES_CBH1_1[Colonne4]) -> 43 | W45: 0.00045 | Y45: =RANK(Z45,TabMOYENNES_CBH1_1[Ref 2.1]) -> 42 | Z45: 0.00045 | AB45: =RANK(AC45,TabMOYENNES_CBH1_1[Ref 2.2]) -> 42 | AC45: 0.00045 | AE45: =RANK(AF45,TabMOYENNES_CBH1_1[Ref 2.3]) -> 25 | AF45: 0.00045 | AH45: =RANK(AI45,TabMOYENNES_CBH1_1[Ref 2.4]) -> 25 | AI45: 0.00045 | AK45: =RANK(AL45,TabMOYENNES_CBH1_1[Ref 2.5]) -> 25 | AL45: 0.00045 | AM45: =(X45*X$17+AA45*AA$17+TabMOYENNES_CBH1_1[[#This Row],[SC3]]*AD$17+TabMOYENNES_CBH1_1[[#This Row],[SC4]]*AG$17+TabMOYENNES_CBH1_1[[#This Row],[SC5]]*AJ$17)/(AN$15+ROW()/10000) -> 0 | AN45: =RANK(AO45,TabMOYENNES_CBH1_1[Colonne44]) -> 43 | AO45: 0.00045 | AQ45: =RANK(AR45,TabMOYENNES_CBH1_1[Colonne32]) -> 43 | AR45: 0.00045 | AT45: =RANK(AU45,TabMOYENNES_CBH1_1[Colonne34]) -> 42 | AU45: 0.00045 | AW45: =RANK(AX45,TabMOYENNES_CBH1_1[Colonne36]) -> 44 | AX45: 0.00045 | AZ45: =RANK(BA45,TabMOYENNES_CBH1_1[Colonne38]) -> 43 | BA45: 0.00045 | BC45: =RANK(BD45,TabMOYENNES_CBH1_1[Colonne383]) -> 25 | BD45: 0.00045 | BF45: =RANK(BG45,TabMOYENNES_CBH1_1[Colonne384]) -> 25 | BG45: 0.00045 | BI45: =RANK(BJ45,TabMOYENNES_CBH1_1[Colonne385]) -> 25 | BJ45: 0.00045 | BL45: =RANK(BM45,TabMOYENNES_CBH1_1[Colonne386]) -> 25 | BM45: 0.00045 | BN45: =(AP45*AP$17+AS45*AS$17+AV45*AV$17+AY45*AY$17+TabMOYENNES_CBH1_1[[#This Row],[TECHNO5]]*BB$17+TabMOYENNES_CBH1_1[[#This Row],[TECHNO6]]*BE$17+TabMOYENNES_CBH1_1[[#This Row],[TECHNO7]]*BH$17+TabMOYENNES_CBH1_1[[#This Row],[TECHNO8]]*BK$17)/(BO$15+ROW()/10000) -> 0 | BO45: =RANK(TabMOYENNES_CBH1_1[[#This Row],[,]],TabMOYENNES_CBH1_1[,]) -> 44 | BP45: 0.00045 | BR45: =RANK(BS45,TabMOYENNES_CBH1_1[Colonne14]) -> 43 | BS45: 0.00045 | BU45: =RANK(BV45,TabMOYENNES_CBH1_1[Colonne16]) -> 41 | BV45: 0.00045 | BX45: =RANK(BY45,TabMOYENNES_CBH1_1[Colonne164]) -> 25 | BY45: 0.00045 | CA45: =RANK(CB45,TabMOYENNES_CBH1_1[Colonne17]) -> 25 | CB45: 0.00045 | CD45: =RANK(CE45,TabMOYENNES_CBH1_1[Colonne18]) -> 25 | CE45: 0.00045 | CG45: =RANK(CH45,TabMOYENNES_CBH1_1[Colonne184]) -> 25 | CH45: 0.00045 | CJ45: =RANK(CK45,TabMOYENNES_CBH1_1[Colonne19]) -> 25 | CK45: 0.00045 | CM45: =RANK(CN45,TabMOYENNES_CBH1_1[Colonne20]) -> 25 | CN45: 0.00045 | CO45: =(TabMOYENNES_CBH1_1[[#This Row],[PROF1]]*$BQ$17+TabMOYENNES_CBH1_1[[#This Row],[PROF2]]*BT$17+TabMOYENNES_CBH1_1[[#This Row],[PROF3]]*BW$17+TabMOYENNES_CBH1_1[[#This Row],[PROF4]]*BZ$17+TabMOYENNES_CBH1_1[[#This Row],[PROF5]]*CC$17+TabMOYENNES_CBH1_1[[#This Row],[PROF6]]*CF$17+TabMOYENNES_CBH1_1[[#This Row],[PROF7]]*CI$17+TabMOYENNES_CBH1_1[[#This Row],[PROF8]]*CL$17)/($CP$15+ROW()/10000) -> 0 | CP45: =RANK(CQ45,TabMOYENNES_CBH1_1[Colonne23]) -> 43 | CQ45: 0.00045 | CS45: =RANK(CT45,TabMOYENNES_CBH1_1[Colonne2]) -> 42 | CT45: 0.00045 | CV45: =RANK(CW45,TabMOYENNES_CBH1_1[Colonne6]) -> 43 | CW45: 0.00045 | CY45: =RANK(CZ45,TabMOYENNES_CBH1_1[Colonne7]) -> 43 | CZ45: 0.00045 | DB45: =RANK(DC45,TabMOYENNES_CBH1_1[Colonne8]) -> 25 | DC45: 0.00045 | DE45: =RANK(DF45,TabMOYENNES_CBH1_1[Colonne9]) -> 25 | DF45: 0.00045 | DH45: =RANK(DI45,TabMOYENNES_CBH1_1[Colonne95]) -> 25 | DI45: 0.00045 | DK45: =RANK(DL45,TabMOYENNES_CBH1_1[Colonne92]) -> 25 | DL45: 0.00045 | DN45: =RANK(DO45,TabMOYENNES_CBH1_1[Colonne922]) -> 25 | DO45: 0.00045 | DP45: =(CR45*CR$17+CU45*CU$17+TabMOYENNES_CBH1_1[[#This Row],[ECO3]]*CX$17+TabMOYENNES_CBH1_1[[#This Row],[ECO4]]*DA$17+TabMOYENNES_CBH1_1[[#This Row],[ECO5]]*DD$17+TabMOYENNES_CBH1_1[[#This Row],[ECO6]]*DG$17+TabMOYENNES_CBH1_1[[#This Row],[ECO7]]*DJ$17+TabMOYENNES_CBH1_1[[#This Row],[ECO8]]*DM$17)/(DQ$15+ROW()/10000) -> 0 | DQ45: =RANK(TabMOYENNES_CBH1_1[[#This Row],[Colonne30]],TabMOYENNES_CBH1_1[Colonne30]) -> 44 | DR45: 0.00045 | DU45: =VLOOKUP(TabMOYENNES_CBH1_1[[#This Row],[Matricule]],TabMOYENNES_CBH1_1[],20,FALSE) -> 0 | DV45: =VLOOKUP(TabMOYENNES_CBH1_1[[#This Row],[Matricule]],TabMOYENNES_CBH1_1[],38,FALSE) -> 0 | DW45: =VLOOKUP(TabMOYENNES_CBH1_1[[#This Row],[Matricule]],TabMOYENNES_CBH1_1[],65,FALSE) -> 0 | DX45: =VLOOKUP(TabMOYENNES_CBH1_1[[#This Row],[Matricule]],TabMOYENNES_CBH1_1[],92,FALSE) -> 0 | DY45: =VLOOKUP(TabMOYENNES_CBH1_1[[#This Row],[Matricule]],TabMOYENNES_CBH1_1[],119,FALSE) -> 0 | DZ45: 0 | EA45: 0 | EB45: =RANK(EC45,TabMOYENNES_CBH1_1[..],0) -> 44 | EC45: 0.00045 | ED45: 0 | EE45: =IF($EA45="","",IF(AND($EA45=0,TabMOYENNES_CBH1_1[[#This Row],[H.A.]]>=140),"Abandon",IF($EA45>9.99,"Validé","Non Validé"))) -> Non Validé
B46: ='Liste CBH1_1'!B40 -> CBH1.S1.19/20.027 | C46: =VLOOKUP(B46,TabListe_CBH1_S1[],2,FALSE) -> ZZZ6 | D46: =VLOOKUP(B46,TabListe_CBH1_S1[],3,FALSE) -> 0 | G46: 39 | H46: 0.00046 | J46: =RANK(K46,TabMOYENNES_CBH1_1[Ref. 2]) -> 42 | K46: 0.00046 | M46: =RANK(N46,TabMOYENNES_CBH1_1[Ref. 3]) -> 24 | N46: 0.00046 | P46: =RANK(Q46,TabMOYENNES_CBH1_1[Ref. 4]) -> 24 | Q46: 0.00046 | S46: =RANK(T46,TabMOYENNES_CBH1_1[Ref. 5]) -> 24 | T46: 0.00046 | U46: =(F46*F$17+I46*I$17+TabMOYENNES_CBH1_1[[#This Row],[LG3]]*L$17+TabMOYENNES_CBH1_1[[#This Row],[LG4]]*O$17+TabMOYENNES_CBH1_1[[#This Row],[LG5]]*R$17)/(V$15+ROW()/10000) -> 0 | V46: =RANK(W46,TabMOYENNES_CBH1_1[Colonne4]) -> 42 | W46: 0.00046 | Y46: =RANK(Z46,TabMOYENNES_CBH1_1[Ref 2.1]) -> 41 | Z46: 0.00046 | AB46: =RANK(AC46,TabMOYENNES_CBH1_1[Ref 2.2]) -> 41 | AC46: 0.00046 | AE46: =RANK(AF46,TabMOYENNES_CBH1_1[Ref 2.3]) -> 24 | AF46: 0.00046 | AH46: =RANK(AI46,TabMOYENNES_CBH1_1[Ref 2.4]) -> 24 | AI46: 0.00046 | AK46: =RANK(AL46,TabMOYENNES_CBH1_1[Ref 2.5]) -> 24 | AL46: 0.00046 | AM46: =(X46*X$17+AA46*AA$17+TabMOYENNES_CBH1_1[[#This Row],[SC3]]*AD$17+TabMOYENNES_CBH1_1[[#This Row],[SC4]]*AG$17+TabMOYENNES_CBH1_1[[#This Row],[SC5]]*AJ$17)/(AN$15+ROW()/10000) -> 0 | AN46: =RANK(AO46,TabMOYENNES_CBH1_1[Colonne44]) -> 42 | AO46: 0.00046 | AQ46: =RANK(AR46,TabMOYENNES_CBH1_1[Colonne32]) -> 42 | AR46: 0.00046 | AT46: =RANK(AU46,TabMOYENNES_CBH1_1[Colonne34]) -> 41 | AU46: 0.00046 | AW46: =RANK(AX46,TabMOYENNES_CBH1_1[Colonne36]) -> 43 | AX46: 0.00046 | AZ46: =RANK(BA46,TabMOYENNES_CBH1_1[Colonne38]) -> 42 | BA46: 0.00046 | BC46: =RANK(BD46,TabMOYENNES_CBH1_1[Colonne383]) -> 24 | BD46: 0.00046 | BF46: =RANK(BG46,TabMOYENNES_CBH1_1[Colonne384]) -> 24 | BG46: 0.00046 | BI46: =RANK(BJ46,TabMOYENNES_CBH1_1[Colonne385]) -> 24 | BJ46: 0.00046 | BL46: =RANK(BM46,TabMOYENNES_CBH1_1[Colonne386]) -> 24 | BM46: 0.00046 | BN46: =(AP46*AP$17+AS46*AS$17+AV46*AV$17+AY46*AY$17+TabMOYENNES_CBH1_1[[#This Row],[TECHNO5]]*BB$17+TabMOYENNES_CBH1_1[[#This Row],[TECHNO6]]*BE$17+TabMOYENNES_CBH1_1[[#This Row],[TECHNO7]]*BH$17+TabMOYENNES_CBH1_1[[#This Row],[TECHNO8]]*BK$17)/(BO$15+ROW()/10000) -> 0 | BO46: =RANK(TabMOYENNES_CBH1_1[[#This Row],[,]],TabMOYENNES_CBH1_1[,]) -> 43 | BP46: 0.00046 | BR46: =RANK(BS46,TabMOYENNES_CBH1_1[Colonne14]) -> 42 | BS46: 0.00046 | BU46: =RANK(BV46,TabMOYENNES_CBH1_1[Colonne16]) -> 40 | BV46: 0.00046 | BX46: =RANK(BY46,TabMOYENNES_CBH1_1[Colonne164]) -> 24 | BY46: 0.00046 | CA46: =RANK(CB46,TabMOYENNES_CBH1_1[Colonne17]) -> 24 | CB46: 0.00046 | CD46: =RANK(CE46,TabMOYENNES_CBH1_1[Colonne18]) -> 24 | CE46: 0.00046 | CG46: =RANK(CH46,TabMOYENNES_CBH1_1[Colonne184]) -> 24 | CH46: 0.00046 | CJ46: =RANK(CK46,TabMOYENNES_CBH1_1[Colonne19]) -> 24 | CK46: 0.00046 | CM46: =RANK(CN46,TabMOYENNES_CBH1_1[Colonne20]) -> 24 | CN46: 0.00046 | CO46: =(TabMOYENNES_CBH1_1[[#This Row],[PROF1]]*$BQ$17+TabMOYENNES_CBH1_1[[#This Row],[PROF2]]*BT$17+TabMOYENNES_CBH1_1[[#This Row],[PROF3]]*BW$17+TabMOYENNES_CBH1_1[[#This Row],[PROF4]]*BZ$17+TabMOYENNES_CBH1_1[[#This Row],[PROF5]]*CC$17+TabMOYENNES_CBH1_1[[#This Row],[PROF6]]*CF$17+TabMOYENNES_CBH1_1[[#This Row],[PROF7]]*CI$17+TabMOYENNES_CBH1_1[[#This Row],[PROF8]]*CL$17)/($CP$15+ROW()/10000) -> 0 | CP46: =RANK(CQ46,TabMOYENNES_CBH1_1[Colonne23]) -> 42 | CQ46: 0.00046 | CS46: =RANK(CT46,TabMOYENNES_CBH1_1[Colonne2]) -> 41 | CT46: 0.00046 | CV46: =RANK(CW46,TabMOYENNES_CBH1_1[Colonne6]) -> 42 | CW46: 0.00046 | CY46: =RANK(CZ46,TabMOYENNES_CBH1_1[Colonne7]) -> 42 | CZ46: 0.00046 | DB46: =RANK(DC46,TabMOYENNES_CBH1_1[Colonne8]) -> 24 | DC46: 0.00046 | DE46: =RANK(DF46,TabMOYENNES_CBH1_1[Colonne9]) -> 24 | DF46: 0.00046 | DH46: =RANK(DI46,TabMOYENNES_CBH1_1[Colonne95]) -> 24 | DI46: 0.00046 | DK46: =RANK(DL46,TabMOYENNES_CBH1_1[Colonne92]) -> 24 | DL46: 0.00046 | DN46: =RANK(DO46,TabMOYENNES_CBH1_1[Colonne922]) -> 24 | DO46: 0.00046 | DP46: =(CR46*CR$17+CU46*CU$17+TabMOYENNES_CBH1_1[[#This Row],[ECO3]]*CX$17+TabMOYENNES_CBH1_1[[#This Row],[ECO4]]*DA$17+TabMOYENNES_CBH1_1[[#This Row],[ECO5]]*DD$17+TabMOYENNES_CBH1_1[[#This Row],[ECO6]]*DG$17+TabMOYENNES_CBH1_1[[#This Row],[ECO7]]*DJ$17+TabMOYENNES_CBH1_1[[#This Row],[ECO8]]*DM$17)/(DQ$15+ROW()/10000) -> 0 | DQ46: =RANK(TabMOYENNES_CBH1_1[[#This Row],[Colonne30]],TabMOYENNES_CBH1_1[Colonne30]) -> 43 | DR46: 0.00046 | DU46: =VLOOKUP(TabMOYENNES_CBH1_1[[#This Row],[Matricule]],TabMOYENNES_CBH1_1[],20,FALSE) -> 0 | DV46: =VLOOKUP(TabMOYENNES_CBH1_1[[#This Row],[Matricule]],TabMOYENNES_CBH1_1[],38,FALSE) -> 0 | DW46: =VLOOKUP(TabMOYENNES_CBH1_1[[#This Row],[Matricule]],TabMOYENNES_CBH1_1[],65,FALSE) -> 0 | DX46: =VLOOKUP(TabMOYENNES_CBH1_1[[#This Row],[Matricule]],TabMOYENNES_CBH1_1[],92,FALSE) -> 0 | DY46: =VLOOKUP(TabMOYENNES_CBH1_1[[#This Row],[Matricule]],TabMOYENNES_CBH1_1[],119,FALSE) -> 0 | DZ46: 0 | EA46: 0 | EB46: =RANK(EC46,TabMOYENNES_CBH1_1[..],0) -> 43 | EC46: 0.00046 | ED46: 0 | EE46: =IF($EA46="","",IF(AND($EA46=0,TabMOYENNES_CBH1_1[[#This Row],[H.A.]]>=140),"Abandon",IF($EA46>9.99,"Validé","Non Validé"))) -> Non Validé
B47: ='Liste CBH1_1'!B41 -> CBH1.S1.19/20.028 | C47: =VLOOKUP(B47,TabListe_CBH1_S1[],2,FALSE) -> ZZZ7 | D47: =VLOOKUP(B47,TabListe_CBH1_S1[],3,FALSE) -> 0 | G47: 38 | H47: 0.00047 | J47: =RANK(K47,TabMOYENNES_CBH1_1[Ref. 2]) -> 41 | K47: 0.00047 | M47: =RANK(N47,TabMOYENNES_CBH1_1[Ref. 3]) -> 23 | N47: 0.00047 | P47: =RANK(Q47,TabMOYENNES_CBH1_1[Ref. 4]) -> 23 | Q47: 0.00047 | S47: =RANK(T47,TabMOYENNES_CBH1_1[Ref. 5]) -> 23 | T47: 0.00047 | U47: =(F47*F$17+I47*I$17+TabMOYENNES_CBH1_1[[#This Row],[LG3]]*L$17+TabMOYENNES_CBH1_1[[#This Row],[LG4]]*O$17+TabMOYENNES_CBH1_1[[#This Row],[LG5]]*R$17)/(V$15+ROW()/10000) -> 0 | V47: =RANK(W47,TabMOYENNES_CBH1_1[Colonne4]) -> 41 | W47: 0.00047 | Y47: =RANK(Z47,TabMOYENNES_CBH1_1[Ref 2.1]) -> 40 | Z47: 0.00047 | AB47: =RANK(AC47,TabMOYENNES_CBH1_1[Ref 2.2]) -> 40 | AC47: 0.00047 | AE47: =RANK(AF47,TabMOYENNES_CBH1_1[Ref 2.3]) -> 23 | AF47: 0.00047 | AH47: =RANK(AI47,TabMOYENNES_CBH1_1[Ref 2.4]) -> 23 | AI47: 0.00047 | AK47: =RANK(AL47,TabMOYENNES_CBH1_1[Ref 2.5]) -> 23 | AL47: 0.00047 | AM47: =(X47*X$17+AA47*AA$17+TabMOYENNES_CBH1_1[[#This Row],[SC3]]*AD$17+TabMOYENNES_CBH1_1[[#This Row],[SC4]]*AG$17+TabMOYENNES_CBH1_1[[#This Row],[SC5]]*AJ$17)/(AN$15+ROW()/10000) -> 0 | AN47: =RANK(AO47,TabMOYENNES_CBH1_1[Colonne44]) -> 41 | AO47: 0.00047 | AQ47: =RANK(AR47,TabMOYENNES_CBH1_1[Colonne32]) -> 41 | AR47: 0.00047 | AT47: =RANK(AU47,TabMOYENNES_CBH1_1[Colonne34]) -> 40 | AU47: 0.00047 | AW47: =RANK(AX47,TabMOYENNES_CBH1_1[Colonne36]) -> 42 | AX47: 0.00047 | AZ47: =RANK(BA47,TabMOYENNES_CBH1_1[Colonne38]) -> 41 | BA47: 0.00047 | BC47: =RANK(BD47,TabMOYENNES_CBH1_1[Colonne383]) -> 23 | BD47: 0.00047 | BF47: =RANK(BG47,TabMOYENNES_CBH1_1[Colonne384]) -> 23 | BG47: 0.00047 | BI47: =RANK(BJ47,TabMOYENNES_CBH1_1[Colonne385]) -> 23 | BJ47: 0.00047 | BL47: =RANK(BM47,TabMOYENNES_CBH1_1[Colonne386]) -> 23 | BM47: 0.00047 | BN47: =(AP47*AP$17+AS47*AS$17+AV47*AV$17+AY47*AY$17+TabMOYENNES_CBH1_1[[#This Row],[TECHNO5]]*BB$17+TabMOYENNES_CBH1_1[[#This Row],[TECHNO6]]*BE$17+TabMOYENNES_CBH1_1[[#This Row],[TECHNO7]]*BH$17+TabMOYENNES_CBH1_1[[#This Row],[TECHNO8]]*BK$17)/(BO$15+ROW()/10000) -> 0 | BO47: =RANK(TabMOYENNES_CBH1_1[[#This Row],[,]],TabMOYENNES_CBH1_1[,]) -> 42 | BP47: 0.00047 | BR47: =RANK(BS47,TabMOYENNES_CBH1_1[Colonne14]) -> 41 | BS47: 0.00047 | BU47: =RANK(BV47,TabMOYENNES_CBH1_1[Colonne16]) -> 39 | BV47: 0.00047 | BX47: =RANK(BY47,TabMOYENNES_CBH1_1[Colonne164]) -> 23 | BY47: 0.00047 | CA47: =RANK(CB47,TabMOYENNES_CBH1_1[Colonne17]) -> 23 | CB47: 0.00047 | CD47: =RANK(CE47,TabMOYENNES_CBH1_1[Colonne18]) -> 23 | CE47: 0.00047 | CG47: =RANK(CH47,TabMOYENNES_CBH1_1[Colonne184]) -> 23 | CH47: 0.00047 | CJ47: =RANK(CK47,TabMOYENNES_CBH1_1[Colonne19]) -> 23 | CK47: 0.00047 | CM47: =RANK(CN47,TabMOYENNES_CBH1_1[Colonne20]) -> 23 | CN47: 0.00047 | CO47: =(TabMOYENNES_CBH1_1[[#This Row],[PROF1]]*$BQ$17+TabMOYENNES_CBH1_1[[#This Row],[PROF2]]*BT$17+TabMOYENNES_CBH1_1[[#This Row],[PROF3]]*BW$17+TabMOYENNES_CBH1_1[[#This Row],[PROF4]]*BZ$17+TabMOYENNES_CBH1_1[[#This Row],[PROF5]]*CC$17+TabMOYENNES_CBH1_1[[#This Row],[PROF6]]*CF$17+TabMOYENNES_CBH1_1[[#This Row],[PROF7]]*CI$17+TabMOYENNES_CBH1_1[[#This Row],[PROF8]]*CL$17)/($CP$15+ROW()/10000) -> 0 | CP47: =RANK(CQ47,TabMOYENNES_CBH1_1[Colonne23]) -> 41 | CQ47: 0.00047 | CS47: =RANK(CT47,TabMOYENNES_CBH1_1[Colonne2]) -> 40 | CT47: 0.00047 | CV47: =RANK(CW47,TabMOYENNES_CBH1_1[Colonne6]) -> 41 | CW47: 0.00047 | CY47: =RANK(CZ47,TabMOYENNES_CBH1_1[Colonne7]) -> 41 | CZ47: 0.00047 | DB47: =RANK(DC47,TabMOYENNES_CBH1_1[Colonne8]) -> 23 | DC47: 0.00047 | DE47: =RANK(DF47,TabMOYENNES_CBH1_1[Colonne9]) -> 23 | DF47: 0.00047 | DH47: =RANK(DI47,TabMOYENNES_CBH1_1[Colonne95]) -> 23 | DI47: 0.00047 | DK47: =RANK(DL47,TabMOYENNES_CBH1_1[Colonne92]) -> 23 | DL47: 0.00047 | DN47: =RANK(DO47,TabMOYENNES_CBH1_1[Colonne922]) -> 23 | DO47: 0.00047 | DP47: =(CR47*CR$17+CU47*CU$17+TabMOYENNES_CBH1_1[[#This Row],[ECO3]]*CX$17+TabMOYENNES_CBH1_1[[#This Row],[ECO4]]*DA$17+TabMOYENNES_CBH1_1[[#This Row],[ECO5]]*DD$17+TabMOYENNES_CBH1_1[[#This Row],[ECO6]]*DG$17+TabMOYENNES_CBH1_1[[#This Row],[ECO7]]*DJ$17+TabMOYENNES_CBH1_1[[#This Row],[ECO8]]*DM$17)/(DQ$15+ROW()/10000) -> 0 | DQ47: =RANK(TabMOYENNES_CBH1_1[[#This Row],[Colonne30]],TabMOYENNES_CBH1_1[Colonne30]) -> 42 | DR47: 0.00047 | DU47: =VLOOKUP(TabMOYENNES_CBH1_1[[#This Row],[Matricule]],TabMOYENNES_CBH1_1[],20,FALSE) -> 0 | DV47: =VLOOKUP(TabMOYENNES_CBH1_1[[#This Row],[Matricule]],TabMOYENNES_CBH1_1[],38,FALSE) -> 0 | DW47: =VLOOKUP(TabMOYENNES_CBH1_1[[#This Row],[Matricule]],TabMOYENNES_CBH1_1[],65,FALSE) -> 0 | DX47: =VLOOKUP(TabMOYENNES_CBH1_1[[#This Row],[Matricule]],TabMOYENNES_CBH1_1[],92,FALSE) -> 0 | DY47: =VLOOKUP(TabMOYENNES_CBH1_1[[#This Row],[Matricule]],TabMOYENNES_CBH1_1[],119,FALSE) -> 0 | DZ47: 0 | EA47: 0 | EB47: =RANK(EC47,TabMOYENNES_CBH1_1[..],0) -> 42 | EC47: 0.00047 | ED47: 0 | EE47: =IF($EA47="","",IF(AND($EA47=0,TabMOYENNES_CBH1_1[[#This Row],[H.A.]]>=140),"Abandon",IF($EA47>9.99,"Validé","Non Validé"))) -> Non Validé
B48: ='Liste CBH1_1'!B42 -> CBH1.S1.19/20.029 | C48: =VLOOKUP(B48,TabListe_CBH1_S1[],2,FALSE) -> ZZZ8 | D48: =VLOOKUP(B48,TabListe_CBH1_S1[],3,FALSE) -> 0 | G48: 37 | H48: 0.00048 | J48: =RANK(K48,TabMOYENNES_CBH1_1[Ref. 2]) -> 40 | K48: 0.00048 | M48: =RANK(N48,TabMOYENNES_CBH1_1[Ref. 3]) -> 22 | N48: 0.00048 | P48: =RANK(Q48,TabMOYENNES_CBH1_1[Ref. 4]) -> 22 | Q48: 0.00048 | S48: =RANK(T48,TabMOYENNES_CBH1_1[Ref. 5]) -> 22 | T48: 0.00048 | U48: =(F48*F$17+I48*I$17+TabMOYENNES_CBH1_1[[#This Row],[LG3]]*L$17+TabMOYENNES_CBH1_1[[#This Row],[LG4]]*O$17+TabMOYENNES_CBH1_1[[#This Row],[LG5]]*R$17)/(V$15+ROW()/10000) -> 0 | V48: =RANK(W48,TabMOYENNES_CBH1_1[Colonne4]) -> 40 | W48: 0.00048 | Y48: =RANK(Z48,TabMOYENNES_CBH1_1[Ref 2.1]) -> 39 | Z48: 0.00048 | AB48: =RANK(AC48,TabMOYENNES_CBH1_1[Ref 2.2]) -> 39 | AC48: 0.00048 | AE48: =RANK(AF48,TabMOYENNES_CBH1_1[Ref 2.3]) -> 22 | AF48: 0.00048 | AH48: =RANK(AI48,TabMOYENNES_CBH1_1[Ref 2.4]) -> 22 | AI48: 0.00048 | AK48: =RANK(AL48,TabMOYENNES_CBH1_1[Ref 2.5]) -> 22 | AL48: 0.00048 | AM48: =(X48*X$17+AA48*AA$17+TabMOYENNES_CBH1_1[[#This Row],[SC3]]*AD$17+TabMOYENNES_CBH1_1[[#This Row],[SC4]]*AG$17+TabMOYENNES_CBH1_1[[#This Row],[SC5]]*AJ$17)/(AN$15+ROW()/10000) -> 0 | AN48: =RANK(AO48,TabMOYENNES_CBH1_1[Colonne44]) -> 40 | AO48: 0.00048 | AQ48: =RANK(AR48,TabMOYENNES_CBH1_1[Colonne32]) -> 40 | AR48: 0.00048 | AT48: =RANK(AU48,TabMOYENNES_CBH1_1[Colonne34]) -> 39 | AU48: 0.00048 | AW48: =RANK(AX48,TabMOYENNES_CBH1_1[Colonne36]) -> 41 | AX48: 0.00048 | AZ48: =RANK(BA48,TabMOYENNES_CBH1_1[Colonne38]) -> 40 | BA48: 0.00048 | BC48: =RANK(BD48,TabMOYENNES_CBH1_1[Colonne383]) -> 22 | BD48: 0.00048 | BF48: =RANK(BG48,TabMOYENNES_CBH1_1[Colonne384]) -> 22 | BG48: 0.00048 | BI48: =RANK(BJ48,TabMOYENNES_CBH1_1[Colonne385]) -> 22 | BJ48: 0.00048 | BL48: =RANK(BM48,TabMOYENNES_CBH1_1[Colonne386]) -> 22 | BM48: 0.00048 | BN48: =(AP48*AP$17+AS48*AS$17+AV48*AV$17+AY48*AY$17+TabMOYENNES_CBH1_1[[#This Row],[TECHNO5]]*BB$17+TabMOYENNES_CBH1_1[[#This Row],[TECHNO6]]*BE$17+TabMOYENNES_CBH1_1[[#This Row],[TECHNO7]]*BH$17+TabMOYENNES_CBH1_1[[#This Row],[TECHNO8]]*BK$17)/(BO$15+ROW()/10000) -> 0 | BO48: =RANK(TabMOYENNES_CBH1_1[[#This Row],[,]],TabMOYENNES_CBH1_1[,]) -> 41 | BP48: 0.00048 | BR48: =RANK(BS48,TabMOYENNES_CBH1_1[Colonne14]) -> 40 | BS48: 0.00048 | BU48: =RANK(BV48,TabMOYENNES_CBH1_1[Colonne16]) -> 38 | BV48: 0.00048 | BX48: =RANK(BY48,TabMOYENNES_CBH1_1[Colonne164]) -> 22 | BY48: 0.00048 | CA48: =RANK(CB48,TabMOYENNES_CBH1_1[Colonne17]) -> 22 | CB48: 0.00048 | CD48: =RANK(CE48,TabMOYENNES_CBH1_1[Colonne18]) -> 22 | CE48: 0.00048 | CG48: =RANK(CH48,TabMOYENNES_CBH1_1[Colonne184]) -> 22 | CH48: 0.00048 | CJ48: =RANK(CK48,TabMOYENNES_CBH1_1[Colonne19]) -> 22 | CK48: 0.00048 | CM48: =RANK(CN48,TabMOYENNES_CBH1_1[Colonne20]) -> 22 | CN48: 0.00048 | CO48: =(TabMOYENNES_CBH1_1[[#This Row],[PROF1]]*$BQ$17+TabMOYENNES_CBH1_1[[#This Row],[PROF2]]*BT$17+TabMOYENNES_CBH1_1[[#This Row],[PROF3]]*BW$17+TabMOYENNES_CBH1_1[[#This Row],[PROF4]]*BZ$17+TabMOYENNES_CBH1_1[[#This Row],[PROF5]]*CC$17+TabMOYENNES_CBH1_1[[#This Row],[PROF6]]*CF$17+TabMOYENNES_CBH1_1[[#This Row],[PROF7]]*CI$17+TabMOYENNES_CBH1_1[[#This Row],[PROF8]]*CL$17)/($CP$15+ROW()/10000) -> 0 | CP48: =RANK(CQ48,TabMOYENNES_CBH1_1[Colonne23]) -> 40 | CQ48: 0.00048 | CS48: =RANK(CT48,TabMOYENNES_CBH1_1[Colonne2]) -> 39 | CT48: 0.00048 | CV48: =RANK(CW48,TabMOYENNES_CBH1_1[Colonne6]) -> 40 | CW48: 0.00048 | CY48: =RANK(CZ48,TabMOYENNES_CBH1_1[Colonne7]) -> 40 | CZ48: 0.00048 | DB48: =RANK(DC48,TabMOYENNES_CBH1_1[Colonne8]) -> 22 | DC48: 0.00048 | DE48: =RANK(DF48,TabMOYENNES_CBH1_1[Colonne9]) -> 22 | DF48: 0.00048 | DH48: =RANK(DI48,TabMOYENNES_CBH1_1[Colonne95]) -> 22 | DI48: 0.00048 | DK48: =RANK(DL48,TabMOYENNES_CBH1_1[Colonne92]) -> 22 | DL48: 0.00048 | DN48: =RANK(DO48,TabMOYENNES_CBH1_1[Colonne922]) -> 22 | DO48: 0.00048 | DP48: =(CR48*CR$17+CU48*CU$17+TabMOYENNES_CBH1_1[[#This Row],[ECO3]]*CX$17+TabMOYENNES_CBH1_1[[#This Row],[ECO4]]*DA$17+TabMOYENNES_CBH1_1[[#This Row],[ECO5]]*DD$17+TabMOYENNES_CBH1_1[[#This Row],[ECO6]]*DG$17+TabMOYENNES_CBH1_1[[#This Row],[ECO7]]*DJ$17+TabMOYENNES_CBH1_1[[#This Row],[ECO8]]*DM$17)/(DQ$15+ROW()/10000) -> 0 | DQ48: =RANK(TabMOYENNES_CBH1_1[[#This Row],[Colonne30]],TabMOYENNES_CBH1_1[Colonne30]) -> 41 | DR48: 0.00048 | DU48: =VLOOKUP(TabMOYENNES_CBH1_1[[#This Row],[Matricule]],TabMOYENNES_CBH1_1[],20,FALSE) -> 0 | DV48: =VLOOKUP(TabMOYENNES_CBH1_1[[#This Row],[Matricule]],TabMOYENNES_CBH1_1[],38,FALSE) -> 0 | DW48: =VLOOKUP(TabMOYENNES_CBH1_1[[#This Row],[Matricule]],TabMOYENNES_CBH1_1[],65,FALSE) -> 0 | DX48: =VLOOKUP(TabMOYENNES_CBH1_1[[#This Row],[Matricule]],TabMOYENNES_CBH1_1[],92,FALSE) -> 0 | DY48: =VLOOKUP(TabMOYENNES_CBH1_1[[#This Row],[Matricule]],TabMOYENNES_CBH1_1[],119,FALSE) -> 0 | DZ48: 0 | EA48: 0 | EB48: =RANK(EC48,TabMOYENNES_CBH1_1[..],0) -> 41 | EC48: 0.00048 | ED48: 0 | EE48: =IF($EA48="","",IF(AND($EA48=0,TabMOYENNES_CBH1_1[[#This Row],[H.A.]]>=140),"Abandon",IF($EA48>9.99,"Validé","Non Validé"))) -> Non Validé
B49: ='Liste CBH1_1'!B43 -> CBH1.S1.19/20.030 | C49: =VLOOKUP(B49,TabListe_CBH1_S1[],2,FALSE) -> ZZZ9 | D49: =VLOOKUP(B49,TabListe_CBH1_S1[],3,FALSE) -> 0 | G49: 36 | H49: 0.00049 | J49: =RANK(K49,TabMOYENNES_CBH1_1[Ref. 2]) -> 39 | K49: 0.00049 | M49: =RANK(N49,TabMOYENNES_CBH1_1[Ref. 3]) -> 21 | N49: 0.00049 | P49: =RANK(Q49,TabMOYENNES_CBH1_1[Ref. 4]) -> 21 | Q49: 0.00049 | S49: =RANK(T49,TabMOYENNES_CBH1_1[Ref. 5]) -> 21 | T49: 0.00049 | U49: =(F49*F$17+I49*I$17+TabMOYENNES_CBH1_1[[#This Row],[LG3]]*L$17+TabMOYENNES_CBH1_1[[#This Row],[LG4]]*O$17+TabMOYENNES_CBH1_1[[#This Row],[LG5]]*R$17)/(V$15+ROW()/10000) -> 0 | V49: =RANK(W49,TabMOYENNES_CBH1_1[Colonne4]) -> 39 | W49: 0.00049 | Y49: =RANK(Z49,TabMOYENNES_CBH1_1[Ref 2.1]) -> 38 | Z49: 0.00049 | AB49: =RANK(AC49,TabMOYENNES_CBH1_1[Ref 2.2]) -> 38 | AC49: 0.00049 | AE49: =RANK(AF49,TabMOYENNES_CBH1_1[Ref 2.3]) -> 21 | AF49: 0.00049 | AH49: =RANK(AI49,TabMOYENNES_CBH1_1[Ref 2.4]) -> 21 | AI49: 0.00049 | AK49: =RANK(AL49,TabMOYENNES_CBH1_1[Ref 2.5]) -> 21 | AL49: 0.00049 | AM49: =(X49*X$17+AA49*AA$17+TabMOYENNES_CBH1_1[[#This Row],[SC3]]*AD$17+TabMOYENNES_CBH1_1[[#This Row],[SC4]]*AG$17+TabMOYENNES_CBH1_1[[#This Row],[SC5]]*AJ$17)/(AN$15+ROW()/10000) -> 0 | AN49: =RANK(AO49,TabMOYENNES_CBH1_1[Colonne44]) -> 39 | AO49: 0.00049 | AQ49: =RANK(AR49,TabMOYENNES_CBH1_1[Colonne32]) -> 39 | AR49: 0.00049 | AT49: =RANK(AU49,TabMOYENNES_CBH1_1[Colonne34]) -> 38 | AU49: 0.00049 | AW49: =RANK(AX49,TabMOYENNES_CBH1_1[Colonne36]) -> 40 | AX49: 0.00049 | AZ49: =RANK(BA49,TabMOYENNES_CBH1_1[Colonne38]) -> 39 | BA49: 0.00049 | BC49: =RANK(BD49,TabMOYENNES_CBH1_1[Colonne383]) -> 21 | BD49: 0.00049 | BF49: =RANK(BG49,TabMOYENNES_CBH1_1[Colonne384]) -> 21 | BG49: 0.00049 | BI49: =RANK(BJ49,TabMOYENNES_CBH1_1[Colonne385]) -> 21 | BJ49: 0.00049 | BL49: =RANK(BM49,TabMOYENNES_CBH1_1[Colonne386]) -> 21 | BM49: 0.00049 | BN49: =(AP49*AP$17+AS49*AS$17+AV49*AV$17+AY49*AY$17+TabMOYENNES_CBH1_1[[#This Row],[TECHNO5]]*BB$17+TabMOYENNES_CBH1_1[[#This Row],[TECHNO6]]*BE$17+TabMOYENNES_CBH1_1[[#This Row],[TECHNO7]]*BH$17+TabMOYENNES_CBH1_1[[#This Row],[TECHNO8]]*BK$17)/(BO$15+ROW()/10000) -> 0 | BO49: =RANK(TabMOYENNES_CBH1_1[[#This Row],[,]],TabMOYENNES_CBH1_1[,]) -> 40 | BP49: 0.00049 | BR49: =RANK(BS49,TabMOYENNES_CBH1_1[Colonne14]) -> 39 | BS49: 0.00049 | BU49: =RANK(BV49,TabMOYENNES_CBH1_1[Colonne16]) -> 37 | BV49: 0.00049 | BX49: =RANK(BY49,TabMOYENNES_CBH1_1[Colonne164]) -> 21 | BY49: 0.00049 | CA49: =RANK(CB49,TabMOYENNES_CBH1_1[Colonne17]) -> 21 | CB49: 0.00049 | CD49: =RANK(CE49,TabMOYENNES_CBH1_1[Colonne18]) -> 21 | CE49: 0.00049 | CG49: =RANK(CH49,TabMOYENNES_CBH1_1[Colonne184]) -> 21 | CH49: 0.00049 | CJ49: =RANK(CK49,TabMOYENNES_CBH1_1[Colonne19]) -> 21 | CK49: 0.00049 | CM49: =RANK(CN49,TabMOYENNES_CBH1_1[Colonne20]) -> 21 | CN49: 0.00049 | CO49: =(TabMOYENNES_CBH1_1[[#This Row],[PROF1]]*$BQ$17+TabMOYENNES_CBH1_1[[#This Row],[PROF2]]*BT$17+TabMOYENNES_CBH1_1[[#This Row],[PROF3]]*BW$17+TabMOYENNES_CBH1_1[[#This Row],[PROF4]]*BZ$17+TabMOYENNES_CBH1_1[[#This Row],[PROF5]]*CC$17+TabMOYENNES_CBH1_1[[#This Row],[PROF6]]*CF$17+TabMOYENNES_CBH1_1[[#This Row],[PROF7]]*CI$17+TabMOYENNES_CBH1_1[[#This Row],[PROF8]]*CL$17)/($CP$15+ROW()/10000) -> 0 | CP49: =RANK(CQ49,TabMOYENNES_CBH1_1[Colonne23]) -> 39 | CQ49: 0.00049 | CS49: =RANK(CT49,TabMOYENNES_CBH1_1[Colonne2]) -> 38 | CT49: 0.00049 | CV49: =RANK(CW49,TabMOYENNES_CBH1_1[Colonne6]) -> 39 | CW49: 0.00049 | CY49: =RANK(CZ49,TabMOYENNES_CBH1_1[Colonne7]) -> 39 | CZ49: 0.00049 | DB49: =RANK(DC49,TabMOYENNES_CBH1_1[Colonne8]) -> 21 | DC49: 0.00049 | DE49: =RANK(DF49,TabMOYENNES_CBH1_1[Colonne9]) -> 21 | DF49: 0.00049 | DH49: =RANK(DI49,TabMOYENNES_CBH1_1[Colonne95]) -> 21 | DI49: 0.00049 | DK49: =RANK(DL49,TabMOYENNES_CBH1_1[Colonne92]) -> 21 | DL49: 0.00049 | DN49: =RANK(DO49,TabMOYENNES_CBH1_1[Colonne922]) -> 21 | DO49: 0.00049 | DP49: =(CR49*CR$17+CU49*CU$17+TabMOYENNES_CBH1_1[[#This Row],[ECO3]]*CX$17+TabMOYENNES_CBH1_1[[#This Row],[ECO4]]*DA$17+TabMOYENNES_CBH1_1[[#This Row],[ECO5]]*DD$17+TabMOYENNES_CBH1_1[[#This Row],[ECO6]]*DG$17+TabMOYENNES_CBH1_1[[#This Row],[ECO7]]*DJ$17+TabMOYENNES_CBH1_1[[#This Row],[ECO8]]*DM$17)/(DQ$15+ROW()/10000) -> 0 | DQ49: =RANK(TabMOYENNES_CBH1_1[[#This Row],[Colonne30]],TabMOYENNES_CBH1_1[Colonne30]) -> 40 | DR49: 0.00049 | DU49: =VLOOKUP(TabMOYENNES_CBH1_1[[#This Row],[Matricule]],TabMOYENNES_CBH1_1[],20,FALSE) -> 0 | DV49: =VLOOKUP(TabMOYENNES_CBH1_1[[#This Row],[Matricule]],TabMOYENNES_CBH1_1[],38,FALSE) -> 0 | DW49: =VLOOKUP(TabMOYENNES_CBH1_1[[#This Row],[Matricule]],TabMOYENNES_CBH1_1[],65,FALSE) -> 0 | DX49: =VLOOKUP(TabMOYENNES_CBH1_1[[#This Row],[Matricule]],TabMOYENNES_CBH1_1[],92,FALSE) -> 0 | DY49: =VLOOKUP(TabMOYENNES_CBH1_1[[#This Row],[Matricule]],TabMOYENNES_CBH1_1[],119,FALSE) -> 0 | DZ49: 0 | EA49: 0 | EB49: =RANK(EC49,TabMOYENNES_CBH1_1[..],0) -> 40 | EC49: 0.00049 | ED49: 0 | EE49: =IF($EA49="","",IF(AND($EA49=0,TabMOYENNES_CBH1_1[[#This Row],[H.A.]]>=140),"Abandon",IF($EA49>9.99,"Validé","Non Validé"))) -> Non Validé
B50: ='Liste CBH1_1'!B44 -> CBH1.S1.19/20.031 | C50: =VLOOKUP(B50,TabListe_CBH1_S1[],2,FALSE) -> ZZZ10 | D50: =VLOOKUP(B50,TabListe_CBH1_S1[],3,FALSE) -> 0 | G50: 35 | H50: 0.0005 | J50: =RANK(K50,TabMOYENNES_CBH1_1[Ref. 2]) -> 38 | K50: 0.0005 | M50: =RANK(N50,TabMOYENNES_CBH1_1[Ref. 3]) -> 20 | N50: 0.0005 | P50: =RANK(Q50,TabMOYENNES_CBH1_1[Ref. 4]) -> 20 | Q50: 0.0005 | S50: =RANK(T50,TabMOYENNES_CBH1_1[Ref. 5]) -> 20 | T50: 0.0005 | U50: =(F50*F$17+I50*I$17+TabMOYENNES_CBH1_1[[#This Row],[LG3]]*L$17+TabMOYENNES_CBH1_1[[#This Row],[LG4]]*O$17+TabMOYENNES_CBH1_1[[#This Row],[LG5]]*R$17)/(V$15+ROW()/10000) -> 0 | V50: =RANK(W50,TabMOYENNES_CBH1_1[Colonne4]) -> 38 | W50: 0.0005 | Y50: =RANK(Z50,TabMOYENNES_CBH1_1[Ref 2.1]) -> 37 | Z50: 0.0005 | AB50: =RANK(AC50,TabMOYENNES_CBH1_1[Ref 2.2]) -> 37 | AC50: 0.0005 | AE50: =RANK(AF50,TabMOYENNES_CBH1_1[Ref 2.3]) -> 20 | AF50: 0.0005 | AH50: =RANK(AI50,TabMOYENNES_CBH1_1[Ref 2.4]) -> 20 | AI50: 0.0005 | AK50: =RANK(AL50,TabMOYENNES_CBH1_1[Ref 2.5]) -> 20 | AL50: 0.0005 | AM50: =(X50*X$17+AA50*AA$17+TabMOYENNES_CBH1_1[[#This Row],[SC3]]*AD$17+TabMOYENNES_CBH1_1[[#This Row],[SC4]]*AG$17+TabMOYENNES_CBH1_1[[#This Row],[SC5]]*AJ$17)/(AN$15+ROW()/10000) -> 0 | AN50: =RANK(AO50,TabMOYENNES_CBH1_1[Colonne44]) -> 38 | AO50: 0.0005 | AQ50: =RANK(AR50,TabMOYENNES_CBH1_1[Colonne32]) -> 38 | AR50: 0.0005 | AT50: =RANK(AU50,TabMOYENNES_CBH1_1[Colonne34]) -> 37 | AU50: 0.0005 | AW50: =RANK(AX50,TabMOYENNES_CBH1_1[Colonne36]) -> 39 | AX50: 0.0005 | AZ50: =RANK(BA50,TabMOYENNES_CBH1_1[Colonne38]) -> 38 | BA50: 0.0005 | BC50: =RANK(BD50,TabMOYENNES_CBH1_1[Colonne383]) -> 20 | BD50: 0.0005 | BF50: =RANK(BG50,TabMOYENNES_CBH1_1[Colonne384]) -> 20 | BG50: 0.0005 | BI50: =RANK(BJ50,TabMOYENNES_CBH1_1[Colonne385]) -> 20 | BJ50: 0.0005 | BL50: =RANK(BM50,TabMOYENNES_CBH1_1[Colonne386]) -> 20 | BM50: 0.0005 | BN50: =(AP50*AP$17+AS50*AS$17+AV50*AV$17+AY50*AY$17+TabMOYENNES_CBH1_1[[#This Row],[TECHNO5]]*BB$17+TabMOYENNES_CBH1_1[[#This Row],[TECHNO6]]*BE$17+TabMOYENNES_CBH1_1[[#This Row],[TECHNO7]]*BH$17+TabMOYENNES_CBH1_1[[#This Row],[TECHNO8]]*BK$17)/(BO$15+ROW()/10000) -> 0 | BO50: =RANK(TabMOYENNES_CBH1_1[[#This Row],[,]],TabMOYENNES_CBH1_1[,]) -> 39 | BP50: 0.0005 | BR50: =RANK(BS50,TabMOYENNES_CBH1_1[Colonne14]) -> 38 | BS50: 0.0005 | BU50: =RANK(BV50,TabMOYENNES_CBH1_1[Colonne16]) -> 36 | BV50: 0.0005 | BX50: =RANK(BY50,TabMOYENNES_CBH1_1[Colonne164]) -> 20 | BY50: 0.0005 | CA50: =RANK(CB50,TabMOYENNES_CBH1_1[Colonne17]) -> 20 | CB50: 0.0005 | CD50: =RANK(CE50,TabMOYENNES_CBH1_1[Colonne18]) -> 20 | CE50: 0.0005 | CG50: =RANK(CH50,TabMOYENNES_CBH1_1[Colonne184]) -> 20 | CH50: 0.0005 | CJ50: =RANK(CK50,TabMOYENNES_CBH1_1[Colonne19]) -> 20 | CK50: 0.0005 | CM50: =RANK(CN50,TabMOYENNES_CBH1_1[Colonne20]) -> 20 | CN50: 0.0005 | CO50: =(TabMOYENNES_CBH1_1[[#This Row],[PROF1]]*$BQ$17+TabMOYENNES_CBH1_1[[#This Row],[PROF2]]*BT$17+TabMOYENNES_CBH1_1[[#This Row],[PROF3]]*BW$17+TabMOYENNES_CBH1_1[[#This Row],[PROF4]]*BZ$17+TabMOYENNES_CBH1_1[[#This Row],[PROF5]]*CC$17+TabMOYENNES_CBH1_1[[#This Row],[PROF6]]*CF$17+TabMOYENNES_CBH1_1[[#This Row],[PROF7]]*CI$17+TabMOYENNES_CBH1_1[[#This Row],[PROF8]]*CL$17)/($CP$15+ROW()/10000) -> 0 | CP50: =RANK(CQ50,TabMOYENNES_CBH1_1[Colonne23]) -> 38 | CQ50: 0.0005 | CS50: =RANK(CT50,TabMOYENNES_CBH1_1[Colonne2]) -> 37 | CT50: 0.0005 | CV50: =RANK(CW50,TabMOYENNES_CBH1_1[Colonne6]) -> 38 | CW50: 0.0005 | CY50: =RANK(CZ50,TabMOYENNES_CBH1_1[Colonne7]) -> 38 | CZ50: 0.0005 | DB50: =RANK(DC50,TabMOYENNES_CBH1_1[Colonne8]) -> 20 | DC50: 0.0005 | DE50: =RANK(DF50,TabMOYENNES_CBH1_1[Colonne9]) -> 20 | DF50: 0.0005 | DH50: =RANK(DI50,TabMOYENNES_CBH1_1[Colonne95]) -> 20 | DI50: 0.0005 | DK50: =RANK(DL50,TabMOYENNES_CBH1_1[Colonne92]) -> 20 | DL50: 0.0005 | DN50: =RANK(DO50,TabMOYENNES_CBH1_1[Colonne922]) -> 20 | DO50: 0.0005 | DP50: =(CR50*CR$17+CU50*CU$17+TabMOYENNES_CBH1_1[[#This Row],[ECO3]]*CX$17+TabMOYENNES_CBH1_1[[#This Row],[ECO4]]*DA$17+TabMOYENNES_CBH1_1[[#This Row],[ECO5]]*DD$17+TabMOYENNES_CBH1_1[[#This Row],[ECO6]]*DG$17+TabMOYENNES_CBH1_1[[#This Row],[ECO7]]*DJ$17+TabMOYENNES_CBH1_1[[#This Row],[ECO8]]*DM$17)/(DQ$15+ROW()/10000) -> 0 | DQ50: =RANK(TabMOYENNES_CBH1_1[[#This Row],[Colonne30]],TabMOYENNES_CBH1_1[Colonne30]) -> 39 | DR50: 0.0005 | DU50: =VLOOKUP(TabMOYENNES_CBH1_1[[#This Row],[Matricule]],TabMOYENNES_CBH1_1[],20,FALSE) -> 0 | DV50: =VLOOKUP(TabMOYENNES_CBH1_1[[#This Row],[Matricule]],TabMOYENNES_CBH1_1[],38,FALSE) -> 0 | DW50: =VLOOKUP(TabMOYENNES_CBH1_1[[#This Row],[Matricule]],TabMOYENNES_CBH1_1[],65,FALSE) -> 0 | DX50: =VLOOKUP(TabMOYENNES_CBH1_1[[#This Row],[Matricule]],TabMOYENNES_CBH1_1[],92,FALSE) -> 0 | DY50: =VLOOKUP(TabMOYENNES_CBH1_1[[#This Row],[Matricule]],TabMOYENNES_CBH1_1[],119,FALSE) -> 0 | DZ50: 0 | EA50: 0 | EB50: =RANK(EC50,TabMOYENNES_CBH1_1[..],0) -> 39 | EC50: 0.0005 | ED50: 0 | EE50: =IF($EA50="","",IF(AND($EA50=0,TabMOYENNES_CBH1_1[[#This Row],[H.A.]]>=140),"Abandon",IF($EA50>9.99,"Validé","Non Validé"))) -> Non Validé
B51: ='Liste CBH1_1'!B45 -> CBH1.S1.19/20.032 | C51: =VLOOKUP(B51,TabListe_CBH1_S1[],2,FALSE) -> ZZZ11 | D51: =VLOOKUP(B51,TabListe_CBH1_S1[],3,FALSE) -> 0 | G51: 34 | H51: 0.00051 | J51: =RANK(K51,TabMOYENNES_CBH1_1[Ref. 2]) -> 37 | K51: 0.00051 | M51: =RANK(N51,TabMOYENNES_CBH1_1[Ref. 3]) -> 19 | N51: 0.00051 | P51: =RANK(Q51,TabMOYENNES_CBH1_1[Ref. 4]) -> 19 | Q51: 0.00051 | S51: =RANK(T51,TabMOYENNES_CBH1_1[Ref. 5]) -> 19 | T51: 0.00051 | U51: =(F51*F$17+I51*I$17+TabMOYENNES_CBH1_1[[#This Row],[LG3]]*L$17+TabMOYENNES_CBH1_1[[#This Row],[LG4]]*O$17+TabMOYENNES_CBH1_1[[#This Row],[LG5]]*R$17)/(V$15+ROW()/10000) -> 0 | V51: =RANK(W51,TabMOYENNES_CBH1_1[Colonne4]) -> 37 | W51: 0.00051 | Y51: =RANK(Z51,TabMOYENNES_CBH1_1[Ref 2.1]) -> 36 | Z51: 0.00051 | AB51: =RANK(AC51,TabMOYENNES_CBH1_1[Ref 2.2]) -> 36 | AC51: 0.00051 | AE51: =RANK(AF51,TabMOYENNES_CBH1_1[Ref 2.3]) -> 19 | AF51: 0.00051 | AH51: =RANK(AI51,TabMOYENNES_CBH1_1[Ref 2.4]) -> 19 | AI51: 0.00051 | AK51: =RANK(AL51,TabMOYENNES_CBH1_1[Ref 2.5]) -> 19 | AL51: 0.00051 | AM51: =(X51*X$17+AA51*AA$17+TabMOYENNES_CBH1_1[[#This Row],[SC3]]*AD$17+TabMOYENNES_CBH1_1[[#This Row],[SC4]]*AG$17+TabMOYENNES_CBH1_1[[#This Row],[SC5]]*AJ$17)/(AN$15+ROW()/10000) -> 0 | AN51: =RANK(AO51,TabMOYENNES_CBH1_1[Colonne44]) -> 37 | AO51: 0.00051 | AQ51: =RANK(AR51,TabMOYENNES_CBH1_1[Colonne32]) -> 37 | AR51: 0.00051 | AT51: =RANK(AU51,TabMOYENNES_CBH1_1[Colonne34]) -> 36 | AU51: 0.00051 | AW51: =RANK(AX51,TabMOYENNES_CBH1_1[Colonne36]) -> 38 | AX51: 0.00051 | AZ51: =RANK(BA51,TabMOYENNES_CBH1_1[Colonne38]) -> 37 | BA51: 0.00051 | BC51: =RANK(BD51,TabMOYENNES_CBH1_1[Colonne383]) -> 19 | BD51: 0.00051 | BF51: =RANK(BG51,TabMOYENNES_CBH1_1[Colonne384]) -> 19 | BG51: 0.00051 | BI51: =RANK(BJ51,TabMOYENNES_CBH1_1[Colonne385]) -> 19 | BJ51: 0.00051 | BL51: =RANK(BM51,TabMOYENNES_CBH1_1[Colonne386]) -> 19 | BM51: 0.00051 | BN51: =(AP51*AP$17+AS51*AS$17+AV51*AV$17+AY51*AY$17+TabMOYENNES_CBH1_1[[#This Row],[TECHNO5]]*BB$17+TabMOYENNES_CBH1_1[[#This Row],[TECHNO6]]*BE$17+TabMOYENNES_CBH1_1[[#This Row],[TECHNO7]]*BH$17+TabMOYENNES_CBH1_1[[#This Row],[TECHNO8]]*BK$17)/(BO$15+ROW()/10000) -> 0 | BO51: =RANK(TabMOYENNES_CBH1_1[[#This Row],[,]],TabMOYENNES_CBH1_1[,]) -> 38 | BP51: 0.00051 | BR51: =RANK(BS51,TabMOYENNES_CBH1_1[Colonne14]) -> 37 | BS51: 0.00051 | BU51: =RANK(BV51,TabMOYENNES_CBH1_1[Colonne16]) -> 35 | BV51: 0.00051 | BX51: =RANK(BY51,TabMOYENNES_CBH1_1[Colonne164]) -> 19 | BY51: 0.00051 | CA51: =RANK(CB51,TabMOYENNES_CBH1_1[Colonne17]) -> 19 | CB51: 0.00051 | CD51: =RANK(CE51,TabMOYENNES_CBH1_1[Colonne18]) -> 19 | CE51: 0.00051 | CG51: =RANK(CH51,TabMOYENNES_CBH1_1[Colonne184]) -> 19 | CH51: 0.00051 | CJ51: =RANK(CK51,TabMOYENNES_CBH1_1[Colonne19]) -> 19 | CK51: 0.00051 | CM51: =RANK(CN51,TabMOYENNES_CBH1_1[Colonne20]) -> 19 | CN51: 0.00051 | CO51: =(TabMOYENNES_CBH1_1[[#This Row],[PROF1]]*$BQ$17+TabMOYENNES_CBH1_1[[#This Row],[PROF2]]*BT$17+TabMOYENNES_CBH1_1[[#This Row],[PROF3]]*BW$17+TabMOYENNES_CBH1_1[[#This Row],[PROF4]]*BZ$17+TabMOYENNES_CBH1_1[[#This Row],[PROF5]]*CC$17+TabMOYENNES_CBH1_1[[#This Row],[PROF6]]*CF$17+TabMOYENNES_CBH1_1[[#This Row],[PROF7]]*CI$17+TabMOYENNES_CBH1_1[[#This Row],[PROF8]]*CL$17)/($CP$15+ROW()/10000) -> 0 | CP51: =RANK(CQ51,TabMOYENNES_CBH1_1[Colonne23]) -> 37 | CQ51: 0.00051 | CS51: =RANK(CT51,TabMOYENNES_CBH1_1[Colonne2]) -> 36 | CT51: 0.00051 | CV51: =RANK(CW51,TabMOYENNES_CBH1_1[Colonne6]) -> 37 | CW51: 0.00051 | CY51: =RANK(CZ51,TabMOYENNES_CBH1_1[Colonne7]) -> 37 | CZ51: 0.00051 | DB51: =RANK(DC51,TabMOYENNES_CBH1_1[Colonne8]) -> 19 | DC51: 0.00051 | DE51: =RANK(DF51,TabMOYENNES_CBH1_1[Colonne9]) -> 19 | DF51: 0.00051 | DH51: =RANK(DI51,TabMOYENNES_CBH1_1[Colonne95]) -> 19 | DI51: 0.00051 | DK51: =RANK(DL51,TabMOYENNES_CBH1_1[Colonne92]) -> 19 | DL51: 0.00051 | DN51: =RANK(DO51,TabMOYENNES_CBH1_1[Colonne922]) -> 19 | DO51: 0.00051 | DP51: =(CR51*CR$17+CU51*CU$17+TabMOYENNES_CBH1_1[[#This Row],[ECO3]]*CX$17+TabMOYENNES_CBH1_1[[#This Row],[ECO4]]*DA$17+TabMOYENNES_CBH1_1[[#This Row],[ECO5]]*DD$17+TabMOYENNES_CBH1_1[[#This Row],[ECO6]]*DG$17+TabMOYENNES_CBH1_1[[#This Row],[ECO7]]*DJ$17+TabMOYENNES_CBH1_1[[#This Row],[ECO8]]*DM$17)/(DQ$15+ROW()/10000) -> 0 | DQ51: =RANK(TabMOYENNES_CBH1_1[[#This Row],[Colonne30]],TabMOYENNES_CBH1_1[Colonne30]) -> 38 | DR51: 0.00051 | DU51: =VLOOKUP(TabMOYENNES_CBH1_1[[#This Row],[Matricule]],TabMOYENNES_CBH1_1[],20,FALSE) -> 0 | DV51: =VLOOKUP(TabMOYENNES_CBH1_1[[#This Row],[Matricule]],TabMOYENNES_CBH1_1[],38,FALSE) -> 0 | DW51: =VLOOKUP(TabMOYENNES_CBH1_1[[#This Row],[Matricule]],TabMOYENNES_CBH1_1[],65,FALSE) -> 0 | DX51: =VLOOKUP(TabMOYENNES_CBH1_1[[#This Row],[Matricule]],TabMOYENNES_CBH1_1[],92,FALSE) -> 0 | DY51: =VLOOKUP(TabMOYENNES_CBH1_1[[#This Row],[Matricule]],TabMOYENNES_CBH1_1[],119,FALSE) -> 0 | DZ51: 0 | EA51: 0 | EB51: =RANK(EC51,TabMOYENNES_CBH1_1[..],0) -> 38 | EC51: 0.00051 | ED51: 0 | EE51: =IF($EA51="","",IF(AND($EA51=0,TabMOYENNES_CBH1_1[[#This Row],[H.A.]]>=140),"Abandon",IF($EA51>9.99,"Validé","Non Validé"))) -> Non Validé
